Workbook

Sheet target (hidden)
A1: target
A2: Intro
A3: Emissions
A4: Tier 1 Report
A5: Tier 3 Screen Input
A6: Tier 2 Report
A7: Boiler
A8: Crematory
A9: DieselICE
A10: LeanBurnICE
A11: RichBurnICE
A12: Table 1A
A13: Table8A
A14: Table2AB
A15: Table3AB
A16: Table4
A17: Table5
A18: Table1B
A19: updated 121708
A20: Table2 Boiler < 12
A21: Table2 Engine < 12
A22: Table2C
A23: Table3 Boiler > 12
A24: Table3 Engine > 12
A25: Table3C
A26: Table6
A27: Table6 Boiler < 12
A28: Table6 Engine < 12
A29: Table6 Boiler > 12
A30: Table6 Engine > 12
A31: Table7
A32: Table9A
A33: Table9B
A34: Table10A
A35: Table10B
A36: Boiler < 12
A37: Boiler > 12
A38: Engine < 12
A39: Engine > 12
A40: Boiler < 12(A)
A41: Boiler > 12(A)
A42: Engine < 12(A)
A43: Engine > 12(A)
A44: Readme
A45: Readme

Sheet Intro
A10: ="Version "& MID(Readme!$A$2,22,18) -> Version December 07, 2012

Sheet Emissions
C2: EMISSIONS ARE ENTERED ON THE EMISSIONS WORKSHEET OR ONE OF THE FIVE COMBUSTION SOURCE WORKSHEETS
C3: INPUT PARAMETERS ENTERED ON THE EMISSIONS WORKSHEET ARE ALSO USED FOR TIER 1 ANALYSIS
D5: =IF(Emissions!ScreeningMode="YES","TIER 3 SCREENING RISK ASSESSMENT DATA INPUT","TIER 1 / TIER 2 SCREENING RISK ASSESSMENT DATA INPUT") -> TIER 1 / TIER 2 SCREENING RISK ASSESSMENT DATA INPUT
AU6: Table of Emission Units | BB6: List of Meteorological Stations
D7: Application deemed complete date: | E7: 2012-12-07
D9: A/N: | AU9: Unit | AV9: Input data needed | AW9: Data unit needed | AX9: Conversion factor | BA9: Anaheim
D10: Fac: | AU10: PPMv | AV10: Exhaust Flow Rate | AW10: scfm | AX10: =60/379/1000000*E17 -> 0 | BA10: Azusa
AU11: ug/l | AV11: Exhaust Flow Rate | AW11: scfm | AX11: =28.31698*60/1000000/453.593*E17 -> 0 | BA11: Banning | BS11: Receptor | BT11: X/Q | BU11: X/Qmax
C12: Stack Data | F12: Units | AU12: lb/hr | AX12: 1 | BA12: Burbank | BS12: Residential | BT12: =IF('Tier 2 Report'!$C$19=2,Table2AB!$C$7,IF('Tier 2 Report'!$C$19=3,Table3AB!$C$5,IF('Tier 2 Report'!$C$19=4,Table4!$C$7,IF('Tier 2 Report'!$C$19=5,Table5!$C$5,"no data")))) -> 1.445 | BU12: =IF('Tier 2 Report'!$C$20=6,Table6!$C$5,IF('Tier 2 Report'!$C$20=7,Table7!$C$5,"no data")) -> 83.35
C13: Hour/Day | E13: 24 | F13: =IF(OR(E13>24,E13<=0),"must be 0>x<=24","hr/day") -> hr/day | Y13: MET Factor | Z13: =IF('Tier 2 Report'!$C$19=2,Table2AB!$C$6,IF('Tier 2 Report'!$C$19=3,Table3AB!$C$4,IF('Tier 2 Report'!$C$19=4,Table4!$C$6,IF('Tier 2 Report'!$C$19=5,Table5!$C$4,"no data")))) -> 1 | AU13: gr/l | AV13: Gallon Consumption | AW13: gal/day | AX13: =E17*3.785/454/E13 -> 0 | BA13: Canoga Park | BS13: Commercial | BT13: =IF('Tier 2 Report'!$C$19=2,Table2AB!$C$8,IF('Tier 2 Report'!$C$19=3,Table3AB!$C$6,IF('Tier 2 Report'!$C$19=4,Table4!$C$8,IF('Tier 2 Report'!$C$19=5,Table5!$C$6,"no data")))) -> 8.756 | BU13: =IF('Tier 2 Report'!$C$20=6,Table6!$C$6,IF('Tier 2 Report'!$C$20=7,Table7!$C$6,"no data")) -> 462.84
C14: Day/Week | E14: 7 | F14: =IF(OR(E14>7,E14<=0),"must be 0>x<=7","day/wk") -> day/wk | AU14: lb/gal | AV14: Gallon Consumption | AW14: gal/day | AX14: =E17/E13 -> 0 | BA14: Compton
C15: Week/Year | E15: 52 | F15: wk/yr | AK15: Hour/Day = | AM15: =HoursPerDay -> 24 | BA15: Costa Mesa
C16: Emission Units | E16: lb/hr | AK16: Source Type = | AM16: =E27 -> O - Other | AU16: Conversion Factor | AV16: =VLOOKUP(EmissionUnits,unittable,MATCH("Conversion factor",unitheader,0),FALSE) -> 1 | BA16: Downtown L.A.
C17: =IF(EmissionUnitsUser="lb/hr",""," * To convert emission units to lbs/hr, enter "&VLOOKUP(EmissionUnitsUser,AU9:AX14,2,FALSE)&" here -->") ->  | D17: =IF(#REF!="","",IF($E$16="p",VLOOKUP(#REF!,table8,MATCH("mw",table8_heading,0),FALSE),"")) ->  | F17: =VLOOKUP(EmissionUnitsUser,AU9:AX14,3,FALSE) -> 0 | AK17: Point or Vol Source? | AM17: =E20 -> P | BA17: El Toro
C18: Control Efficiency | E18: 0 | F18: fraction range 0-1 | AN18: Residential | AP18: Commercial / Industrial | BA18: Fontana
C19: Does source have TBACT? | E19: YES | AK19: yes | AL19: =IF(HoursPerDay<12,IF(E20="p",IF($E$27="L - Lean Burn ICE","L2",IF($E$27="R - Rich Burn ICE","R2",)))) -> FALSE | AN19: Cancer/Chronic | AO19: Acute | AP19: Cancer/Chronic | AQ19: Acute | BA19: Indio
C20: Point or Volume Source ? | E20: P | F20: =IF(AND(E20<>"P",E20<>"V"),"must be P or V","P or V") -> P or V | G20: =IF(E20=" V",IF(E27<>"O - Other","Volume Source is only applicable where Source Type = Other. Select Point Source for Boiler, Cremate, ICEs types"),"") ->  | AN20: X/Q | AO20: X/Qmax | AP20: X/Q | AQ20: X/Qmax | BA20: King Harbor
C21: Stack Height or Building Height | E21: 25 | F21: feet | AL21: =IF(HoursPerDay<=12,IF(E20="P",IF($E$27="L - Lean Burn ICE","yes","no"),"no"),"no") -> no | AM21: L2 | AN21: ='Table2 Engine < 12'!C7 -> 0.2142392015 | AO21: ='Table6 Engine < 12'!C7 -> 3.913956451 | AP21: ='Table2 Engine < 12'!C8 -> 1.037553482 | AQ21: ='Table6 Engine < 12'!C8 -> 15.02412202 | BA21: La Canada
C22: Area (For Volume Source Only) | E22: 900 | F22: ft2 | AL22: =IF(HoursPerDay>12,IF(E20="P",IF($E$27="L - Lean Burn ICE","yes","no"),"no"),"no") -> no | AM22: L3 | AN22: ='Table3 Engine > 12'!C7 -> 0.4378207581 | AO22: ='Table6 Engine > 12'!C7 -> 3.931000851 | AP22: ='Table3 Engine > 12'!C8 -> 1.115437514 | AQ22: ='Table6 Engine > 12'!C8 -> 15.02412202 | BA22: La Habra
C23: Distance-Residential | E23: 250 | F23: meters | Y23: X/Q and X/Qmax | AL23: =IF(HoursPerDay<=12,IF(E20="P",IF($E$27="R - Rich Burn ICE","yes","no"),"no"),"no") -> no | AM23: R2 | AN23: =AN21 -> 0.2142392015 | AO23: 3.913956451 | AP23: 1.037553482 | AQ23: 15.02412202 | BA23: Lancaster
C24: Distance-Commercial | E24: 65 | F24: meters | Y24: Receptor | Z24: X/Q | AA24: X/Qmax | AL24: =IF(HoursPerDay>12,IF(E20="P",IF($E$27="R - Rich Burn ICE","yes","no"),"no"),"no") -> no | AM24: R3 | AN24: 0.4378207581 | AO24: 3.931000851 | AP24: 1.115437514 | AQ24: 15.02412202 | BA24: Lennox
C25: Meteorological Station | E25: Long Beach | Y25: Residential | Z25: =IF(ScreeningMode="YES",'Tier 3 Screen Input'!D21,VLOOKUP($AK$19,XQ,3,FALSE)) -> 1.445 | AA25: =IF(ScreeningMode="YES",'Tier 3 Screen Input'!D25,VLOOKUP($AK$19,XQ,4,FALSE)) -> 83.35 | AL25: =IF(HoursPerDay<=12,IF(E20="P",IF($E$27="B - Boiler","yes","no"),"no"),"no") -> no | AM25: B2 | AN25: ='Table2 Boiler < 12'!C7 -> 0.03457261545 | AO25: ='Table6 Boiler < 12'!C7 -> 0.8165150614 | AP25: ='Table2 Boiler < 12'!C8 -> 0.154551169 | AQ25: ='Table6 Boiler < 12'!C8 -> 6.550678525 | BA25: Long Beach
Y26: Commercial | Z26: =IF(ScreeningMode="YES",'Tier 3 Screen Input'!D22,VLOOKUP($AK$19,XQ,5,FALSE)) -> 8.756 | AA26: =IF(ScreeningMode="YES",'Tier 3 Screen Input'!D26,VLOOKUP($AK$19,XQ,6,FALSE)) -> 462.84 | AL26: =IF(HoursPerDay>12,IF(E20="P",IF($E$27="B - Boiler","yes","no"),"no"),"no") -> no | AM26: B3 | AN26: ='Table3 Boiler > 12'!C7 -> 0.04737207365 | AO26: ='Table6 Boiler > 12'!C7 -> 0.8165150614 | AP26: ='Table3 Boiler > 12'!C8 -> 0.1581556194 | AQ26: ='Table6 Boiler > 12'!C8 -> 6.550678525 | BA26: Los Alamitos
C27: Source Type: | E27: O - Other | AL27: =IF(HoursPerDay<=12,IF(E20="P",IF($E$27="O - Other","yes","no"),"no"),"no") -> no | AM27: O2 | AN27: =Table2AB!C7 -> 0.81 | AO27: =Table6!C$5 -> 83.35 | AP27: =Table2AB!C8 -> 9.26 | AQ27: =Table6!C$6 -> 462.84 | BA27: Lynwood
C28: Screening Mode (NO = Tier 1 or Tier 2; YES = Tier 3) | E28: NO | Y28: control | AL28: =IF(HoursPerDay>12,IF(E20="P",IF($E$27="O - Other","yes","no"),"no"),"no") -> yes | AM28: O3 | AN28: =Table3AB!C5 -> 1.445 | AO28: =Table6!C$5 -> 83.35 | AP28: =Table3AB!C6 -> 8.756 | AQ28: =Table6!C$6 -> 462.84 | BA28: Malibu
Y29: =IF(E27="O - Other","(R1-controlled)","(R2-uncontrolled)") -> (R1-controlled) | AL29: =IF(HoursPerDay<=12,IF(E20="V",IF($E$27="O - Other","yes","no"),"no"),"no") -> no | AM29: O4 | AN29: =Table4!C7 ->  | AO29: =Table7!C$5 ->  | AP29: =Table4!C8 ->  | AQ29: =Table7!C$6 ->  | BA29: Newhall
C30: Emission Units | E30: =IF(SourceType="o",EmissionUnitsUser,AU12) -> lb/hr | AL30: =IF(HoursPerDay>12,IF(E20="V",IF($E$27="O - Other","yes","no"),"no"),"no") -> no | AM30: O5 | AN30: =Table5!C5 ->  | AO30: =Table7!C$5 ->  | AP30: =Table5!C6 ->  | AQ30: =Table7!C$6 ->  | BA30: Norco
C31: Source output capacity | E31: =IF(SourceType="C",CrematoryBurnRate, IF(SourceType="L",LeanBurnICEPower,IF(SourceType="R",RichBurnICEPower,IF(SourceType="B",BoilerRating/1000000,"n/a")))) -> n/a | F31: =IF(SourceType="C",crematoryburnrateunits, IF(SourceType="L","hp",IF(SourceType="R","hp",IF(SourceType="B","MMBTU","n/a")))) -> n/a | AL31: =IF(HoursPerDay<=12,IF(E26="P",IF($E$27="D - Diesel ICE","yes","no"),"no"),"no") -> no | AM31: D2 | AN31: =Table2AB!C7 -> 0.81 | AO31: =Table6!C$5 -> 83.35 | AP31: =Table2AB!C8 -> 9.26 | AQ31: =Table6!C$6 -> 462.84 | BA31: Palm Springs
AL32: =IF(HoursPerDay>12,IF(E26="P",IF($E$27="D - Diesel ICE","yes","no"),"no"),"no") -> no | AM32: D3 | AN32: =Table3AB!C5 -> 1.445 | AO32: =Table6!C$5 -> 83.35 | AP32: =Table3AB!C6 -> 8.756 | AQ32: =Table6!C$6 -> 462.84 | BA32: Pasadena
AL33: =IF(HoursPerDay<=12,IF(E32="P",IF(SourceType="C","yes","no"),"no"),"no") -> no | AM33: C2 | AN33: =AN27 -> 0.81 | AO33: 83.35 | AP33: 9.26 | AQ33: 462.84 | BA33: Pico Rivera
AL34: =IF(HoursPerDay>12,IF(E32="P",IF(SourceType="C","yes","no"),"no"),"no") -> no | AM34: C3 | AN34: 1.445 | AO34: 83.35 | AP34: 8.756 | AQ34: 462.84 | BA34: Pomona
C35: FOR USER-DEFINED CHEMICALS AND EMISSIONS, FILL IN THE TABLE BELOW | K35: FOR COMBUSTION SOURCES, FILL IN THE DATA ON THE LEAN BURN, RICH BURN, BOILER, AND DIESEL SHEETS | AV35: SELECTION LISTS: | BA35: Redlands
K36: THE CHEMICALS AND EMISSION RATES ARE AUTOMATICALLY COPIED TO THE TABLES BELOW - DO NOT CHANGE THESE TABLES | AV36: NO | BA36: Reseda
AV37: YES | BA37: Riverside
C38: USER DEFINED CHEMICALS AND EMISSIONS | G38: R1 - Uncontrolled | H38: Efficiency Factor | I38: R2 - Controlled | K38: LEAN BURN ICE | M38: R1 - Uncontrolled | N38: R2 - Controlled | P38: RICH BURN ICE | R38: R1 - Uncontrolled | S38: R2 - Controlled | U38: BOILERS | W38: R1 - Uncontrolled | X38: R2 - Controlled | Z38: DIESEL | AB38: R1 - Uncontrolled | AC38: R2 - Controlled | AE38: CREMATORY | AG38: R1 - Uncontrolled | AH38: R2 - Controlled | BA38: Santa Ana Canyon
C39: Cmpound Code | D39: Compound | E39: =EmissionUnitsUser -> lb/hr | F39: Molecular Weight | G39: lbs/hr | H39: Fraction range 0-1 | I39: lbs/hr | K39: Code | L39: Compound | M39: lbs/hr | N39: lbs/hr | P39: Code | Q39: Compound | R39: lbs/hr | S39: lbs/hr | U39: Code | V39: Compound | W39: lbs/hr | X39: lbs/hr | Z39: Code | AA39: Compound | AB39: lbs/hr | AC39: lbs/hr | AE39: Code | AF39: Compound | AG39: lbs/hr | AH39: lbs/hr | BA39: Upland
C40: B1 | D40: =IF(C40="","",VLOOKUP(C40,table8a_new,MATCH("Toxic Air Contaminant",table8a_heading_new,0),FALSE)) -> Benzene (including benzene from gasoline) | E40: 8.4e-05 | F40: =IF($F$39="","",IF(C40="","",IF(VLOOKUP(C40,table8A,MATCH("MW",TABLE8A_HEADING,0),FALSE)="","no data",VLOOKUP(C40,table8A,MATCH("MW",TABLE8A_HEADING,0),FALSE)))) -> 78.11 | G40: =IF($E$39="lb/hr",E40,IF(F40="","",IF($F$39="",C40*VLOOKUP(EmissionUnitsUser,unittable,MATCH("Conversion factor",unitheader,0),FALSE),E40*F40*VLOOKUP(EmissionUnitsUser,unittable,MATCH("Conversion factor",unitheader,0),FALSE)))) -> 8.4e-05 | H40: 0 | I40: =IF(F40="","",IF(ControlEfficiency="",G40*(1-H40),G40*(1-ControlEfficiency))) -> 8.4e-05 | K40: ="" & LeanBurnICE!B18 -> A1 | L40: =IF(K40="","",VLOOKUP(K40,table8A,MATCH("Toxic Air Contaminant",TABLE8A_HEADING,0),FALSE)) -> Acetaldehyde | M40: =LeanBurnICE!F18 -> 0.005744607892 | N40: =LeanBurnICE!G18 -> 0.0001321259815 | P40: ="" & RichBurnICE!B19 -> A1 | Q40: =IF(P40="","",VLOOKUP(P40,table8A,MATCH("Toxic Air Contaminant",TABLE8A_HEADING,0),FALSE)) -> Acetaldehyde | R40: =RichBurnICE!F19 -> 0.00029295 | S40: =RichBurnICE!G19 -> 6.73785e-06 | U40: ="" & Boiler!A13 -> A1 | V40: =IF(U40="","",VLOOKUP(U40,table8A,MATCH("Toxic Air Contaminant",TABLE8A_HEADING,0),FALSE)) -> Acetaldehyde | W40: =Boiler!F13 -> 5.562285714e-05 | X40: =Boiler!G13 -> 5.006057143e-05 | Z40: ="" & DieselICE!B11 -> A1 | AA40: =IF(Z40="","",VLOOKUP(Z40,table8A,MATCH("Toxic Air Contaminant",TABLE8A_HEADING,0),FALSE)) -> Acetaldehyde | AB40: =DieselICE!E11 -> 0.000152 | AC40: =DieselICE!G11 -> 1.52e-05 | AE40: ="" & Crematory!B11 -> A13 | AF40: =IF(AE40="","",VLOOKUP(AE40,table8A,MATCH("Toxic Air Contaminant",TABLE8A_HEADING,0),FALSE)) -> Arsenic and arsenic compounds (inorganic) | AG40: =Crematory!F11 -> 2e-07 | AH40: =Crematory!G11 -> 2e-07 | AV40: P | BA40: Vernon
C41: T3 | D41: Toluene (methyl benzene) | E41: 8.4e-05 | F41: 92.13 | G41: 8.4e-05 | H41: 0 | I41: 8.4e-05 | K41: ="" & LeanBurnICE!B19 -> A3 | L41: Acrolein | M41: =LeanBurnICE!F19 -> 0.003531971838 | N41: =LeanBurnICE!G19 -> 8.123535227e-05 | P41: ="" & RichBurnICE!B20 -> A3 | Q41: Acrolein | R41: =RichBurnICE!F20 -> 0.00027615 | S41: =RichBurnICE!G20 -> 6.35145e-06 | U41: ="" & Boiler!A14 -> A3 | V41: Acrolein | W41: =Boiler!F14 -> 4.844571429e-05 | X41: =Boiler!G14 -> 4.360114286e-05 | Z41: ="" & DieselICE!B12 -> A3 | AA41: Acrolein | AB41: =DieselICE!E12 -> 3.16e-05 | AC41: =DieselICE!G12 -> 3.16e-06 | AE41: ="" & Crematory!B12 -> B4 | AF41: Beryllium (and beryllium compounds) | AG41: =Crematory!F12 -> 9.2e-09 | AH41: =Crematory!G12 -> 9.2e-09 | AV41: V | BA41: Walnut
C42: X1 | D42: Xylenes (isomers and mixtures) | E42: 1.35e-05 | F42: 106.2 | G42: 1.35e-05 | H42: 0 | I42: 1.35e-05 | K42: ="" & LeanBurnICE!B20 -> B1 | L42: Benzene (including benzene from gasoline) | M42: =LeanBurnICE!F20 -> 0.0003023477838 | N42: =LeanBurnICE!G20 -> 6.953999027e-06 | P42: ="" & RichBurnICE!B21 -> B1 | Q42: Benzene (including benzene from gasoline) | R42: =RichBurnICE!F21 -> 0.0001659 | S42: =RichBurnICE!G21 -> 3.8157e-06 | U42: ="" & Boiler!A15 -> B1 | V42: Benzene (including benzene from gasoline) | W42: =Boiler!F15 -> 0.0001040685714 | X42: =Boiler!G15 -> 9.366171429e-05 | Z42: ="" & DieselICE!B13 -> B1 | AA42: Benzene (including benzene from gasoline) | AB42: =DieselICE!E13 -> 0.00033 | AC42: =DieselICE!G13 -> 3.3e-05 | AE42: ="" & Crematory!B13 -> C1 | AF42: Cadmium and cadmium compounds | AG42: =Crematory!F13 -> 7.3e-07 | AH42: =Crematory!G13 -> 7.3e-07 | BA42: West L.A.
C43: E4 | D43: Ethyl benzene | E43: 8.1e-07 | F43: 106.16 | G43: 8.1e-07 | H43: 0 | I43: 8.1e-07 | K43: ="" & LeanBurnICE!B21 -> B9 | L43: Butadiene, 1,3- | M43: =LeanBurnICE!F21 -> 0.0001834701324 | N43: =LeanBurnICE!G21 -> 4.219813046e-06 | P43: ="" & RichBurnICE!B22 -> B9 | Q43: Butadiene, 1,3- | R43: =RichBurnICE!F22 -> 6.9615e-05 | S43: =RichBurnICE!G22 -> 1.601145e-06 | U43: ="" & Boiler!A16 -> E4 | V43: Ethyl benzene | W43: =Boiler!F16 -> 0.0001238057143 | X43: =Boiler!G16 -> 0.0001114251429 | Z43: ="" & DieselICE!B14 -> B9 | AA43: Butadiene, 1,3- | AB43: =DieselICE!E14 -> 5.41e-06 | AC43: =DieselICE!G14 -> 5.41e-07 | AE43: ="" & Crematory!B14 -> C20 | AF43: Chromium, hexavalent | AG43: =Crematory!F14 -> 9.55e-08 | AH43: =Crematory!G14 -> 9.55e-08 | BA43: Whittier
G44: 0 | K44: ="" & LeanBurnICE!B22 -> C3 | L44: Carbon tetrachloride (Tetrachloromethane) | M44: =LeanBurnICE!F22 -> 2.521855378e-05 | N44: =LeanBurnICE!G22 -> 5.80026737e-07 | P44: ="" & RichBurnICE!B23 -> C3 | Q44: Carbon tetrachloride (Tetrachloromethane) | R44: =RichBurnICE!F23 -> 1.8585e-06 | S44: =RichBurnICE!G23 -> 4.27455e-08 | U44: ="" & Boiler!A17 -> F3 | V44: Formaldehyde | W44: =Boiler!F17 -> 0.0002206971429 | X44: =Boiler!G17 -> 0.0001986274286 | Z44: ="" & DieselICE!B15 -> E4 | AA44: Ethyl benzene | AB44: =DieselICE!E15 -> 8.03e-06 | AC44: =DieselICE!G15 -> 8.03e-07 | AE44: ="" & Crematory!B15 -> P57 | AF44: Polychlorinated Dibenzofurans (PCDF) (as 2,3,7,8-Eqiv) and total | AG44: =Crematory!F15 -> 7.15e-11 | AH44: =Crematory!G15 -> 7.15e-11 | AV44: B - Boiler
G45: 0 | K45: ="" & LeanBurnICE!B23 -> D6 | L45: Dichloroethane, 1,1- | M45: =LeanBurnICE!F23 -> 1.621683568e-05 | N45: =LeanBurnICE!G23 -> 3.729872205e-07 | P45: ="" & RichBurnICE!B24 -> C7 | Q45: Chlorobenzene | R45: =RichBurnICE!F24 -> 1.3545e-06 | S45: =RichBurnICE!G24 -> 3.11535e-08 | U45: ="" & Boiler!A18 -> H8 | V45: Hexane (n-) | W45: =Boiler!F18 -> 8.253714286e-05 | X45: =Boiler!G18 -> 7.428342857e-05 | Z45: ="" & DieselICE!B16 -> F3 | AA45: Formaldehyde | AB45: =DieselICE!E16 -> 0.00223 | AC45: =DieselICE!G16 -> 0.000223 | AE45: ="" & Crematory!B16 -> P49 | AF45: Polychlorinated Dibenzo-p-Dioxins (PCDD) (as 2,3,7,8-Eqiv) and total | AG45: =Crematory!F16 -> 3.87e-11 | AH45: =Crematory!G16 -> 3.87e-11 | AV45: C - Crematory
G46: 0 | K46: ="" & LeanBurnICE!B24 -> E4 | L46: Ethyl benzene | M46: =LeanBurnICE!F24 -> 2.728001595e-05 | N46: =LeanBurnICE!G24 -> 6.274403668e-07 | P46: ="" & RichBurnICE!B25 -> C14 | Q46: Chloroform(trichloromethane) | R46: =RichBurnICE!F25 -> 1.4385e-06 | S46: =RichBurnICE!G25 -> 3.30855e-08 | U46: ="" & Boiler!A19 -> P30 | V46: Naphthalene | W46: =Boiler!F19 -> 5.382857143e-06 | X46: =Boiler!G19 -> 4.844571429e-06 | Z46: ="" & DieselICE!B17 -> P9 | AA46: PolyCyclic Aromatic Hydrocarbon (PAHs) | AB46: =DieselICE!E17 -> 4.7e-05 | AC46: =DieselICE!G17 -> 4.7e-06 | AE46: ="" & Crematory!B17 -> F3 | AF46: Formaldehyde | AG46: =Crematory!F17 -> 1.445e-12 | AH46: =Crematory!G17 -> 1.445e-12 | AV46: D - Diesel ICE
G47: 0 | K47: ="" & LeanBurnICE!B25 -> E7 | L47: Ethylene dibromide(1,2-Dibromoethane) | M47: =LeanBurnICE!F25 -> 3.044092459e-05 | N47: =LeanBurnICE!G25 -> 7.001412657e-07 | P47: ="" & RichBurnICE!B26 -> D6 | Q47: Dichloroethane, 1,1- | R47: =RichBurnICE!F26 -> 1.1865e-06 | S47: =RichBurnICE!G26 -> 2.72895e-08 | U47: ="" & Boiler!A20 -> P9 | V47: PolyCyclic Aromatic Hydrocarbon (PAHs) | W47: =Boiler!F20 -> 1.794285714e-06 | X47: =Boiler!G20 -> 1.614857143e-06 | Z47: ="" & DieselICE!B18 -> P30 | AA47: Naphthalene | AB47: =DieselICE!E18 -> 0.000158 | AC47: =DieselICE!G18 -> 1.58e-05 | AE47: ="" & Crematory!B18 -> H11 | AF47: Hydrogen chloride (hydrochloric acid) | AG47: =Crematory!F18 -> 0.000985 | AH47: =Crematory!G18 -> 0.000985 | AV47: L - Lean Burn ICE
G48: 0 | K48: ="" & LeanBurnICE!B26 -> E8 | L48: Ethylene dichloride (or 1,2-dichloroethane) | M48: =LeanBurnICE!F26 -> 1.621683568e-05 | N48: =LeanBurnICE!G26 -> 3.729872205e-07 | P48: ="" & RichBurnICE!B27 -> E4 | Q48: Ethyl benzene | R48: =RichBurnICE!F27 -> 2.604e-06 | S48: =RichBurnICE!G27 -> 5.9892e-08 | U48: ="" & Boiler!A21 -> P78 | V48: Propylene | W48: =Boiler!F21 -> 0.009509714286 | X48: =Boiler!G21 -> 0.008558742857 | Z48: =DieselICE!B19 -> T3 | AA48: Toluene (methyl benzene) | AB48: =DieselICE!E19 -> 0.000111 | AC48: =DieselICE!G19 -> 1.11e-05 | AE48: ="" & Crematory!B19 -> L1 | AF48: Lead and lead compounds (inorganic, including elemental lead), including but not limited to: | AG48: =Crematory!F19 -> 4.695e-06 | AH48: =Crematory!G19 -> 4.695e-06 | AV48: R - Rich Burn ICE
G49: 0 | K49: ="" & LeanBurnICE!B27 -> F3 | L49: Formaldehyde | M49: =LeanBurnICE!F27 -> 0.03628173405 | N49: =LeanBurnICE!G27 -> 0.0008344798832 | P49: ="" & RichBurnICE!B28 -> E7 | Q49: Ethylene dibromide(1,2-Dibromoethane) | R49: =RichBurnICE!F28 -> 2.2365e-06 | S49: =RichBurnICE!G28 -> 5.14395e-08 | U49: ="" & Boiler!A22 -> T3 | V49: Toluene (methyl benzene) | W49: =Boiler!F22 -> 0.0004754857143 | X49: =Boiler!G22 -> 0.0004279371429 | Z49: =DieselICE!B20 -> X1 | AA49: Xylenes (isomers and mixtures) | AB49: =DieselICE!E20 -> 4.44e-05 | AC49: =DieselICE!G20 -> 4.44e-06 | AE49: ="" & Crematory!B20 -> N1 | AF49: Nickel & nickel compounds (except nickel oxide): | AG49: =Crematory!F20 -> 2.545e-07 | AH49: =Crematory!G20 -> 2.545e-07 | AV49: O - Other
G50: 0 | K50: ="" & LeanBurnICE!B28 -> H8 | L50: Hexane (n-) | M50: =LeanBurnICE!F28 -> 0.000762741 | N50: =LeanBurnICE!G28 -> 1.7543043e-05 | P50: ="" & RichBurnICE!B29 -> E8 | Q50: Ethylene dichloride (or 1,2-dichloroethane) | R50: =RichBurnICE!F29 -> 1.1865e-06 | S50: =RichBurnICE!G29 -> 2.72895e-08 | U50: ="" & Boiler!A23 -> X1 | V50: Xylenes (isomers and mixtures) | W50: =Boiler!F23 -> 0.0003534742857 | X50: =Boiler!G23 -> 0.0003181268571 | AE50: ="" & Crematory!B21 -> M3 | AF50: Mercury and mercury compounds (inorganic) | AG50: =Crematory!F21 -> 0 | AH50: =Crematory!G21 -> 0
G51: 0 | K51: ="" & LeanBurnICE!B29 -> M6 | L51: Methanol (methyl alcohol) | M51: =LeanBurnICE!F29 -> 0.001717885135 | N51: =LeanBurnICE!G29 -> 3.951135811e-05 | P51: ="" & RichBurnICE!B30 -> F3 | Q51: Formaldehyde | R51: =RichBurnICE!F30 -> 0.0021525 | S51: =RichBurnICE!G30 -> 4.95075e-05 | AE51: ="" & Crematory!B22 -> P9 | AF51: PolyCyclic Aromatic Hydrocarbon (PAHs) | AG51: =Crematory!F22 -> 4.815e-07 | AH51: =Crematory!G22 -> 4.815e-07 | AV51: =LEFT(E27,1) -> O
G52: 0 | K52: ="" & LeanBurnICE!B30 -> M13 | L52: Methylene chloride(Dichloromethane) | M52: =LeanBurnICE!F30 -> 1.374308108e-05 | N52: =LeanBurnICE!G30 -> 3.160908649e-07 | P52: ="" & RichBurnICE!B31 -> M6 | Q52: Methanol (methyl alcohol) | R52: =RichBurnICE!F31 -> 0.0003213 | S52: =RichBurnICE!G31 -> 7.3899e-06 | AE52: =IF(Crematory!B23="","",""&Crematory!B23) -> 
G53: 0 | K53: ="" & LeanBurnICE!B31 -> P3 | L53: Phenol | M53: =LeanBurnICE!F31 -> 1.64916973e-05 | N53: =LeanBurnICE!G31 -> 3.793090378e-07 | P53: ="" & RichBurnICE!B32 -> M13 | Q53: Methylene chloride(Dichloromethane) | R53: =RichBurnICE!F32 -> 4.326e-06 | S53: =RichBurnICE!G32 -> 9.9498e-08 | AE53: =IF(Crematory!B24="","",""&Crematory!B24) -> 
G54: 0 | K54: ="" & LeanBurnICE!B32 -> P9 | L54: PolyCyclic Aromatic Hydrocarbon (PAHs) | M54: =LeanBurnICE!F32 -> 1.848444405e-05 | N54: =LeanBurnICE!G32 -> 4.251422132e-07 | P54: ="" & RichBurnICE!B33 -> P9 | Q54: PolyCyclic Aromatic Hydrocarbon (PAHs) | R54: =RichBurnICE!F33 -> 4.6095e-06 | S54: =RichBurnICE!G33 -> 1.060185e-07 | AE54: =IF(Crematory!B25="","",""&Crematory!B25) -> 
G55: 0 | K55: ="" & LeanBurnICE!B33 -> P12 | L55: Benzo[b]fluoranthene | M55: =LeanBurnICE!F33 -> 1.14067573e-07 | N55: =LeanBurnICE!G33 -> 2.623554178e-09 | P55: ="" & RichBurnICE!B34 -> P30 | Q55: Naphthalene | R55: =RichBurnICE!F34 -> 1.01955e-05 | S55: =RichBurnICE!G34 -> 2.344965e-07 | AE55: =IF(Crematory!B26="","",""&Crematory!B26) -> 
G56: 0 | K56: ="" & LeanBurnICE!B34 -> P15 | L56: Chrysene | M56: =LeanBurnICE!F34 -> 4.761977595e-07 | N56: =LeanBurnICE!G34 -> 1.095254847e-08 | P56: ="" & RichBurnICE!B35 -> S6 | Q56: Styrene (vinyl benzene) | R56: =RichBurnICE!F35 -> 1.2495e-06 | S56: =RichBurnICE!G35 -> 2.87385e-08 | AE56: =IF(Crematory!B27="","",""&Crematory!B27) -> 
G57: 0 | K57: ="" & LeanBurnICE!B35 -> P30 | L57: Naphthalene | M57: =LeanBurnICE!F35 -> 5.112426162e-05 | N57: =LeanBurnICE!G35 -> 1.175858017e-06 | P57: ="" & RichBurnICE!B36 -> T1 | Q57: Tetrachloroethane 1,1,2,2- | R57: =RichBurnICE!F36 -> 2.6565e-06 | S57: =RichBurnICE!G36 -> 6.10995e-08 | AE57: =IF(Crematory!B28="","",""&Crematory!B28) -> 
G58: 0 | K58: ="" & LeanBurnICE!B36 -> S6 | L58: Styrene (vinyl benzene) | M58: =LeanBurnICE!F36 -> 1.621683568e-05 | N58: =LeanBurnICE!G36 -> 3.729872205e-07 | P58: ="" & RichBurnICE!B37 -> T3 | Q58: Toluene (methyl benzene) | R58: =RichBurnICE!F37 -> 5.859e-05 | S58: =RichBurnICE!G37 -> 1.34757e-06 | AE58: =IF(Crematory!B29="","",""&Crematory!B29) -> 
G59: 0 | K59: ="" & LeanBurnICE!B37 -> T1 | L59: Tetrachloroethane 1,1,2,2- | M59: =LeanBurnICE!F37 -> 2.748616216e-05 | N59: =LeanBurnICE!G37 -> 6.321817297e-07 | P59: ="" & RichBurnICE!B38 -> T7 | Q59: Trichloroethane, 1,1,2- | R59: =RichBurnICE!F38 -> 1.6065e-06 | S59: =RichBurnICE!G38 -> 3.69495e-08 | AE59: =IF(Crematory!B30="","",""&Crematory!B30) -> 
G60: 0 | K60: ="" & LeanBurnICE!B38 -> T3 | L60: Toluene (methyl benzene) | M60: =LeanBurnICE!F38 -> 0.0002803588541 | N60: =LeanBurnICE!G38 -> 6.448253643e-06 | P60: ="" & RichBurnICE!B39 -> V5 | Q60: Vinyl chloride (chloroethylene) | R60: =RichBurnICE!F39 -> 7.539e-07 | S60: =RichBurnICE!G39 -> 1.73397e-08 | AE60: =IF(Crematory!B31="","",""&Crematory!B31) -> 
G61: 0 | K61: ="" & LeanBurnICE!B39 -> T7 | L61: Trichloroethane, 1,1,2- | M61: =LeanBurnICE!F39 -> 2.185149892e-05 | N61: =LeanBurnICE!G39 -> 5.025844751e-07 | P61: ="" & RichBurnICE!B40 -> X1 | Q61: Xylenes (isomers and mixtures) | R61: =RichBurnICE!F40 -> 2.0475e-05 | S61: =RichBurnICE!G40 -> 4.70925e-07 | AE61: =IF(Crematory!B32="","",""&Crematory!B32) -> 
G62: 0 | K62: ="" & LeanBurnICE!B40 -> V5 | L62: Vinyl chloride (chloroethylene) | M62: =LeanBurnICE!F40 -> 1.023859541e-05 | N62: =LeanBurnICE!G40 -> 2.354876943e-07 | AE62: =IF(Crematory!B33="","",""&Crematory!B33) -> 
G63: 0 | K63: ="" & LeanBurnICE!B41 -> X1 | L63: Xylenes (isomers and mixtures) | M63: =LeanBurnICE!F41 -> 0.0001264363459 | N63: =LeanBurnICE!G41 -> 2.908035957e-06 | AE63: =IF(Crematory!B34="","",""&Crematory!B34) -> 
G64: 0 | K64: C7 | L64: Chlorobenzene | M64: =LeanBurnICE!F42 -> 2.088948324e-05 | N64: =LeanBurnICE!G42 -> 4.804581146e-07 | AE64: =IF(Crematory!B35="","",""&Crematory!B35) -> 
G65: 0 | K65: C14 | L65: Chloroform(trichloromethane) | M65: =LeanBurnICE!F43 -> 1.958389054e-05 | N65: =LeanBurnICE!G43 -> 4.504294824e-07 | AE65: =IF(Crematory!B36="","",""&Crematory!B36) -> 
G66: 0 | AE66: =IF(Crematory!B37="","",""&Crematory!B37) -> 
G67: 0 | AE67: =IF(Crematory!B38="","",""&Crematory!B38) -> 
G68: 0 | AE68: =IF(Crematory!B39="","",""&Crematory!B39) -> 
G69: 0 | AE69: =IF(Crematory!B40="","",""&Crematory!B40) -> 
G70: 0 | AE70: =IF(Crematory!B41="","",""&Crematory!B41) -> 
G71: 0 | AE71: =IF(Crematory!B42="","",""&Crematory!B42) -> 
G72: 0 | AE72: =IF(Crematory!B43="","",""&Crematory!B43) -> 
G73: 0 | AE73: =IF(Crematory!B44="","",""&Crematory!B44) -> 
G74: 0 | AE74: =IF(Crematory!B45="","",""&Crematory!B45) -> 
G75: 0 | AE75: =IF(Crematory!B46="","",""&Crematory!B46) -> 

Sheet Tier 1 Report
C3: PRIMARY INPUT PARAMETERS MUST BE ENTERED ON THE TIER2 SHEET
C4: EMISSIONS ARE ENTERED ON THE EMISSION SHEET OR ON ONE OF THE FIVE COMBUSTION SOURCE SHEETS
C6: TIER 1 SCREENING RISK ASSESSMENT REPORT
C9: Receptor Distance (actual) (m) | D9: =IF(Emissions!DistanceResidential<Emissions!DistanceCommercial,Emissions!DistanceResidential,Emissions!DistanceCommercial) -> 65 | F9: Tier 1 Results
C10: Receptor Distance (for X/Q LOOKUP) (m) | D10: =IF(D9>=100,100,IF(D9>=50,50,25)) -> 50 | F10: Cancer/Chronic ASI | G10: Acute ASI | S10: column name | T10: column no.
F11: =H52 -> 0.2453631339 | G11: =I52 -> 5.978129236e-05 | R11: cancer column name | S11: =IF(D10=100,"cancer100",IF(D10=50,"cancer50","cancer25")) -> cancer50 | T11: =MATCH(S11,Table1A_heading,0) -> 9
F12: =IF(F11>1,"FAILED","PASSED") -> PASSED | G12: =IF(G11>1,"FAILED","PASSED") -> PASSED | R12: acute column name | S12: =IF(D10=100,"acute100",IF(D10=50,"acute50","acute25")) -> acute50 | T12: =MATCH(S12,Table1A_heading,0) -> 10
C14: APPLICATION SCREENING INDEX CALCULATION
B15: Code | C15: ='Tier 2 Report'!C77 -> Compound | D15: Average Annual Emission Rate (lbs/yr) | E15: Max Hourly Emission Rate (lbs/hr) | F15: Cancer / Chronic Pollutant Screening Level (lbs/yr) | G15: Acute Pollutant Screening Level (lbs/hr) | H15: Cancer / Chronic Pollutant Screening Index (PSI) | I15: Acute Pollutant Screening Index (PSI) | R15: Cancer / Chronic Pollutant Screening Level (lbs/yr) | S15: Acute Pollutant Screening Level (lbs/hr) | T15: Cancer / Chronic Pollutant Screening Index (PSI) | U15: Acute Pollutant Screening Index (PSI)
B16: ='Tier 2 Report'!B78 -> B1 | C16: ='Tier 2 Report'!C78:D78 -> Benzene (including benzene from gasoline) | D16: ='Tier 2 Report'!G118 -> 0.733824 | E16: ='Tier 2 Report'!F118 -> 8.4e-05 | F16: =IF(OR(R16="N/A",R16=""),"",R16) -> 2.993644861 | G16: =IF(OR(S16="N/A",S16=""),"",S16) -> 1.476386895 | H16: =IF(OR(T16="N/A",T16=""),"",T16) -> 0.2451272726 | I16: =IF(OR(U16="N/A",U16=""),"",U16) -> 5.689565538e-05 | R16: =IF(OR($B16=0,$B16=""),0,VLOOKUP($B16,Table1A,$T$11,FALSE)) -> 2.993644861 | S16: =IF(OR($B16=0,$B16=""),0,VLOOKUP($B16,Table1A,$T$12,FALSE)) -> 1.476386895 | T16: =IF($B16=0,"",IF($D16=0,"N/A",IF(R16="N/A","N/A",$D16/R16))) -> 0.2451272726 | U16: =IF($B16=0,"",IF($E16=0,"N/A",IF(S16="N/A","N/A",$E16/S16))) -> 5.689565538e-05
B17: ='Tier 2 Report'!B79 -> T3 | C17: ='Tier 2 Report'!C79:D79 -> Toluene (methyl benzene) | D17: ='Tier 2 Report'!G119 -> 0.733824 | E17: ='Tier 2 Report'!F119 -> 8.4e-05 | F17: =IF(OR(R17="N/A",R17=""),"",R17) -> 26007.80234 | G17: 36.97781331 | H17: 2.82155328e-05 | I17: 2.271632432e-06 | R17: 26007.80234 | S17: 36.97781331 | T17: 2.82155328e-05 | U17: 2.271632432e-06
B18: ='Tier 2 Report'!B80 -> X1 | C18: ='Tier 2 Report'!C80:D80 -> Xylenes (isomers and mixtures) | D18: ='Tier 2 Report'!G120 -> 0.117936 | E18: ='Tier 2 Report'!F120 -> 1.35e-05 | F18: 60684.87213 | G18: 21.98680792 | H18: 1.9434168e-06 | I18: 6.140045455e-07 | R18: 60684.87213 | S18: 21.98680792 | T18: 1.9434168e-06 | U18: 6.140045455e-07
B19: ='Tier 2 Report'!B81 -> E4 | C19: ='Tier 2 Report'!C81:D81 -> Ethyl benzene | D19: ='Tier 2 Report'!G121 -> 0.00707616 | E19: ='Tier 2 Report'!F121 -> 8.1e-07 | F19: 34.4 | H19: 0.0002057023256 | R19: 34.4 | S19: N/A | T19: 0.0002057023256 | U19: N/A
B20: ='Tier 2 Report'!B82 -> 0 | C20: ='Tier 2 Report'!C82:D82 ->  | D20: ='Tier 2 Report'!G122 -> 0 | E20: ='Tier 2 Report'!F122 ->  | F20: 0 | G20: 0 | R20: 0 | S20: 0
B21: ='Tier 2 Report'!B83 -> 0 | C21: ='Tier 2 Report'!C83:D83 ->  | D21: ='Tier 2 Report'!G123 -> 0 | E21: ='Tier 2 Report'!F123 ->  | F21: 0 | G21: 0 | R21: 0 | S21: 0
B22: ='Tier 2 Report'!B84 -> 0 | C22: ='Tier 2 Report'!C84:D84 ->  | D22: ='Tier 2 Report'!G124 -> 0 | E22: ='Tier 2 Report'!F124 ->  | F22: 0 | G22: 0 | R22: 0 | S22: 0
B23: ='Tier 2 Report'!B85 -> 0 | C23: ='Tier 2 Report'!C85:D85 ->  | D23: ='Tier 2 Report'!G125 -> 0 | E23: ='Tier 2 Report'!F125 ->  | F23: 0 | G23: 0 | R23: 0 | S23: 0
B24: ='Tier 2 Report'!B86 -> 0 | C24: ='Tier 2 Report'!C86:D86 ->  | D24: ='Tier 2 Report'!G126 -> 0 | E24: ='Tier 2 Report'!F126 ->  | F24: 0 | G24: 0 | R24: 0 | S24: 0
B25: ='Tier 2 Report'!B87 -> 0 | C25: ='Tier 2 Report'!C87:D87 ->  | D25: ='Tier 2 Report'!G127 -> 0 | E25: ='Tier 2 Report'!F127 ->  | F25: 0 | G25: 0 | R25: 0 | S25: 0
B26: ='Tier 2 Report'!B88 -> 0 | C26: ='Tier 2 Report'!C88:D88 ->  | D26: ='Tier 2 Report'!G128 -> 0 | E26: ='Tier 2 Report'!F128 ->  | F26: 0 | G26: 0 | R26: 0 | S26: 0
B27: ='Tier 2 Report'!B89 -> 0 | C27: ='Tier 2 Report'!C89:D89 ->  | D27: ='Tier 2 Report'!G129 -> 0 | E27: ='Tier 2 Report'!F129 ->  | F27: 0 | G27: 0 | R27: 0 | S27: 0
B28: ='Tier 2 Report'!B90 -> 0 | C28: ='Tier 2 Report'!C90:D90 ->  | D28: ='Tier 2 Report'!G130 -> 0 | E28: ='Tier 2 Report'!F130 ->  | F28: 0 | G28: 0 | R28: 0 | S28: 0
B29: ='Tier 2 Report'!B91 -> 0 | C29: ='Tier 2 Report'!C91:D91 ->  | D29: ='Tier 2 Report'!G131 -> 0 | E29: ='Tier 2 Report'!F131 ->  | F29: 0 | G29: 0 | R29: 0 | S29: 0
B30: ='Tier 2 Report'!B92 -> 0 | C30: ='Tier 2 Report'!C92:D92 ->  | D30: ='Tier 2 Report'!G132 -> 0 | E30: ='Tier 2 Report'!F132 ->  | F30: 0 | G30: 0 | R30: 0 | S30: 0
B31: ='Tier 2 Report'!B93 -> 0 | C31: ='Tier 2 Report'!C93:D93 ->  | D31: ='Tier 2 Report'!G133 -> 0 | E31: ='Tier 2 Report'!F133 ->  | F31: 0 | G31: 0 | R31: 0 | S31: 0
B32: ='Tier 2 Report'!B94 -> 0 | C32: ='Tier 2 Report'!C94:D94 ->  | D32: ='Tier 2 Report'!G134 -> 0 | E32: ='Tier 2 Report'!F134 ->  | F32: 0 | G32: 0 | R32: 0 | S32: 0
B33: ='Tier 2 Report'!B95 -> 0 | C33: ='Tier 2 Report'!C95:D95 ->  | D33: ='Tier 2 Report'!G135 -> 0 | E33: ='Tier 2 Report'!F135 ->  | F33: 0 | G33: 0 | R33: 0 | S33: 0
B34: ='Tier 2 Report'!B96 -> 0 | C34: ='Tier 2 Report'!C96:D96 ->  | D34: ='Tier 2 Report'!G136 -> 0 | E34: ='Tier 2 Report'!F136 ->  | F34: 0 | G34: 0 | R34: 0 | S34: 0
B35: ='Tier 2 Report'!B97 -> 0 | C35: ='Tier 2 Report'!C97:D97 ->  | D35: ='Tier 2 Report'!G137 -> 0 | E35: ='Tier 2 Report'!F137 ->  | F35: 0 | G35: 0 | R35: 0 | S35: 0
B36: ='Tier 2 Report'!B98 -> 0 | C36: ='Tier 2 Report'!C98:D98 ->  | D36: ='Tier 2 Report'!G138 -> 0 | E36: ='Tier 2 Report'!F138 ->  | F36: 0 | G36: 0 | R36: 0 | S36: 0
B37: ='Tier 2 Report'!B99 -> 0 | C37: ='Tier 2 Report'!C99:D99 ->  | D37: ='Tier 2 Report'!G139 -> 0 | E37: ='Tier 2 Report'!F139 ->  | F37: 0 | G37: 0 | R37: 0 | S37: 0
B38: ='Tier 2 Report'!B100 -> 0 | C38: ='Tier 2 Report'!C100:D100 ->  | D38: ='Tier 2 Report'!G140 -> 0 | E38: ='Tier 2 Report'!F140 ->  | F38: 0 | G38: 0 | R38: 0 | S38: 0
B39: ='Tier 2 Report'!B101 -> 0 | C39: ='Tier 2 Report'!C101:D101 ->  | D39: ='Tier 2 Report'!G141 -> 0 | E39: ='Tier 2 Report'!F141 ->  | F39: 0 | G39: 0 | R39: 0 | S39: 0
B40: ='Tier 2 Report'!B102 -> 0 | C40: ='Tier 2 Report'!C102:D102 ->  | D40: ='Tier 2 Report'!G142 -> 0 | E40: ='Tier 2 Report'!F142 ->  | F40: 0 | G40: 0 | R40: 0 | S40: 0
B41: ='Tier 2 Report'!B103 -> 0 | C41: ='Tier 2 Report'!C103:D103 ->  | D41: ='Tier 2 Report'!G143 -> 0 | E41: ='Tier 2 Report'!F143 ->  | F41: 0 | G41: 0 | R41: 0 | S41: 0
B42: ='Tier 2 Report'!B104 -> 0 | C42: ='Tier 2 Report'!C104:D104 ->  | D42: ='Tier 2 Report'!G144 -> 0 | E42: ='Tier 2 Report'!F144 ->  | F42: 0 | G42: 0 | R42: 0 | S42: 0
B43: ='Tier 2 Report'!B105 -> 0 | C43: ='Tier 2 Report'!C105:D105 ->  | D43: ='Tier 2 Report'!G145 -> 0 | E43: ='Tier 2 Report'!F145 ->  | F43: 0 | G43: 0 | R43: 0 | S43: 0
B44: ='Tier 2 Report'!B106 -> 0 | C44: ='Tier 2 Report'!C106:D106 ->  | D44: ='Tier 2 Report'!G146 -> 0 | E44: ='Tier 2 Report'!F146 ->  | F44: 0 | G44: 0 | R44: 0 | S44: 0
B45: ='Tier 2 Report'!B107 -> 0 | C45: ='Tier 2 Report'!C107:D107 ->  | D45: ='Tier 2 Report'!G147 -> 0 | E45: ='Tier 2 Report'!F147 ->  | F45: 0 | G45: 0 | R45: 0 | S45: 0
B46: ='Tier 2 Report'!B108 -> 0 | C46: ='Tier 2 Report'!C108:D108 ->  | D46: ='Tier 2 Report'!G148 -> 0 | E46: ='Tier 2 Report'!F148 ->  | F46: 0 | G46: 0 | R46: 0 | S46: 0
B47: ='Tier 2 Report'!B109 -> 0 | C47: ='Tier 2 Report'!C109:D109 ->  | D47: ='Tier 2 Report'!G149 -> 0 | E47: ='Tier 2 Report'!F149 ->  | F47: 0 | G47: 0 | R47: 0 | S47: 0
B48: ='Tier 2 Report'!B110 -> 0 | C48: ='Tier 2 Report'!C110:D110 ->  | D48: ='Tier 2 Report'!G150 -> 0 | E48: ='Tier 2 Report'!F150 ->  | F48: 0 | G48: 0 | R48: 0 | S48: 0
B49: ='Tier 2 Report'!B111 -> 0 | C49: ='Tier 2 Report'!C111:D111 ->  | D49: ='Tier 2 Report'!G151 -> 0 | E49: ='Tier 2 Report'!F151 ->  | F49: 0 | G49: 0 | R49: 0 | S49: 0
B50: ='Tier 2 Report'!B112 -> 0 | C50: ='Tier 2 Report'!C112:D112 ->  | D50: ='Tier 2 Report'!G152 -> 0 | E50: ='Tier 2 Report'!F152 ->  | F50: 0 | G50: 0 | R50: 0 | S50: 0
B51: ='Tier 2 Report'!B113 -> 0 | C51: ='Tier 2 Report'!C113:D113 ->  | D51: ='Tier 2 Report'!G153 -> 0 | E51: ='Tier 2 Report'!F153 ->  | F51: 0 | G51: 0 | R51: 0 | S51: 0
C52: TOTAL (APPLICATION SCREENING INDEX) | H52: =SUM(H16:H51) -> 0.2453631339 | I52: =SUM(I16:I51) -> 5.978129236e-05

Sheet Tier 3 Screen Input (hidden)
B3: SCREEN MODELING OUTPUT
B5: Table A | H5: Table B (These values are needed to calculate cancer burden)
B6: Modeling emissions rate | D6: 0.126 | E6: gr/sec | I6: Interpolation
B7: Modeling emissions rate | D7: =D6/454*3600 -> 0.9991189427 | E7: lb/hr | I7: Stack Height (ft): | K7: =Emissions!E21 -> 25 | L7: Row: | M7: =IF(K7<=24,2,IF(K7<50,3,4))-1 -> 2
B8: Modeling emissions rate | D8: =D7*8760/2000 -> 4.376140969 | E8: tons/yr | J8: Residential | M8: Industrial | P8: X/Q for one-in-a-million
B9: Max hr/dy | D9: 24 | E9: hr/day | I9: near | J9: actual | K9: far | L9: near | M9: actual | N9: far | O9: near | P9: actual | Q9: far
B10: Day per week | D10: 7 | E10: dy/wk | H10: Distance | I10: 1500 | J10: =D13 -> 203 | K10: 2000 | L10: 1500 | M10: =D16 -> 187 | N10: 2000 | O10: =IF(O11=I11,I10,L10) -> 1500 | P10: =(P12-Q12)/(O12-Q12)*O10+(P12-O12)/(Q12-O12)*Q10 -> 2773.109244 | Q10: =IF(Q11=K11,K10,N10) -> 2000
B11: Week per year | D11: 52 | E11: wk/yr | H11: X/Q - 1 hr conc ug/m3 | I11: 9.09 | J11: =D14 -> 8.967 | K11: 5.52 | L11: 9.09 | M11: =D17 -> 9.623 | N11: 5.52 | O11: =IF(I11<L11,I11,L11) -> 9.09 | P11: =(P12-Q12)/(O12-Q12)*O11+(P12-O12)/(Q12-O12)*Q11 -> 0 | Q11: =IF(K11<N11,N11,K11) -> 5.52
B12: MODELING RESULTS -MAX ONE HOUR | H12: X/Q Annualized (ug/m^3)/(tons/yr) | I12: =I11*0.08/D8 -> 0.1661738059 | J12: =D21 -> 0.1639252495 | K12: =K11*0.08/D8 -> 0.100910826 | L12: =L11*0.08/D8 -> 0.1661738059 | M12: =D22 -> 0.1759175505 | N12: =N11*0.08/D8 -> 0.100910826 | O12: =O11*0.08/D8 -> 0.1661738059 | P12: ='Tier 2 Report'!L196 -> 0 | Q12: =Q11*0.08/D8 -> 0.100910826
B13: Distance residence | D13: 203 | E13: meter
B14: Max. 1-hour Conc. Residence | D14: 8.967 | E14: ug/m3
B15: Annualized Conc. Residence | D15: =D14*0.08 -> 0.71736 | E15: ug/m3
B16: Distance Commerical | D16: 187 | E16: meter | H16: CONVERSION CALCULATOR FOR SCREEN MODELING INPUT (British to Metric Units)
B17: Max. 1-hour Conc. Commerical | D17: 9.623 | E17: ug/m3 | I17: SCREEN INPUT DATA - BRITISH UNITS
B18: Annualized Conc. Commercial | D18: =D17*0.08 -> 0.76984 | E18: ug/m3 | I18: Actual exhausted rate | K18: 100 | L18: acfm
I19: Temperature | K19: 900 | L19: degree F
B20: Annualized X/Q | I20: Stack diameter | K20: 12 | L20: in
B21: X/Q Residential | D21: =$D$15/$D$8 -> 0.1639252495 | E21: (ug/m^3)/(tons/yr) | I21: Stack height | K21: 20 | L21: ft
B22: X/Q Commercial | D22: =$D$18/$D$8 -> 0.1759175505 | E22: (ug/m^3)/(tons/yr) | I22: Modeling emissions rate | K22: 0.04 | L22: lb/hr
B24: Max. X/Q | I24: SCREEN INPUT DATA - METRIC UNITS
B25: X/Q Residential | D25: =$D$14/$D$7 -> 8.974907407 | E25: (ug/m^3)/(lbs/hr) | I25: Temperature | K25: =((K19-32)/1.8)+273 -> 755.2222222 | L25: degrees K
B26: X/Q Commercial | D26: =$D$17/$D$7 -> 9.631485891 | E26: (ug/m^3)/(lbs/hr) | I26: Stack diameter | K26: =(K20/12)/3.2808 -> 0.3048037064 | L26: meter
I27: Stack area | K27: =3.14*(K26^2)/4 -> 0.07293066006 | L27: square meter
I28: Stack height | K28: =K21/3.2808 -> 6.096074128 | L28: meter
I29: Stack velocity | K29: =(K18/2118.8)/K27 -> 0.6471424541 | L29: m/s
I30: Modeling emissions rate | K30: =K22*454/3600 -> 0.005044444444 | L30: gr/s

Sheet Tier 2 Report
C2: EMISSIONS ARE ENTERED ON THE EMISSIONS WORKSHEET OR ON ONE OF THE FIVE COMBUSTION SOURCE WORKSHEETS
C3: INPUT PARAMETERS ENTERED ON THE EMISSIONS SHEET ARE ALSO USED FOR TIERS 1 AND TIER 2 ANALYSES
D5: =IF(Emissions!ScreeningMode="YES","TIER 3 SCREENING RISK ASSESSMENT REPORT","TIER 2 SCREENING RISK ASSESSMENT REPORT") -> TIER 2 SCREENING RISK ASSESSMENT REPORT
AN6: Table of Emission Units
D8: A/N: | E8: =Emissions!E9 -> 0 | G8: Application deemed complete date: | K8: =applicationdate -> 2012-12-07 | AN8: Unit | AO8: Input data needed | AP8: Data unit needed | AQ8: Conversion factor
D9: Fac: | E9: =Emissions!E10 -> 0 | AN9: PPMv | AO9: Exhaust Flow Rate | AP9: scfm | AQ9: =60/379/1000000*E16 -> 0
AN10: ug/l | AO10: Exhaust Flow Rate | AP10: scfm | AQ10: =28.31698*60/1000000/453.593*E16 -> 0 | AX10: Receptor | AY10: X/Q | AZ10: X/Qmax
C11: 2. Tier 2 Data | AN11: lb/hr | AQ11: 1 | AX11: Residential | AY11: =IF(Emissions!ScreeningMode="YES",'Tier 3 Screen Input'!$D$21,IF(Emissions!SourceType="O",'Tier 2 Report'!$Z$24,xoqcombustion(Emissions!Station,Emissions!SourceType,Emissions!SourceCapacity,Emissions!HoursPerDay,Emissions!DistanceResidential,FALSE))) -> 1.445 | AZ11: =IF(Emissions!ScreeningMode="YES",'Tier 3 Screen Input'!$D$25,IF(Emissions!SourceType="O",'Tier 2 Report'!$AA$24,xoqcombustion(Emissions!Station,Emissions!SourceType,Emissions!SourceCapacity,Emissions!HoursPerDay,Emissions!DistanceResidential,TRUE))) -> 83.35
C12: MET Factor | D12: =IF(Emissions!ScreeningMode="YES",1,Z12) -> 1 | Y12: MET Factor | Z12: =Emissions!Z13 -> 1 | AN12: gr/l | AO12: Gallon Consumption | AP12: gal/day | AQ12: =Emissions!E17*3.785/454/Emissions!E13 -> 0 | AX12: Commercial | AY12: =IF(Emissions!ScreeningMode="YES",'Tier 3 Screen Input'!$D$22,IF(Emissions!SourceType="O",'Tier 2 Report'!$Z$25,xoqcombustion(Emissions!Station,Emissions!SourceType,Emissions!SourceCapacity,Emissions!HoursPerDay,Emissions!DistanceCommercial,FALSE))) -> 8.756 | AZ12: =IF(Emissions!ScreeningMode="YES",'Tier 3 Screen Input'!$D$26,IF(Emissions!SourceType="O",'Tier 2 Report'!$AA$25,xoqcombustion(Emissions!Station,Emissions!SourceType,Emissions!SourceCapacity,Emissions!HoursPerDay,Emissions!DistanceCommercial,TRUE))) -> 462.84
AN13: lb/gal | AO13: Gallon Consumption | AP13: gal/day | AQ13: =Emissions!E17/Emissions!E13 -> 0
C14: 4 hr | D14: =IF(Emissions!$E$20="P",Table3AB!$C$7,Table5!$C$7) -> 0.89
C15: 6 or 7 hrs | D15: =IF(Emissions!$E$20="P",Table3AB!$C$8,Table5!$C$8) -> 0.73 | AN15: Conversion Factor | AO15: =VLOOKUP(EmissionUnits,unittable,MATCH("Conversion factor",unitheader,0),FALSE) -> 0
C18: Dispersion Factors tables
C19: =IF(AND(Emissions!HoursPerDay<=12,Emissions!E20="p"),2,IF(AND(Emissions!HoursPerDay>12,Emissions!E20="p"),3,IF(AND(Emissions!HoursPerDay<=12,Emissions!E20="v"),4,IF(AND(Emissions!HoursPerDay>12,Emissions!E20="v"),5,"no data")))) -> 3 | D19: For Chronic X/Q
C20: =IF(Emissions!E20="p",6,IF(Emissions!E20="v",7,"no data")) -> 6 | D20: For Acute X/Q
C21: Dilution Factors (ug/m3)/(tons/yr)
C22: Receptor | D22: X/Q | E22: X/Qmax | Y22: X/Q and X/Qmax
C23: Residential | D23: =Z24 -> 1.445 | E23: =AA24 -> 83.35 | Y23: Receptor | Z23: X/Q | AA23: X/Qmax
C24: Commercial | D24: =Z25 -> 8.756 | E24: =AA25 -> 462.84 | Y24: Residential | Z24: =Emissions!Z25 -> 1.445 | AA24: =Emissions!AA25 -> 83.35
C25: Adjustment and Intake Factors | Y25: Commercial | Z25: =Emissions!Z26 -> 8.756 | AA25: =Emissions!AA26 -> 462.84
D26: AFann | E26: DBR | F26: EVF
C27: Residential | D27: 1 | E27: 302 | F27: 0.96 | Y27: control
C28: Worker | D28: =AFann(Emissions!E14,Emissions!E13) -> 1 | E28: 149 | F28: 0.38 | Y28: =Emissions!controlled -> (R1-controlled)
AB75: cancer column | AC75: chronic column | AD75: acute column
C76: 3. Rule 1401 Compound Data | AC76: =MATCH("cancerdate",Table1A_heading,0) -> 2 | AD76: =MATCH("chronicdate",Table1A_heading,0) -> 3 | AE76: =MATCH("acutedate",Table1A_heading,0) -> 4 | AF76: Date checks:
B77: Code | C77: Compound | E77: R1 - uncontrolled (lbs/hr) | F77: R2 - controlled (lbs/hr) | G77: CP | H77: MP MICR Resident | I77: MP MICR Worker | J77: MP Chronic Resident | K77: MP Chronic Worker | L77: REL Chronic | M77: REL Acute | W77: Avg Time (hours) | Y77: MW | Z77: =IF(Emissions!E20="P","Point Source REL Acute AF","") -> Point Source REL Acute AF | AA77: =IF(Emissions!E20="V","Volume Source REL Acute AF","") ->  | AC77: date cancer | AD77: date chronic | AE77: date acute | AF77: include cancer | AG77: include chronic | AH77: include acute | AJ77: MP MICR Resident | AK77: MP MICR Worker | AL77: MP Chronic Resident | AM77: MP Chronic Worker | AO77: SELECTION LISTS:
B78: =IF(Emissions!SourceType="C",Emissions!AE40, IF(Emissions!SourceType="O",Emissions!C40,IF(Emissions!SourceType="D",Emissions!Z40,IF(Emissions!SourceType="L",Emissions!K40,IF(Emissions!SourceType="R",Emissions!P40,IF(Emissions!SourceType="B",Emissions!U40,"unknown" )))))) -> B1 | C78: =IF(B78="","",VLOOKUP(B78,table8A,MATCH("Toxic Air Contaminant",TABLE8A_HEADING,0),FALSE)) -> Benzene (including benzene from gasoline) | E78: =IF(Emissions!SourceType="C",Emissions!AG40, IF(Emissions!SourceType="O",Emissions!G40,IF(Emissions!SourceType="D",Emissions!AB40,IF(Emissions!SourceType="L",Emissions!M40,IF(Emissions!SourceType="R",Emissions!R40,IF(Emissions!SourceType="B",Emissions!W40,"unknown")))))) -> 8.4e-05 | F78: =IF(Emissions!SourceType="C",Emissions!AH40, IF(Emissions!SourceType="O",Emissions!I40,IF(Emissions!SourceType="D",Emissions!AC40,IF(Emissions!SourceType="L",Emissions!N40,IF(Emissions!SourceType="R",Emissions!S40,IF(Emissions!SourceType="B",Emissions!X40,"Unknown")))))) -> 8.4e-05 | G78: =IF(B78="","",AF78*VLOOKUP(B78,table8A,MATCH("CP",TABLE8A_HEADING,0),FALSE)) -> 0.1 | H78: =IF(AND($B78="",AJ78=""),"",IF(AJ78="",1,AJ78)) -> 1 | I78: =IF(AND($B78="",AK78=""),"",IF(AK78="",1,AK78)) -> 1 | J78: =IF(AND($B78="",AL78=""),"",IF(AL78="",1,AL78)) -> 1 | K78: =IF(AND($B78="",AM78=""),"",IF(AM78="",1,AM78)) -> 1 | L78: =IF(B78="","",AG78*VLOOKUP(B78,table8A,MATCH("REL (Chronic)",TABLE8A_HEADING,0),FALSE)) -> 60 | M78: =IF(B78="","",AH78*VLOOKUP(B78,table8A,MATCH("REL (Acute)",TABLE8A_HEADING,0),FALSE)) -> 1300 | W78: =IF(B78="","",IF(VLOOKUP(B78,table8A,MATCH("Code",TABLE8A_HEADING,0),FALSE)="","no data",VLOOKUP(B78,table8A,MATCH("Avg Time (hours)",TABLE8A_HEADING,0),FALSE))) -> 1 | Y78: =IF($Y$77="","",IF(B78="","",IF(VLOOKUP(B78,table8A,MATCH("MW",TABLE8A_HEADING,0),FALSE)="","no data",VLOOKUP(B78,table8A,MATCH("MW",TABLE8A_HEADING,0),FALSE)))) -> 78.11 | Z78: =IF(W78="","",IF(Emissions!$E$20="p",IF(W78=4,VLOOKUP(Emissions!Station,table3bbb,MATCH("4 hrs",head3cc,0),FALSE),IF(W78<4,1,VLOOKUP(Emissions!Station,table3bbb,MATCH("6 or 7hr", head3ccc,0)))))) -> 1 | AA78: =IF(W78="","",IF(Emissions!$E$20="v",IF(W78=4,VLOOKUP(Emissions!Station,table5bb,MATCH("4 hrs",heading5bb,0),FALSE),IF(W78<4,1,VLOOKUP(Emissions!Station,table5bb,MATCH("6 or 7hr",heading5bb,0),FALSE))))) -> FALSE | AC78: =IF($B78="","",VLOOKUP($B78,Table1A,AC$76,FALSE)) -> 1990-06-01 | AD78: 2000-08-18 | AE78: 1999-08-13 | AF78: =IF($K$8>AC78,1,0) -> 1 | AG78: =IF($K$8>AD78,1,0) -> 1 | AH78: =IF($K$8>AE78,1,0) -> 1 | AJ78: =IF(B78="","",VLOOKUP('Tier 2 Report'!B78,table8A,MATCH("MPR (MICR)",TABLE8A_HEADING,0),FALSE)) -> 1 | AK78: =IF(B78="","",VLOOKUP('Tier 2 Report'!B78,table8A,MATCH("MPW (MICR)",TABLE8A_HEADING,0),FALSE)) -> 1 | AL78: =IF(B78="","",VLOOKUP('Tier 2 Report'!B78,table8A,MATCH("MPR (Chronic)",TABLE8A_HEADING,0),FALSE)) -> 1 | AM78: =IF(B78="","",VLOOKUP('Tier 2 Report'!B78,table8A,MATCH("MPW (Chronic)",TABLE8A_HEADING,0),FALSE)) -> 1 | AO78: NO
B79: =IF(Emissions!SourceType="C",Emissions!AE41, IF(Emissions!SourceType="O",Emissions!C41,IF(Emissions!SourceType="D",Emissions!Z41,IF(Emissions!SourceType="L",Emissions!K41,IF(Emissions!SourceType="R",Emissions!P41,IF(Emissions!SourceType="B",Emissions!U41,"unknown" )))))) -> T3 | C79: Toluene (methyl benzene) | E79: =IF(Emissions!SourceType="C",Emissions!AG41, IF(Emissions!SourceType="O",Emissions!G41,IF(Emissions!SourceType="D",Emissions!AB41,IF(Emissions!SourceType="L",Emissions!M41,IF(Emissions!SourceType="R",Emissions!R41,IF(Emissions!SourceType="B",Emissions!W41,"unknown")))))) -> 8.4e-05 | F79: =IF(Emissions!SourceType="C",Emissions!AH41, IF(Emissions!SourceType="O",Emissions!I41,IF(Emissions!SourceType="D",Emissions!AC41,IF(Emissions!SourceType="L",Emissions!N41,IF(Emissions!SourceType="R",Emissions!S41,IF(Emissions!SourceType="B",Emissions!X41,"unknown")))))) -> 8.4e-05 | G79: 0 | H79: =IF(AND($B79="",AJ79=""),"",IF(AJ79="",1,AJ79)) -> 1 | I79: 1 | J79: 1 | K79: 1 | L79: 300 | M79: 37000 | W79: 1 | Y79: 92.13 | Z79: =IF(W79="","",IF(Emissions!$E$20="p",IF(W79=4,VLOOKUP(Emissions!Station,table3bbb,MATCH("4 hrs",head3cc,0),FALSE),IF(W79<4,1,VLOOKUP(Emissions!Station,table3bbb,MATCH("6 or 7hr", head3ccc,0)))))) -> 1 | AA79: =IF(W79="","",IF(Emissions!$E$20="v",IF(W79=4,VLOOKUP(Emissions!Station,table5bb,MATCH("4 hrs",heading5bb,0),FALSE),IF(W79<4,1,VLOOKUP(Emissions!Station,table5bb,MATCH("6 or 7hr",heading5bb,0),FALSE))))) -> FALSE | AC79: 00:00:00 | AD79: 2000-08-18 | AE79: 1999-08-13 | AF79: 1 | AG79: 1 | AH79: 1 | AJ79: =IF(B79="","",VLOOKUP('Tier 2 Report'!B79,table8A,MATCH("MPR (MICR)",TABLE8A_HEADING,0),FALSE)) -> 0 | AK79: =IF(B79="","",VLOOKUP('Tier 2 Report'!B79,table8A,MATCH("MPW (MICR)",TABLE8A_HEADING,0),FALSE)) -> 0 | AL79: =IF(B79="","",VLOOKUP('Tier 2 Report'!B79,table8A,MATCH("MPR (Chronic)",TABLE8A_HEADING,0),FALSE)) -> 1 | AM79: =IF(B79="","",VLOOKUP('Tier 2 Report'!B79,table8A,MATCH("MPW (Chronic)",TABLE8A_HEADING,0),FALSE)) -> 1 | AO79: YES
B80: =IF(Emissions!SourceType="C",Emissions!AE42, IF(Emissions!SourceType="O",Emissions!C42,IF(Emissions!SourceType="D",Emissions!Z42,IF(Emissions!SourceType="L",Emissions!K42,IF(Emissions!SourceType="R",Emissions!P42,IF(Emissions!SourceType="B",Emissions!U42,"unknown" )))))) -> X1 | C80: Xylenes (isomers and mixtures) | E80: =IF(Emissions!SourceType="C",Emissions!AG42, IF(Emissions!SourceType="O",Emissions!G42,IF(Emissions!SourceType="D",Emissions!AB42,IF(Emissions!SourceType="L",Emissions!M42,IF(Emissions!SourceType="R",Emissions!R42,IF(Emissions!SourceType="B",Emissions!W42,"unknown")))))) -> 1.35e-05 | F80: =IF(Emissions!SourceType="C",Emissions!AH42, IF(Emissions!SourceType="O",Emissions!I42,IF(Emissions!SourceType="D",Emissions!AC42,IF(Emissions!SourceType="L",Emissions!N42,IF(Emissions!SourceType="R",Emissions!S42,IF(Emissions!SourceType="B",Emissions!X42,"unknown")))))) -> 1.35e-05 | G80: 0 | H80: 1 | I80: 1 | J80: 1 | K80: 1 | L80: 700 | M80: 22000 | W80: 1 | Y80: 106.2 | Z80: =IF(W80="","",IF(Emissions!$E$20="p",IF(W80=4,VLOOKUP(Emissions!Station,table3bbb,MATCH("4 hrs",head3cc,0),FALSE),IF(W80<4,1,VLOOKUP(Emissions!Station,table3bbb,MATCH("6 or 7hr", head3ccc,0)))))) -> 1 | AA80: =IF(W80="","",IF(Emissions!$E$20="v",IF(W80=4,VLOOKUP(Emissions!Station,table5bb,MATCH("4 hrs",heading5bb,0),FALSE),IF(W80<4,1,VLOOKUP(Emissions!Station,table5bb,MATCH("6 or 7hr",heading5bb,0),FALSE))))) -> FALSE | AC80: 00:00:00 | AD80: 2000-08-18 | AE80: 1999-08-13 | AF80: 1 | AG80: 1 | AH80: 1 | AJ80: =IF(B80="","",VLOOKUP('Tier 2 Report'!B80,table8A,MATCH("MPR (MICR)",TABLE8A_HEADING,0),FALSE)) -> 0 | AK80: =IF(B80="","",VLOOKUP('Tier 2 Report'!B80,table8A,MATCH("MPW (MICR)",TABLE8A_HEADING,0),FALSE)) -> 0 | AL80: =IF(B80="","",VLOOKUP('Tier 2 Report'!B80,table8A,MATCH("MPR (Chronic)",TABLE8A_HEADING,0),FALSE)) -> 1 | AM80: =IF(B80="","",VLOOKUP('Tier 2 Report'!B80,table8A,MATCH("MPW (Chronic)",TABLE8A_HEADING,0),FALSE)) -> 1
B81: =IF(Emissions!SourceType="C",Emissions!AE43, IF(Emissions!SourceType="O",Emissions!C43,IF(Emissions!SourceType="D",Emissions!Z43,IF(Emissions!SourceType="L",Emissions!K43,IF(Emissions!SourceType="R",Emissions!P43,IF(Emissions!SourceType="B",Emissions!U43,"unknown" )))))) -> E4 | C81: Ethyl benzene | E81: =IF(Emissions!SourceType="C",Emissions!AG43, IF(Emissions!SourceType="O",Emissions!G43,IF(Emissions!SourceType="D",Emissions!AB43,IF(Emissions!SourceType="L",Emissions!M43,IF(Emissions!SourceType="R",Emissions!R43,IF(Emissions!SourceType="B",Emissions!W43,"unknown")))))) -> 8.1e-07 | F81: =IF(Emissions!SourceType="C",Emissions!AH43, IF(Emissions!SourceType="O",Emissions!I43,IF(Emissions!SourceType="D",Emissions!AC43,IF(Emissions!SourceType="L",Emissions!N43,IF(Emissions!SourceType="R",Emissions!S43,IF(Emissions!SourceType="B",Emissions!X43,"unknown")))))) -> 8.1e-07 | G81: 0.0087 | H81: 1 | I81: 1 | J81: 1 | K81: 1 | L81: 2000 | M81: 0 | W81: 1 | Y81: 106.16 | Z81: =IF(W81="","",IF(Emissions!$E$20="p",IF(W81=4,VLOOKUP(Emissions!Station,table3bbb,MATCH("4 hrs",head3cc,0),FALSE),IF(W81<4,1,VLOOKUP(Emissions!Station,table3bbb,MATCH("6 or 7hr", head3ccc,0)))))) -> 1 | AA81: =IF(W81="","",IF(Emissions!$E$20="v",IF(W81=4,VLOOKUP(Emissions!Station,table5bb,MATCH("4 hrs",heading5bb,0),FALSE),IF(W81<4,1,VLOOKUP(Emissions!Station,table5bb,MATCH("6 or 7hr",heading5bb,0),FALSE))))) -> FALSE | AC81: 2009-06-05 | AD81: 2000-08-18 | AE81: 00:00:00 | AF81: 1 | AG81: 1 | AH81: 1 | AJ81: =IF(B81="","",VLOOKUP('Tier 2 Report'!B81,table8A,MATCH("MPR (MICR)",TABLE8A_HEADING,0),FALSE)) -> 1 | AK81: =IF(B81="","",VLOOKUP('Tier 2 Report'!B81,table8A,MATCH("MPW (MICR)",TABLE8A_HEADING,0),FALSE)) -> 0 | AL81: =IF(B81="","",VLOOKUP('Tier 2 Report'!B81,table8A,MATCH("MPR (Chronic)",TABLE8A_HEADING,0),FALSE)) -> 1 | AM81: =IF(B81="","",VLOOKUP('Tier 2 Report'!B81,table8A,MATCH("MPW (Chronic)",TABLE8A_HEADING,0),FALSE)) -> 1
B82: =IF(Emissions!SourceType="C",Emissions!AE44, IF(Emissions!SourceType="O",Emissions!C44,IF(Emissions!SourceType="D",Emissions!Z44,IF(Emissions!SourceType="L",Emissions!K44,IF(Emissions!SourceType="R",Emissions!P44,IF(Emissions!SourceType="B",Emissions!U44,"unknown" )))))) -> 0 | E82: =IF(Emissions!SourceType="C",Emissions!AG44, IF(Emissions!SourceType="O",Emissions!G44,IF(Emissions!SourceType="D",Emissions!AB44,IF(Emissions!SourceType="L",Emissions!M44,IF(Emissions!SourceType="R",Emissions!R44,IF(Emissions!SourceType="B",Emissions!W44,"unknown")))))) -> 0 | F82: =IF(Emissions!SourceType="C",Emissions!AH44, IF(Emissions!SourceType="O",Emissions!I44,IF(Emissions!SourceType="D",Emissions!AC44,IF(Emissions!SourceType="L",Emissions!N44,IF(Emissions!SourceType="R",Emissions!S44,IF(Emissions!SourceType="B",Emissions!X44,"unknown")))))) ->  | Z82: =IF(W82="","",IF(Emissions!$E$20="p",IF(W82=4,VLOOKUP(Emissions!Station,table3bbb,MATCH("4 hrs",head3cc,0),FALSE),IF(W82<4,1,VLOOKUP(Emissions!Station,table3bbb,MATCH("6 or 7hr", head3ccc,0)))))) ->  | AA82: =IF(W82="","",IF(Emissions!$E$20="v",IF(W82=4,VLOOKUP(Emissions!Station,table5bb,MATCH("4 hrs",heading5bb,0),FALSE),IF(W82<4,1,VLOOKUP(Emissions!Station,table5bb,MATCH("6 or 7hr",heading5bb,0),FALSE))))) ->  | AF82: 1 | AG82: 1 | AH82: 1 | AJ82: =IF(B82="","",VLOOKUP('Tier 2 Report'!B82,table8A,MATCH("MPR (MICR)",TABLE8A_HEADING,0),FALSE)) ->  | AK82: =IF(B82="","",VLOOKUP('Tier 2 Report'!B82,table8A,MATCH("MPW (MICR)",TABLE8A_HEADING,0),FALSE)) ->  | AL82: =IF(B82="","",VLOOKUP('Tier 2 Report'!B82,table8A,MATCH("MPR (Chronic)",TABLE8A_HEADING,0),FALSE)) ->  | AM82: =IF(B82="","",VLOOKUP('Tier 2 Report'!B82,table8A,MATCH("MPW (Chronic)",TABLE8A_HEADING,0),FALSE)) ->  | AO82: P
B83: =IF(Emissions!SourceType="C",Emissions!AE45, IF(Emissions!SourceType="O",Emissions!C45,IF(Emissions!SourceType="D",Emissions!Z45,IF(Emissions!SourceType="L",Emissions!K45,IF(Emissions!SourceType="R",Emissions!P45,IF(Emissions!SourceType="B",Emissions!U45,"unknown" )))))) -> 0 | E83: =IF(Emissions!SourceType="C",Emissions!AG45, IF(Emissions!SourceType="O",Emissions!G45,IF(Emissions!SourceType="D",Emissions!AB45,IF(Emissions!SourceType="L",Emissions!M45,IF(Emissions!SourceType="R",Emissions!R45,IF(Emissions!SourceType="B",Emissions!W45,"unknown")))))) -> 0 | F83: =IF(Emissions!SourceType="C",Emissions!AH45, IF(Emissions!SourceType="O",Emissions!I45,IF(Emissions!SourceType="D",Emissions!AC45,IF(Emissions!SourceType="L",Emissions!N45,IF(Emissions!SourceType="R",Emissions!S45,IF(Emissions!SourceType="B",Emissions!X45,"unknown")))))) ->  | Z83: =IF(W83="","",IF(Emissions!$E$20="p",IF(W83=4,VLOOKUP(Emissions!Station,table3bbb,MATCH("4 hrs",head3cc,0),FALSE),IF(W83<4,1,VLOOKUP(Emissions!Station,table3bbb,MATCH("6 or 7hr", head3ccc,0)))))) ->  | AA83: =IF(W83="","",IF(Emissions!$E$20="v",IF(W83=4,VLOOKUP(Emissions!Station,table5bb,MATCH("4 hrs",heading5bb,0),FALSE),IF(W83<4,1,VLOOKUP(Emissions!Station,table5bb,MATCH("6 or 7hr",heading5bb,0),FALSE))))) ->  | AF83: 1 | AG83: 1 | AH83: 1 | AJ83: =IF(B83="","",VLOOKUP('Tier 2 Report'!B83,table8A,MATCH("MPR (MICR)",TABLE8A_HEADING,0),FALSE)) ->  | AK83: =IF(B83="","",VLOOKUP('Tier 2 Report'!B83,table8A,MATCH("MPW (MICR)",TABLE8A_HEADING,0),FALSE)) ->  | AL83: =IF(B83="","",VLOOKUP('Tier 2 Report'!B83,table8A,MATCH("MPR (Chronic)",TABLE8A_HEADING,0),FALSE)) ->  | AM83: =IF(B83="","",VLOOKUP('Tier 2 Report'!B83,table8A,MATCH("MPW (Chronic)",TABLE8A_HEADING,0),FALSE)) ->  | AO83: V
B84: =IF(Emissions!SourceType="C",Emissions!AE46, IF(Emissions!SourceType="O",Emissions!C46,IF(Emissions!SourceType="D",Emissions!Z46,IF(Emissions!SourceType="L",Emissions!K46,IF(Emissions!SourceType="R",Emissions!P46,IF(Emissions!SourceType="B",Emissions!U46,"unknown" )))))) -> 0 | E84: =IF(Emissions!SourceType="C",Emissions!AG46, IF(Emissions!SourceType="O",Emissions!G46,IF(Emissions!SourceType="D",Emissions!AB46,IF(Emissions!SourceType="L",Emissions!M46,IF(Emissions!SourceType="R",Emissions!R46,IF(Emissions!SourceType="B",Emissions!W46,"unknown")))))) -> 0 | F84: =IF(Emissions!SourceType="C",Emissions!AH46, IF(Emissions!SourceType="O",Emissions!I46,IF(Emissions!SourceType="D",Emissions!AC46,IF(Emissions!SourceType="L",Emissions!N46,IF(Emissions!SourceType="R",Emissions!S46,IF(Emissions!SourceType="B",Emissions!X46,"unknown")))))) ->  | Z84: =IF(W84="","",IF(Emissions!$E$20="p",IF(W84=4,VLOOKUP(Emissions!Station,table3bbb,MATCH("4 hrs",head3cc,0),FALSE),IF(W84<4,1,VLOOKUP(Emissions!Station,table3bbb,MATCH("6 or 7hr", head3ccc,0)))))) ->  | AA84: =IF(W84="","",IF(Emissions!$E$20="v",IF(W84=4,VLOOKUP(Emissions!Station,table5bb,MATCH("4 hrs",heading5bb,0),FALSE),IF(W84<4,1,VLOOKUP(Emissions!Station,table5bb,MATCH("6 or 7hr",heading5bb,0),FALSE))))) ->  | AF84: 1 | AG84: 1 | AH84: 1 | AJ84: =IF(B84="","",VLOOKUP('Tier 2 Report'!B84,table8A,MATCH("MPR (MICR)",TABLE8A_HEADING,0),FALSE)) ->  | AK84: =IF(B84="","",VLOOKUP('Tier 2 Report'!B84,table8A,MATCH("MPW (MICR)",TABLE8A_HEADING,0),FALSE)) ->  | AL84: =IF(B84="","",VLOOKUP('Tier 2 Report'!B84,table8A,MATCH("MPR (Chronic)",TABLE8A_HEADING,0),FALSE)) ->  | AM84: =IF(B84="","",VLOOKUP('Tier 2 Report'!B84,table8A,MATCH("MPW (Chronic)",TABLE8A_HEADING,0),FALSE)) -> 
B85: =IF(Emissions!SourceType="C",Emissions!AE47, IF(Emissions!SourceType="O",Emissions!C47,IF(Emissions!SourceType="D",Emissions!Z47,IF(Emissions!SourceType="L",Emissions!K47,IF(Emissions!SourceType="R",Emissions!P47,IF(Emissions!SourceType="B",Emissions!U47,"unknown" )))))) -> 0 | E85: =IF(Emissions!SourceType="C",Emissions!AG47, IF(Emissions!SourceType="O",Emissions!G47,IF(Emissions!SourceType="D",Emissions!AB47,IF(Emissions!SourceType="L",Emissions!M47,IF(Emissions!SourceType="R",Emissions!R47,IF(Emissions!SourceType="B",Emissions!W47,"unknown")))))) -> 0 | F85: =IF(Emissions!SourceType="C",Emissions!AH47, IF(Emissions!SourceType="O",Emissions!I47,IF(Emissions!SourceType="D",Emissions!AC47,IF(Emissions!SourceType="L",Emissions!N47,IF(Emissions!SourceType="R",Emissions!S47,IF(Emissions!SourceType="B",Emissions!X47,"unknown")))))) ->  | Z85: =IF(W85="","",IF(Emissions!$E$20="p",IF(W85=4,VLOOKUP(Emissions!Station,table3bbb,MATCH("4 hrs",head3cc,0),FALSE),IF(W85<4,1,VLOOKUP(Emissions!Station,table3bbb,MATCH("6 or 7hr", head3ccc,0)))))) ->  | AA85: =IF(W85="","",IF(Emissions!$E$20="v",IF(W85=4,VLOOKUP(Emissions!Station,table5bb,MATCH("4 hrs",heading5bb,0),FALSE),IF(W85<4,1,VLOOKUP(Emissions!Station,table5bb,MATCH("6 or 7hr",heading5bb,0),FALSE))))) ->  | AF85: 1 | AG85: 1 | AH85: 1 | AJ85: =IF(B85="","",VLOOKUP('Tier 2 Report'!B85,table8A,MATCH("MPR (MICR)",TABLE8A_HEADING,0),FALSE)) ->  | AK85: =IF(B85="","",VLOOKUP('Tier 2 Report'!B85,table8A,MATCH("MPW (MICR)",TABLE8A_HEADING,0),FALSE)) ->  | AL85: =IF(B85="","",VLOOKUP('Tier 2 Report'!B85,table8A,MATCH("MPR (Chronic)",TABLE8A_HEADING,0),FALSE)) ->  | AM85: =IF(B85="","",VLOOKUP('Tier 2 Report'!B85,table8A,MATCH("MPW (Chronic)",TABLE8A_HEADING,0),FALSE)) -> 
B86: =IF(Emissions!SourceType="C",Emissions!AE48, IF(Emissions!SourceType="O",Emissions!C48,IF(Emissions!SourceType="D",Emissions!Z48,IF(Emissions!SourceType="L",Emissions!K48,IF(Emissions!SourceType="R",Emissions!P48,IF(Emissions!SourceType="B",Emissions!U48,"unknown" )))))) -> 0 | E86: =IF(Emissions!SourceType="C",Emissions!AG48, IF(Emissions!SourceType="O",Emissions!G48,IF(Emissions!SourceType="D",Emissions!AB48,IF(Emissions!SourceType="L",Emissions!M48,IF(Emissions!SourceType="R",Emissions!R48,IF(Emissions!SourceType="B",Emissions!W48,"unknown")))))) -> 0 | F86: =IF(Emissions!SourceType="C",Emissions!AH48, IF(Emissions!SourceType="O",Emissions!I48,IF(Emissions!SourceType="D",Emissions!AC48,IF(Emissions!SourceType="L",Emissions!N48,IF(Emissions!SourceType="R",Emissions!S48,IF(Emissions!SourceType="B",Emissions!X48,"unknown")))))) ->  | Z86: =IF(W86="","",IF(Emissions!$E$20="p",IF(W86=4,VLOOKUP(Emissions!Station,table3bbb,MATCH("4 hrs",head3cc,0),FALSE),IF(W86<4,1,VLOOKUP(Emissions!Station,table3bbb,MATCH("6 or 7hr", head3ccc,0)))))) ->  | AA86: =IF(W86="","",IF(Emissions!$E$20="v",IF(W86=4,VLOOKUP(Emissions!Station,table5bb,MATCH("4 hrs",heading5bb,0),FALSE),IF(W86<4,1,VLOOKUP(Emissions!Station,table5bb,MATCH("6 or 7hr",heading5bb,0),FALSE))))) ->  | AF86: 1 | AG86: 1 | AH86: 1 | AJ86: =IF(B86="","",VLOOKUP('Tier 2 Report'!B86,table8A,MATCH("MPR (MICR)",TABLE8A_HEADING,0),FALSE)) ->  | AK86: =IF(B86="","",VLOOKUP('Tier 2 Report'!B86,table8A,MATCH("MPW (MICR)",TABLE8A_HEADING,0),FALSE)) ->  | AL86: =IF(B86="","",VLOOKUP('Tier 2 Report'!B86,table8A,MATCH("MPR (Chronic)",TABLE8A_HEADING,0),FALSE)) ->  | AM86: =IF(B86="","",VLOOKUP('Tier 2 Report'!B86,table8A,MATCH("MPW (Chronic)",TABLE8A_HEADING,0),FALSE)) ->  | AO86: no longer used:
B87: =IF(Emissions!SourceType="C",Emissions!AE49, IF(Emissions!SourceType="O",Emissions!C49,IF(Emissions!SourceType="D",Emissions!Z49,IF(Emissions!SourceType="L",Emissions!K49,IF(Emissions!SourceType="R",Emissions!P49,IF(Emissions!SourceType="B",Emissions!U49,"unknown" )))))) -> 0 | E87: =IF(Emissions!SourceType="C",Emissions!AG49, IF(Emissions!SourceType="O",Emissions!G49,IF(Emissions!SourceType="D",Emissions!AB49,IF(Emissions!SourceType="L",Emissions!M49,IF(Emissions!SourceType="R",Emissions!R49,IF(Emissions!SourceType="B",Emissions!W49,"unknown")))))) -> 0 | F87: =IF(Emissions!SourceType="C",Emissions!AH49, IF(Emissions!SourceType="O",Emissions!I49,IF(Emissions!SourceType="D",Emissions!AC49,IF(Emissions!SourceType="L",Emissions!N49,IF(Emissions!SourceType="R",Emissions!S49,IF(Emissions!SourceType="B",Emissions!X49,"unknown")))))) ->  | Z87: =IF(W87="","",IF(Emissions!$E$20="p",IF(W87=4,VLOOKUP(Emissions!Station,table3bbb,MATCH("4 hrs",head3cc,0),FALSE),IF(W87<4,1,VLOOKUP(Emissions!Station,table3bbb,MATCH("6 or 7hr", head3ccc,0)))))) ->  | AA87: =IF(W87="","",IF(Emissions!$E$20="v",IF(W87=4,VLOOKUP(Emissions!Station,table5bb,MATCH("4 hrs",heading5bb,0),FALSE),IF(W87<4,1,VLOOKUP(Emissions!Station,table5bb,MATCH("6 or 7hr",heading5bb,0),FALSE))))) ->  | AF87: 1 | AG87: 1 | AH87: 1 | AJ87: =IF(B87="","",VLOOKUP('Tier 2 Report'!B87,table8A,MATCH("MPR (MICR)",TABLE8A_HEADING,0),FALSE)) ->  | AK87: =IF(B87="","",VLOOKUP('Tier 2 Report'!B87,table8A,MATCH("MPW (MICR)",TABLE8A_HEADING,0),FALSE)) ->  | AL87: =IF(B87="","",VLOOKUP('Tier 2 Report'!B87,table8A,MATCH("MPR (Chronic)",TABLE8A_HEADING,0),FALSE)) ->  | AM87: =IF(B87="","",VLOOKUP('Tier 2 Report'!B87,table8A,MATCH("MPW (Chronic)",TABLE8A_HEADING,0),FALSE)) ->  | AO87: L - Lean Burn ICE
B88: =IF(Emissions!SourceType="C",Emissions!AE50, IF(Emissions!SourceType="O",Emissions!C50,IF(Emissions!SourceType="D",Emissions!Z50,IF(Emissions!SourceType="L",Emissions!K50,IF(Emissions!SourceType="R",Emissions!P50,IF(Emissions!SourceType="B",Emissions!U50,"unknown" )))))) -> 0 | E88: =IF(Emissions!SourceType="C",Emissions!AG50, IF(Emissions!SourceType="O",Emissions!G50,IF(Emissions!SourceType="D",Emissions!AB50,IF(Emissions!SourceType="L",Emissions!M50,IF(Emissions!SourceType="R",Emissions!R50,IF(Emissions!SourceType="B",Emissions!W50,"unknown")))))) -> 0 | F88: =IF(Emissions!SourceType="C",Emissions!AH50, IF(Emissions!SourceType="O",Emissions!I50,IF(Emissions!SourceType="D",Emissions!AC50,IF(Emissions!SourceType="L",Emissions!N50,IF(Emissions!SourceType="R",Emissions!S50,IF(Emissions!SourceType="B",Emissions!X50,"unknown")))))) ->  | Z88: =IF(W88="","",IF(Emissions!$E$20="p",IF(W88=4,VLOOKUP(Emissions!Station,table3bbb,MATCH("4 hrs",head3cc,0),FALSE),IF(W88<4,1,VLOOKUP(Emissions!Station,table3bbb,MATCH("6 or 7hr", head3ccc,0)))))) ->  | AA88: =IF(W88="","",IF(Emissions!$E$20="v",IF(W88=4,VLOOKUP(Emissions!Station,table5bb,MATCH("4 hrs",heading5bb,0),FALSE),IF(W88<4,1,VLOOKUP(Emissions!Station,table5bb,MATCH("6 or 7hr",heading5bb,0),FALSE))))) ->  | AF88: 1 | AG88: 1 | AH88: 1 | AJ88: =IF(B88="","",VLOOKUP('Tier 2 Report'!B88,table8A,MATCH("MPR (MICR)",TABLE8A_HEADING,0),FALSE)) ->  | AK88: =IF(B88="","",VLOOKUP('Tier 2 Report'!B88,table8A,MATCH("MPW (MICR)",TABLE8A_HEADING,0),FALSE)) ->  | AL88: =IF(B88="","",VLOOKUP('Tier 2 Report'!B88,table8A,MATCH("MPR (Chronic)",TABLE8A_HEADING,0),FALSE)) ->  | AM88: =IF(B88="","",VLOOKUP('Tier 2 Report'!B88,table8A,MATCH("MPW (Chronic)",TABLE8A_HEADING,0),FALSE)) ->  | AO88: R - Rich Burn ICE
B89: =IF(Emissions!SourceType="C",Emissions!AE51, IF(Emissions!SourceType="O",Emissions!C51,IF(Emissions!SourceType="D",Emissions!Z51,IF(Emissions!SourceType="L",Emissions!K51,IF(Emissions!SourceType="R",Emissions!P51,IF(Emissions!SourceType="B",Emissions!U51,"unknown" )))))) -> 0 | E89: =IF(Emissions!SourceType="C",Emissions!AG51, IF(Emissions!SourceType="O",Emissions!G51,IF(Emissions!SourceType="D",Emissions!AB51,IF(Emissions!SourceType="L",Emissions!M51,IF(Emissions!SourceType="R",Emissions!R51,IF(Emissions!SourceType="B",Emissions!W51,"unknown")))))) -> 0 | F89: =IF(Emissions!SourceType="C",Emissions!AH51, IF(Emissions!SourceType="O",Emissions!I51,IF(Emissions!SourceType="D",Emissions!AC51,IF(Emissions!SourceType="L",Emissions!N51,IF(Emissions!SourceType="R",Emissions!S51,IF(Emissions!SourceType="B",Emissions!X51,"unknown")))))) ->  | Z89: =IF(W89="","",IF(Emissions!$E$20="p",IF(W89=4,VLOOKUP(Emissions!Station,table3bbb,MATCH("4 hrs",head3cc,0),FALSE),IF(W89<4,1,VLOOKUP(Emissions!Station,table3bbb,MATCH("6 or 7hr", head3ccc,0)))))) ->  | AA89: =IF(W89="","",IF(Emissions!$E$20="v",IF(W89=4,VLOOKUP(Emissions!Station,table5bb,MATCH("4 hrs",heading5bb,0),FALSE),IF(W89<4,1,VLOOKUP(Emissions!Station,table5bb,MATCH("6 or 7hr",heading5bb,0),FALSE))))) ->  | AF89: 1 | AG89: 1 | AH89: 1 | AJ89: =IF(B89="","",VLOOKUP('Tier 2 Report'!B89,table8A,MATCH("MPR (MICR)",TABLE8A_HEADING,0),FALSE)) ->  | AK89: =IF(B89="","",VLOOKUP('Tier 2 Report'!B89,table8A,MATCH("MPW (MICR)",TABLE8A_HEADING,0),FALSE)) ->  | AL89: =IF(B89="","",VLOOKUP('Tier 2 Report'!B89,table8A,MATCH("MPR (Chronic)",TABLE8A_HEADING,0),FALSE)) ->  | AM89: =IF(B89="","",VLOOKUP('Tier 2 Report'!B89,table8A,MATCH("MPW (Chronic)",TABLE8A_HEADING,0),FALSE)) ->  | AO89: B - Boiler
B90: =IF(Emissions!SourceType="C",Emissions!AE52, IF(Emissions!SourceType="O",Emissions!C52,IF(Emissions!SourceType="D",Emissions!Z52,IF(Emissions!SourceType="L",Emissions!K52,IF(Emissions!SourceType="R",Emissions!P52,IF(Emissions!SourceType="B",Emissions!U52,"unknown" )))))) -> 0 | E90: =IF(Emissions!SourceType="C",Emissions!AG52, IF(Emissions!SourceType="O",Emissions!G52,IF(Emissions!SourceType="D",Emissions!AB52,IF(Emissions!SourceType="L",Emissions!M52,IF(Emissions!SourceType="R",Emissions!R52,IF(Emissions!SourceType="B",Emissions!W52,"unknown")))))) -> 0 | F90: =IF(Emissions!SourceType="C",Emissions!AH52, IF(Emissions!SourceType="O",Emissions!I52,IF(Emissions!SourceType="D",Emissions!AC52,IF(Emissions!SourceType="L",Emissions!N52,IF(Emissions!SourceType="R",Emissions!S52,IF(Emissions!SourceType="B",Emissions!X52,"unknown")))))) ->  | H90: =IF(AND($B90="",AJ90=""),"",IF(AJ90="",1,AJ90)) ->  | I90: =IF(AND($B90="",AK90=""),"",IF(AK90="",1,AK90)) ->  | J90: =IF(AND($B90="",AL90=""),"",IF(AL90="",1,AL90)) ->  | K90: =IF(AND($B90="",AM90=""),"",IF(AM90="",1,AM90)) ->  | Z90: =IF(W90="","",IF(Emissions!$E$20="p",IF(W90=4,VLOOKUP(Emissions!Station,table3bbb,MATCH("4 hrs",head3cc,0),FALSE),IF(W90<4,1,VLOOKUP(Emissions!Station,table3bbb,MATCH("6 or 7hr", head3ccc,0)))))) ->  | AA90: =IF(W90="","",IF(Emissions!$E$20="v",IF(W90=4,VLOOKUP(Emissions!Station,table5bb,MATCH("4 hrs",heading5bb,0),FALSE),IF(W90<4,1,VLOOKUP(Emissions!Station,table5bb,MATCH("6 or 7hr",heading5bb,0),FALSE))))) ->  | AF90: 1 | AG90: 1 | AH90: 1 | AJ90: =IF(B90="","",VLOOKUP('Tier 2 Report'!B90,table8A,MATCH("MPR (MICR)",TABLE8A_HEADING,0),FALSE)) ->  | AK90: =IF(B90="","",VLOOKUP('Tier 2 Report'!B90,table8A,MATCH("MPW (MICR)",TABLE8A_HEADING,0),FALSE)) ->  | AL90: =IF(B90="","",VLOOKUP('Tier 2 Report'!B90,table8A,MATCH("MPR (Chronic)",TABLE8A_HEADING,0),FALSE)) ->  | AM90: =IF(B90="","",VLOOKUP('Tier 2 Report'!B90,table8A,MATCH("MPW (Chronic)",TABLE8A_HEADING,0),FALSE)) ->  | AO90: O - Other
B91: =IF(Emissions!SourceType="C",Emissions!AE53, IF(Emissions!SourceType="O",Emissions!C53,IF(Emissions!SourceType="D",Emissions!Z53,IF(Emissions!SourceType="L",Emissions!K53,IF(Emissions!SourceType="R",Emissions!P53,IF(Emissions!SourceType="B",Emissions!U53,"unknown" )))))) -> 0 | E91: =IF(Emissions!SourceType="C",Emissions!AG53, IF(Emissions!SourceType="O",Emissions!G53,IF(Emissions!SourceType="D",Emissions!AB53,IF(Emissions!SourceType="L",Emissions!M53,IF(Emissions!SourceType="R",Emissions!R53,IF(Emissions!SourceType="B",Emissions!W53,"unknown")))))) -> 0 | F91: =IF(Emissions!SourceType="C",Emissions!AH53, IF(Emissions!SourceType="O",Emissions!I53,IF(Emissions!SourceType="D",Emissions!AC53,IF(Emissions!SourceType="L",Emissions!N53,IF(Emissions!SourceType="R",Emissions!S53,IF(Emissions!SourceType="B",Emissions!X53,"unknown")))))) ->  | H91: =IF(AND($B91="",AJ91=""),"",IF(AJ91="",1,AJ91)) ->  | I91: =IF(AND($B91="",AK91=""),"",IF(AK91="",1,AK91)) ->  | J91: =IF(AND($B91="",AL91=""),"",IF(AL91="",1,AL91)) ->  | K91: =IF(AND($B91="",AM91=""),"",IF(AM91="",1,AM91)) ->  | Z91: =IF(W91="","",IF(Emissions!$E$20="p",IF(W91=4,VLOOKUP(Emissions!Station,table3bbb,MATCH("4 hrs",head3cc,0),FALSE),IF(W91<4,1,VLOOKUP(Emissions!Station,table3bbb,MATCH("6 or 7hr", head3ccc,0)))))) ->  | AA91: =IF(W91="","",IF(Emissions!$E$20="v",IF(W91=4,VLOOKUP(Emissions!Station,table5bb,MATCH("4 hrs",heading5bb,0),FALSE),IF(W91<4,1,VLOOKUP(Emissions!Station,table5bb,MATCH("6 or 7hr",heading5bb,0),FALSE))))) ->  | AF91: 1 | AG91: 1 | AH91: 1 | AJ91: =IF(B91="","",VLOOKUP('Tier 2 Report'!B91,table8A,MATCH("MPR (MICR)",TABLE8A_HEADING,0),FALSE)) ->  | AK91: =IF(B91="","",VLOOKUP('Tier 2 Report'!B91,table8A,MATCH("MPW (MICR)",TABLE8A_HEADING,0),FALSE)) ->  | AL91: =IF(B91="","",VLOOKUP('Tier 2 Report'!B91,table8A,MATCH("MPR (Chronic)",TABLE8A_HEADING,0),FALSE)) ->  | AM91: =IF(B91="","",VLOOKUP('Tier 2 Report'!B91,table8A,MATCH("MPW (Chronic)",TABLE8A_HEADING,0),FALSE)) ->  | AO91: S - Screening
B92: =IF(Emissions!SourceType="C",Emissions!AE54, IF(Emissions!SourceType="O",Emissions!C54,IF(Emissions!SourceType="D",Emissions!Z54,IF(Emissions!SourceType="L",Emissions!K54,IF(Emissions!SourceType="R",Emissions!P54,IF(Emissions!SourceType="B",Emissions!U54,"unknown" )))))) -> 0 | E92: =IF(Emissions!SourceType="C",Emissions!AG54, IF(Emissions!SourceType="O",Emissions!G54,IF(Emissions!SourceType="D",Emissions!AB54,IF(Emissions!SourceType="L",Emissions!M54,IF(Emissions!SourceType="R",Emissions!R54,IF(Emissions!SourceType="B",Emissions!W54,"unknown")))))) -> 0 | F92: =IF(Emissions!SourceType="C",Emissions!AH54, IF(Emissions!SourceType="O",Emissions!I54,IF(Emissions!SourceType="D",Emissions!AC54,IF(Emissions!SourceType="L",Emissions!N54,IF(Emissions!SourceType="R",Emissions!S54,IF(Emissions!SourceType="B",Emissions!X54,"unknown")))))) ->  | Z92: =IF(W92="","",IF(Emissions!$E$20="p",IF(W92=4,VLOOKUP(Emissions!Station,table3bbb,MATCH("4 hrs",head3cc,0),FALSE),IF(W92<4,1,VLOOKUP(Emissions!Station,table3bbb,MATCH("6 or 7hr", head3ccc,0)))))) ->  | AA92: =IF(W92="","",IF(Emissions!$E$20="v",IF(W92=4,VLOOKUP(Emissions!Station,table5bb,MATCH("4 hrs",heading5bb,0),FALSE),IF(W92<4,1,VLOOKUP(Emissions!Station,table5bb,MATCH("6 or 7hr",heading5bb,0),FALSE))))) ->  | AF92: 1 | AG92: 1 | AH92: 1 | AJ92: =IF(B92="","",VLOOKUP('Tier 2 Report'!B92,table8A,MATCH("MPR (MICR)",TABLE8A_HEADING,0),FALSE)) ->  | AK92: =IF(B92="","",VLOOKUP('Tier 2 Report'!B92,table8A,MATCH("MPW (MICR)",TABLE8A_HEADING,0),FALSE)) ->  | AL92: =IF(B92="","",VLOOKUP('Tier 2 Report'!B92,table8A,MATCH("MPR (Chronic)",TABLE8A_HEADING,0),FALSE)) ->  | AM92: =IF(B92="","",VLOOKUP('Tier 2 Report'!B92,table8A,MATCH("MPW (Chronic)",TABLE8A_HEADING,0),FALSE)) ->  | AO92: no longer used:
B93: =IF(Emissions!SourceType="C",Emissions!AE55, IF(Emissions!SourceType="O",Emissions!C55,IF(Emissions!SourceType="D",Emissions!Z55,IF(Emissions!SourceType="L",Emissions!K55,IF(Emissions!SourceType="R",Emissions!P55,IF(Emissions!SourceType="B",Emissions!U55,"unknown" )))))) -> 0 | E93: =IF(Emissions!SourceType="C",Emissions!AG55, IF(Emissions!SourceType="O",Emissions!G55,IF(Emissions!SourceType="D",Emissions!AB55,IF(Emissions!SourceType="L",Emissions!M55,IF(Emissions!SourceType="R",Emissions!R55,IF(Emissions!SourceType="B",Emissions!W55,"unknown")))))) -> 0 | F93: =IF(Emissions!SourceType="C",Emissions!AH55, IF(Emissions!SourceType="O",Emissions!I55,IF(Emissions!SourceType="D",Emissions!AC55,IF(Emissions!SourceType="L",Emissions!N55,IF(Emissions!SourceType="R",Emissions!S55,IF(Emissions!SourceType="B",Emissions!X55,"unknown")))))) ->  | Z93: =IF(W93="","",IF(Emissions!$E$20="p",IF(W93=4,VLOOKUP(Emissions!Station,table3bbb,MATCH("4 hrs",head3cc,0),FALSE),IF(W93<4,1,VLOOKUP(Emissions!Station,table3bbb,MATCH("6 or 7hr", head3ccc,0)))))) ->  | AA93: =IF(W93="","",IF(Emissions!$E$20="v",IF(W93=4,VLOOKUP(Emissions!Station,table5bb,MATCH("4 hrs",heading5bb,0),FALSE),IF(W93<4,1,VLOOKUP(Emissions!Station,table5bb,MATCH("6 or 7hr",heading5bb,0),FALSE))))) ->  | AF93: 1 | AG93: 1 | AH93: 1 | AJ93: =IF(B93="","",VLOOKUP('Tier 2 Report'!B93,table8A,MATCH("MPR (MICR)",TABLE8A_HEADING,0),FALSE)) ->  | AK93: =IF(B93="","",VLOOKUP('Tier 2 Report'!B93,table8A,MATCH("MPW (MICR)",TABLE8A_HEADING,0),FALSE)) ->  | AL93: =IF(B93="","",VLOOKUP('Tier 2 Report'!B93,table8A,MATCH("MPR (Chronic)",TABLE8A_HEADING,0),FALSE)) ->  | AM93: =IF(B93="","",VLOOKUP('Tier 2 Report'!B93,table8A,MATCH("MPW (Chronic)",TABLE8A_HEADING,0),FALSE)) ->  | AO93: =LEFT(E26,1) -> D
B94: =IF(Emissions!SourceType="C",Emissions!AE56, IF(Emissions!SourceType="O",Emissions!C56,IF(Emissions!SourceType="D",Emissions!Z56,IF(Emissions!SourceType="L",Emissions!K56,IF(Emissions!SourceType="R",Emissions!P56,IF(Emissions!SourceType="B",Emissions!U56,"unknown" )))))) -> 0 | E94: =IF(Emissions!SourceType="C",Emissions!AG56, IF(Emissions!SourceType="O",Emissions!G56,IF(Emissions!SourceType="D",Emissions!AB56,IF(Emissions!SourceType="L",Emissions!M56,IF(Emissions!SourceType="R",Emissions!R56,IF(Emissions!SourceType="B",Emissions!W56,"unknown")))))) -> 0 | F94: =IF(Emissions!SourceType="C",Emissions!AH56, IF(Emissions!SourceType="O",Emissions!I56,IF(Emissions!SourceType="D",Emissions!AC56,IF(Emissions!SourceType="L",Emissions!N56,IF(Emissions!SourceType="R",Emissions!S56,IF(Emissions!SourceType="B",Emissions!X56,"unknown")))))) ->  | Z94: =IF(W94="","",IF(Emissions!$E$20="p",IF(W94=4,VLOOKUP(Emissions!Station,table3bbb,MATCH("4 hrs",head3cc,0),FALSE),IF(W94<4,1,VLOOKUP(Emissions!Station,table3bbb,MATCH("6 or 7hr", head3ccc,0)))))) ->  | AA94: =IF(W94="","",IF(Emissions!$E$20="v",IF(W94=4,VLOOKUP(Emissions!Station,table5bb,MATCH("4 hrs",heading5bb,0),FALSE),IF(W94<4,1,VLOOKUP(Emissions!Station,table5bb,MATCH("6 or 7hr",heading5bb,0),FALSE))))) ->  | AF94: 1 | AG94: 1 | AH94: 1 | AJ94: =IF(B94="","",VLOOKUP('Tier 2 Report'!B94,table8A,MATCH("MPR (MICR)",TABLE8A_HEADING,0),FALSE)) ->  | AK94: =IF(B94="","",VLOOKUP('Tier 2 Report'!B94,table8A,MATCH("MPW (MICR)",TABLE8A_HEADING,0),FALSE)) ->  | AL94: =IF(B94="","",VLOOKUP('Tier 2 Report'!B94,table8A,MATCH("MPR (Chronic)",TABLE8A_HEADING,0),FALSE)) ->  | AM94: =IF(B94="","",VLOOKUP('Tier 2 Report'!B94,table8A,MATCH("MPW (Chronic)",TABLE8A_HEADING,0),FALSE)) -> 
B95: =IF(Emissions!SourceType="C",Emissions!AE57, IF(Emissions!SourceType="O",Emissions!C57,IF(Emissions!SourceType="D",Emissions!Z57,IF(Emissions!SourceType="L",Emissions!K57,IF(Emissions!SourceType="R",Emissions!P57,IF(Emissions!SourceType="B",Emissions!U57,"unknown" )))))) -> 0 | E95: =IF(Emissions!SourceType="C",Emissions!AG57, IF(Emissions!SourceType="O",Emissions!G57,IF(Emissions!SourceType="D",Emissions!AB57,IF(Emissions!SourceType="L",Emissions!M57,IF(Emissions!SourceType="R",Emissions!R57,IF(Emissions!SourceType="B",Emissions!W57,"unknown")))))) -> 0 | F95: =IF(Emissions!SourceType="C",Emissions!AH57, IF(Emissions!SourceType="O",Emissions!I57,IF(Emissions!SourceType="D",Emissions!AC57,IF(Emissions!SourceType="L",Emissions!N57,IF(Emissions!SourceType="R",Emissions!S57,IF(Emissions!SourceType="B",Emissions!X57,"unknown")))))) ->  | Z95: =IF(W95="","",IF(Emissions!$E$20="p",IF(W95=4,VLOOKUP(Emissions!Station,table3bbb,MATCH("4 hrs",head3cc,0),FALSE),IF(W95<4,1,VLOOKUP(Emissions!Station,table3bbb,MATCH("6 or 7hr", head3ccc,0)))))) ->  | AA95: =IF(W95="","",IF(Emissions!$E$20="v",IF(W95=4,VLOOKUP(Emissions!Station,table5bb,MATCH("4 hrs",heading5bb,0),FALSE),IF(W95<4,1,VLOOKUP(Emissions!Station,table5bb,MATCH("6 or 7hr",heading5bb,0),FALSE))))) ->  | AF95: 1 | AG95: 1 | AH95: 1 | AJ95: =IF(B95="","",VLOOKUP('Tier 2 Report'!B95,table8A,MATCH("MPR (MICR)",TABLE8A_HEADING,0),FALSE)) ->  | AK95: =IF(B95="","",VLOOKUP('Tier 2 Report'!B95,table8A,MATCH("MPW (MICR)",TABLE8A_HEADING,0),FALSE)) ->  | AL95: =IF(B95="","",VLOOKUP('Tier 2 Report'!B95,table8A,MATCH("MPR (Chronic)",TABLE8A_HEADING,0),FALSE)) ->  | AM95: =IF(B95="","",VLOOKUP('Tier 2 Report'!B95,table8A,MATCH("MPW (Chronic)",TABLE8A_HEADING,0),FALSE)) -> 
B96: =IF(Emissions!SourceType="C",Emissions!AE58, IF(Emissions!SourceType="O",Emissions!C58,IF(Emissions!SourceType="D",Emissions!Z58,IF(Emissions!SourceType="L",Emissions!K58,IF(Emissions!SourceType="R",Emissions!P58,IF(Emissions!SourceType="B",Emissions!U58,"unknown" )))))) -> 0 | E96: =IF(Emissions!SourceType="C",Emissions!AG58, IF(Emissions!SourceType="O",Emissions!G58,IF(Emissions!SourceType="D",Emissions!AB58,IF(Emissions!SourceType="L",Emissions!M58,IF(Emissions!SourceType="R",Emissions!R58,IF(Emissions!SourceType="B",Emissions!W58,"unknown")))))) -> 0 | F96: =IF(Emissions!SourceType="C",Emissions!AH58, IF(Emissions!SourceType="O",Emissions!I58,IF(Emissions!SourceType="D",Emissions!AC58,IF(Emissions!SourceType="L",Emissions!N58,IF(Emissions!SourceType="R",Emissions!S58,IF(Emissions!SourceType="B",Emissions!X58,"unknown")))))) ->  | Z96: =IF(W96="","",IF(Emissions!$E$20="p",IF(W96=4,VLOOKUP(Emissions!Station,table3bbb,MATCH("4 hrs",head3cc,0),FALSE),IF(W96<4,1,VLOOKUP(Emissions!Station,table3bbb,MATCH("6 or 7hr", head3ccc,0)))))) ->  | AA96: =IF(W96="","",IF(Emissions!$E$20="v",IF(W96=4,VLOOKUP(Emissions!Station,table5bb,MATCH("4 hrs",heading5bb,0),FALSE),IF(W96<4,1,VLOOKUP(Emissions!Station,table5bb,MATCH("6 or 7hr",heading5bb,0),FALSE))))) ->  | AF96: 1 | AG96: 1 | AH96: 1 | AJ96: =IF(B96="","",VLOOKUP('Tier 2 Report'!B96,table8A,MATCH("MPR (MICR)",TABLE8A_HEADING,0),FALSE)) ->  | AK96: =IF(B96="","",VLOOKUP('Tier 2 Report'!B96,table8A,MATCH("MPW (MICR)",TABLE8A_HEADING,0),FALSE)) ->  | AL96: =IF(B96="","",VLOOKUP('Tier 2 Report'!B96,table8A,MATCH("MPR (Chronic)",TABLE8A_HEADING,0),FALSE)) ->  | AM96: =IF(B96="","",VLOOKUP('Tier 2 Report'!B96,table8A,MATCH("MPW (Chronic)",TABLE8A_HEADING,0),FALSE)) -> 
B97: =IF(Emissions!SourceType="C",Emissions!AE59, IF(Emissions!SourceType="O",Emissions!C59,IF(Emissions!SourceType="D",Emissions!Z59,IF(Emissions!SourceType="L",Emissions!K59,IF(Emissions!SourceType="R",Emissions!P59,IF(Emissions!SourceType="B",Emissions!U59,"unknown" )))))) -> 0 | E97: =IF(Emissions!SourceType="C",Emissions!AG59, IF(Emissions!SourceType="O",Emissions!G59,IF(Emissions!SourceType="D",Emissions!AB59,IF(Emissions!SourceType="L",Emissions!M59,IF(Emissions!SourceType="R",Emissions!R59,IF(Emissions!SourceType="B",Emissions!W59,"unknown")))))) -> 0 | F97: =IF(Emissions!SourceType="C",Emissions!AH59, IF(Emissions!SourceType="O",Emissions!I59,IF(Emissions!SourceType="D",Emissions!AC59,IF(Emissions!SourceType="L",Emissions!N59,IF(Emissions!SourceType="R",Emissions!S59,IF(Emissions!SourceType="B",Emissions!X59,"unknown")))))) ->  | Z97: =IF(W97="","",IF(Emissions!$E$20="p",IF(W97=4,VLOOKUP(Emissions!Station,table3bbb,MATCH("4 hrs",head3cc,0),FALSE),IF(W97<4,1,VLOOKUP(Emissions!Station,table3bbb,MATCH("6 or 7hr", head3ccc,0)))))) ->  | AA97: =IF(W97="","",IF(Emissions!$E$20="v",IF(W97=4,VLOOKUP(Emissions!Station,table5bb,MATCH("4 hrs",heading5bb,0),FALSE),IF(W97<4,1,VLOOKUP(Emissions!Station,table5bb,MATCH("6 or 7hr",heading5bb,0),FALSE))))) ->  | AF97: 1 | AG97: 1 | AH97: 1 | AJ97: =IF(B97="","",VLOOKUP('Tier 2 Report'!B97,table8A,MATCH("MPR (MICR)",TABLE8A_HEADING,0),FALSE)) ->  | AK97: =IF(B97="","",VLOOKUP('Tier 2 Report'!B97,table8A,MATCH("MPW (MICR)",TABLE8A_HEADING,0),FALSE)) ->  | AL97: =IF(B97="","",VLOOKUP('Tier 2 Report'!B97,table8A,MATCH("MPR (Chronic)",TABLE8A_HEADING,0),FALSE)) ->  | AM97: =IF(B97="","",VLOOKUP('Tier 2 Report'!B97,table8A,MATCH("MPW (Chronic)",TABLE8A_HEADING,0),FALSE)) -> 
B98: =IF(Emissions!SourceType="C",Emissions!AE60, IF(Emissions!SourceType="O",Emissions!C60,IF(Emissions!SourceType="D",Emissions!Z60,IF(Emissions!SourceType="L",Emissions!K60,IF(Emissions!SourceType="R",Emissions!P60,IF(Emissions!SourceType="B",Emissions!U60,"unknown" )))))) -> 0 | E98: =IF(Emissions!SourceType="C",Emissions!AG60, IF(Emissions!SourceType="O",Emissions!G60,IF(Emissions!SourceType="D",Emissions!AB60,IF(Emissions!SourceType="L",Emissions!M60,IF(Emissions!SourceType="R",Emissions!R60,IF(Emissions!SourceType="B",Emissions!W60,"unknown")))))) -> 0 | F98: =IF(Emissions!SourceType="C",Emissions!AH60, IF(Emissions!SourceType="O",Emissions!I60,IF(Emissions!SourceType="D",Emissions!AC60,IF(Emissions!SourceType="L",Emissions!N60,IF(Emissions!SourceType="R",Emissions!S60,IF(Emissions!SourceType="B",Emissions!X60,"unknown")))))) ->  | Z98: =IF(W98="","",IF(Emissions!$E$20="p",IF(W98=4,VLOOKUP(Emissions!Station,table3bbb,MATCH("4 hrs",head3cc,0),FALSE),IF(W98<4,1,VLOOKUP(Emissions!Station,table3bbb,MATCH("6 or 7hr", head3ccc,0)))))) ->  | AA98: =IF(W98="","",IF(Emissions!$E$20="v",IF(W98=4,VLOOKUP(Emissions!Station,table5bb,MATCH("4 hrs",heading5bb,0),FALSE),IF(W98<4,1,VLOOKUP(Emissions!Station,table5bb,MATCH("6 or 7hr",heading5bb,0),FALSE))))) ->  | AC98: =IF($B98="","",VLOOKUP($B98,Table1A,AC$76,FALSE)) ->  | AF98: 1 | AG98: 1 | AH98: 1 | AJ98: =IF(B98="","",VLOOKUP('Tier 2 Report'!B98,table8A,MATCH("MPR (MICR)",TABLE8A_HEADING,0),FALSE)) ->  | AK98: =IF(B98="","",VLOOKUP('Tier 2 Report'!B98,table8A,MATCH("MPW (MICR)",TABLE8A_HEADING,0),FALSE)) ->  | AL98: =IF(B98="","",VLOOKUP('Tier 2 Report'!B98,table8A,MATCH("MPR (Chronic)",TABLE8A_HEADING,0),FALSE)) ->  | AM98: =IF(B98="","",VLOOKUP('Tier 2 Report'!B98,table8A,MATCH("MPW (Chronic)",TABLE8A_HEADING,0),FALSE)) -> 
B99: =IF(Emissions!SourceType="C",Emissions!AE61, IF(Emissions!SourceType="O",Emissions!C61,IF(Emissions!SourceType="D",Emissions!Z61,IF(Emissions!SourceType="L",Emissions!K61,IF(Emissions!SourceType="R",Emissions!P61,IF(Emissions!SourceType="B",Emissions!U61,"unknown" )))))) -> 0 | E99: =IF(Emissions!SourceType="C",Emissions!AG61, IF(Emissions!SourceType="O",Emissions!G61,IF(Emissions!SourceType="D",Emissions!AB61,IF(Emissions!SourceType="L",Emissions!M61,IF(Emissions!SourceType="R",Emissions!R61,IF(Emissions!SourceType="B",Emissions!W61,"unknown")))))) -> 0 | F99: =IF(Emissions!SourceType="C",Emissions!AH61, IF(Emissions!SourceType="O",Emissions!I61,IF(Emissions!SourceType="D",Emissions!AC61,IF(Emissions!SourceType="L",Emissions!N61,IF(Emissions!SourceType="R",Emissions!S61,IF(Emissions!SourceType="B",Emissions!X61,"unknown")))))) ->  | Z99: =IF(W99="","",IF(Emissions!$E$20="p",IF(W99=4,VLOOKUP(Emissions!Station,table3bbb,MATCH("4 hrs",head3cc,0),FALSE),IF(W99<4,1,VLOOKUP(Emissions!Station,table3bbb,MATCH("6 or 7hr", head3ccc,0)))))) ->  | AA99: =IF(W99="","",IF(Emissions!$E$20="v",IF(W99=4,VLOOKUP(Emissions!Station,table5bb,MATCH("4 hrs",heading5bb,0),FALSE),IF(W99<4,1,VLOOKUP(Emissions!Station,table5bb,MATCH("6 or 7hr",heading5bb,0),FALSE))))) ->  | AF99: 1 | AG99: 1 | AH99: 1 | AJ99: =IF(B99="","",VLOOKUP('Tier 2 Report'!B99,table8A,MATCH("MPR (MICR)",TABLE8A_HEADING,0),FALSE)) ->  | AK99: =IF(B99="","",VLOOKUP('Tier 2 Report'!B99,table8A,MATCH("MPW (MICR)",TABLE8A_HEADING,0),FALSE)) ->  | AL99: =IF(B99="","",VLOOKUP('Tier 2 Report'!B99,table8A,MATCH("MPR (Chronic)",TABLE8A_HEADING,0),FALSE)) ->  | AM99: =IF(B99="","",VLOOKUP('Tier 2 Report'!B99,table8A,MATCH("MPW (Chronic)",TABLE8A_HEADING,0),FALSE)) -> 
B100: =IF(Emissions!SourceType="C",Emissions!AE62, IF(Emissions!SourceType="O",Emissions!C62,IF(Emissions!SourceType="D",Emissions!Z62,IF(Emissions!SourceType="L",Emissions!K62,IF(Emissions!SourceType="R",Emissions!P62,IF(Emissions!SourceType="B",Emissions!U62,"unknown" )))))) -> 0 | E100: =IF(Emissions!SourceType="C",Emissions!AG62, IF(Emissions!SourceType="O",Emissions!G62,IF(Emissions!SourceType="D",Emissions!AB62,IF(Emissions!SourceType="L",Emissions!M62,IF(Emissions!SourceType="R",Emissions!R62,IF(Emissions!SourceType="B",Emissions!W62,"unknown")))))) -> 0 | F100: =IF(Emissions!SourceType="C",Emissions!AH62, IF(Emissions!SourceType="O",Emissions!I62,IF(Emissions!SourceType="D",Emissions!AC62,IF(Emissions!SourceType="L",Emissions!N62,IF(Emissions!SourceType="R",Emissions!S62,IF(Emissions!SourceType="B",Emissions!X62,"unknown")))))) ->  | Z100: =IF(W100="","",IF(Emissions!$E$20="p",IF(W100=4,VLOOKUP(Emissions!Station,table3bbb,MATCH("4 hrs",head3cc,0),FALSE),IF(W100<4,1,VLOOKUP(Emissions!Station,table3bbb,MATCH("6 or 7hr", head3ccc,0)))))) ->  | AA100: =IF(W100="","",IF(Emissions!$E$20="v",IF(W100=4,VLOOKUP(Emissions!Station,table5bb,MATCH("4 hrs",heading5bb,0),FALSE),IF(W100<4,1,VLOOKUP(Emissions!Station,table5bb,MATCH("6 or 7hr",heading5bb,0),FALSE))))) ->  | AF100: 1 | AG100: 1 | AH100: 1 | AJ100: =IF(B100="","",VLOOKUP('Tier 2 Report'!B100,table8A,MATCH("MPR (MICR)",TABLE8A_HEADING,0),FALSE)) ->  | AK100: =IF(B100="","",VLOOKUP('Tier 2 Report'!B100,table8A,MATCH("MPW (MICR)",TABLE8A_HEADING,0),FALSE)) ->  | AL100: =IF(B100="","",VLOOKUP('Tier 2 Report'!B100,table8A,MATCH("MPR (Chronic)",TABLE8A_HEADING,0),FALSE)) ->  | AM100: =IF(B100="","",VLOOKUP('Tier 2 Report'!B100,table8A,MATCH("MPW (Chronic)",TABLE8A_HEADING,0),FALSE)) -> 
B101: =IF(Emissions!SourceType="C",Emissions!AE63, IF(Emissions!SourceType="O",Emissions!C63,IF(Emissions!SourceType="D",Emissions!Z63,IF(Emissions!SourceType="L",Emissions!K63,IF(Emissions!SourceType="R",Emissions!P63,IF(Emissions!SourceType="B",Emissions!U63,"unknown" )))))) -> 0 | E101: =IF(Emissions!SourceType="C",Emissions!AG63, IF(Emissions!SourceType="O",Emissions!G63,IF(Emissions!SourceType="D",Emissions!AB63,IF(Emissions!SourceType="L",Emissions!M63,IF(Emissions!SourceType="R",Emissions!R63,IF(Emissions!SourceType="B",Emissions!W63,"unknown")))))) -> 0 | F101: =IF(Emissions!SourceType="C",Emissions!AH63, IF(Emissions!SourceType="O",Emissions!I63,IF(Emissions!SourceType="D",Emissions!AC63,IF(Emissions!SourceType="L",Emissions!N63,IF(Emissions!SourceType="R",Emissions!S63,IF(Emissions!SourceType="B",Emissions!X63,"unknown")))))) ->  | Z101: =IF(W101="","",IF(Emissions!$E$20="p",IF(W101=4,VLOOKUP(Emissions!Station,table3bbb,MATCH("4 hrs",head3cc,0),FALSE),IF(W101<4,1,VLOOKUP(Emissions!Station,table3bbb,MATCH("6 or 7hr", head3ccc,0)))))) ->  | AA101: =IF(W101="","",IF(Emissions!$E$20="v",IF(W101=4,VLOOKUP(Emissions!Station,table5bb,MATCH("4 hrs",heading5bb,0),FALSE),IF(W101<4,1,VLOOKUP(Emissions!Station,table5bb,MATCH("6 or 7hr",heading5bb,0),FALSE))))) ->  | AF101: 1 | AG101: 1 | AH101: 1 | AJ101: =IF(B101="","",VLOOKUP('Tier 2 Report'!B101,table8A,MATCH("MPR (MICR)",TABLE8A_HEADING,0),FALSE)) ->  | AK101: =IF(B101="","",VLOOKUP('Tier 2 Report'!B101,table8A,MATCH("MPW (MICR)",TABLE8A_HEADING,0),FALSE)) ->  | AL101: =IF(B101="","",VLOOKUP('Tier 2 Report'!B101,table8A,MATCH("MPR (Chronic)",TABLE8A_HEADING,0),FALSE)) ->  | AM101: =IF(B101="","",VLOOKUP('Tier 2 Report'!B101,table8A,MATCH("MPW (Chronic)",TABLE8A_HEADING,0),FALSE)) -> 
B102: =IF(Emissions!SourceType="C",Emissions!AE64, IF(Emissions!SourceType="O",Emissions!C64,IF(Emissions!SourceType="D",Emissions!Z64,IF(Emissions!SourceType="L",Emissions!K64,IF(Emissions!SourceType="R",Emissions!P64,IF(Emissions!SourceType="B",Emissions!U64,"unknown" )))))) -> 0 | E102: =IF(Emissions!SourceType="C",Emissions!AG64, IF(Emissions!SourceType="O",Emissions!G64,IF(Emissions!SourceType="D",Emissions!AB64,IF(Emissions!SourceType="L",Emissions!M64,IF(Emissions!SourceType="R",Emissions!R64,IF(Emissions!SourceType="B",Emissions!W64,"unknown")))))) -> 0 | F102: =IF(Emissions!SourceType="C",Emissions!AH64, IF(Emissions!SourceType="O",Emissions!I64,IF(Emissions!SourceType="D",Emissions!AC64,IF(Emissions!SourceType="L",Emissions!N64,IF(Emissions!SourceType="R",Emissions!S64,IF(Emissions!SourceType="B",Emissions!X64,"unknown")))))) ->  | Z102: =IF(W102="","",IF(Emissions!$E$20="p",IF(W102=4,VLOOKUP(Emissions!Station,table3bbb,MATCH("4 hrs",head3cc,0),FALSE),IF(W102<4,1,VLOOKUP(Emissions!Station,table3bbb,MATCH("6 or 7hr", head3ccc,0)))))) ->  | AA102: =IF(W102="","",IF(Emissions!$E$20="v",IF(W102=4,VLOOKUP(Emissions!Station,table5bb,MATCH("4 hrs",heading5bb,0),FALSE),IF(W102<4,1,VLOOKUP(Emissions!Station,table5bb,MATCH("6 or 7hr",heading5bb,0),FALSE))))) ->  | AF102: 1 | AG102: 1 | AH102: 1 | AJ102: =IF(B102="","",VLOOKUP('Tier 2 Report'!B102,table8A,MATCH("MPR (MICR)",TABLE8A_HEADING,0),FALSE)) ->  | AK102: =IF(B102="","",VLOOKUP('Tier 2 Report'!B102,table8A,MATCH("MPW (MICR)",TABLE8A_HEADING,0),FALSE)) ->  | AL102: =IF(B102="","",VLOOKUP('Tier 2 Report'!B102,table8A,MATCH("MPR (Chronic)",TABLE8A_HEADING,0),FALSE)) ->  | AM102: =IF(B102="","",VLOOKUP('Tier 2 Report'!B102,table8A,MATCH("MPW (Chronic)",TABLE8A_HEADING,0),FALSE)) -> 
B103: =IF(Emissions!SourceType="C",Emissions!AE65, IF(Emissions!SourceType="O",Emissions!C65,IF(Emissions!SourceType="D",Emissions!Z65,IF(Emissions!SourceType="L",Emissions!K65,IF(Emissions!SourceType="R",Emissions!P65,IF(Emissions!SourceType="B",Emissions!U65,"unknown" )))))) -> 0 | E103: =IF(Emissions!SourceType="C",Emissions!AG65, IF(Emissions!SourceType="O",Emissions!G65,IF(Emissions!SourceType="D",Emissions!AB65,IF(Emissions!SourceType="L",Emissions!M65,IF(Emissions!SourceType="R",Emissions!R65,IF(Emissions!SourceType="B",Emissions!W65,"unknown")))))) -> 0 | F103: =IF(Emissions!SourceType="C",Emissions!AH65, IF(Emissions!SourceType="O",Emissions!I65,IF(Emissions!SourceType="D",Emissions!AC65,IF(Emissions!SourceType="L",Emissions!N65,IF(Emissions!SourceType="R",Emissions!S65,IF(Emissions!SourceType="B",Emissions!X65,"unknown")))))) ->  | Z103: =IF(W103="","",IF(Emissions!$E$20="p",IF(W103=4,VLOOKUP(Emissions!Station,table3bbb,MATCH("4 hrs",head3cc,0),FALSE),IF(W103<4,1,VLOOKUP(Emissions!Station,table3bbb,MATCH("6 or 7hr", head3ccc,0)))))) ->  | AA103: =IF(W103="","",IF(Emissions!$E$20="v",IF(W103=4,VLOOKUP(Emissions!Station,table5bb,MATCH("4 hrs",heading5bb,0),FALSE),IF(W103<4,1,VLOOKUP(Emissions!Station,table5bb,MATCH("6 or 7hr",heading5bb,0),FALSE))))) ->  | AF103: 1 | AG103: 1 | AH103: 1 | AJ103: =IF(B103="","",VLOOKUP('Tier 2 Report'!B103,table8A,MATCH("MPR (MICR)",TABLE8A_HEADING,0),FALSE)) ->  | AK103: =IF(B103="","",VLOOKUP('Tier 2 Report'!B103,table8A,MATCH("MPW (MICR)",TABLE8A_HEADING,0),FALSE)) ->  | AL103: =IF(B103="","",VLOOKUP('Tier 2 Report'!B103,table8A,MATCH("MPR (Chronic)",TABLE8A_HEADING,0),FALSE)) ->  | AM103: =IF(B103="","",VLOOKUP('Tier 2 Report'!B103,table8A,MATCH("MPW (Chronic)",TABLE8A_HEADING,0),FALSE)) -> 
B104: =IF(Emissions!SourceType="C",Emissions!AE66, IF(Emissions!SourceType="O",Emissions!C66,IF(Emissions!SourceType="D",Emissions!Z66,IF(Emissions!SourceType="L",Emissions!K66,IF(Emissions!SourceType="R",Emissions!P66,IF(Emissions!SourceType="B",Emissions!U66,"unknown" )))))) -> 0 | E104: =IF(Emissions!SourceType="C",Emissions!AG66, IF(Emissions!SourceType="O",Emissions!G66,IF(Emissions!SourceType="D",Emissions!AB66,IF(Emissions!SourceType="L",Emissions!M66,IF(Emissions!SourceType="R",Emissions!R66,IF(Emissions!SourceType="B",Emissions!W66,"unknown")))))) -> 0 | F104: =IF(Emissions!SourceType="C",Emissions!AH66, IF(Emissions!SourceType="O",Emissions!I66,IF(Emissions!SourceType="D",Emissions!AC66,IF(Emissions!SourceType="L",Emissions!N66,IF(Emissions!SourceType="R",Emissions!S66,IF(Emissions!SourceType="B",Emissions!X66,"unknown")))))) ->  | Z104: =IF(W104="","",IF(Emissions!$E$20="p",IF(W104=4,VLOOKUP(Emissions!Station,table3bbb,MATCH("4 hrs",head3cc,0),FALSE),IF(W104<4,1,VLOOKUP(Emissions!Station,table3bbb,MATCH("6 or 7hr", head3ccc,0)))))) ->  | AA104: =IF(W104="","",IF(Emissions!$E$20="v",IF(W104=4,VLOOKUP(Emissions!Station,table5bb,MATCH("4 hrs",heading5bb,0),FALSE),IF(W104<4,1,VLOOKUP(Emissions!Station,table5bb,MATCH("6 or 7hr",heading5bb,0),FALSE))))) ->  | AF104: 1 | AG104: 1 | AH104: 1 | AJ104: =IF(B104="","",VLOOKUP('Tier 2 Report'!B104,table8A,MATCH("MPR (MICR)",TABLE8A_HEADING,0),FALSE)) ->  | AK104: =IF(B104="","",VLOOKUP('Tier 2 Report'!B104,table8A,MATCH("MPW (MICR)",TABLE8A_HEADING,0),FALSE)) ->  | AL104: =IF(B104="","",VLOOKUP('Tier 2 Report'!B104,table8A,MATCH("MPR (Chronic)",TABLE8A_HEADING,0),FALSE)) ->  | AM104: =IF(B104="","",VLOOKUP('Tier 2 Report'!B104,table8A,MATCH("MPW (Chronic)",TABLE8A_HEADING,0),FALSE)) -> 
B105: =IF(Emissions!SourceType="C",Emissions!AE67, IF(Emissions!SourceType="O",Emissions!C67,IF(Emissions!SourceType="D",Emissions!Z67,IF(Emissions!SourceType="L",Emissions!K67,IF(Emissions!SourceType="R",Emissions!P67,IF(Emissions!SourceType="B",Emissions!U67,"unknown" )))))) -> 0 | E105: =IF(Emissions!SourceType="C",Emissions!AG67, IF(Emissions!SourceType="O",Emissions!G67,IF(Emissions!SourceType="D",Emissions!AB67,IF(Emissions!SourceType="L",Emissions!M67,IF(Emissions!SourceType="R",Emissions!R67,IF(Emissions!SourceType="B",Emissions!W67,"unknown")))))) -> 0 | F105: =IF(Emissions!SourceType="C",Emissions!AH67, IF(Emissions!SourceType="O",Emissions!I67,IF(Emissions!SourceType="D",Emissions!AC67,IF(Emissions!SourceType="L",Emissions!N67,IF(Emissions!SourceType="R",Emissions!S67,IF(Emissions!SourceType="B",Emissions!X67,"unknown")))))) ->  | Z105: =IF(W105="","",IF(Emissions!$E$20="p",IF(W105=4,VLOOKUP(Emissions!Station,table3bbb,MATCH("4 hrs",head3cc,0),FALSE),IF(W105<4,1,VLOOKUP(Emissions!Station,table3bbb,MATCH("6 or 7hr", head3ccc,0)))))) ->  | AA105: =IF(W105="","",IF(Emissions!$E$20="v",IF(W105=4,VLOOKUP(Emissions!Station,table5bb,MATCH("4 hrs",heading5bb,0),FALSE),IF(W105<4,1,VLOOKUP(Emissions!Station,table5bb,MATCH("6 or 7hr",heading5bb,0),FALSE))))) ->  | AF105: 1 | AG105: 1 | AH105: 1 | AJ105: =IF(B105="","",VLOOKUP('Tier 2 Report'!B105,table8A,MATCH("MPR (MICR)",TABLE8A_HEADING,0),FALSE)) ->  | AK105: =IF(B105="","",VLOOKUP('Tier 2 Report'!B105,table8A,MATCH("MPW (MICR)",TABLE8A_HEADING,0),FALSE)) ->  | AL105: =IF(B105="","",VLOOKUP('Tier 2 Report'!B105,table8A,MATCH("MPR (Chronic)",TABLE8A_HEADING,0),FALSE)) ->  | AM105: =IF(B105="","",VLOOKUP('Tier 2 Report'!B105,table8A,MATCH("MPW (Chronic)",TABLE8A_HEADING,0),FALSE)) -> 
B106: =IF(Emissions!SourceType="C",Emissions!AE68, IF(Emissions!SourceType="O",Emissions!C68,IF(Emissions!SourceType="D",Emissions!Z68,IF(Emissions!SourceType="L",Emissions!K68,IF(Emissions!SourceType="R",Emissions!P68,IF(Emissions!SourceType="B",Emissions!U68,"unknown" )))))) -> 0 | E106: =IF(Emissions!SourceType="C",Emissions!AG68, IF(Emissions!SourceType="O",Emissions!G68,IF(Emissions!SourceType="D",Emissions!AB68,IF(Emissions!SourceType="L",Emissions!M68,IF(Emissions!SourceType="R",Emissions!R68,IF(Emissions!SourceType="B",Emissions!W68,"unknown")))))) -> 0 | F106: =IF(Emissions!SourceType="C",Emissions!AH68, IF(Emissions!SourceType="O",Emissions!I68,IF(Emissions!SourceType="D",Emissions!AC68,IF(Emissions!SourceType="L",Emissions!N68,IF(Emissions!SourceType="R",Emissions!S68,IF(Emissions!SourceType="B",Emissions!X68,"unknown")))))) ->  | Z106: =IF(W106="","",IF(Emissions!$E$20="p",IF(W106=4,VLOOKUP(Emissions!Station,table3bbb,MATCH("4 hrs",head3cc,0),FALSE),IF(W106<4,1,VLOOKUP(Emissions!Station,table3bbb,MATCH("6 or 7hr", head3ccc,0)))))) ->  | AA106: =IF(W106="","",IF(Emissions!$E$20="v",IF(W106=4,VLOOKUP(Emissions!Station,table5bb,MATCH("4 hrs",heading5bb,0),FALSE),IF(W106<4,1,VLOOKUP(Emissions!Station,table5bb,MATCH("6 or 7hr",heading5bb,0),FALSE))))) ->  | AF106: 1 | AG106: 1 | AH106: 1 | AJ106: =IF(B106="","",VLOOKUP('Tier 2 Report'!B106,table8A,MATCH("MPR (MICR)",TABLE8A_HEADING,0),FALSE)) ->  | AK106: =IF(B106="","",VLOOKUP('Tier 2 Report'!B106,table8A,MATCH("MPW (MICR)",TABLE8A_HEADING,0),FALSE)) ->  | AL106: =IF(B106="","",VLOOKUP('Tier 2 Report'!B106,table8A,MATCH("MPR (Chronic)",TABLE8A_HEADING,0),FALSE)) ->  | AM106: =IF(B106="","",VLOOKUP('Tier 2 Report'!B106,table8A,MATCH("MPW (Chronic)",TABLE8A_HEADING,0),FALSE)) -> 
B107: =IF(Emissions!SourceType="C",Emissions!AE69, IF(Emissions!SourceType="O",Emissions!C69,IF(Emissions!SourceType="D",Emissions!Z69,IF(Emissions!SourceType="L",Emissions!K69,IF(Emissions!SourceType="R",Emissions!P69,IF(Emissions!SourceType="B",Emissions!U69,"unknown" )))))) -> 0 | E107: =IF(Emissions!SourceType="C",Emissions!AG69, IF(Emissions!SourceType="O",Emissions!G69,IF(Emissions!SourceType="D",Emissions!AB69,IF(Emissions!SourceType="L",Emissions!M69,IF(Emissions!SourceType="R",Emissions!R69,IF(Emissions!SourceType="B",Emissions!W69,"unknown")))))) -> 0 | F107: =IF(Emissions!SourceType="C",Emissions!AH69, IF(Emissions!SourceType="O",Emissions!I69,IF(Emissions!SourceType="D",Emissions!AC69,IF(Emissions!SourceType="L",Emissions!N69,IF(Emissions!SourceType="R",Emissions!S69,IF(Emissions!SourceType="B",Emissions!X69,"unknown")))))) ->  | Z107: =IF(W107="","",IF(Emissions!$E$20="p",IF(W107=4,VLOOKUP(Emissions!Station,table3bbb,MATCH("4 hrs",head3cc,0),FALSE),IF(W107<4,1,VLOOKUP(Emissions!Station,table3bbb,MATCH("6 or 7hr", head3ccc,0)))))) ->  | AA107: =IF(W107="","",IF(Emissions!$E$20="v",IF(W107=4,VLOOKUP(Emissions!Station,table5bb,MATCH("4 hrs",heading5bb,0),FALSE),IF(W107<4,1,VLOOKUP(Emissions!Station,table5bb,MATCH("6 or 7hr",heading5bb,0),FALSE))))) ->  | AF107: 1 | AG107: 1 | AH107: 1 | AJ107: =IF(B107="","",VLOOKUP('Tier 2 Report'!B107,table8A,MATCH("MPR (MICR)",TABLE8A_HEADING,0),FALSE)) ->  | AK107: =IF(B107="","",VLOOKUP('Tier 2 Report'!B107,table8A,MATCH("MPW (MICR)",TABLE8A_HEADING,0),FALSE)) ->  | AL107: =IF(B107="","",VLOOKUP('Tier 2 Report'!B107,table8A,MATCH("MPR (Chronic)",TABLE8A_HEADING,0),FALSE)) ->  | AM107: =IF(B107="","",VLOOKUP('Tier 2 Report'!B107,table8A,MATCH("MPW (Chronic)",TABLE8A_HEADING,0),FALSE)) -> 
B108: =IF(Emissions!SourceType="C",Emissions!AE70, IF(Emissions!SourceType="O",Emissions!C70,IF(Emissions!SourceType="D",Emissions!Z70,IF(Emissions!SourceType="L",Emissions!K70,IF(Emissions!SourceType="R",Emissions!P70,IF(Emissions!SourceType="B",Emissions!U70,"unknown" )))))) -> 0 | E108: =IF(Emissions!SourceType="C",Emissions!AG70, IF(Emissions!SourceType="O",Emissions!G70,IF(Emissions!SourceType="D",Emissions!AB70,IF(Emissions!SourceType="L",Emissions!M70,IF(Emissions!SourceType="R",Emissions!R70,IF(Emissions!SourceType="B",Emissions!W70,"unknown")))))) -> 0 | F108: =IF(Emissions!SourceType="C",Emissions!AH70, IF(Emissions!SourceType="O",Emissions!I70,IF(Emissions!SourceType="D",Emissions!AC70,IF(Emissions!SourceType="L",Emissions!N70,IF(Emissions!SourceType="R",Emissions!S70,IF(Emissions!SourceType="B",Emissions!X70,"unknown")))))) ->  | Z108: =IF(W108="","",IF(Emissions!$E$20="p",IF(W108=4,VLOOKUP(Emissions!Station,table3bbb,MATCH("4 hrs",head3cc,0),FALSE),IF(W108<4,1,VLOOKUP(Emissions!Station,table3bbb,MATCH("6 or 7hr", head3ccc,0)))))) ->  | AA108: =IF(W108="","",IF(Emissions!$E$20="v",IF(W108=4,VLOOKUP(Emissions!Station,table5bb,MATCH("4 hrs",heading5bb,0),FALSE),IF(W108<4,1,VLOOKUP(Emissions!Station,table5bb,MATCH("6 or 7hr",heading5bb,0),FALSE))))) ->  | AF108: 1 | AG108: 1 | AH108: 1 | AJ108: =IF(B108="","",VLOOKUP('Tier 2 Report'!B108,table8A,MATCH("MPR (MICR)",TABLE8A_HEADING,0),FALSE)) ->  | AK108: =IF(B108="","",VLOOKUP('Tier 2 Report'!B108,table8A,MATCH("MPW (MICR)",TABLE8A_HEADING,0),FALSE)) ->  | AL108: =IF(B108="","",VLOOKUP('Tier 2 Report'!B108,table8A,MATCH("MPR (Chronic)",TABLE8A_HEADING,0),FALSE)) ->  | AM108: =IF(B108="","",VLOOKUP('Tier 2 Report'!B108,table8A,MATCH("MPW (Chronic)",TABLE8A_HEADING,0),FALSE)) -> 
B109: =IF(Emissions!SourceType="C",Emissions!AE71, IF(Emissions!SourceType="O",Emissions!C71,IF(Emissions!SourceType="D",Emissions!Z71,IF(Emissions!SourceType="L",Emissions!K71,IF(Emissions!SourceType="R",Emissions!P71,IF(Emissions!SourceType="B",Emissions!U71,"unknown" )))))) -> 0 | E109: =IF(Emissions!SourceType="C",Emissions!AG71, IF(Emissions!SourceType="O",Emissions!G71,IF(Emissions!SourceType="D",Emissions!AB71,IF(Emissions!SourceType="L",Emissions!M71,IF(Emissions!SourceType="R",Emissions!R71,IF(Emissions!SourceType="B",Emissions!W71,"unknown")))))) -> 0 | F109: =IF(Emissions!SourceType="C",Emissions!AH71, IF(Emissions!SourceType="O",Emissions!I71,IF(Emissions!SourceType="D",Emissions!AC71,IF(Emissions!SourceType="L",Emissions!N71,IF(Emissions!SourceType="R",Emissions!S71,IF(Emissions!SourceType="B",Emissions!X71,"unknown")))))) ->  | Z109: =IF(W109="","",IF(Emissions!$E$20="p",IF(W109=4,VLOOKUP(Emissions!Station,table3bbb,MATCH("4 hrs",head3cc,0),FALSE),IF(W109<4,1,VLOOKUP(Emissions!Station,table3bbb,MATCH("6 or 7hr", head3ccc,0)))))) ->  | AA109: =IF(W109="","",IF(Emissions!$E$20="v",IF(W109=4,VLOOKUP(Emissions!Station,table5bb,MATCH("4 hrs",heading5bb,0),FALSE),IF(W109<4,1,VLOOKUP(Emissions!Station,table5bb,MATCH("6 or 7hr",heading5bb,0),FALSE))))) ->  | AF109: 1 | AG109: 1 | AH109: 1 | AJ109: =IF(B109="","",VLOOKUP('Tier 2 Report'!B109,table8A,MATCH("MPR (MICR)",TABLE8A_HEADING,0),FALSE)) ->  | AK109: =IF(B109="","",VLOOKUP('Tier 2 Report'!B109,table8A,MATCH("MPW (MICR)",TABLE8A_HEADING,0),FALSE)) ->  | AL109: =IF(B109="","",VLOOKUP('Tier 2 Report'!B109,table8A,MATCH("MPR (Chronic)",TABLE8A_HEADING,0),FALSE)) ->  | AM109: =IF(B109="","",VLOOKUP('Tier 2 Report'!B109,table8A,MATCH("MPW (Chronic)",TABLE8A_HEADING,0),FALSE)) -> 
B110: =IF(Emissions!SourceType="C",Emissions!AE72, IF(Emissions!SourceType="O",Emissions!C72,IF(Emissions!SourceType="D",Emissions!Z72,IF(Emissions!SourceType="L",Emissions!K72,IF(Emissions!SourceType="R",Emissions!P72,IF(Emissions!SourceType="B",Emissions!U72,"unknown" )))))) -> 0 | E110: =IF(Emissions!SourceType="C",Emissions!AG72, IF(Emissions!SourceType="O",Emissions!G72,IF(Emissions!SourceType="D",Emissions!AB72,IF(Emissions!SourceType="L",Emissions!M72,IF(Emissions!SourceType="R",Emissions!R72,IF(Emissions!SourceType="B",Emissions!W72,"unknown")))))) -> 0 | F110: =IF(Emissions!SourceType="C",Emissions!AH72, IF(Emissions!SourceType="O",Emissions!I72,IF(Emissions!SourceType="D",Emissions!AC72,IF(Emissions!SourceType="L",Emissions!N72,IF(Emissions!SourceType="R",Emissions!S72,IF(Emissions!SourceType="B",Emissions!X72,"unknown")))))) ->  | Z110: =IF(W110="","",IF(Emissions!$E$20="p",IF(W110=4,VLOOKUP(Emissions!Station,table3bbb,MATCH("4 hrs",head3cc,0),FALSE),IF(W110<4,1,VLOOKUP(Emissions!Station,table3bbb,MATCH("6 or 7hr", head3ccc,0)))))) ->  | AA110: =IF(W110="","",IF(Emissions!$E$20="v",IF(W110=4,VLOOKUP(Emissions!Station,table5bb,MATCH("4 hrs",heading5bb,0),FALSE),IF(W110<4,1,VLOOKUP(Emissions!Station,table5bb,MATCH("6 or 7hr",heading5bb,0),FALSE))))) ->  | AF110: 1 | AG110: 1 | AH110: 1 | AJ110: =IF(B110="","",VLOOKUP('Tier 2 Report'!B110,table8A,MATCH("MPR (MICR)",TABLE8A_HEADING,0),FALSE)) ->  | AK110: =IF(B110="","",VLOOKUP('Tier 2 Report'!B110,table8A,MATCH("MPW (MICR)",TABLE8A_HEADING,0),FALSE)) ->  | AL110: =IF(B110="","",VLOOKUP('Tier 2 Report'!B110,table8A,MATCH("MPR (Chronic)",TABLE8A_HEADING,0),FALSE)) ->  | AM110: =IF(B110="","",VLOOKUP('Tier 2 Report'!B110,table8A,MATCH("MPW (Chronic)",TABLE8A_HEADING,0),FALSE)) -> 
B111: =IF(Emissions!SourceType="C",Emissions!AE73, IF(Emissions!SourceType="O",Emissions!C73,IF(Emissions!SourceType="D",Emissions!Z73,IF(Emissions!SourceType="L",Emissions!K73,IF(Emissions!SourceType="R",Emissions!P73,IF(Emissions!SourceType="B",Emissions!U73,"unknown" )))))) -> 0 | E111: =IF(Emissions!SourceType="C",Emissions!AG73, IF(Emissions!SourceType="O",Emissions!G73,IF(Emissions!SourceType="D",Emissions!AB73,IF(Emissions!SourceType="L",Emissions!M73,IF(Emissions!SourceType="R",Emissions!R73,IF(Emissions!SourceType="B",Emissions!W73,"unknown")))))) -> 0 | F111: =IF(Emissions!SourceType="C",Emissions!AH73, IF(Emissions!SourceType="O",Emissions!I73,IF(Emissions!SourceType="D",Emissions!AC73,IF(Emissions!SourceType="L",Emissions!N73,IF(Emissions!SourceType="R",Emissions!S73,IF(Emissions!SourceType="B",Emissions!X73,"unknown")))))) ->  | Z111: =IF(W111="","",IF(Emissions!$E$20="p",IF(W111=4,VLOOKUP(Emissions!Station,table3bbb,MATCH("4 hrs",head3cc,0),FALSE),IF(W111<4,1,VLOOKUP(Emissions!Station,table3bbb,MATCH("6 or 7hr", head3ccc,0)))))) ->  | AA111: =IF(W111="","",IF(Emissions!$E$20="v",IF(W111=4,VLOOKUP(Emissions!Station,table5bb,MATCH("4 hrs",heading5bb,0),FALSE),IF(W111<4,1,VLOOKUP(Emissions!Station,table5bb,MATCH("6 or 7hr",heading5bb,0),FALSE))))) ->  | AF111: 1 | AG111: 1 | AH111: 1 | AJ111: =IF(B111="","",VLOOKUP('Tier 2 Report'!B111,table8A,MATCH("MPR (MICR)",TABLE8A_HEADING,0),FALSE)) ->  | AK111: =IF(B111="","",VLOOKUP('Tier 2 Report'!B111,table8A,MATCH("MPW (MICR)",TABLE8A_HEADING,0),FALSE)) ->  | AL111: =IF(B111="","",VLOOKUP('Tier 2 Report'!B111,table8A,MATCH("MPR (Chronic)",TABLE8A_HEADING,0),FALSE)) ->  | AM111: =IF(B111="","",VLOOKUP('Tier 2 Report'!B111,table8A,MATCH("MPW (Chronic)",TABLE8A_HEADING,0),FALSE)) -> 
B112: =IF(Emissions!SourceType="C",Emissions!AE74, IF(Emissions!SourceType="O",Emissions!C74,IF(Emissions!SourceType="D",Emissions!Z74,IF(Emissions!SourceType="L",Emissions!K74,IF(Emissions!SourceType="R",Emissions!P74,IF(Emissions!SourceType="B",Emissions!U74,"unknown" )))))) -> 0 | E112: =IF(Emissions!SourceType="C",Emissions!AG74, IF(Emissions!SourceType="O",Emissions!G74,IF(Emissions!SourceType="D",Emissions!AB74,IF(Emissions!SourceType="L",Emissions!M74,IF(Emissions!SourceType="R",Emissions!R74,IF(Emissions!SourceType="B",Emissions!W74,"unknown")))))) -> 0 | F112: =IF(Emissions!SourceType="C",Emissions!AH74, IF(Emissions!SourceType="O",Emissions!I74,IF(Emissions!SourceType="D",Emissions!AC74,IF(Emissions!SourceType="L",Emissions!N74,IF(Emissions!SourceType="R",Emissions!S74,IF(Emissions!SourceType="B",Emissions!X74,"unknown")))))) ->  | Z112: =IF(W112="","",IF(Emissions!$E$20="p",IF(W112=4,VLOOKUP(Emissions!Station,table3bbb,MATCH("4 hrs",head3cc,0),FALSE),IF(W112<4,1,VLOOKUP(Emissions!Station,table3bbb,MATCH("6 or 7hr", head3ccc,0)))))) ->  | AA112: =IF(W112="","",IF(Emissions!$E$20="v",IF(W112=4,VLOOKUP(Emissions!Station,table5bb,MATCH("4 hrs",heading5bb,0),FALSE),IF(W112<4,1,VLOOKUP(Emissions!Station,table5bb,MATCH("6 or 7hr",heading5bb,0),FALSE))))) ->  | AF112: 1 | AG112: 1 | AH112: 1 | AJ112: =IF(B112="","",VLOOKUP('Tier 2 Report'!B112,table8A,MATCH("MPR (MICR)",TABLE8A_HEADING,0),FALSE)) ->  | AK112: =IF(B112="","",VLOOKUP('Tier 2 Report'!B112,table8A,MATCH("MPW (MICR)",TABLE8A_HEADING,0),FALSE)) ->  | AL112: =IF(B112="","",VLOOKUP('Tier 2 Report'!B112,table8A,MATCH("MPR (Chronic)",TABLE8A_HEADING,0),FALSE)) ->  | AM112: =IF(B112="","",VLOOKUP('Tier 2 Report'!B112,table8A,MATCH("MPW (Chronic)",TABLE8A_HEADING,0),FALSE)) -> 
B113: =IF(Emissions!SourceType="C",Emissions!AE75, IF(Emissions!SourceType="O",Emissions!C75,IF(Emissions!SourceType="D",Emissions!Z75,IF(Emissions!SourceType="L",Emissions!K75,IF(Emissions!SourceType="R",Emissions!P75,IF(Emissions!SourceType="B",Emissions!U75,"unknown" )))))) -> 0 | E113: =IF(Emissions!SourceType="C",Emissions!AG75, IF(Emissions!SourceType="O",Emissions!G75,IF(Emissions!SourceType="D",Emissions!AB75,IF(Emissions!SourceType="L",Emissions!M75,IF(Emissions!SourceType="R",Emissions!R75,IF(Emissions!SourceType="B",Emissions!W75,"unknown")))))) -> 0 | F113: =IF(Emissions!SourceType="C",Emissions!AH75, IF(Emissions!SourceType="O",Emissions!I75,IF(Emissions!SourceType="D",Emissions!AC75,IF(Emissions!SourceType="L",Emissions!N75,IF(Emissions!SourceType="R",Emissions!S75,IF(Emissions!SourceType="B",Emissions!X75,"unknown")))))) ->  | Z113: =IF(W113="","",IF(Emissions!$E$20="p",IF(W113=4,VLOOKUP(Emissions!Station,table3bbb,MATCH("4 hrs",head3cc,0),FALSE),IF(W113<4,1,VLOOKUP(Emissions!Station,table3bbb,MATCH("6 or 7hr", head3ccc,0)))))) ->  | AA113: =IF(W113="","",IF(Emissions!$E$20="v",IF(W113=4,VLOOKUP(Emissions!Station,table5bb,MATCH("4 hrs",heading5bb,0),FALSE),IF(W113<4,1,VLOOKUP(Emissions!Station,table5bb,MATCH("6 or 7hr",heading5bb,0),FALSE))))) ->  | AF113: 1 | AG113: 1 | AH113: 1 | AJ113: =IF(B113="","",VLOOKUP('Tier 2 Report'!B113,table8A,MATCH("MPR (MICR)",TABLE8A_HEADING,0),FALSE)) ->  | AK113: =IF(B113="","",VLOOKUP('Tier 2 Report'!B113,table8A,MATCH("MPW (MICR)",TABLE8A_HEADING,0),FALSE)) ->  | AL113: =IF(B113="","",VLOOKUP('Tier 2 Report'!B113,table8A,MATCH("MPR (Chronic)",TABLE8A_HEADING,0),FALSE)) ->  | AM113: =IF(B113="","",VLOOKUP('Tier 2 Report'!B113,table8A,MATCH("MPW (Chronic)",TABLE8A_HEADING,0),FALSE)) -> 
B114: =IF(Emissions!SourceType="C",Emissions!AE76, IF(Emissions!SourceType="O",Emissions!C76,IF(Emissions!SourceType="D",Emissions!Z76,IF(Emissions!SourceType="L",Emissions!K76,IF(Emissions!SourceType="R",Emissions!P76,IF(Emissions!SourceType="B",Emissions!U76,"unknown" )))))) -> 0 | E114: =IF(Emissions!SourceType="C",Emissions!AG76, IF(Emissions!SourceType="O",Emissions!G76,IF(Emissions!SourceType="D",Emissions!AB76,IF(Emissions!SourceType="L",Emissions!M76,IF(Emissions!SourceType="R",Emissions!R76,IF(Emissions!SourceType="B",Emissions!W76,"unknown")))))) -> 0 | F114: =IF(Emissions!SourceType="C",Emissions!AH76, IF(Emissions!SourceType="O",Emissions!I76,IF(Emissions!SourceType="D",Emissions!AC76,IF(Emissions!SourceType="L",Emissions!N76,IF(Emissions!SourceType="R",Emissions!S76,IF(Emissions!SourceType="B",Emissions!X76,"unknown")))))) -> 0 | Z114: =IF(W114="","",IF(Emissions!$E$20="p",IF(W114=4,VLOOKUP(Emissions!Station,table3bbb,MATCH("4 hrs",head3cc,0),FALSE),IF(W114<4,1,VLOOKUP(Emissions!Station,table3bbb,MATCH("6 or 7hr", head3ccc,0)))))) ->  | AA114: =IF(W114="","",IF(Emissions!$E$20="v",IF(W114=4,VLOOKUP(Emissions!Station,table5bb,MATCH("4 hrs",heading5bb,0),FALSE),IF(W114<4,1,VLOOKUP(Emissions!Station,table5bb,MATCH("6 or 7hr",heading5bb,0),FALSE))))) ->  | AF114: 1 | AG114: 1 | AH114: 1 | AJ114: =IF(B114="","",VLOOKUP('Tier 2 Report'!B114,table8A,MATCH("MPR (MICR)",TABLE8A_HEADING,0),FALSE)) ->  | AK114: =IF(B114="","",VLOOKUP('Tier 2 Report'!B114,table8A,MATCH("MPW (MICR)",TABLE8A_HEADING,0),FALSE)) ->  | AL114: =IF(B114="","",VLOOKUP('Tier 2 Report'!B114,table8A,MATCH("MPR (Chronic)",TABLE8A_HEADING,0),FALSE)) ->  | AM114: =IF(B114="","",VLOOKUP('Tier 2 Report'!B114,table8A,MATCH("MPW (Chronic)",TABLE8A_HEADING,0),FALSE)) -> 
C116: 4. Emission Calculations | E116: uncontrolled | F116: controlled
C117: Compound | E117: R1 (lb/hr) | F117: R2 (lb/hr) | G117: R2 (lb/yr) | H117: R2 (ton/yr)
C118: =C78 -> Benzene (including benzene from gasoline) | E118: =E78 -> 8.4e-05 | F118: 8.4e-05 | G118: =(F118*Emissions!$E$13*Emissions!$E$14*Emissions!$E$15) -> 0.733824 | H118: =G118/2000 -> 0.000366912
C119: Toluene (methyl benzene) | E119: 8.4e-05 | F119: 8.4e-05 | G119: =(F119*Emissions!$E$13*Emissions!$E$14*Emissions!$E$15) -> 0.733824 | H119: 0.000366912
C120: Xylenes (isomers and mixtures) | E120: 1.35e-05 | F120: 1.35e-05 | G120: =(F120*Emissions!$E$13*Emissions!$E$14*Emissions!$E$15) -> 0.117936 | H120: 5.8968e-05
C121: Ethyl benzene | E121: 8.1e-07 | F121: 8.1e-07 | G121: =(F121*Emissions!$E$13*Emissions!$E$14*Emissions!$E$15) -> 0.00707616 | H121: 3.53808e-06
E122: 0 | G122: =(F122*Emissions!$E$13*Emissions!$E$14*Emissions!$E$15) -> 0 | H122: 0
E123: 0 | G123: =(F123*Emissions!$E$13*Emissions!$E$14*Emissions!$E$15) -> 0 | H123: 0
E124: 0 | G124: =(F124*Emissions!$E$13*Emissions!$E$14*Emissions!$E$15) -> 0 | H124: 0
E125: 0 | G125: =(F125*Emissions!$E$13*Emissions!$E$14*Emissions!$E$15) -> 0 | H125: 0
E126: 0 | G126: =(F126*Emissions!$E$13*Emissions!$E$14*Emissions!$E$15) -> 0 | H126: 0
E127: 0 | G127: =(F127*Emissions!$E$13*Emissions!$E$14*Emissions!$E$15) -> 0 | H127: 0
E128: 0 | G128: =(F128*Emissions!$E$13*Emissions!$E$14*Emissions!$E$15) -> 0 | H128: 0
E129: 0 | G129: =(F129*Emissions!$E$13*Emissions!$E$14*Emissions!$E$15) -> 0 | H129: 0
E130: 0 | G130: =(F130*Emissions!$E$13*Emissions!$E$14*Emissions!$E$15) -> 0 | H130: 0
E131: 0 | G131: =(F131*Emissions!$E$13*Emissions!$E$14*Emissions!$E$15) -> 0 | H131: 0
E132: 0 | G132: =(F132*Emissions!$E$13*Emissions!$E$14*Emissions!$E$15) -> 0 | H132: 0
E133: 0 | G133: =(F133*Emissions!$E$13*Emissions!$E$14*Emissions!$E$15) -> 0 | H133: 0
E134: 0 | G134: =(F134*Emissions!$E$13*Emissions!$E$14*Emissions!$E$15) -> 0 | H134: 0
E135: 0 | G135: =(F135*Emissions!$E$13*Emissions!$E$14*Emissions!$E$15) -> 0 | H135: 0
E136: 0 | G136: =(F136*Emissions!$E$13*Emissions!$E$14*Emissions!$E$15) -> 0 | H136: 0
E137: 0 | G137: =(F137*Emissions!$E$13*Emissions!$E$14*Emissions!$E$15) -> 0 | H137: 0
E138: =E98 -> 0 | G138: =(F138*Emissions!$E$13*Emissions!$E$14*Emissions!$E$15) -> 0 | H138: 0
E139: 0 | G139: =(F139*Emissions!$E$13*Emissions!$E$14*Emissions!$E$15) -> 0 | H139: 0
E140: 0 | G140: =(F140*Emissions!$E$13*Emissions!$E$14*Emissions!$E$15) -> 0 | H140: 0
E141: 0 | G141: =(F141*Emissions!$E$13*Emissions!$E$14*Emissions!$E$15) -> 0 | H141: 0
E142: 0 | G142: =(F142*Emissions!$E$13*Emissions!$E$14*Emissions!$E$15) -> 0 | H142: 0
E143: 0 | G143: =(F143*Emissions!$E$13*Emissions!$E$14*Emissions!$E$15) -> 0 | H143: 0
E144: 0 | G144: =(F144*Emissions!$E$13*Emissions!$E$14*Emissions!$E$15) -> 0 | H144: 0
E145: 0 | G145: =(F145*Emissions!$E$13*Emissions!$E$14*Emissions!$E$15) -> 0 | H145: 0
E146: 0 | G146: =(F146*Emissions!$E$13*Emissions!$E$14*Emissions!$E$15) -> 0 | H146: 0
E147: 0 | G147: =(F147*Emissions!$E$13*Emissions!$E$14*Emissions!$E$15) -> 0 | H147: 0
E148: 0 | G148: =(F148*Emissions!$E$13*Emissions!$E$14*Emissions!$E$15) -> 0 | H148: 0
E149: 0 | G149: =(F149*Emissions!$E$13*Emissions!$E$14*Emissions!$E$15) -> 0 | H149: 0
E150: 0 | G150: =(F150*Emissions!$E$13*Emissions!$E$14*Emissions!$E$15) -> 0 | H150: 0
E151: 0 | G151: =(F151*Emissions!$E$13*Emissions!$E$14*Emissions!$E$15) -> 0 | H151: 0
E152: 0 | G152: =(F152*Emissions!$E$13*Emissions!$E$14*Emissions!$E$15) -> 0 | H152: 0
E153: 0 | G153: =(F153*Emissions!$E$13*Emissions!$E$14*Emissions!$E$15) -> 0 | H153: 0
C154: Total | E154: =SUM(E118:E153) -> 0.00018231 | F154: =SUM(F118:F153) -> 0.00018231 | G154: =SUM(G118:G153) -> 1.59266016 | H154: =SUM(H118:H153) -> 0.00079633008
D157: A/N: | E157: =$E8 -> 0 | G157: Application deemed complete date: | K157: =$K$8 -> 2012-12-07
C159: =IF(Emissions!ScreeningMode="NO","TIER 2 RESULTS","TIER 3 RESULTS") -> TIER 2 RESULTS
C161: 5a. MICR
C162: MICR = CP (mg/(kg-day))^-1 * Q (ton/yr) * (X/Q) * AFann * MET * DBR * EVF * 1E-6* MP
C163: Compound | E163: Residential | F163: Commercial
C164: =C78 -> Benzene (including benzene from gasoline) | E164: =G78*H118*$D$23*$D$27*$D$12*$E$27*$F$27*H78*10^-6 -> 1.537120586e-08 | F164: =G78*H118*$D$24*$D$28*$D$12*$E$28*$F$28*I78*10^-6 -> 1.819020249e-08
C165: Toluene (methyl benzene) | E165: 0 | F165: 0
C166: Xylenes (isomers and mixtures) | E166: 0 | F166: 0
C167: Ethyl benzene | E167: 1.289534377e-11 | F167: 1.526028059e-11
E168: 0 | F168: 0
E169: 0 | F169: 0
E170: 0 | F170: 0
E171: 0 | F171: 0
E172: 0 | F172: 0
E173: 0 | F173: 0
E174: 0 | F174: 0
E175: 0 | F175: 0
E176: 0 | F176: 0
E177: 0 | F177: 0
E178: 0 | F178: 0
E179: 0 | F179: 0
E180: 0 | F180: 0
E181: 0 | F181: 0
E182: 0 | F182: 0
E183: 0 | F183: 0
E184: 0 | F184: 0
E185: 0 | F185: 0
E186: 0 | F186: 0
E187: 0 | F187: 0
E188: 0 | F188: 0
E189: 0 | F189: 0
E190: 0 | F190: 0 | S190: Model used: | V190: =IF(V204="NO",IF(V194="YES",S194,IF(V195="YES",S195,IF(V196="YES",S196,IF(V197="YES",S197,IF(V198="YES",S198,IF(V199="YES",S199,IF(V200="yes",S200,IF(V201="yes",S201,IF(V202="yes",S202,IF(V203="yes",S203,IF(V205="yes",S205,IF(V206="yes",S206,""))))))))))))) -> Other (>12 h/day) | W190: =IF(V204="YES",S204,"") -> 
E191: 0 | F191: 0 | S191: Distance_calculated (meter) | V191: =IF(V204="NO",IF(V194="YES",W194,IF(V195="YES",W195,IF(V196="YES",W196,IF(V197="YES",W197,IF(V198="YES",W198,IF(V199="YES",W199,IF(V200="YES",W200,IF(V201="YES",W201,IF(V202="YES",W202,IF(V203="YES",W203,IF(V205="YES",W205,IF(V206="YES",W206,""))))))))))))) -> no data | W191: =IF(V204="YES",W204) -> FALSE
E192: 0 | F192: 0
E193: 0 | F193: 0 | I193: =IF(AND(E200<0.000001,F200<0.000001),"No Cancer Burden, MICR<1.0E-6") -> No Cancer Burden, MICR<1.0E-6 | W193: New Distance
E194: 0 | F194: 0 | I194: 5b. Cancer Burden | L194: =IF(OR(E200>1*10^-6,F200>1*10^-6),"YES","NO") -> NO | R194: 1 | S194: Combustion (<= 12 h/day) | U194: Boiler | V194: =IF(Emissions!HoursPerDay<=12,IF(Emissions!$E$27="B - Boiler","yes","no"),"no") -> no | W194: ='Table2 Boiler < 12'!M7 -> 
E195: 0 | F195: 0 | R195: 2 | U195: Rich | V195: =IF(Emissions!HoursPerDay<=12,IF(Emissions!$E$27="R - Rich Burn Ice","yes","no"),"no") -> no | W195: ='Table2 Engine < 12'!M7 -> no data
E196: 0 | F196: 0 | I196: X/Q for one-in-a-million: | L196: =IF(L194="YES",IF(E200>=F200,D23/E200/1000000,D24/F200/1000000),0) -> 0 | R196: 3 | U196: Lean | V196: =IF(Emissions!HoursPerDay<=12,IF(Emissions!$E$27="L - Lean Burn Ice","yes","no"),"no") -> no | W196: ='Table2 Engine < 12'!M7 -> no data
E197: 0 | F197: 0 | I197: Distance (meter) | L197: =IF(V191>0,V191,W191) -> FALSE | R197: 4 | S197: Other (<= 12 h/day) | V197: =IF(Emissions!HoursPerDay<=12,IF(Emissions!$E$27="O - Other","yes","no"),"no") -> no | W197: =Table2AB!M7 -> no data
E198: 0 | F198: 0 | I198: Area (km2): | L198: =(L197/1000)^2*3.14 -> 0 | R198: 5 | S198: Combustion (> 12 h/day) | U198: Boiler | V198: =IF(Emissions!HoursPerDay>12,IF(Emissions!$E$27="B - Boiler","yes","no"),"no") -> no | W198: ='Table3 Boiler > 12'!M7 -> 
E199: 0 | F199: 0 | I199: Population: | L199: =L198*7000 -> 0 | R199: 6 | U199: Rich | V199: =IF(Emissions!HoursPerDay>12,IF(Emissions!$E$27="R - Rich Burn Ice","yes","no"),"no") -> no | W199: ='Table3 Engine > 12'!M7 -> no data
C200: Total | E200: =SUM(E164:E199) -> 1.53841012e-08 | F200: =SUM(F164:F199)*1 -> 1.820546278e-08 | I200: Cancer Burden: | L200: =IF($E$200>=$F$200,$E$200*L199,$F$200*L199) -> 0 | R200: 7 | U200: Lean | V200: =IF(Emissions!HoursPerDay>12,IF(Emissions!$E$27="L - Lean Burn Ice","yes","no"),"no") -> no | W200: ='Table3 Engine > 12'!M7 -> no data
E201: =IF(Emissions!tbact="yes",IF(E200<0.00001,"PASS","FAIL"),IF(E200<0.000001,"PASS","FAIL")) -> PASS | F201: =IF(Emissions!tbact="yes",IF(F200<0.00001,"PASS","FAIL"),IF(F200<0.000001,"PASS","FAIL")) -> PASS | R201: 8 | S201: Other (>12 h/day) | V201: =IF(Emissions!HoursPerDay>12,IF(Emissions!$E$27="O - Other","yes","no"),"no") -> yes | W201: =Table3AB!M7 -> no data
C202: 6. Hazard Index | R202: 9 | S202: Vol Other (<= 12 h/day) | V202: =IF(Emissions!$E$20="V",IF(Emissions!HoursPerDay<12,IF(Emissions!$E$27="O - Other","yes","no"),"no"),"no") -> no | W202: =Table4!M7 -> 
C203: HIA = [Q(lb/hr) * (X/Q)max] * AF / Acute REL | R203: 10 | S203: Vol Other (>12 h/day) | V203: =IF(Emissions!$E$20="V",IF(Emissions!HoursPerDay>12,IF(Emissions!$E$27="O - Other","yes","no"),"no"),"no") -> no | W203: =Table5!M7 -> 
C204: HIC = [Q(ton/yr) * (X/Q) * MET * MP] / Chronic REL | R204: 11 | S204: Screening | V204: =IF(Emissions!ScreeningMode="YES","yes","no") -> no | W204: =IF(V204="yes",'Tier 3 Screen Input'!P10,"No input") -> No input
C205: Target Organs | F205: Acute | G205: Chronic | H205: Acute Pass/Fail | I205: Chronic Pass/Fail | R205: 12 | S205: Diesel (<= 12 hr/day) | V205: =IF(Emissions!HoursPerDay<=12,IF(Emissions!$E$27="D - Diesel ICE","yes","no"),"no") -> no | W205: =Table2AB!M7 -> no data
C206: Alimentary system (liver) - AL | F206: =IF(E$263>=E$304,E$263,IF(E$304>E$263,E$304,"")) -> 0 | G206: =IF(E$346>=E$390,E$346,IF(E$390>E$346,E$390,"")) -> 1.548971424e-08 | H206: =IF(OR(F206<1,F206=""),"Pass","Fail") -> Pass | I206: =IF(OR(G206<1,G206=""),"Pass","Fail") -> Pass | R206: 13 | S206: Diesel (> 12 hr/day) | V206: =IF(Emissions!HoursPerDay>12,IF(Emissions!$E$27="D - Diesel ICE","yes","no"),"no") -> no | W206: =Table3AB!M7 -> no data
C207: Bones and teeth - BN | G207: =IF(F$346>=F$390,F$346,IF(F$390>F$346,F$390,"")) -> 0 | H207: =IF(OR(F207<1,F207=""),"Pass","Fail") -> Pass | I207: =IF(OR(G207<1,G207=""),"Pass","Fail") -> Pass
C208: Cardiovascular system - CV | F208: =IF(F263>=F304,F263,IF(F304>F263,F304,"")) -> 0 | G208: =IF(G$346>=G$390,G$346,IF(G$390>G$346,G$390,"")) -> 0 | H208: Pass | I208: Pass
C209: Developmental - DEV | F209: =IF(G$263>=G$304,G$263,IF(G$304>G$263,G$304,"")) -> 3.095735651e-05 | G209: =IF(H$346>=H$390,H$346,IF(H$390>H$346,H$390,"")) -> 6.426911915e-05 | H209: Pass | I209: Pass
C210: Endocrine system - END | G210: =IF(I$346>=I$390,I$346,IF(I$390>I$346,I$390,"")) -> 1.548971424e-08 | H210: Pass | I210: Pass
C211: Eye | F211: =IF(H$263>=H$304,H$263,IF(H$304>H$263,H$304,"")) -> 1.334787346e-06 | G211: =IF(J$346>=J$390,J$346,IF(J$390>J$346,J$390,"")) -> 0 | H211: Pass | I211: Pass
C212: Hematopoietic system - HEM | F212: =IF(I$263>=I$304,I$263,IF(I$304>I$263,I$304,"")) -> 2.990658462e-05 | G212: =IF(K$346>=K$390,K$346,IF(K$390>K$346,K$390,"")) -> 5.35446912e-05 | H212: Pass | I212: Pass
C213: Immune system - IMM | F213: =IF(J$263>=J$304,J$263,IF(J$304>J$263,J$304,"")) -> 2.990658462e-05 | G213: =IF(L$346>=L$390,L$346,IF(L$390>L$346,L$390,"")) -> 0 | H213: Pass | I213: Pass
C214: Kidney - KID | G214: =IF(M$346>=M$390,M$346,IF(M$390>M$346,M$390,"")) -> 1.548971424e-08 | H214: Pass | I214: Pass
C215: Nervous system - NS | F215: =IF(K$263>=K$304,K$263,IF(K$304>K$263,K$304,"")) -> 1.050771892e-06 | G215: =IF(N$346>=N$390,N$346,IF(N$390>N$346,N$390,"")) -> 6.499123488e-05 | H215: Pass | I215: Pass
C216: Reproductive system - REP | F216: =IF(L$263>=L$304,L$263,IF(L$304>L$263,L$304,"")) -> 3.095735651e-05 | G216: =IF(O$346>=O$390,O$346,IF(O$390>O$346,O$390,"")) -> 0 | H216: Pass | I216: Pass
C217: Respiratory system - RES | F217: =IF(M$263>=M$304,M$263,IF(M$304>M$263,M$304,"")) -> 1.334787346e-06 | G217: =IF(P$346>=P$390,P$346,IF(P$390>P$346,P$390,"")) -> 1.144654368e-05 | H217: Pass | I217: Pass
C218: Skin | F218: =IF(N$263>=N$304,N$263,IF(N$304>N$263,N$304,"")) -> 0 | G218: =IF(Q$346>=Q$390,Q$346,IF(Q$390>Q$346,Q$390,"")) -> 0 | H218: Pass | I218: Pass
D221: A/N: | E221: =$E8 -> 0 | H221: Application deemed complete date: | L221: =$K$8 -> 2012-12-07
C223: 6a. Hazard Index Acute | F223: HIA = [Q(lb/hr) * (X/Q)max] *AF/ Acute REL
H224: HIA - Residential | AF224: REL | AG224: Screening
C225: Compound | E225: AL | F225: CV | G225: DEV | H225: EYE | I225: HEM | J225: IMM | K225: NS | L225: REP | M225: RESP | N225: SKIN | U225: AL | V225: CV | W225: DEV | X225: EYE | Y225: HEM | Z225: IMM | AA225: NS | AB225: REP | AC225: RESP | AD225: SKIN | AF225: ACUTE AF | AG225: AF
C226: =C78 -> Benzene (including benzene from gasoline) | E226: =IF(ISERR(U226),"", IF($M78=0,"",IF($T226="","",IF(OR(U226<>"x",U226=""),"",($F118*$E$23*$AF226)/$M78)))) ->  | F226: =IF(ISERR(V226),"", IF($M78=0,"",IF($T226="","",IF(OR(V226<>"x",V226=""),"",($F118*$E$23*$AF226)/$M78)))) ->  | G226: =IF(ISERR(W226),"", IF($M78=0,"",IF($T226="","",IF(OR(W226<>"x",W226=""),"",($F118*$E$23*$AF226)/$M78)))) -> 5.385692308e-06 | H226: =IF(ISERR(X226),"", IF($M78=0,"",IF($T226="","",IF(OR(X226<>"x",X226=""),"",($F118*$E$23*$AF226)/$M78)))) ->  | I226: =IF(ISERR(Y226),"", IF($M78=0,"",IF($T226="","",IF(OR(Y226<>"x",Y226=""),"",($F118*$E$23*$AF226)/$M78)))) -> 5.385692308e-06 | J226: =IF(ISERR(Z226),"", IF($M78=0,"",IF($T226="","",IF(OR(Z226<>"x",Z226=""),"",($F118*$E$23*$AF226)/$M78)))) -> 5.385692308e-06 | K226: =IF(ISERR(AA226),"", IF($M78=0,"",IF($T226="","",IF(OR(AA226<>"x",AA226=""),"",($F118*$E$23*$AF226)/$M78)))) ->  | L226: =IF(ISERR(AB226),"", IF($M78=0,"",IF($T226="","",IF(OR(AB226<>"x",AB226=""),"",($F118*$E$23*$AF226)/$M78)))) -> 5.385692308e-06 | M226: =IF(ISERR(AC226),"", IF($M78=0,"",IF($T226="","",IF(OR(AC226<>"x",AC226=""),"",($F118*$E$23*$AF226)/$M78)))) ->  | N226: =IF(ISERR(AD226),"", IF($M78=0,"",IF($T226="","",IF(OR(AD226<>"x",AD226=""),"",($F118*$E$23*$AF226)/$M78)))) ->  | T226: =IF($B78="","",VLOOKUP($B78,table8A,MATCH("T.O. code Acute",TABLE8A_HEADING,0),FALSE)) -> B1 | U226: =IF($T226="","",VLOOKUP($T226,table10b,MATCH(E$225,head10b,0),FALSE)) -> 0 | V226: =IF($T226="","",VLOOKUP($T226,table10b,MATCH(F$225,head10b,0),FALSE)) -> 0 | W226: =IF($T226="","",VLOOKUP($T226,table10b,MATCH(G$225,head10b,0),FALSE)) -> x | X226: =IF($T226="","",VLOOKUP($T226,table10b,MATCH(H$225,head10b,0),FALSE)) -> 0 | Y226: =IF($T226="","",VLOOKUP($T226,table10b,MATCH(I$225,head10b,0),FALSE)) -> x | Z226: =IF($T226="","",VLOOKUP($T226,table10b,MATCH(J$225,head10b,0),FALSE)) -> x | AA226: =IF($T226="","",VLOOKUP($T226,table10b,MATCH(K$225,head10b,0),FALSE)) -> 0 | AB226: =IF($T226="","",VLOOKUP($T226,table10b,MATCH(L$225,head10b,0),FALSE)) -> x | AC226: =IF($T226="","",VLOOKUP($T226,table10b,MATCH(M$225,head10b,0),FALSE)) -> 0 | AD226: =IF($T226="","",VLOOKUP($T226,table10b,MATCH(N$225,head10b,0),FALSE)) -> 0 | AF226: =IF(Emissions!ScreeningMode="YES",AG226, IF(Z78="",$AA78,$Z78)) -> 1 | AG226: =IF(W78="","",IF(W78<4,1,IF(W78<6,0.9,0.8))) -> 1
C227: Toluene (methyl benzene) | G227: =IF(ISERR(W227),"", IF($M79=0,"",IF($T227="","",IF(OR(W227<>"x",W227=""),"",($F119*$E$23*$AF227)/$M79)))) -> 1.89227027e-07 | H227: 1.89227027e-07 | K227: 1.89227027e-07 | L227: 1.89227027e-07 | M227: 1.89227027e-07 | T227: T3 | U227: 0 | V227: 0 | W227: x | X227: x | Y227: 0 | Z227: 0 | AA227: x | AB227: x | AC227: x | AD227: 0 | AF227: =IF(Emissions!ScreeningMode="YES",AG227, IF(Z79="",$AA79,$Z79)) -> 1 | AG227: =IF(W79="","",IF(W79<4,1,IF(W79<6,0.9,0.8))) -> 1
C228: Xylenes (isomers and mixtures) | G228: =IF(ISERR(W228),"", IF($M80=0,"",IF($T228="","",IF(OR(W228<>"x",W228=""),"",($F120*$E$23*$AF228)/$M80)))) ->  | H228: 5.114659091e-08 | L228: =IF(ISERR(AB228),"", IF($M80=0,"",IF($T228="","",IF(OR(AB228<>"x",AB228=""),"",($F120*$E$23*$AF228)/$M80)))) ->  | M228: 5.114659091e-08 | T228: X1 | U228: 0 | V228: 0 | W228: 0 | X228: x | Y228: 0 | Z228: 0 | AA228: 0 | AB228: 0 | AC228: x | AD228: 0 | AF228: =IF(Emissions!ScreeningMode="YES",AG228, IF(Z80="",$AA80,$Z80)) -> 1 | AG228: 1
C229: Ethyl benzene | T229: 0 | AF229: =IF(Emissions!ScreeningMode="YES",AG229, IF(Z81="",$AA81,$Z81)) -> 1 | AG229: 1
AF230: =IF(Emissions!ScreeningMode="YES",AG230, IF(Z82="",$AA82,$Z82)) -> 
AF231: =IF(Emissions!ScreeningMode="YES",AG231, IF(Z83="",$AA83,$Z83)) -> 
AF232: =IF(Emissions!ScreeningMode="YES",AG232, IF(Z84="",$AA84,$Z84)) -> 
AF233: =IF(Emissions!ScreeningMode="YES",AG233, IF(Z85="",$AA85,$Z85)) -> 
AF234: =IF(Emissions!ScreeningMode="YES",AG234, IF(Z86="",$AA86,$Z86)) -> 
AF235: =IF(Emissions!ScreeningMode="YES",AG235, IF(Z87="",$AA87,$Z87)) -> 
AF236: =IF(Emissions!ScreeningMode="YES",AG236, IF(Z88="",$AA88,$Z88)) -> 
AF237: =IF(Emissions!ScreeningMode="YES",AG237, IF(Z89="",$AA89,$Z89)) -> 
AF238: =IF(Emissions!ScreeningMode="YES",AG238, IF(Z90="",$AA90,$Z90)) -> 
AF239: =IF(Emissions!ScreeningMode="YES",AG239, IF(Z91="",$AA91,$Z91)) -> 
AF240: =IF(Emissions!ScreeningMode="YES",AG240, IF(Z92="",$AA92,$Z92)) -> 
AF241: =IF(Emissions!ScreeningMode="YES",AG241, IF(Z93="",$AA93,$Z93)) -> 
AF242: =IF(Emissions!ScreeningMode="YES",AG242, IF(Z94="",$AA94,$Z94)) -> 
AF243: =IF(Emissions!ScreeningMode="YES",AG243, IF(Z95="",$AA95,$Z95)) -> 
AF244: =IF(Emissions!ScreeningMode="YES",AG244, IF(Z96="",$AA96,$Z96)) -> 
AF245: =IF(Emissions!ScreeningMode="YES",AG245, IF(Z97="",$AA97,$Z97)) -> 
AF246: =IF(Emissions!ScreeningMode="YES",AG246, IF(Z98="",$AA98,$Z98)) -> 
AF247: =IF(Emissions!ScreeningMode="YES",AG247, IF(Z99="",$AA99,$Z99)) -> 
AF248: =IF(Emissions!ScreeningMode="YES",AG248, IF(Z100="",$AA100,$Z100)) -> 
AF249: =IF(Emissions!ScreeningMode="YES",AG249, IF(Z101="",$AA101,$Z101)) -> 
AF250: =IF(Emissions!ScreeningMode="YES",AG250, IF(Z102="",$AA102,$Z102)) -> 
AF251: =IF(Emissions!ScreeningMode="YES",AG251, IF(Z103="",$AA103,$Z103)) -> 
AF252: =IF(Emissions!ScreeningMode="YES",AG252, IF(Z104="",$AA104,$Z104)) -> 
AF253: =IF(Emissions!ScreeningMode="YES",AG253, IF(Z105="",$AA105,$Z105)) -> 
AF254: =IF(Emissions!ScreeningMode="YES",AG254, IF(Z106="",$AA106,$Z106)) -> 
AF255: =IF(Emissions!ScreeningMode="YES",AG255, IF(Z107="",$AA107,$Z107)) -> 
AF256: =IF(Emissions!ScreeningMode="YES",AG256, IF(Z108="",$AA108,$Z108)) -> 
AF257: =IF(Emissions!ScreeningMode="YES",AG257, IF(Z109="",$AA109,$Z109)) -> 
AF258: =IF(Emissions!ScreeningMode="YES",AG258, IF(Z110="",$AA110,$Z110)) -> 
AF259: =IF(Emissions!ScreeningMode="YES",AG259, IF(Z111="",$AA111,$Z111)) -> 
... 95 more rows

Sheet Boiler
C2: BOILER DATA
C4: Max burner rating | E4: 18840000 | F4: BTU/hr
C5: Fuel HHV | E5: 1050 | F5: btu/ft3
C6: Fuel rate | E6: =E4/E5 -> 17942.85714 | F6: ft3/hr
C7: MM cf fuel rate | E7: =E6/1000000 -> 0.01794285714 | F7: mmcf/hr
C8: VOC control (Rule 1401) | E8: 10 | F8: percent eff | K8: Rule 1401 natural gas Emissions Factors (AB-2588, 8/95)
C11: Compound | E11: EF (lb/mmcf) | F11: R1 (lb/hr) | G11: R2 (lb/hr) | H11: NSR Data Entry (E-06 lb/hr) | L11: <10 mmbtuh | M11: 10-100 mmbtuh | N11: >100 mmbtuh
H12: R1 | I12: R2 | K12: Compound | L12: EF(lb/mmcf) | M12: EF(lb/mmcf) | N12: EF(lb/mmcf)
A13: A1 | C13: =VLOOKUP(A13,table8A,2,FALSE) -> Acetaldehyde | E13: =IF(BoilerRating<10000000,L13, IF(AND(BoilerRating>=10000000, BoilerRating<100000000 ),M13, N13)) -> 0.0031 | F13: =E13*$E$7 -> 5.562285714e-05 | G13: =F13*(1-$E$8%) -> 5.006057143e-05 | H13: =F13*1000000 -> 55.62285714 | I13: =G13*1000000 -> 50.06057143 | K13: Acetaldehyde | L13: 0.0043 | M13: 0.0031 | N13: 0.043
A14: A3 | C14: Acrolein | E14: 0.0027 | F14: 4.844571429e-05 | G14: =F14*(1-$E$8%) -> 4.360114286e-05 | H14: =F14*1000000 -> 48.44571429 | I14: =G14*1000000 -> 43.60114286 | K14: Acrolein | L14: 0.0027 | M14: 0.0027 | N14: 0.01
A15: B1 | C15: Benzene (including benzene from gasoline) | E15: 0.0058 | F15: 0.0001040685714 | G15: 9.366171429e-05 | H15: 104.0685714 | I15: 93.66171429 | K15: Benzene (including benzene from gasoline) | L15: 0.008 | M15: 0.0058 | N15: 0.19
A16: E4 | C16: Ethyl benzene | E16: 0.0069 | F16: 0.0001238057143 | G16: 0.0001114251429 | H16: 123.8057143 | I16: 111.4251429 | K16: Ethyl benzene | L16: 0.0095 | M16: 0.0069 | N16: 1.444
A17: F3 | C17: Formaldehyde | E17: 0.0123 | F17: 0.0002206971429 | G17: 0.0001986274286 | H17: 220.6971429 | I17: 198.6274286 | K17: Formaldehyde | L17: 0.017 | M17: 0.0123 | N17: 1.169
A18: H8 | C18: Hexane (n-) | E18: 0.0046 | F18: 8.253714286e-05 | G18: 7.428342857e-05 | H18: 82.53714286 | I18: 74.28342857 | K18: Hexane (n-) | L18: 0.0063 | M18: 0.0046 | N18: 0.029
A19: P30 | C19: Naphthalene | E19: 0.0003 | F19: 5.382857143e-06 | G19: 4.844571429e-06 | H19: 5.382857143 | I19: 4.844571429 | K19: Napthalene | L19: 0.0003 | M19: 0.0003 | N19: 0.011
A20: P9 | C20: PolyCyclic Aromatic Hydrocarbon (PAHs) | E20: 0.0001 | F20: 1.794285714e-06 | G20: 1.614857143e-06 | H20: 1.794285714 | I20: 1.614857143 | K20: PolyCyclic Aromatic Hydrocarbon (PAHs) | L20: 0.0001 | M20: 0.0001 | N20: 0.003
A21: P78 | C21: Propylene | E21: 0.53 | F21: 0.009509714286 | G21: 0.008558742857 | H21: 9509.714286 | I21: 8558.742857 | K21: Propylene | L21: 0.731 | M21: 0.53 | N21: 2.44
A22: T3 | C22: Toluene (methyl benzene) | E22: 0.0265 | F22: 0.0004754857143 | G22: 0.0004279371429 | H22: 475.4857143 | I22: 427.9371429 | K22: Toluene (methyl benzene) | L22: 0.0366 | M22: 0.0265 | N22: 0.058
A23: X1 | C23: Xylenes (isomers and mixtures) | E23: 0.0197 | F23: 0.0003534742857 | G23: 0.0003181268571 | H23: 353.4742857 | I23: 318.1268571 | K23: Xylenes (isomers and mixtures) | L23: 0.0272 | M23: 0.0197 | N23: 0.029

Sheet Crematory
C2: CREMATION DATA
C4: Crematory Type (Human or Animal) | E4: Animal Cremation
C5: Maximum Burn Rate | E5: 1 | G5: lbs/hr | L5: Crematory Emissions Factors (USEPA Final 1999 Non Point HAP Source Estimates, August 26, 2003)
B9: Code | C9: Compound | E9: EF (lb/ton) | F9: R1 (lb/hr) | G9: R2 (lb/hr) | H9: NSR Data Entry (E-06 lb/hr) | M9: Human Cremation | N9: Animal Cremation
H10: R1 | I10: R2 | L10: Compound | M10: EF(lb/ton) | N10: EF(lb/ton)
B11: A13 | C11: =VLOOKUP(B11,table8a_new,2,FALSE) -> Arsenic and arsenic compounds (inorganic) | E11: =IF(E$4="Human Cremation",M11,N11) -> 0.0004 | F11: =E11*$E$5/2000 -> 2e-07 | G11: =F11 -> 2e-07 | H11: =F11*1000000 -> 0.2 | I11: =G11*1000000 -> 0.2 | L11: Arsenic and arsenic compounds (inorganic) | M11: 0.0004 | N11: 0.0004
B12: B4 | C12: Beryllium (and beryllium compounds) | E12: =IF(E$4="Human Cremation",M12,N12) -> 1.84e-05 | F12: 9.2e-09 | G12: 9.2e-09 | H12: 0.0092 | I12: 0.0092 | L12: Beryllium (and beryllium compounds) | M12: 1.84e-05 | N12: 1.84e-05
B13: C1 | C13: Cadmium and cadmium compounds | E13: 0.00146 | F13: 7.3e-07 | G13: 7.3e-07 | H13: 0.73 | I13: 0.73 | L13: Cadmium and cadmium compounds | M13: 0.00146 | N13: 0.00146
B14: C20 | C14: Chromium, hexavalent | E14: 0.000191 | F14: 9.55e-08 | G14: 9.55e-08 | H14: 0.0955 | I14: 0.0955 | L14: Chromium, hexavalent* | M14: =0.000191 -> 0.000191 | N14: =0.000191 -> 0.000191
B15: P57 | C15: Polychlorinated Dibenzofurans (PCDF) (as 2,3,7,8-Eqiv) and total | E15: 1.43e-07 | F15: 7.15e-11 | G15: 7.15e-11 | H15: 7.15e-05 | I15: 7.15e-05 | L15: Polychlorinated Dibenzofurans (PCDF) (as 2,3,7,8-Eqiv) and total | M15: 1.43e-07 | N15: 1.43e-07
B16: P49 | C16: Polychlorinated Dibenzo-p-Dioxins (PCDD) (as 2,3,7,8-Eqiv) and total | E16: 7.74e-08 | F16: 3.87e-11 | G16: 3.87e-11 | H16: 3.87e-05 | I16: 3.87e-05 | L16: Polychlorinated Dibenzo-p-Dioxins (PCDD) (as 2,3,7,8-Eqiv) and total | M16: 7.74e-08 | N16: 7.74e-08
B17: F3 | C17: Formaldehyde | E17: 2.89e-09 | F17: 1.445e-12 | G17: 1.445e-12 | H17: 1.445e-06 | I17: 1.445e-06 | L17: Formaldehyde | M17: 2.89e-09 | N17: 2.89e-09
B18: H11 | C18: Hydrogen chloride (hydrochloric acid) | E18: 1.97 | F18: 0.000985 | G18: 0.000985 | H18: 985 | I18: 985 | L18: Hydrogen chloride (hydrochloric acid) | M18: 1.97 | N18: 1.97
B19: L1 | C19: Lead and lead compounds (inorganic, including elemental lead), including but not limited to: | E19: 0.00939 | F19: 4.695e-06 | G19: 4.695e-06 | H19: 4.695 | I19: 4.695 | L19: Lead and lead compounds (inorganic, including elemental lead), including but not limited to: | M19: 0.00939 | N19: 0.00939
B20: N1 | C20: Nickel & nickel compounds (except nickel oxide): | E20: 0.000509 | F20: 2.545e-07 | G20: 2.545e-07 | H20: 0.2545 | I20: 0.2545 | L20: Nickel & nickel compounds (except nickel oxide): | M20: 0.000509 | N20: 0.000509
B21: M3 | C21: Mercury and mercury compounds (inorganic) | E21: 0 | F21: 0 | G21: 0 | H21: 0 | I21: 0 | L21: Mercury and mercury compounds (inorganic) | M21: 0.00532 | N21: 0
B22: P9 | C22: PolyCyclic Aromatic Hydrocarbon (PAHs) | E22: 0.000963 | F22: 4.815e-07 | G22: 4.815e-07 | H22: 0.4815 | I22: 0.4815 | L22: PolyCyclic Aromatic Hydrocarbon (PAHs) | M22: 0.000963 | N22: 0.000963
L24: * Emission factor from EPA is for Total Chrome. Hex Chrome emission factor is from San Diego APCD

Sheet DieselICE
C2: DIESEL ENGINE DATA (This tab is for applications that have deemed completed date before March 7, 2008. For applications deemed completed on or after 3/7/08, use Emissions tab using only one TAC, Diesel PM (code D14))
C4: Engine hp | D4: 200 | E4: hp
C5: Fuel usage | D5: 1 | E5: gallons/hour
D6: =D5/1000 -> 0.001 | E6: Mgal/hour
B10: Code | C10: Compound | D10: EF(lb/Mgal) | E10: R1 (lb/hr) | F10: Efficiency | G10: R2 (lb/hr) | H10: NSR Data Entry (E-06 lb/hr)
A11: 1 | B11: A1 | C11: =VLOOKUP(B11,table8a_new,2,FALSE) -> Acetaldehyde | D11: =1.52*10^-1 -> 0.152 | E11: =D11*$D$6 -> 0.000152 | F11: 0.9 | G11: =E11*(1-$F11) -> 1.52e-05 | H11: =G11*1000000 -> 15.2
A12: 2 | B12: A3 | C12: Acrolein | D12: =3.16*10^-2 -> 0.0316 | E12: =D12*$D$6 -> 3.16e-05 | F12: 0.9 | G12: =E12*(1-$F12) -> 3.16e-06 | H12: =G12*1000000 -> 3.16
A13: 3 | B13: B1 | C13: Benzene (including benzene from gasoline) | D13: =3.3*10^-1 -> 0.33 | E13: =D13*$D$6 -> 0.00033 | F13: 0.9 | G13: =E13*(1-$F13) -> 3.3e-05 | H13: 33
A14: 4 | B14: B9 | C14: Butadiene, 1,3- | D14: =5.41*10^-3 -> 0.00541 | E14: 5.41e-06 | F14: 0.9 | G14: 5.41e-07 | H14: 0.541
A15: 5 | B15: E4 | C15: Ethyl benzene | D15: =8.03*10^-3 -> 0.00803 | E15: 8.03e-06 | F15: 0.9 | G15: 8.03e-07 | H15: 0.803
A16: 6 | B16: F3 | C16: Formaldehyde | D16: =2.23 -> 2.23 | E16: 0.00223 | F16: 0.9 | G16: 0.000223 | H16: 223
A17: 7 | B17: P9 | C17: PolyCyclic Aromatic Hydrocarbon (PAHs) | D17: =4.7*10^-2 -> 0.047 | E17: 4.7e-05 | F17: 0.9 | G17: 4.7e-06 | H17: 4.7
A18: 8 | B18: P30 | C18: Naphthalene | D18: =1.58*10^-1 -> 0.158 | E18: 0.000158 | F18: 0.9 | G18: 1.58e-05 | H18: 15.8
A19: 9 | B19: T3 | C19: Toluene (methyl benzene) | D19: =1.11*10^-1 -> 0.111 | E19: 0.000111 | F19: 0.9 | G19: 1.11e-05 | H19: 11.1
A20: 10 | B20: X1 | C20: Xylenes (isomers and mixtures) | D20: =4.44*10^-2 -> 0.0444 | E20: 4.44e-05 | F20: 0.9 | G20: 4.44e-06 | H20: 4.44
A21: 11 | H21: 0
A22: 12 | H22: 0
A23: 13 | C23: *ARB CATEF LIST | H23: 0
A24: 14 | H24: 0
A25: 15 | H25: 0
A26: 16 | H26: 0
A27: 17 | H27: 0
A28: 18 | H28: 0
A29: 19 | H29: 0
A30: 20 | H30: 0
A31: 21 | H31: 0
A32: 22 | H32: 0
A33: 23 | H33: 0
A34: 24 | H34: 0
A35: 25 | H35: 0
A36: 26 | H36: 0
A37: 27 | H37: 0
A38: 28 | H38: 0
A39: 29 | H39: 0
A40: 30 | H40: 0
A41: 31 | H41: 0
A42: 32 | H42: 0
A43: 33 | H43: 0
A44: 34 | H44: 0
A45: 35 | H45: 0
A46: 36 | H46: 0

Sheet LeanBurnICE
C2: LEAN BURN ENGINE DATA
C4: Engine hp | D4: 100 | E4: hp
C5: Engine efficiency (37% default) | D5: 0.37
C6: Fuel rate for nat gas (actual if available)
C7: HHV-Natural gas | D7: 1050 | E7: Btu/ft3
C8: Conversion factor from HP -Btu/hr | D8: 2542.47 | E8: Btu/hr
C9: =IF(D6=0,"Fuel rate nat gas (default)","Fuel rate nat gas (actual)") -> Fuel rate nat gas (default) | D9: =IF(D6=0,(D4*D8/D7)/D5,D6) -> 654.4324324 | E9: ft3/hr
D10: =D9/1000000 -> 0.0006544324324 | E10: MMft3/hr
C12: Pollutant | D12: Control Efficiency
C13: PAHs | D13: 0.977
C14: VOCs | D14: 0.977
B16: Code | C16: Compound | D16: EF (lb/mmbtu) | E16: EF (lb/mmcf) | F16: R1 (lb/hr) | G16: R2 (lb/hr) | H16: NSR Data Entry (E-06 lb/hr)
H17: R1 | I17: R2
A18: 1 | B18: A1 | C18: =VLOOKUP(B18,table8a_new,2,FALSE) -> Acetaldehyde | D18: 0.00836 | E18: =D18*$D$7 -> 8.778 | F18: =E18*$D$10 -> 0.005744607892 | G18: =F18*(1-$D$14) -> 0.0001321259815 | H18: =F18*1000000 -> 5744.607892 | I18: =G18*1000000 -> 132.1259815
A19: 2 | B19: A3 | C19: Acrolein | D19: 0.00514 | E19: =D19*$D$7 -> 5.397 | F19: =E19*$D$10 -> 0.003531971838 | G19: =F19*(1-D14) -> 8.123535227e-05 | H19: =F19*1000000 -> 3531.971838 | I19: =G19*1000000 -> 81.23535227
A20: 3 | B20: B1 | C20: Benzene (including benzene from gasoline) | D20: 0.00044 | E20: 0.462 | F20: 0.0003023477838 | G20: =F20*(1-$D$14) -> 6.953999027e-06 | H20: 302.3477838 | I20: 6.953999027
A21: 4 | B21: B9 | C21: Butadiene, 1,3- | D21: 0.000267 | E21: 0.28035 | F21: 0.0001834701324 | G21: =F21*(1-D13) -> 4.219813046e-06 | H21: 183.4701324 | I21: 4.219813046
A22: 5 | B22: C3 | C22: Carbon tetrachloride (Tetrachloromethane) | D22: 3.67e-05 | E22: 0.038535 | F22: 2.521855378e-05 | G22: =F22*(1-D14) -> 5.80026737e-07 | H22: 25.21855378 | I22: 0.580026737
A23: 6 | B23: D6 | C23: Dichloroethane, 1,1- | D23: 2.36e-05 | E23: 0.02478 | F23: 1.621683568e-05 | G23: =F23*(1-$D$14) -> 3.729872205e-07 | H23: 16.21683568 | I23: 0.3729872205
A24: 7 | B24: E4 | C24: Ethyl benzene | D24: 3.97e-05 | E24: 0.041685 | F24: 2.728001595e-05 | G24: 6.274403668e-07 | H24: 27.28001595 | I24: 0.6274403668
A25: 8 | B25: E7 | C25: Ethylene dibromide(1,2-Dibromoethane) | D25: 4.43e-05 | E25: 0.046515 | F25: 3.044092459e-05 | G25: 7.001412657e-07 | H25: 30.44092459 | I25: 0.7001412657
A26: 9 | B26: E8 | C26: Ethylene dichloride (or 1,2-dichloroethane) | D26: 2.36e-05 | E26: 0.02478 | F26: 1.621683568e-05 | G26: 3.729872205e-07 | H26: 16.21683568 | I26: 0.3729872205
A27: 10 | B27: F3 | C27: Formaldehyde | D27: 0.0528 | E27: 55.44 | F27: 0.03628173405 | G27: 0.0008344798832 | H27: 36281.73405 | I27: 834.4798832
A28: 11 | B28: H8 | C28: Hexane (n-) | D28: 0.00111 | E28: 1.1655 | F28: 0.000762741 | G28: 1.7543043e-05 | H28: 762.741 | I28: 17.543043
A29: 12 | B29: M6 | C29: Methanol (methyl alcohol) | D29: 0.0025 | E29: 2.625 | F29: 0.001717885135 | G29: 3.951135811e-05 | H29: 1717.885135 | I29: 39.51135811
A30: 13 | B30: M13 | C30: Methylene chloride(Dichloromethane) | D30: 2e-05 | E30: 0.021 | F30: 1.374308108e-05 | G30: 3.160908649e-07 | H30: 13.74308108 | I30: 0.3160908649
A31: 14 | B31: P3 | C31: Phenol | D31: 2.4e-05 | E31: 0.0252 | F31: 1.64916973e-05 | G31: 3.793090378e-07 | H31: 16.4916973 | I31: 0.3793090378
A32: 15 | B32: P9 | C32: PolyCyclic Aromatic Hydrocarbon (PAHs) | D32: 2.69e-05 | E32: 0.028245 | F32: 1.848444405e-05 | G32: =F32*(1-$D$13) -> 4.251422132e-07 | H32: 18.48444405 | I32: 0.4251422132
A33: 16 | B33: P12 | C33: Benzo[b]fluoranthene | D33: 1.66e-07 | E33: 0.0001743 | F33: 1.14067573e-07 | G33: =F33*(1-$D$13) -> 2.623554178e-09 | H33: 0.114067573 | I33: 0.002623554178
A34: 17 | B34: P15 | C34: Chrysene | D34: 6.93e-07 | E34: 0.00072765 | F34: 4.761977595e-07 | G34: =F34*(1-$D$13) -> 1.095254847e-08 | H34: 0.4761977595 | I34: 0.01095254847
A35: 18 | B35: P30 | C35: Naphthalene | D35: 7.44e-05 | E35: 0.07812 | F35: 5.112426162e-05 | G35: =F35*(1-$D$14) -> 1.175858017e-06 | H35: 51.12426162 | I35: 1.175858017
A36: 19 | B36: S6 | C36: Styrene (vinyl benzene) | D36: 2.36e-05 | E36: 0.02478 | F36: 1.621683568e-05 | G36: 3.729872205e-07 | H36: 16.21683568 | I36: 0.3729872205
A37: 20 | B37: T1 | C37: Tetrachloroethane 1,1,2,2- | D37: 4e-05 | E37: 0.042 | F37: 2.748616216e-05 | G37: 6.321817297e-07 | H37: 27.48616216 | I37: 0.6321817297
A38: 21 | B38: T3 | C38: Toluene (methyl benzene) | D38: 0.000408 | E38: 0.4284 | F38: 0.0002803588541 | G38: 6.448253643e-06 | H38: 280.3588541 | I38: 6.448253643
A39: 22 | B39: T7 | C39: Trichloroethane, 1,1,2- | D39: 3.18e-05 | E39: 0.03339 | F39: 2.185149892e-05 | G39: 5.025844751e-07 | H39: 21.85149892 | I39: 0.5025844751
A40: 23 | B40: V5 | C40: Vinyl chloride (chloroethylene) | D40: 1.49e-05 | E40: 0.015645 | F40: 1.023859541e-05 | G40: 2.354876943e-07 | H40: 10.23859541 | I40: 0.2354876943
A41: 24 | B41: X1 | C41: Xylenes (isomers and mixtures) | D41: 0.000184 | E41: 0.1932 | F41: 0.0001264363459 | G41: 2.908035957e-06 | H41: 126.4363459 | I41: 2.908035957
A42: 25 | B42: c7 | C42: Chlorobenzene | D42: 3.04e-05 | E42: 0.03192 | F42: 2.088948324e-05 | G42: 4.804581146e-07 | H42: 20.88948324 | I42: 0.4804581146
A43: 26 | B43: c14 | C43: Chloroform(trichloromethane) | D43: 2.85e-05 | E43: 0.029925 | F43: 1.958389054e-05 | G43: 4.504294824e-07 | H43: 19.58389054 | I43: 0.4504294824
A44: 27 | H44: =G44*1000000 -> 0 | I44: 0
A45: 28 | H45: 0 | I45: 0
A46: 29 | H46: 0 | I46: 0
A47: 30 | H47: 0 | I47: 0
A48: 31 | H48: 0 | I48: 0
A49: 32 | H49: 0 | I49: 0
A50: 33 | H50: 0 | I50: 0
A51: 34 | H51: 0 | I51: 0
A52: 35 | H52: 0 | I52: 0
A53: 36 | H53: 0 | I53: 0

Sheet RichBurnICE
C2: RICH BURN ENGINE DATA
C4: Engine hp | D4: 1000 | E4: hp
C5: Engine efficiency (33% default) | D5: 0.33
C6: Fuel rate nat gas (actual if available) | D6: 100
C7: HHV-Natural gas | D7: 1050 | E7: Btu/ft3
C8: Conversion factor from HP -Btu/hr | D8: 2542.47 | E8: Btu/hr-hp
C9: =IF(D6=0,"Fuel rate nat gas (default)","Fuel rate nat gas (actual)") -> Fuel rate nat gas (actual) | D9: =IF(D6=0,(D4*D8/D7)/D5,D6) -> 100 | E9: ft3/hr
D10: =D9/1000000 -> 0.0001 | E10: MMft3/hr
C12: Pollutant | D12: Control Efficiency
C13: PAHs | D13: 0.977
C14: VOCs | D14: 0.977
B17: Code | C17: Compound | D17: EF (lb/mmbtu) | E17: EF (lb/mmcf) | F17: R1 (lb/hr) | G17: R2 (lb/hr) | H17: NSR Data Entry (E-06 lb/hr)
H18: R1 | I18: R2
A19: 1 | B19: A1 | C19: =VLOOKUP(B19,table8a_new,2,FALSE) -> Acetaldehyde | D19: 0.00279 | E19: =D19*$D$7 -> 2.9295 | F19: =E19*$D$10 -> 0.00029295 | G19: =F19*(1-$D$14) -> 6.73785e-06 | H19: =F19*1000000 -> 292.95 | I19: =G19*1000000 -> 6.73785
A20: 2 | B20: A3 | C20: Acrolein | D20: 0.00263 | E20: 2.7615 | F20: 0.00027615 | G20: =F20*(1-D14) -> 6.35145e-06 | H20: =F20*1000000 -> 276.15 | I20: =G20*1000000 -> 6.35145
A21: 3 | B21: B1 | C21: Benzene (including benzene from gasoline) | D21: 0.00158 | E21: 1.659 | F21: 0.0001659 | G21: =F21*(1-$D$14) -> 3.8157e-06 | H21: 165.9 | I21: 3.8157
A22: 4 | B22: B9 | C22: Butadiene, 1,3- | D22: 0.000663 | E22: 0.69615 | F22: 6.9615e-05 | G22: =F22*(1-D14) -> 1.601145e-06 | H22: 69.615 | I22: 1.601145
A23: 5 | B23: C3 | C23: Carbon tetrachloride (Tetrachloromethane) | D23: 1.77e-05 | E23: 0.018585 | F23: 1.8585e-06 | G23: =F23*(1-D14) -> 4.27455e-08 | H23: 1.8585 | I23: 0.0427455
A24: 6 | B24: C7 | C24: Chlorobenzene | D24: 1.29e-05 | E24: 0.013545 | F24: 1.3545e-06 | G24: =F24*(1-$D$14) -> 3.11535e-08 | H24: 1.3545 | I24: 0.0311535
A25: 7 | B25: C14 | C25: Chloroform(trichloromethane) | D25: 1.37e-05 | E25: 0.014385 | F25: 1.4385e-06 | G25: 3.30855e-08 | H25: 1.4385 | I25: 0.0330855
A26: 8 | B26: D6 | C26: Dichloroethane, 1,1- | D26: 1.13e-05 | E26: 0.011865 | F26: 1.1865e-06 | G26: 2.72895e-08 | H26: 1.1865 | I26: 0.0272895
A27: 9 | B27: E4 | C27: Ethyl benzene | D27: 2.48e-05 | E27: 0.02604 | F27: 2.604e-06 | G27: 5.9892e-08 | H27: 2.604 | I27: 0.059892
A28: 10 | B28: E7 | C28: Ethylene dibromide(1,2-Dibromoethane) | D28: 2.13e-05 | E28: 0.022365 | F28: 2.2365e-06 | G28: 5.14395e-08 | H28: 2.2365 | I28: 0.0514395
A29: 11 | B29: E8 | C29: Ethylene dichloride (or 1,2-dichloroethane) | D29: 1.13e-05 | E29: 0.011865 | F29: 1.1865e-06 | G29: 2.72895e-08 | H29: 1.1865 | I29: 0.0272895
A30: 12 | B30: F3 | C30: Formaldehyde | D30: 0.0205 | E30: 21.525 | F30: 0.0021525 | G30: 4.95075e-05 | H30: 2152.5 | I30: 49.5075
A31: 13 | B31: M6 | C31: Methanol (methyl alcohol) | D31: 0.00306 | E31: 3.213 | F31: 0.0003213 | G31: 7.3899e-06 | H31: 321.3 | I31: 7.3899
A32: 14 | B32: M13 | C32: Methylene chloride(Dichloromethane) | D32: 4.12e-05 | E32: 0.04326 | F32: 4.326e-06 | G32: 9.9498e-08 | H32: 4.326 | I32: 0.099498
A33: 15 | B33: P9 | C33: PolyCyclic Aromatic Hydrocarbon (PAHs) | D33: 4.39e-05 | E33: 0.046095 | F33: 4.6095e-06 | G33: =F33*(1-$D$13) -> 1.060185e-07 | H33: 4.6095 | I33: 0.1060185
A34: 16 | B34: P30 | C34: Naphthalene | D34: 9.71e-05 | E34: 0.101955 | F34: 1.01955e-05 | G34: =F34*(1-$D$13) -> 2.344965e-07 | H34: 10.1955 | I34: 0.2344965
A35: 17 | B35: S6 | C35: Styrene (vinyl benzene) | D35: 1.19e-05 | E35: 0.012495 | F35: 1.2495e-06 | G35: =F35*(1-$D$14) -> 2.87385e-08 | H35: 1.2495 | I35: 0.0287385
A36: 18 | B36: T1 | C36: Tetrachloroethane 1,1,2,2- | D36: 2.53e-05 | E36: 0.026565 | F36: 2.6565e-06 | G36: 6.10995e-08 | H36: 2.6565 | I36: 0.0610995
A37: 19 | B37: T3 | C37: Toluene (methyl benzene) | D37: 0.000558 | E37: 0.5859 | F37: 5.859e-05 | G37: 1.34757e-06 | H37: 58.59 | I37: 1.34757
A38: 20 | B38: T7 | C38: Trichloroethane, 1,1,2- | D38: 1.53e-05 | E38: 0.016065 | F38: 1.6065e-06 | G38: 3.69495e-08 | H38: 1.6065 | I38: 0.0369495
A39: 21 | B39: V5 | C39: Vinyl chloride (chloroethylene) | D39: 7.18e-06 | E39: 0.007539 | F39: 7.539e-07 | G39: 1.73397e-08 | H39: 0.7539 | I39: 0.0173397
A40: 22 | B40: X1 | C40: Xylenes (isomers and mixtures) | D40: 0.000195 | E40: 0.20475 | F40: 2.0475e-05 | G40: 4.70925e-07 | H40: 20.475 | I40: 0.470925
A41: 23 | H41: 0 | I41: 0
A42: 24 | H42: 0 | I42: 0
A43: 25 | H43: 0 | I43: 0
A44: 26 | H44: 0 | I44: 0
A45: 27 | H45: 0 | I45: 0
A46: 28 | H46: 0 | I46: 0
A47: 29 | H47: 0 | I47: 0
A48: 30 | H48: 0 | I48: 0
A49: 31 | H49: 0 | I49: 0
A50: 32 | H50: 0 | I50: 0
A51: 33 | H51: 0 | I51: 0
A52: 34 | H52: 0 | I52: 0
A53: 35 | H53: 0 | I53: 0
A54: 36 | H54: 0 | I54: 0

Sheet Table 1A
B1: code | C1: cancerdate | D1: chronicdate | E1: acutedate | F1: name | H1: cancer25 | I1: acute25 | J1: cancer50 | K1: acute50 | L1: cancer100 | M1: acute100
C2: after 9/10/2010 | H2: 25 Meter Screening Emission Level | J2: 50 Meter Screening Emission Level | L2: 100 Meter Screening Emission Level
B3: Code | C3: Original Listing - Cancer | D3: Original Listing - Chronic | E3: Original Listing - Acute | F3: Toxic Air Contaminant | G3: CAS NO | H3: Cancer / Chronic (lbs/yr) | I3: Acute (lbs/hr) | J3: Cancer / Chronic (lbs/yr) | K3: Acute (lbs/hr) | L3: Cancer / Chronic (lbs/yr) | M3: Acute (lbs/hr)
B4: A1 | C4: 1990-12-07 | D4: 1998-09-08 | E4: 2010-09-10 | F4: Acetaldehyde | G4: 75-07-0 | H4: 11.4 | I4: 0.235 | J4: 29.9 | K4: 0.47 | L4: 89.2291821 | M4: 1.26
B5: A2 | C5: 1999-01-08 | F5: Acetamide | G5: 60-35-5 | H5: 1.631046146 | I5: N/A | J5: 4.276635516 | K5: N/A | L5: 12.74702601 | M5: N/A
B6: A3 | D6: 2001-06-15 | E6: 1999-08-13 | F6: Acrolein | G6: 107-02-8 | H6: 11.6 | I6: 0.00125 | J6: 30.3 | K6: 0.0025 | L6: 90.4 | M6: 0.00669
B7: A4 | C7: 1990-12-07 | F7: Acrylamide (or propenamide) | G7: 79-06-1 | H7: 0.02537182893 | I7: N/A | J7: 0.06652544136 | K7: N/A | L7: 0.1982870713 | M7: N/A
B8: A5 | E8: 1999-08-13 | F8: Acrylic acid | G8: 79-10-7 | H8: N/A | I8: 3 | J8: N/A | K8: 5.996402159 | L8: N/A | M8: 16.06425703
B9: A6 | C9: 1990-12-07 | D9: 2002-05-03 | F9: Acrylonitrile (or vinyl cyanide) | G9: 107-13-1 | H9: 0.1141732302 | I9: N/A | J9: 0.2993644861 | K9: N/A | L9: 0.892291821 | M9: N/A
B10: A7 | C10: 1999-01-08 | F10: Allyl chloride* | G10: 107-05-1 | H10: 5.436820485 | I10: N/A | J10: 14.25545172 | K10: N/A | L10: 42.49008671 | M10: N/A
B11: A8 | C11: 1999-01-08 | F11: Aminoanthraquinone, 2- | G11: 117-79-3 | H11: 3.459794854 | I11: N/A | J11: 9.071651094 | K11: N/A | L11: 27.03914609 | M11: N/A
B12: A9 | D12: 2000-08-18 | E12: 1999-08-13 | F12: Ammonia | G12: 7664-41-7 | H12: 6612.66325 | I12: 1.6 | J12: 17338.53489 | K12: 3.198081151 | L12: 51679.58656 | M12: 8.567603748
A13: hide | B13: A10 | F13: Ammonium sulfate* | G13: 7783-20-2 | H13: N/A | I13: N/A | J13: N/A | K13: N/A | L13: N/A | M13: N/A
B14: A11 | C14: 1999-01-08 | F14: Aniline | G14: 62-53-3 | H14: 20.03039126 | I14: N/A | J14: 52.52008528 | K14: N/A | L14: 156.5424247 | M14: N/A
A15: hide | B15: A12 | F15: Antimony trioxide* | G15: 1309-64-4 | H15: N/A | I15: N/A | J15: N/A | K15: N/A | L15: N/A | M15: N/A
B16: A13 | C16: 1990-12-07 | D16: 2001-06-15 | E16: 1999-08-13 | F16: Arsenic and arsenic compounds (inorganic) | G16: 7440-38-2 | H16: 0.00199 | I16: 0.0001 | J16: 0.005215628116 | K16: 0.000199880072 | L16: 0.01554580628 | M16: 0.0005354752343
A17: hide | B17: A14 | F17: Arsenic compounds (other than inorganic)* | H17: N/A | I17: N/A | J17: N/A | K17: N/A | L17: N/A | M17: N/A
B18: A15 | D18: 2010-09-10 | E18: 1999-08-13 | F18: Arsine | G18: 7784-42-1 | H18: 0.0124 | I18: 0.0001 | J18: 0.0325 | K18: 0.000199880072 | L18: 0.0968 | M18: 0.0005354752343
B19: A16 | C19: 1990-06-01 | F19: Asbestos | G19: 1332-21-4 | H19: 0.0005189692282 | I19: N/A | J19: 0.001360747664 | K19: N/A | L19: 0.004055871914 | M19: N/A
B20: B1 | C20: 1990-06-01 | D20: 2000-08-18 | E20: 1999-08-13 | F20: Benzene (including benzene from gasoline) | G20: 71-43-2 | H20: 1.141732302 | I20: 0.7386363636 | J20: 2.993644861 | K20: 1.476386895 | L20: 8.92291821 | M20: 3.955214799
B21: B2 | C21: 1990-12-07 | F21: Benzidine (and its salts) | G21: 92-87-5 | H21: 0.0002283464604 | I21: N/A | J21: 0.0005987289722 | K21: N/A | L21: 0.001784583642 | M21: N/A
B22: B3 | C22: 1998-09-08 | E22: 1999-08-13 | F22: Benzyl chloride | G22: 100-44-7 | H22: 0.6716072364 | I22: 0.12 | J22: 1.760967565 | K22: 0.2398560863 | L22: 5.248775418 | M22: 0.6425702811
B23: B4 | C23: 1990-12-07 | D23: 2002-05-03 | F23: Beryllium (and beryllium compounds) | G23: 7440-41-7 | H23: 0.01359205121 | I23: N/A | J23: 0.0356386293 | K23: N/A | L23: 0.1062252168 | M23: N/A
B24: B5 | C24: 1990-12-07 | F24: Bis(2-chloroethyl)ether (DCEE) | G24: 111-44-4 | H24: 0.04566929208 | I24: N/A | J24: 0.1197457944 | K24: N/A | L24: 0.3569167284 | M24: N/A
B25: B6 | C25: 1990-12-07 | F25: Bis(chloromethyl)ether | G25: 542-88-1 | H25: 0.002482026743 | I25: N/A | J25: 0.006507923611 | K25: N/A | L25: 0.01939764828 | M25: N/A
B26: B7 | C26: 1998-09-08 | F26: Bis(2-ethylhexyl)phthalate (DEHP) | G26: 117-81-7 | H26: 2.275148544 | I26: N/A | J26: 5.965484846 | K26: N/A | L26: 17.78084437 | M26: N/A
A27: hide | B27: B8 | F27: Bromine pentafluoride* | G27: 7789-30-2 | H27: N/A | I27: N/A | J27: N/A | K27: N/A | L27: N/A | M27: N/A
B28: B9 | C28: 1990-12-07 | D28: 2001-06-15 | F28: Butadiene, 1,3- | G28: 106-99-0 | H28: 0.190288717 | I28: N/A | J28: 0.4989408102 | K28: N/A | L28: 1.487153035 | M28: N/A
B29: C1 | C29: 1990-06-01 | D29: 2001-06-15 | F29: Cadmium and cadmium compounds | G29: 7440-43-9 | H29: 0.00761154868 | I29: N/A | J29: 0.01995763241 | K29: N/A | L29: 0.0594861214 | M29: N/A
B30: C2 | D30: 2002-05-03 | E30: 1999-08-13 | F30: Carbon disulfide | G30: 75-15-0 | H30: 26450.653 | I30: 3.522727273 | J30: 69354.13958 | K30: 7.041229808 | L30: 206718.3463 | M30: 18.86333212
B31: C3 | C31: 1990-06-01 | D31: 2001-06-15 | E31: 1999-08-13 | F31: Carbon tetrachloride (Tetrachloromethane) | G31: 56-23-5 | H31: 0.761154868 | I31: 1.079545455 | J31: 1.995763241 | K31: 2.157796231 | L31: 5.94861214 | M31: 5.780698552
B32: C4 | D32: 2000-08-18 | E32: 1999-08-13 | F32: Chlorine | G32: 7782-50-5 | H32: 6.61266325 | I32: 0.105 | J32: 17.33853489 | K32: 0.2098740756 | L32: 51.67958656 | M32: 0.562248996
B33: C5 | D33: 2001-06-15 | F33: Chlorine dioxide | G33: 10049-04-4 | H33: 19.83798975 | I33: N/A | J33: 52.01560468 | K33: N/A | L33: 155.0387597 | M33: N/A
A34: hide | B34: C6 | F34: Chloroacetophenone, 2-* | G34: 532-27-4 | H34: N/A | I34: N/A | J34: N/A | K34: N/A | L34: N/A | M34: N/A
B35: C7 | D35: 2001-06-15 | F35: Chlorobenzene | G35: 108-90-7 | H35: 33063.31625 | I35: N/A | J35: 86692.67447 | K35: N/A | L35: 258397.9328 | M35: N/A
F36: Chlorofluorocarbons
A37: hide | B37: C8 | F37: Dichlorodifluoromethane (CFC-12)* | G37: 75-71-8 | H37: N/A | I37: N/A | J37: N/A | K37: N/A | L37: N/A | M37: N/A
A38: hide | B38: C9 | F38: Trichlorofluoromethane (CFC-11)* | G38: 75-69-4 | H38: N/A | I38: N/A | J38: N/A | K38: N/A | L38: N/A | M38: N/A
A39: hide | B39: C10 | F39: Trichlorotrifluoroethane (CFC-113)* | G39: 26523-64-8 | H39: N/A | I39: N/A | J39: N/A | K39: N/A | L39: N/A | M39: N/A
A40: hide | B40: C11 | F40: Chlorodifluoromethane (HCFC-22)* | G40: 75-45-6 | H40: N/A | I40: N/A | J40: N/A | K40: N/A | L40: N/A | M40: N/A
B41: C12 | C41: 1999-01-08 | F41: Chloro-o-phenylenediamine, 4- | G41: 95-83-0 | H41: 7.135826887 | I41: N/A | J41: 18.71028038 | K41: N/A | L41: 55.76823881 | M41: N/A
B42: C13 | C42: 1999-01-08 | F42: Chloro-o-toluidine, p- | G42: 95-69-2 | H42: 0.4228638155 | I42: N/A | J42: 1.108757356 | K42: N/A | L42: 3.304784522 | M42: N/A
B43: C14 | C43: 1990-12-07 | D43: 2000-08-18 | E43: 1999-08-13 | F43: Chloroform(trichloromethane) | G43: 67-66-3 | H43: 6.009117379 | I43: 0.08522727273 | J43: 15.75602558 | K43: 0.1703523341 | L43: 46.96272742 | M43: 0.4563709383
A44: hide | C44: 1998-09-08 | F44: Chlorophenols | G44: 96000
A45: hide | B45: C15 | F45: Chlorophenol, 2-* | G45: 95-57-8 | H45: N/A | I45: N/A | J45: N/A | K45: N/A | L45: N/A | M45: N/A
B46: C16 | C46: 1998-09-08 | F46: Pentachlorophenol | G46: 87-86-5 | H46: 6.342957233 | I46: N/A | J46: 16.63136034 | K46: N/A | L46: 49.57176783 | M46: N/A
B47: C17 | C47: 1990-12-07 | F47: Trichlorophenol, 2,4,6- | G47: 88-06-2 | H47: 1.631046146 | I47: N/A | J47: 4.276635516 | K47: N/A | L47: 12.74702601 | M47: N/A
B48: C18 | D48: 2002-05-03 | E48: 1999-08-13 | F48: Chloropicrin | G48: 76-06-2 | H48: 13.2253265 | I48: 0.0145 | J48: 34.67706979 | K48: 0.02898261043 | L48: 103.3591731 | M48: 0.07764390897
A49: hide | B49: C19 | F49: Chloroprene* | G49: 126-99-8 | H49: N/A | I49: N/A | J49: N/A | K49: N/A | L49: N/A | M49: N/A
B50: C20 | C50: 1990-06-01 | D50: 2001-06-15 | F50: Chromium, hexavalent | G50: 18540-29-9 | H50: 0.0002238690788 | I50: N/A | J50: 0.0005869891884 | K50: N/A | L50: 0.001749591806 | M50: N/A
A51: hide | B51: C21 | F51: Barium chromate* | G51: 10294-40-3 | H51: N/A | I51: N/A | J51: N/A | K51: N/A | L51: N/A | M51: N/A
A52: hide | B52: C22 | F52: Calcium chromate* | G52: 10060-08-9 | H52: N/A | I52: N/A | J52: N/A | K52: N/A | L52: N/A | M52: N/A
B53: C23 | F53: Lead chromate1 | G53: 7758-97-6 | H53: 0.0002238690788 | I53: N/A | J53: 0.0005869891884 | K53: N/A | L53: 0.001749591806 | M53: N/A
A54: hide | B54: C24 | F54: Sodium dichromate* | G54: 10588-01-9 | H54: N/A | I54: N/A | J54: N/A | K54: N/A | L54: N/A | M54: N/A
A55: hide | B55: C25 | F55: Strontium chromate* | G55: 778-06-2 | H55: N/A | I55: N/A | J55: N/A | K55: N/A | L55: N/A | M55: N/A
B56: C26 | D56: 2001-06-15 | F56: Chromic trioxide (as chromic acid mist) | G56: 1333-82-0 | H56: 0.0002238690788 | I56: N/A | J56: 0.0005869891884 | K56: N/A | L56: 0.001749591806 | M56: N/A
A57: hide | B57: C27 | F57: Cobalt and cobalt compounds* | G57: 7440-48-4 | H57: N/A | I57: N/A | J57: N/A | K57: N/A | L57: N/A | M57: N/A
B58: C28 | E58: 1999-08-13 | F58: Copper and copper compounds | G58: 7440-50-8 | H58: N/A | I58: 0.05 | J58: N/A | K58: 0.09994003598 | L58: N/A | M58: 0.2677376171
B59: C29 | C59: 1999-01-08 | F59: Cresidine, p- | G59: 120-71-8 | H59: 0.761154868 | I59: N/A | J59: 1.995763241 | K59: N/A | L59: 5.94861214 | M59: N/A
B60: C30 | D60: 2001-06-15 | F60: Cresol mixtures | G60: 1319-77-3 | H60: 19837.98975 | I60: N/A | J60: 52015.60468 | K60: N/A | L60: 155038.7597 | M60: N/A
B61: C31 | D61: 2001-06-15 | F61: Cresol, m- | G61: 108-39-4 | H61: 19837.98975 | I61: N/A | J61: 52015.60468 | K61: N/A | L61: 155038.7597 | M61: N/A
B62: C32 | D62: 2001-06-15 | F62: Cresol, o- | G62: 95-48-7 | H62: 19837.98975 | I62: N/A | J62: 52015.60468 | K62: N/A | L62: 155038.7597 | M62: N/A
B63: C33 | D63: 2001-06-15 | F63: Cresol, p- | G63: 106-44-5 | H63: 19837.98975 | I63: N/A | J63: 52015.60468 | K63: N/A | L63: 155038.7597 | M63: N/A
B64: C34 | C64: 1999-01-08 | F64: Cupferron | G64: 135-20-6 | H64: 0.5189692282 | I64: N/A | J64: 1.360747664 | K64: N/A | L64: 4.055871914 | M64: N/A
A65: hide | B65: C35 | F65: Cyanide Compounds (inorganic) | G65: 57-12-5 | H65: N/A | I65: N/A | J65: N/A | K65: N/A | L65: N/A | M65: N/A
B66: C36 | D66: 2000-08-18 | E66: 1999-08-13 | F66: Hydrogen cyanide (Hydrocyanic acid) | G66: 74-90-8 | H66: 297.5698463 | I66: 0.17 | J66: 780.2340702 | K66: 0.3397961223 | L66: 2325.581395 | M66: 0.9103078983
B67: D1 | C67: 1999-01-08 | F67: Diaminoanisole, 2,4- (sulfate) | G67: 615-05-4 | H67: 4.964053487 | I67: N/A | J67: 13.01584722 | K67: N/A | L67: 38.79529656 | M67: N/A
B68: D2 | C68: 1999-01-08 | F68: Diaminotoluene, 2,4- | G68: 95-80-7 | H68: 0.02854330755 | I68: N/A | J68: 0.07484112153 | K68: N/A | L68: 0.2230729552 | M68: N/A
B69: D3 | C69: 1998-09-08 | F69: Dibromo-3-chloropropane, 1,2- (DBCP) | G69: 96-12-8 | H69: 0.01631046146 | I69: N/A | J69: 0.04276635516 | K69: N/A | L69: 0.1274702601 | M69: N/A
B70: D4 | C70: 1998-09-08 | D70: 2001-06-15 | F70: Dichlorobenzene, p- (or 1,4-dichlorobenzene) | G70: 106-46-7 | H70: 2.854330755 | I70: N/A | J70: 7.484112153 | K70: N/A | L70: 22.30729552 | M70: N/A
B71: D5 | C71: 1990-12-07 | F71: Dichlorobenzidine, 3,3- | G71: 91-94-1 | H71: 0.09514435849 | I71: N/A | J71: 0.2494704051 | K71: N/A | L71: 0.7435765175 | M71: N/A
B72: D6 | C72: 1999-01-08 | F72: Dichloroethane, 1,1- | G72: 75-34-3 | H72: 20.03039126 | I72: N/A | J72: 52.52008528 | K72: N/A | L72: 156.5424247 | M72: N/A
B73: D7 | D73: 2001-06-15 | F73: Dichloroethylene, 1,1- (or Vinylidene Chloride) | G73: 75-35-4 | H73: 2314.432138 | I73: N/A | J73: 6068.487213 | K73: N/A | L73: 18087.8553 | M73: N/A
B74: D8 | D74: 2002-05-03 | F74: Diethanolamine | G74: 111-42-2 | H74: 99.18994875 | I74: N/A | J74: 260.0780234 | K74: N/A | L74: 775.1937984 | M74: N/A
B75: D9 | C75: 1999-01-08 | F75: Dimethylaminoazobenzene, p- | G75: 60-11-7 | H75: 0.02482026743 | I75: N/A | J75: 0.06507923611 | K75: N/A | L75: 0.1939764828 | M75: N/A
B76: D10 | D76: 2001-06-15 | F76: Dimethylformamide (N,N-) | G76: 68-12-2 | H76: 2645.0653 | I76: N/A | J76: 6935.413958 | K76: N/A | L76: 20671.83463 | M76: N/A
B77: D11 | C77: 1990-12-07 | F77: Dinitrotoluene, 2,4- | G77: 121-14-2 | H77: 0.3683007426 | I77: N/A | J77: 0.9656918907 | K77: N/A | L77: 2.878360713 | M77: N/A
B78: D12 | C78: 1990-12-07 | D78: 2000-08-20 | E78: 1999-08-13 | F78: Dioxane, 1,4- | G78: 123-91-1 | H78: 4.228638155 | I78: 1.5 | J78: 11.08757356 | K78: 2.998201079 | L78: 33.04784522 | M78: 8.032128514
B79: D13 | C79: 1990-12-07 | F79: Diphenylhydrazine (or hydrazobenzene) | G79: 12-2-66-7 | H79: 0.1304836916 | I79: N/A | J79: 0.3421308413 | K79: N/A | L79: 1.019762081 | M79: N/A
B80: D14 | C80: 2008-03-07 | D80: 2008-03-07 | F80: Diesel PM from diesel-fueled internal combustion engine | G80: 9901 | H80: 0.12 | I80: N/A | J80: 0.37 | K80: N/A | L80: 1.39 | M80: N/A
B81: E1 | C81: 1990-12-07 | D81: 2001-06-15 | E81: 1999-08-13 | F81: Epichlorohydrin(1-Chloro-2,3-epoxypropane) | G81: 106-89-8 | H81: 1.427165377 | I81: 0.65 | J81: 3.742056076 | K81: 1.299220468 | L81: 11.15364776 | M81: 3.480589023
B82: E2 | D82: 2001-06-15 | F82: Epoxybutane, 1,2- | G82: 106-88-7 | H82: 661.266325 | I82: N/A | J82: 1733.853489 | K82: N/A | L82: 5167.958656 | M82: N/A
A83: hide | B83: E3 | F83: Ethyl acrylate* | G83: 140-88-5 | H83: N/A | I83: N/A | J83: N/A | K83: N/A | L83: N/A | M83: N/A
B84: E4 | C84: 2009-06-05 | D84: 2000-08-18 | F84: Ethyl benzene | G84: 100-41-4 | H84: 13.1 | I84: N/A | J84: 34.4 | K84: N/A | L84: 102 | M84: N/A
B85: E5 | D85: 2000-08-18 | F85: Ethyl chloride | G85: 75-00-3 | H85: 991899.4875 | I85: N/A | J85: 2600780.234 | K85: N/A | L85: 7751937.984 | M85: N/A
A86: hide | B86: E6 | F86: Ethylene* | G86: 74-85-1 | H86: N/A | I86: N/A | J86: N/A | K86: N/A | L86: N/A | M86: N/A
B87: E7 | C87: 1990-06-01 | D87: 2002-05-03 | F87: Ethylene dibromide(1,2-Dibromoethane) | G87: 106-93-4 | H87: 0.4566929208 | I87: N/A | J87: 1.197457944 | K87: N/A | L87: 3.569167284 | M87: N/A
B88: E8 | C88: 1990-06-01 | D88: 2001-06-15 | F88: Ethylene dichloride (or 1,2-dichloroethane) | G88: 107-06-2 | H88: 1.585739308 | I88: N/A | J88: 4.157840085 | K88: N/A | L88: 12.39294196 | M88: N/A
B89: E9 | C89: 1990-06-01 | D89: 2001-06-15 | F89: Ethylene oxide (1,2 Epoxyethane) | G89: 75-21-8 | H89: 0.3683007426 | I89: N/A | J89: 0.9656918907 | K89: N/A | L89: 2.878360713 | M89: N/A
B90: E10 | C90: 1999-01-08 | F90: Ethylene thiourea | G90: 96-45-7 | H90: 2.537182893 | I90: N/A | J90: 6.652544136 | K90: N/A | L90: 19.82870713 | M90: N/A
B91: F1 | D91: 2010-09-10 | F91: Fluorides and fluoride compounds* | G91: 1101 | H91: 430 | I91: N/A | J91: 1130 | K91: N/A | L91: 3360 | M91: N/A
B92: F2 | D92: 2010-09-10 | E92: 1999-08-13 | F92: Hydrogen fluoride (hydrofluoric acid) | G92: 7664-39-3 | H92: 463 | I92: 0.12 | J92: 1210 | K92: 0.2398560863 | L92: 3620 | M92: 0.6425702811
B93: F3 | C93: 1990-12-07 | D93: 2000-08-18 | E93: 1999-08-13 | F93: Formaldehyde | G93: 50-00-0 | H93: 5.44 | I93: 0.0275 | J93: 14.25545172 | K93: 0.055 | L93: 42.49008671 | M93: 0.147
A94: hide | B94: G1 | F94: Gasoline vapors* | H94: N/A | I94: N/A | J94: N/A | K94: N/A | L94: N/A | M94: N/A
B95: G2 | D95: 2001-06-15 | F95: Glutaraldehyde | G95: 111-30-8 | H95: 2.6450653 | I95: N/A | J95: 6.935413958 | K95: N/A | L95: 20.67183463 | M95: N/A
A96: hide | F96: Glycol ethers (and their acetates) | G96: 111-46-6 | H96: N/A | I96: N/A | J96: N/A | K96: N/A | L96: N/A | M96: N/A
B97: G3 | D97: 2000-08-18 | F97: Ethylene glycol | G97: 107-21-1 | H97: 13225.3265 | I97: N/A | J97: 34677.06979 | K97: N/A | L97: 103359.1731 | M97: N/A
B98: G4 | D98: 2000-08-18 | E98: 1999-02-10 | F98: Ethylene glycol ethyl ether (EGEE) | G98: 110-80-5 | H98: 2314.432138 | I98: 0.2102272727 | J98: 6068.487213 | K98: 0.420202424 | L98: 18087.8553 | M98: 1.125714981
B99: G5 | E99: 1999-08-13 | F99: Ethylene glycol monobutyl ether | G99: 111-76-2 | H99: N/A | I99: 7 | J99: N/A | K99: 13.99160504 | L99: N/A | M99: 37.4832664
B100: G6 | D100: 2000-08-18 | E100: 1999-08-13 | F100: Ethylene glycol monoethyl ether acetate (EGEEA) | G100: 111-15-9 | H100: 9918.994875 | I100: 0.07954545455 | J100: 26007.80234 | K100: 0.1589955118 | L100: 77519.37984 | M100: 0.4259462091
B101: G7 | D101: 2000-08-18 | E101: 1999-08-13 | F101: Ethylene glycol monomethyl ether (EGME) | G101: 109-86-4 | H101: 1983.798975 | I101: 0.05284090909 | J101: 5201.560468 | K101: 0.1056184471 | L101: 15503.87597 | M101: 0.2829499817
B102: G8 | D102: 2000-08-18 | F102: Ethylene glycol monomethyl ether acetate | G102: 110-49-6 | H102: 2975.698463 | I102: N/A | J102: 7802.340702 | K102: N/A | L102: 23255.81395 | M102: N/A
A103: hide | B103: H1 | F103: Hexachlorobutadiene* | G103: 87-68-3 | H103: N/A | I103: N/A | J103: N/A | K103: N/A | L103: N/A | M103: N/A
A104: hide | B104: H2 | F104: Hexachlorocyclopentadiene* | G104: 77-47-4 | H104: N/A | I104: N/A | J104: N/A | K104: N/A | L104: N/A | M104: N/A
B105: H3 | C105: 1990-12-07 | F105: Hexachlorobenzene | G105: 118-74-1 | H105: 0.06342957233 | I105: N/A | J105: 0.1663136034 | K105: N/A | L105: 0.4957176783 | M105: N/A
A106: hide | C106: 1990-12-07 | F106: Hexachlorocyclohexanes: | H106: N/A | I106: N/A | J106: N/A | K106: N/A | L106: N/A | M106: N/A
B107: H4 | C107: 1990-12-07 | F107: Hexachlorocyclohexane (technical grade) | G107: 608-73-1 | H107: 0.004757217925 | I107: N/A | J107: 0.01247352025 | K107: N/A | L107: 0.03717882587 | M107: N/A
B108: H5 | C108: 1998-09-08 | F108: Hexachlorocyclohexane, gamma- (lindane) | G108: 58-89-9 | H108: 0.01731783902 | I108: N/A | J108: 0.04540771922 | K108: N/A | L108: 0.1353431631 | M108: N/A
A109: hide | B109: H6 | F109: Hexachloroethane* | G109: 67-72-1 | H109: N/A | I109: N/A | J109: N/A | K109: N/A | L109: N/A | M109: N/A
A110: hide | B110: H7 | F110: Hexamethylene-1,6-diisocyanate* | G110: 822-06-0 | H110: N/A | I110: N/A | J110: N/A | K110: N/A | L110: N/A | M110: N/A
B111: H8 | D111: 2000-08-18 | F111: Hexane (n-) | G111: 110-54-3 | H111: 231443.2138 | I111: N/A | J111: 606848.7213 | K111: N/A | L111: 1808785.53 | M111: N/A
B112: H9 | C112: 1998-09-08 | D112: 2001-06-15 | F112: Hydrazine | G112: 302-01-2 | H112: 0.006716072364 | I112: N/A | J112: 0.01760967565 | K112: N/A | L112: 0.05248775418 | M112: N/A
A113: hide | B113: H10 | F113: Hydrogen bromide* | G113: 10035-10-6 | H113: N/A | I113: N/A | J113: N/A | K113: N/A | L113: N/A | M113: N/A
B114: H11 | D114: 2000-08-18 | E114: 1999-08-13 | F114: Hydrogen chloride (hydrochloric acid) | G114: 7647-01-0 | H114: 297.5698463 | I114: 1.05 | J114: 780.2340702 | K114: 2.098740756 | L114: 2325.581395 | M114: 5.62248996
B115: H12 | D115: 2000-08-18 | E115: 1999-02-10 | F115: Hydrogen sulfide | G115: 7783-06-4 | H115: 330.6331625 | I115: 0.021 | J115: 866.9267447 | K115: 0.04197481511 | L115: 2583.979328 | M115: 0.1124497992
B116: I1 | D116: 2002-05-03 | F116: Isophorone | G116: 78-59-1 | H116: 66126.6325 | I116: N/A | J116: 173385.3489 | K116: N/A | L116: 516795.8656 | M116: N/A
B117: I2 | D117: 2000-08-18 | E117: 1999-08-13 | F117: Isopropyl alcohol | G117: 67-63-0 | H117: 231443.2138 | I117: 1.6 | J117: 606848.7213 | K117: 3.198081151 | L117: 1808785.53 | M117: 8.567603748
B118: L1 | C118: 1998-09-08 | F118: Lead and lead compounds (inorganic, including elemental lead), including but not limited to: | G118: 7439-92-1 | H118: 0.648407689 | I118: N/A | J118: 1.700137889 | K118: N/A | L118: 5.06746526 | M118: N/A
B119: L2 | C119: 1998-09-08 | F119: Lead compounds, inorganic | G119: 1128 | H119: 0.648407689 | I119: N/A | J119: 1.700137889 | K119: N/A | L119: 5.06746526 | M119: N/A
A120: hide | B120: L3 | C120: 1998-09-08 | F120: Lead compounds (other than inorganic) | G120: 1129 | H120: N/A | I120: N/A | J120: N/A | K120: N/A | L120: N/A | M120: N/A
B121: L4 | C121: 1998-09-08 | F121: Lead acetate | G121: 301-04-2 | H121: 0.6506646452 | I121: N/A | J121: 1.706055673 | K121: N/A | L121: 5.085103926 | M121: N/A
B122: L5 | C122: 1998-09-08 | F122: Lead phosphate | G122: 7446-27-7 | H122: 0.6483481114 | I122: N/A | J122: 1.699981676 | K122: N/A | L122: 5.066999646 | M122: N/A
B123: L6 | C123: 1998-09-08 | F123: Lead subacetate | G123: 1335-32-6 | H123: 0.647791377 | I123: N/A | J123: 1.698521907 | K123: N/A | L123: 5.06264863 | M123: N/A
B124: M1 | D124: 2002-05-03 | F124: Maleic anhydride | G124: 108-31-6 | H124: 23.14432138 | I124: N/A | J124: 60.68487213 | K124: N/A | L124: 180.878553 | M124: N/A
B125: M2 | D125: 2000-08-18 | F125: Manganese and manganese compounds | G125: 7439-96-5 | H125: 2.98 | I125: N/A | J125: 7.8 | K125: N/A | L125: 23.3 | M125: N/A
B126: M3 | D126: 2000-08-18 | E126: 1999-08-13 | F126: Mercury and mercury compounds (inorganic) | G126: 7439-97-6 | H126: 0.149 | I126: 0.0003 | J126: 0.391 | K126: 0.0006 | L126: 1.16 | M126: 0.00161
B127: M4 | D127: 2000-08-18 | E127: 1999-08-13 | F127: Mercuric chloride | G127: 7487-94-7 | H127: 0.149 | I127: 0.0003 | J127: 0.391 | K127: 0.0006 | L127: 1.16 | M127: 0.00161
B128: M5 | F128: Methyl mercury | G128: 593-74-8 | H128: 33.06331625 | I128: N/A | J128: 86.69267447 | K128: N/A | L128: 258.3979328 | M128: N/A
B129: M6 | D129: 2000-08-18 | E129: 1999-08-13 | F129: Methanol (methyl alcohol) | G129: 67-56-1 | H129: 132253.265 | I129: 14 | J129: 346770.6979 | K129: 27.98321007 | L129: 1033591.731 | M129: 74.9665328
B130: M7 | D130: 2000-08-18 | E130: 1999-08-13 | F130: Methyl bromide (Bromomethane) | G130: 74-83-9 | H130: 165.3165813 | I130: 1.95 | J130: 433.4633723 | K130: 3.897661403 | L130: 1291.989664 | M130: 10.44176707
B131: M8 | D131: 2000-08-18 | E131: 1999-08-13 | F131: Methyl chloroform (1,1,1 Trichloroethane (TCA) ) | G131: 71-55-6 | H131: 33063.31625 | I131: 34 | J131: 86692.67447 | K131: 67.95922447 | L131: 258397.9328 | M131: 182.0615797
B132: M9 | E132: 1999-08-13 | F132: Methyl ethyl ketone | G132: 78-93-3 | H132: N/A | I132: 6.5 | J132: N/A | K132: 12.99220468 | L132: N/A | M132: 34.80589023
A133: hide | B133: M10 | F133: Methyl methacrylate* | G133: 80-62-6 | H133: N/A | I133: N/A | J133: N/A | K133: N/A | L133: N/A | M133: N/A
B134: M11 | D134: 2002-05-03 | F134: Methyl isocyanate | G134: 624-83-9 | H134: 33.06331625 | I134: N/A | J134: 86.69267447 | K134: N/A | L134: 258.3979328 | M134: N/A
B135: M12 | C135: 1999-01-08 | F135: Methylene bis(2-chloroaniline), 4,4- (MOCA) | G135: 101-14-4 | H135: 0.0761154868 | I135: N/A | J135: 0.1995763241 | K135: N/A | L135: 0.594861214 | M135: N/A
B136: M13 | C136: 1990-06-01 | D136: 2000-08-18 | E136: 1999-08-13 | F136: Methylene chloride(Dichloromethane) | G136: 75-09-2 | H136: 32.62092291 | I136: 7 | J136: 85.53271032 | K136: 13.99160504 | L136: 254.9405203 | M136: 37.4832664
B137: M14 | C137: 1998-09-08 | D137: 2002-05-03 | F137: Methylene dianiline, 4,4'- (and its dichloride) | G137: 101-77-9 | H137: 0.01209277534 | I137: N/A | J137: 0.03170749805 | K137: N/A | L137: 0.09450800776 | M137: N/A
B138: M15 | D138: 2001-06-15 | F138: Methylene phenyl diisocyanate | G138: 101-68-8 | H138: 23.14432138 | I138: N/A | J138: 60.68487213 | K138: N/A | L138: 180.878553 | M138: N/A
B139: M16 | C139: 2003-05-02 | D139: 2000-08-18 | F139: Methyl tertiary-butyl ether | G139: 1634-04-4 | H139: 63.42957233 | I139: N/A | J139: 166.3136034 | K139: N/A | L139: 495.7176783 | M139: N/A
B140: M17 | C140: 1999-01-08 | F140: Michler's ketone | G140: 90-94-8 | H140: 0.13275957 | I140: N/A | J140: 0.3480982397 | K140: N/A | L140: 1.037548629 | M140: N/A
A141: hide | B141: M18 | F141: Mineral fibers(other than man-made)* | G141: 1135 | H141: N/A | I141: N/A | J141: N/A | K141: N/A | L141: N/A | M141: N/A
B142: N1 | C142: 1999-03-12 | D142: 2000-08-18 | E142: 1999-08-13 | F142: Nickel & nickel compounds (except nickel oxide): | G142: 7440-02-0 | H142: 0.125 | I142: 0.0001 | J142: 0.32875 | K142: 0.0002 | L142: 0.97875 | M142: =I142*5.35 -> 0.000535
B143: N2 | C143: 1999-03-12 | D143: 2000-08-18 | E143: 1999-08-13 | F143: Nickel acetate | G143: 373-02-4 | H143: 0.125 | I143: 0.0001 | J143: 0.32875 | K143: 0.0002 | L143: 0.97875 | M143: =I143*5.35 -> 0.000535
B144: N3 | C144: 1999-03-12 | D144: 2000-08-18 | E144: 1999-08-13 | F144: Nickel carbonate | G144: 3333-67-3 | H144: 0.125 | I144: 0.0001 | J144: 0.32875 | K144: 0.0002 | L144: 0.97875 | M144: 0.000535
B145: N4 | C145: 1999-03-12 | D145: 2000-08-18 | E145: 1999-08-13 | F145: Nickel carbonyl | G145: 13463-39-3 | H145: 0.125 | I145: 0.0001 | J145: 0.32875 | K145: 0.0002 | L145: 0.97875 | M145: 0.000535
B146: N5 | C146: 1999-03-12 | D146: 2000-08-18 | E146: 1999-08-13 | F146: Nickel hydroxide | G146: 12054-48-7 | H146: 0.125 | I146: 0.0001 | J146: 0.32875 | K146: 0.0002 | L146: 0.97875 | M146: 0.000535
B147: N6 | C147: 1999-03-12 | D147: 2000-08-18 | E147: 1999-08-13 | F147: Nickelocene | G147: 1271-28-9 | H147: 0.125 | I147: 0.0001 | J147: 0.32875 | K147: 0.0002 | L147: 0.97875 | M147: 0.000535
B148: N7 | C148: 1999-03-12 | D148: 2000-08-18 | E148: 1999-08-13 | F148: Nickel oxide | G148: 1313-99-1 | H148: 0.125 | I148: 0.0001 | J148: 0.32875 | K148: 0.0002 | L148: 0.97875 | M148: 0.000535
B149: N8 | C149: 1990-12-07 | D149: 2000-08-18 | E149: 1999-08-13 | F149: Nickel refinery dust (from the pyrometallurgical process) | G149: 1146 | H149: 0.125 | I149: 0.0001 | J149: 0.32875 | K149: 0.0002 | L149: 0.97875 | M149: 0.000535
B150: N9 | C150: 1990-12-07 | D150: 2000-08-18 | E150: 1999-08-13 | F150: Nickel subsulfide | G150: 120-35-72-2 | H150: 0.125 | I150: 0.0001 | J150: 0.32875 | K150: 0.0002 | L150: 0.97875 | M150: 0.000535
B151: N10 | E151: 1999-08-13 | F151: Nitric acid | G151: 7697-37-2 | H151: N/A | I151: 0.043 | J151: N/A | K151: 0.08594843094 | L151: N/A | M151: 0.2302543507
A152: hide | B152: N11 | F152: Nitrobenzene* | G152: 98-95-3 | H152: N/A | I152: N/A | J152: N/A | K152: N/A | L152: N/A | M152: N/A
A153: hide | B153: N12 | F153: Nitropropane, 2-* | G153: 79-46-9 | H153: N/A | I153: N/A | J153: N/A | K153: N/A | L153: N/A | M153: N/A
C154: 1990-12-07 | F154: Nitroso- compounds:
B155: N13 | C155: 1990-12-07 | F155: Nitroso-n-ethylurea, n- | G155: 759-73-9 | H155: 0.004228638155 | I155: N/A | J155: 0.01108757356 | K155: N/A | L155: 0.03304784522 | M155: N/A
B156: N14 | C156: 1990-12-07 | F156: Nitroso-n-methylurea, n- | G156: 684-93-5 | H156: 0.0009594389092 | I156: N/A | J156: 0.00251566795 | K156: N/A | L156: 0.007498250597 | M156: N/A
B157: N15 | C157: 1990-12-07 | F157: Nitrosodi-n-butylamine, n- | G157: 924-16-3 | H157: 0.01037938456 | I157: N/A | J157: 0.02721495328 | K157: N/A | L157: 0.08111743827 | M157: N/A
B158: N16 | C158: 1990-12-07 | F158: Nitrosodiethylamine, n- | G158: 55-18-5 | H158: 0.003171478616 | I158: N/A | J158: 0.00831568017 | K158: N/A | L158: 0.02478588392 | M158: N/A
B159: N17 | C159: 1990-12-07 | F159: Nitrosodimethylamine, n- | G159: 62-75-9 | H159: 0.007135826887 | I159: N/A | J159: 0.01871028038 | K159: N/A | L159: 0.05576823881 | M159: N/A
B160: N18 | C160: 1990-12-07 | F160: Nitrosodiphenylamine, n- | G160: 86-30-6 | H160: 12.68591447 | I160: N/A | J160: 33.26272068 | K160: N/A | L160: 99.14353566 | M160: N/A
B161: N19 | C161: 1998-09-08 | F161: Nitrosodiphenylamine, p- | G161: 156-10-5 | H161: 5.189692282 | I161: N/A | J161: 13.60747664 | K161: N/A | L161: 40.55871914 | M161: N/A
B162: N20 | C162: 1998-09-08 | F162: Nitrosodi-n-propylamine, n- | G162: 621-64-7 | H162: 0.01631046146 | I162: N/A | J162: 0.04276635516 | K162: N/A | L162: 0.1274702601 | M162: N/A
B163: N21 | C163: 1998-09-08 | F163: Nitrosomethylethylamine, n- | G163: 10595-95-6 | H163: 0.005189692282 | I163: N/A | J163: 0.01360747664 | K163: N/A | L163: 0.04055871914 | M163: N/A
B164: N22 | C164: 1999-01-08 | F164: Nitrosomorpholine, n- | G164: 59-89-2 | H164: 0.01704078063 | I164: N/A | J164: 0.04468126658 | K164: N/A | L164: 0.1331778837 | M164: N/A
B165: N23 | C165: 1999-01-08 | F165: Nitrosopiperidine, n- | G165: 100-75-4 | H165: 0.01214608832 | I165: N/A | J165: 0.03184728576 | K165: N/A | L165: 0.09492466181 | M165: N/A
B166: N24 | C166: 1990-12-07 | F166: Nitrosopyrrolidine, n- | G166: 930-55-2 | H166: 0.05436820485 | I166: N/A | J166: 0.1425545172 | K166: N/A | L166: 0.4249008671 | M166: N/A
B167: P1 | C167: 1999-01-08 | F167: Paraffins, chlorinated (average chain length, c12; approx. 60% Cl by weight) | G167: 108171-26-2 | H167: 1.282845283 | I167: N/A | J167: 3.363645911 | K167: N/A | L167: 10.0257508 | M167: N/A
B168: P2 | C168: 1998-09-08 | D168: 1998-09-08 | E168: 1999-08-13 | F168: Perchloroethylene (or tetrachloroethylene) | G168: 127-18-4 | H168: 5.436820485 | I168: 10 | J168: 14.25545172 | K168: 19.9880072 | L168: 42.49008671 | M168: 53.54752343
B169: P3 | D169: 2000-08-18 | E169: 1999-08-13 | F169: Phenol | G169: 108-95-2 | H169: 6612.66325 | I169: 2.9 | J169: 17338.53489 | K169: 5.796522087 | L169: 51679.58656 | M169: 15.52878179
B170: P4 | E170: 1999-08-13 | F170: Phosgene | G170: 75-44-5 | H170: N/A | I170: 0.002 | J170: N/A | K170: 0.003997601439 | L170: N/A | M170: 0.01070950469
A171: hide | B171: P5 | F171: Phosphorus and phosphorus compounds* | G171: 7723-14-0 | H171: N/A | I171: N/A | J171: N/A | K171: N/A | L171: N/A | M171: N/A
B172: P6 | D172: 2003-02-07 | F172: Phosphine | G172: 7803-51-2 | H172: 26.450653 | I172: N/A | J172: 69.35413958 | K172: N/A | L172: 206.7183463 | M172: N/A
B173: P7 | D173: 2000-08-18 | F173: Phosphoric acid | G173: 7664-38-2 | H173: 231.4432138 | I173: N/A | J173: 606.8487213 | K173: N/A | L173: 1808.78553 | M173: N/A
B174: P8 | D174: 2001-06-15 | F174: Phthalic anhydride | G174: 85-44-9 | H174: 661.266325 | I174: N/A | J174: 1733.853489 | K174: N/A | L174: 5167.958656 | M174: N/A
B175: P9 | C175: 1998-09-08 | F175: PolyCyclic Aromatic Hydrocarbon (PAHs) | G175: 1151 | H175: 0.0009837190243 | I175: N/A | J175: 0.002579330896 | K175: N/A | L175: 0.007688005656 | M175: N/A
B176: P10 | C176: 1990-12-07 | F176: Benz[a]anthracene | G176: 56-55-3 | H176: 0.009837190243 | I176: N/A | J176: 0.02579330896 | K176: N/A | L176: 0.07688005656 | M176: N/A
B177: P11 | C177: 1990-12-07 | F177: Benzo[a]pyrene | G177: 50-32-8 | H177: 0.0009837190243 | I177: N/A | J177: 0.002579330896 | K177: N/A | L177: 0.007688005656 | M177: N/A
B178: P12 | C178: 1990-12-07 | F178: Benzo[b]fluoranthene | G178: 205-99-2 | H178: 0.009837190243 | I178: N/A | J178: 0.02579330896 | K178: N/A | L178: 0.07688005656 | M178: N/A
B179: P13 | C179: 1999-01-08 | F179: Benzo[j]fluoranthene | G179: 205-82-3 | H179: 0.009837190243 | I179: N/A | J179: 0.02579330896 | K179: N/A | L179: 0.07688005656 | M179: N/A
B180: P14 | C180: 1990-12-07 | F180: Benzo[k]fluoranthene | G180: 207-08-9 | H180: 0.009837190243 | I180: N/A | J180: 0.02579330896 | K180: N/A | L180: 0.07688005656 | M180: N/A
B181: P15 | C181: 1990-12-07 | F181: Chrysene | G181: 218-01-9 | H181: 0.09837190243 | I181: N/A | J181: 0.2579330896 | K181: N/A | L181: 0.7688005656 | M181: N/A
B182: P16 | C182: 1999-01-08 | F182: Dibenz[a,h,]acridine | G182: 226-36-8 | H182: 0.009837190243 | I182: N/A | J182: 0.02579330896 | K182: N/A | L182: 0.07688005656 | M182: N/A
B183: P17 | C183: 1990-12-07 | F183: Dibenz[a,h]anthracene | G183: 53-70-3 | H183: 0.002713187771 | I183: N/A | J183: 0.007114032434 | K183: N/A | L183: 0.02120422846 | M183: N/A
B184: P18 | C184: 1999-01-08 | F184: Dibenz[a,j]acridine | G184: 224-42-0 | H184: 0.009837190243 | I184: N/A | J184: 0.02579330896 | K184: N/A | L184: 0.07688005656 | M184: N/A
B185: P19 | C185: 1999-01-08 | F185: Dibenzo[a,e]pyrene | G185: 192-65-4 | H185: 0.0009837190243 | I185: N/A | J185: 0.002579330896 | K185: N/A | L185: 0.007688005656 | M185: N/A
B186: P20 | C186: 1999-01-08 | F186: Dibenzo[a,h]pyrene | G186: 189-64-0 | H186: 9.837190243e-05 | I186: N/A | J186: 0.0002579330896 | K186: N/A | L186: 0.0007688005656 | M186: N/A
B187: P21 | C187: 1999-01-08 | F187: Dibenzo[a,i]pyrene | G187: 189-55-9 | H187: 9.837190243e-05 | I187: N/A | J187: 0.0002579330896 | K187: N/A | L187: 0.0007688005656 | M187: N/A
B188: P22 | C188: 1999-01-08 | F188: Dibenzo[a,l]pyrene | G188: 191-30-0 | H188: 9.837190243e-05 | I188: N/A | J188: 0.0002579330896 | K188: N/A | L188: 0.0007688005656 | M188: N/A
B189: P23 | C189: 1999-01-08 | F189: Dibenzo[c,g]carbazole, 7H- | G189: 194-59-2 | H189: 0.0009837190243 | I189: N/A | J189: 0.002579330896 | K189: N/A | L189: 0.007688005656 | M189: N/A
B190: P24 | C190: 1999-01-08 | F190: Dimethylbenz[a]anthracene, 7,12- | G190: 57-97-6 | H190: 4.451473132e-05 | I190: N/A | J190: 0.0001167185131 | K190: N/A | L190: 0.0003478935527 | M190: N/A
B191: P25 | C191: 1999-01-08 | F191: Dinitropyrene, 1,6- | G191: 42397-64-8 | H191: 9.837190243e-05 | I191: N/A | J191: 0.0002579330896 | K191: N/A | L191: 0.0007688005656 | M191: N/A
B192: P26 | C192: 1999-01-08 | F192: Dinitropyrene, 1,8- | G192: 42397-65-9 | H192: 0.0009837190243 | I192: N/A | J192: 0.002579330896 | K192: N/A | L192: 0.007688005656 | M192: N/A
B193: P27 | C193: 1990-12-07 | F193: Indeno(1,2,3-C,D)pyrene | G193: 193-39-5 | H193: 0.009837190243 | I193: N/A | J193: 0.02579330896 | K193: N/A | L193: 0.07688005656 | M193: N/A
B194: P28 | C194: 1999-01-08 | F194: Methylcholanthrene, 3- | G194: 56-49-5 | H194: 0.0005057048389 | I194: N/A | J194: 0.001325968171 | K194: N/A | L194: 0.003952207456 | M194: N/A
B195: P29 | C195: 1999-01-08 | F195: Methylchrysene, 5- | G195: 3697-24-3 | H195: 0.0009837190243 | I195: N/A | J195: 0.002579330896 | K195: N/A | L195: 0.007688005656 | M195: N/A
B196: P30 | C196: 2004-08-02 | D196: 2000-08-18 | F196: Napthalene | G196: 91-20-3 | H196: 0.9514435849 | I196: N/A | J196: 2.494704051 | K196: N/A | L196: 7.435765175 | M196: N/A
B197: P31 | C197: 1999-01-08 | F197: Nitroacenaphthene, 5- | G197: 602-87-9 | H197: 0.08545189786 | I197: N/A | J197: 0.22405658 | K197: N/A | L197: 0.6678275583 | M197: N/A
B198: P32 | C198: 1999-01-08 | F198: Nitrochrysene, 6- | G198: 7496-02-8 | H198: 9.837190243e-05 | I198: N/A | J198: 0.0002579330896 | K198: N/A | L198: 0.0007688005656 | M198: N/A
B199: P33 | C199: 1999-01-08 | F199: Nitrofluorene, 2- | G199: 607-57-8 | H199: 0.09837190243 | I199: N/A | J199: 0.2579330896 | K199: N/A | L199: 0.7688005656 | M199: N/A
B200: P34 | C200: 1999-01-08 | F200: Nitropyrene, 1- | G200: 5522-43-0 | H200: 0.009837190243 | I200: N/A | J200: 0.02579330896 | K200: N/A | L200: 0.07688005656 | M200: N/A
... 73 more rows

Sheet Table2AB (hidden)
B3: Look up for Met Data and X/Q | H3: Interpolation
F4: Stc Ht: | G4: =Emissions!E21 -> 25 | I4: row: | J4: =IF(G4<=24,2,IF(G4<50,3,4))-1 -> 2
B5: Station | C5: =Emissions!$E$25 -> Long Beach | G5: Residential | J5: Industrial | M5: X/Q for one-in-a-million
B6: MET | C6: =VLOOKUP($C$5,table2b,MATCH("Met",head2b,0),FALSE) -> 0.59 | F6: near | G6: actual | H6: far | I6: near | J6: actual | K6: far | L6: near | M6: actual | N6: far
B7: X/Q (residential) | C7: =$G$8 -> 0.81 | E7: distance | F7: =IF(G7<25,25,HLOOKUP(G7,table2a,1,TRUE)) -> 200 | G7: =Emissions!E23 -> 250 | H7: =IF(G7<25,25,IF(G7>=1000,1000,IF(G7=HLOOKUP(G7,table2a,1,TRUE),G7,INDEX(table2a,1,MATCH(G7,head2a,1)+1)))) -> 300 | I7: =IF(J7<25,25,HLOOKUP(J7,table2a,1,TRUE)) -> 50 | J7: =Emissions!E24 -> 65 | K7: =IF(J7<25,25,IF(J7>=1000,1000,IF(J7=HLOOKUP(J7,table2a,1,TRUE),J7,INDEX(table2a,1,MATCH(J7,head2a,1)+1)))) -> 75 | L7: =IF(L8="","",INDEX(table2a,1,MATCH(L8,IF($J$4=1,$C13:$J13,IF($J$4=2,$C14:$J14,IF($J$4=3,$C15:$J15,""))),-1))) -> 1000 | M7: =IF(L7="","",IF(N7=L7,"no data",L7-(L8-M8)/(L8-N8)*(L7-N7))) -> no data | N7: =IF(N8="","",INDEX(table2a,1,MATCH(N8,IF($J$4=1,$C13:$J13,IF($J$4=2,$C14:$J14,IF($J$4=3,$C15:$J15,""))),-1))) -> 1000
B8: X/Q (industrial) | C8: =$J$8 -> 9.26 | E8: X/Q | F8: =HLOOKUP(F7,table2a,$J$4+1,TRUE) -> 1.12 | G8: =IF(F8=H8,F8,F8-(((G7-F7)/(H7-F7))*(F8-H8))) -> 0.81 | H8: =HLOOKUP(H7,table2a,$J$4+1,TRUE) -> 0.5 | I8: =HLOOKUP(I7,table2a,$J$4+1,TRUE) -> 12.74 | J8: =IF(I8=K8,I8,I8-(((J7-I7)/(K7-I7))*(I8-K8))) -> 9.26 | K8: =HLOOKUP(K7,table2a,$J$4+1,TRUE) -> 6.94 | L8: =IF(M8="","",INDEX(table2a,$J$4+1,MATCH(M8,IF($J$4=1,$C13:$J13,IF($J$4=2,$C14:$J14,IF($J$4=3,$C15:$J15,""))),-1))) -> 0.05 | M8: ='Tier 2 Report'!L196 -> 0 | N8: =IF(M8="","",IF(AND(M8<L8,L7=1000),L8,INDEX(table2a,$J$4+1,MATCH(M8,IF($J$4=1,$C13:$J13,IF($J$4=2,$C14:$J14,IF($J$4=3,$C15:$J15,""))),-1)+1))) -> 0.05
B10: Table 2A - Point Source, operating 12 hrs/day or less
B11: Stack ht. | E11: Downwind Distance (meters)
B12: (ft) | C12: 25 | D12: 50 | E12: 75 | F12: 100 | G12: 200 | H12: 300 | I12: 500 | J12: 1000
B13: <14 -24 | C13: 51.18 | D13: 16.88 | E13: 7.89 | F13: 4.51 | G13: 1.14 | H13: 0.5 | I13: 0.18 | J13: 0.05 | K13: (ug/m^3)/(tons/yr)
B14: 25 - 49 | C14: 19.14 | D14: 12.74 | E14: 6.94 | F14: 4.19 | G14: 1.12 | H14: 0.5 | I14: 0.18 | J14: 0.05 | K14: (ug/m^3)/(tons/yr)
B15: >=50 | C15: 5.13 | D15: 5.13 | E15: 4.31 | F15: 3.08 | G15: 0.97 | H15: 0.45 | I15: 0.16 | J15: 0.04 | K15: (ug/m^3)/(tons/yr)
B16: Table 2B
B17: Station | C17: MET
B18: Anaheim | C18: 0.84
B19: Azusa | C19: 0.77
B20: Banning | C20: 0.52
B21: Burbank | C21: 0.57
B22: Canoga Park | C22: 0.65
B23: Compton | C23: 0.63
B24: Costa Mesa | C24: 0.69
B25: Downtown L.A. | C25: 0.51
B26: El Toro | C26: 0.65
B27: Fontana | C27: 0.77
B28: Indio | C28: 0.69
B29: King Harbor | C29: 0.6
B30: La Canada | C30: 0.73
B31: La Habra | C31: 0.78
B32: Lancaster | C32: 0.47
B33: Lennox | C33: 0.67
B34: Long Beach | C34: 0.59
B35: Los Alamitos | C35: 0.6
B36: Lynwood | C36: 0.58
B37: Malibu | C37: 0.84
B38: Newhall | C38: 0.5
B39: Norco | C39: 0.73
B40: Palm Springs | C40: 0.55
B41: Pasadena | C41: 0.74
B42: Pico Rivera | C42: 0.7
B43: Pomona | C43: 0.86
B44: Redlands | C44: 0.86
B45: Reseda | C45: 0.68
B46: Riverside | C46: 0.82
B47: Santa Ana Canyon | C47: 0.89
B48: Upland | C48: 0.6
B49: Vernon | C49: 0.54
B50: Walnut | C50: 0.6
B51: West L.A. | C51: 1
B52: Whittier | C52: 0.63

Sheet Table3AB (hidden)
B1: Look up for Met Data and X/Q
B3: Station | C3: =Emissions!$E$25 -> Long Beach | H3: Interpolation
B4: MET | C4: =VLOOKUP($C$3,table3b,MATCH("Met",head3b,0),FALSE) -> 1 | F4: Stc Ht: | G4: =Emissions!E21 -> 25 | I4: row: | J4: =IF(G4<=24,2,IF(G4<50,3,4))-1 -> 2
B5: X/Q (residential) | C5: =$G$8 -> 1.445 | G5: Residential | J5: Industrial | M5: X/Q for one-in-a-million
B6: X/Q (industrial) | C6: =$J$8 -> 8.756 | F6: near | G6: actual | H6: far | I6: near | J6: actual | K6: far | L6: near | M6: actual | N6: far
B7: 4 hour AF | C7: =VLOOKUP($C$3,table3bbb,MATCH("4 hrs",head3cc,0),FALSE) -> 0.89 | E7: distance | F7: =IF(G7<25,25,HLOOKUP(G7,table3a,1,TRUE)) -> 200 | G7: =Emissions!E23 -> 250 | H7: =IF(G7<25,25,IF(G7>=1000,1000,IF(G7=HLOOKUP(G7,table3a,1,TRUE),G7,INDEX(table3a,1,MATCH(G7,head3a,1)+1)))) -> 300 | I7: =IF(J7<25,25,HLOOKUP(J7,table3a,1,TRUE)) -> 50 | J7: =Emissions!E24 -> 65 | K7: =IF(J7<25,25,IF(J7>=1000,1000,IF(J7=HLOOKUP(J7,table3a,1,TRUE),J7,INDEX(table3a,1,MATCH(J7,head3a,1)+1)))) -> 75 | L7: =IF(L8="","",INDEX(table3a,1,MATCH(L8,IF($J$4=1,$C13:$J13,IF($J$4=2,$C14:$J14,IF($J$4=3,$C15:$J15,""))),-1))) -> 1000 | M7: =IF(L7="","",IF(N7=L7,"no data",L7-(L8-M8)/(L8-N8)*(L7-N7))) -> no data | N7: =IF(N8="","",INDEX(table3a,1,MATCH(N8,IF($J$4=1,$C13:$J13,IF($J$4=2,$C14:$J14,IF($J$4=3,$C15:$J15,""))),-1))) -> 1000
B8: 6 or 8 hour AF | C8: =VLOOKUP($C$3,table3bbb,MATCH("6 or 7hr",head3ccc,0),FALSE) -> 0.73 | E8: X/Q | F8: =HLOOKUP(F7,table3a,$J$4+1,TRUE) -> 1.92 | G8: =IF(F8=H8,F8,F8-(((G7-F7)/(H7-F7))*(F8-H8))) -> 1.445 | H8: =HLOOKUP(H7,table3a,$J$4+1,TRUE) -> 0.97 | I8: =HLOOKUP(I7,table3a,$J$4+1,TRUE) -> 10.7 | J8: =IF(I8=K8,I8,I8-(((J7-I7)/(K7-I7))*(I8-K8))) -> 8.756 | K8: =HLOOKUP(K7,table3a,$J$4+1,TRUE) -> 7.46 | L8: =IF(M8="","",INDEX(table3a,$J$4+1,MATCH(M8,IF($J$4=1,$C13:$J13,IF($J$4=2,$C14:$J14,IF($J$4=3,$C15:$J15,""))),-1))) -> 0.12 | M8: ='Tier 2 Report'!L196 -> 0 | N8: =IF(M8="","",IF(AND(M8<L8,L7=1000),L8,INDEX(table3a,$J$4+1,MATCH(M8,IF($J$4=1,$C13:$J13,IF($J$4=2,$C14:$J14,IF($J$4=3,$C15:$J15,""))),-1)+1))) -> 0.12
B10: Table 3A - Point Source, operating more than 12 hrs/day
B11: Stack ht. | E11: Downwind Distance (meters)
B12: (ft) | C12: 25 | D12: 50 | E12: 75 | F12: 100 | G12: 200 | H12: 300 | I12: 500 | J12: 1000
B13: <14 - 24 | C13: 49.68 | D13: 23.07 | E13: 12.5 | F13: 7.74 | G13: 2.24 | H13: 1.06 | I13: 0.42 | J13: 0.12 | K13: (ug/m^3)/(tons/yr)
B14: 25 - 49 | C14: 10.7 | D14: 10.7 | E14: 7.46 | F14: 5.32 | G14: 1.92 | H14: 0.97 | I14: 0.4 | J14: 0.12 | K14: (ug/m^3)/(tons/yr)
B15: >=50 | C15: 2.37 | D15: 2.38 | E15: 2.38 | F15: 2.12 | G15: 1.27 | H15: 0.75 | I15: 0.33 | J15: 0.1 | K15: (ug/m^3)/(tons/yr)
B16: Table 3B | D16: table 8b
B17: Station | C17: MET | D17: 4 hrs | E17: 6 or 7hr
B18: Anaheim | C18: 0.69 | D18: 0.93 | E18: 0.77
B19: Azusa | C19: 0.64 | D19: 0.78 | E19: 0.59
B20: Banning | C20: 0.63 | D20: 0.85 | E20: 0.71
B21: Burbank | C21: 0.64 | D21: 0.94 | E21: 0.84
B22: Canoga Park | C22: 0.71 | D22: 0.97 | E22: 0.75
B23: Compton | C23: 0.6 | D23: 0.92 | E23: 0.67
B24: Costa Mesa | C24: 0.69 | D24: 0.87 | E24: 0.88
B25: Downtown L.A. | C25: 0.6 | D25: 0.8 | E25: 0.84
B26: El Toro | C26: 0.65 | D26: 0.98 | E26: 0.77
B27: Fontana | C27: 1.19 | D27: 0.92 | E27: 0.78
B28: Indio | C28: 0.6 | D28: 0.7 | E28: 0.54
B29: King Harbor | C29: 0.53 | D29: 0.7 | E29: 0.62
B30: La Canada | C30: 1.33 | D30: 0.94 | E30: 0.91
B31: La Habra | C31: 0.78 | D31: 0.85 | E31: 0.82
B32: Lancaster | C32: 0.76 | D32: 0.83 | E32: 0.68
B33: Lennox | C33: 0.68 | D33: 0.91 | E33: 0.66
B34: Long Beach | C34: 1 | D34: 0.89 | E34: 0.73
B35: Los Alamitos | C35: 0.69 | D35: 0.84 | E35: 0.72
B36: Lynwood | C36: 0.68 | D36: 0.87 | E36: 0.79
B37: Malibu | C37: 0.84 | D37: 0.86 | E37: 0.69
B38: Newhall | C38: 0.92 | D38: 0.87 | E38: 0.77
B39: Norco | C39: 0.6 | D39: 0.81 | E39: 0.75
B40: Palm Springs | C40: 0.88 | D40: 0.75 | E40: 0.69
B41: Pasadena | C41: 0.88 | D41: 0.93 | E41: 0.87
B42: Pico Rivera | C42: 0.68 | D42: 0.84 | E42: 0.85
B43: Pomona | C43: 1.28 | D43: 0.94 | E43: 0.78
B44: Redlands | C44: 1.74 | D44: 0.97 | E44: 0.88
B45: Reseda | C45: 0.64 | D45: 0.95 | E45: 0.72
B46: Riverside | C46: 0.81 | D46: 0.81 | E46: 0.83
B47: Santa Ana Canyon | C47: 0.8 | D47: 0.84 | E47: 0.71
B48: Upland | C48: 0.71 | D48: 0.84 | E48: 0.72
B49: Vernon | C49: 0.92 | D49: 0.81 | E49: 0.61
B50: Walnut | C50: 0.71 | D50: 0.78 | E50: 0.74
B51: West L.A. | C51: 1 | D51: 0.92 | E51: 0.83
B52: Whittier | C52: 0.55 | D52: 0.97 | E52: 0.66

Sheet Table4 (hidden)
B3: Look up for Met Data and X/Q | H3: Interpolation
F4: Stk ht: | G4: =Emissions!E21 -> 25 | H4: Area: | I4: =Emissions!E22 -> 900 | J4: row: | K4: =IF(AND(G4<=20,I4<3000),1,IF(AND(G4<=20,I4>=3000,I4<=10000),2,IF(AND(G4>20,I4>=3000,I4<=10000),3,IF(AND(G4>=20,I4>10000,I4<=30000),4,IF(AND(G4>=20,I4>30000),5,"no data"))))) -> no data
B5: Station | C5: =Emissions!$E$25 -> Long Beach | G5: Residential | J5: Industrial | M5: X/Q for one-in-a-million (for screening mode only)
B6: MET | C6: =VLOOKUP($C$5,table4b,MATCH("Met",head4b,0),FALSE) -> 0.58 | F6: near | G6: actual | H6: far | I6: near | J6: actual | K6: far | L6: near | M6: actual | N6: far
B7: X/Q (residential) | C7: =$G$8 ->  | E7: distance | F7: =IF(AND($K$4=5,G7<50),50,IF(G7<25,25,HLOOKUP(G7,table4a,1,TRUE))) -> 200 | G7: =Emissions!E23 -> 250 | H7: =IF(AND($K$4=5,G7<50),50,IF(G7<25,25,IF(G7>=1000,1000,IF(G7=HLOOKUP(G7,table4a,1,TRUE),G7,INDEX(table4a,1,MATCH(G7,head4a,1)+1))))) -> 300 | I7: =IF(AND($K$4=5,J7<50),50,IF(J7<25,25,HLOOKUP(J7,table4a,1,TRUE))) -> 50 | J7: =Emissions!E24 -> 65 | K7: =IF(AND($K$4=5,J7<50),50,IF(J7<25,25,IF(J7>=1000,1000,IF(J7=HLOOKUP(J7,table4a,1,TRUE),J7,INDEX(table4a,1,MATCH(J7,head4a,1)+1))))) -> 75 | L7: =IF(L8="","",INDEX(table4a,1,MATCH(L8,IF($K$4=1,$D13:$K13,IF($K$4=2,$D14:$K14,IF($K$4=3,$D15:$K15,IF($K$4=4,$D16:$K16,IF($K$4=5,$D17:$K17,""))))),-1))) ->  | M7: =IF(L7="","",IF(N7=L7,"no data",L7-(L8-M8)/(L8-N8)*(L7-N7))) ->  | N7: =IF(N8="","",INDEX(table4a,1,MATCH(N8,IF($K$4=1,$D13:$K13,IF($K$4=2,$D14:$K14,IF($K$4=3,$D15:$K15,IF($K$4=4,$D16:$K16,IF($K$4=5,$D17:$K17,""))))),-1))) -> 
B8: X/Q (industrial) | C8: =$J$8 ->  | E8: X/Q | F8: =HLOOKUP(F7,table4a,$K$4+1,TRUE) ->  | G8: =IF(F8=H8,F8,F8-(((G7-F7)/(H7-F7))*(F8-H8))) ->  | H8: =HLOOKUP(H7,table4a,$K$4+1,TRUE) ->  | I8: =HLOOKUP(I7,table4a,$K$4+1,TRUE) ->  | J8: =IF(I8=K8,I8,I8-(((J7-I7)/(K7-I7))*(I8-K8))) ->  | K8: =HLOOKUP(K7,table4a,$K$4+1,TRUE) ->  | L8: =IF(M8="","",INDEX(table4a,$K$4+1,MATCH(M8,IF($K$4=1,$D13:$K13,IF($K$4=2,$D14:$K14,IF($K$4=3,$D15:$K15,IF($K$4=4,$D16:$K16,IF($K$4=5,$D17:$K17,""))))),-1))) ->  | M8: ='Tier 2 Report'!L196 -> 0 | N8: =IF(M8="","",IF(AND(M8<L8,L7=1000),L8,INDEX(table4a,$K$4+1,MATCH(M8,IF($K$4=1,$D13:$K13,IF($K$4=2,$D14:$K14,IF($K$4=3,$D15:$K15,IF($K$4=4,$D16:$K16,$D17:$K17)))),-1)+1))) -> 
B10: Table 4A -Volume source, operating 12 hrs/day or less
B11: Source Dimensions | F11: Downwind Distance (meters)
B12: Area (ft2) | C12: Height (ft) | D12: 25 | E12: 50 | F12: 75 | G12: 100 | H12: 200 | I12: 300 | J12: 500 | K12: 1000
B13: <3000 | C13: <=20 | D13: 41.45 | E13: 13.68 | F13: 6.7 | G13: 3.95 | H13: 1.06 | I13: 0.48 | J13: 0.17 | K13: 0.04 | L13: (ug/m^3)/(tons/yr)
B14: 3000 to <=10000 | C14: <=20 | D14: 36.93 | E14: 12.83 | F14: 6.41 | G14: 3.82 | H14: 1.04 | I14: 0.47 | J14: 0.17 | K14: 0.04 | L14: (ug/m^3)/(tons/yr)
B15: 3000 to <=10000 | C15: >20 | D15: 26.52 | E15: 10.54 | F15: 5.58 | G15: 3.44 | H15: 0.98 | I15: 0.46 | J15: 0.17 | K15: 0.04 | L15: (ug/m^3)/(tons/yr)
B16: >10000 to <=30000 | C16: >=20 | D16: 21.59 | E16: 9.51 | F16: 5.2 | G16: 3.26 | H16: 0.96 | I16: 0.46 | J16: 0.17 | K16: 0.04 | L16: (ug/m^3)/(tons/yr)
B17: >30000 | C17: >=20 | E17: 8.19 | F17: 4.65 | G17: 2.98 | H17: 0.91 | I17: 0.43 | J17: 0.16 | K17: 0.04 | L17: (ug/m^3)/(tons/yr)
B18: Table 4B
B19: Station | C19: MET
B20: Anaheim | C20: 0.86
B21: Azusa | C21: 0.8
B22: Banning | C22: 0.54
B23: Burbank | C23: 0.6
B24: Canoga Park | C24: 0.68
B25: Compton | C25: 0.63
B26: Costa Mesa | C26: 0.71
B27: Downtown L.A. | C27: 0.51
B28: El Toro | C28: 0.68
B29: Fontana | C29: 0.8
B30: Indio | C30: 0.72
B31: King Harbor | C31: 0.63
B32: La Canada | C32: 0.76
B33: La Habra | C33: 0.81
B34: Lancaster | C34: 0.49
B35: Lennox | C35: 0.66
B36: Long Beach | C36: 0.58
B37: Los Alamitos | C37: 0.64
B38: Lynwood | C38: 0.63
B39: Malibu | C39: 0.88
B40: Newhall | C40: 0.53
B41: Norco | C41: 0.75
B42: Palm Springs | C42: 0.6
B43: Pasadena | C43: 0.75
B44: Pico Rivera | C44: 0.7
B45: Pomona | C45: 0.91
B46: Redlands | C46: 0.9
B47: Reseda | C47: 0.71
B48: Riverside | C48: 0.82
B49: Santa Ana Canyon | C49: 0.92
B50: Upland | C50: 0.62
B51: Vernon | C51: 0.55
B52: Walnut | C52: 0.63
B53: West L.A. | C53: 1
B54: Whittier | C54: 0.66

Sheet Table5 (hidden)
B1: Look up for Met Data and X/Q
B3: Station | C3: =Emissions!$E$25 -> Long Beach | H3: Interpolation
B4: MET | C4: =VLOOKUP($C$3,table5b,MATCH("Met",Head5b,0),FALSE) -> 0.99 | F4: Stk ht: | G4: =Emissions!E21 -> 25 | H4: Area: | I4: =Emissions!E22 -> 900 | J4: row: | K4: =IF(AND(G4<=20,I4<3000),1,IF(AND(G4<=20,I4>=3000,I4<=10000),2,IF(AND(G4>20,I4>=3000,I4<=10000),3,IF(AND(G4>=20,I4>10000,I4<=30000),4,IF(AND(G4>=20,I4>30000),5,"no data"))))) -> no data
B5: X/Q (residential) | C5: =$G$8 ->  | G5: Residential | J5: Industrial | M5: X/Q for one-in-a-million
B6: X/Q (industrial) | C6: =$J$8 ->  | F6: near | G6: actual | H6: far | I6: near | J6: actual | K6: far | L6: near | M6: actual | N6: far
B7: 4 hour AF | C7: =VLOOKUP($C$3,table5bb,MATCH("4 hrs",heading5bb,0),FALSE) -> 0.92 | E7: distance | F7: =IF(AND($K$4=5,G7<50),50,IF(G7<25,25,HLOOKUP(G7,table5a,1,TRUE))) -> 200 | G7: =Emissions!E23 -> 250 | H7: =IF(AND($K$4=5,G7<50),50,IF(G7<25,25,IF(G7>=1000,1000,IF(G7=HLOOKUP(G7,table5a,1,TRUE),G7,INDEX(table5a,1,MATCH(G7,Head5a,1)+1))))) -> 300 | I7: =IF(AND($K$4=5,J7<50),50,IF(J7<25,25,HLOOKUP(J7,table5a,1,TRUE))) -> 50 | J7: =Emissions!E24 -> 65 | K7: =IF(AND($K$4=5,J7<50),50,IF(J7<25,25,IF(J7>=1000,1000,IF(J7=HLOOKUP(J7,table5a,1,TRUE),J7,INDEX(table5a,1,MATCH(J7,Head5a,1)+1))))) -> 75 | L7: =IF(L8="","",INDEX(table5a,1,MATCH(L8,IF($K$4=1,$D13:$K13,IF($K$4=2,$D14:$K14,IF($K$4=3,$D15:$K15,IF($K$4=4,$D16:$K16,IF($K$4=5,$D17:$K17,""))))),-1))) ->  | M7: =IF(L7="","",IF(N7=L7,"no data",L7-(L8-M8)/(L8-N8)*(L7-N7))) ->  | N7: =IF(N8="","",INDEX(table5a,1,MATCH(N8,IF($K$4=1,$D13:$K13,IF($K$4=2,$D14:$K14,IF($K$4=3,$D15:$K15,IF($K$4=4,$D16:$K16,IF($K$4=5,$D17:$K17,""))))),-1))) -> 
B8: 6 or 8 hour AF | C8: =VLOOKUP($C$3,table5bb,MATCH("6 or 7hr",heading5bb,0),FALSE) -> 0.87 | E8: X/Q | F8: =HLOOKUP(F7,table5a,$K$4+1,TRUE) ->  | G8: =IF(F8=H8,F8,F8-(((G7-F7)/(H7-F7))*(F8-H8))) ->  | H8: =HLOOKUP(H7,table5a,$K$4+1,TRUE) ->  | I8: =HLOOKUP(I7,table5a,$K$4+1,TRUE) ->  | J8: =IF(I8=K8,I8,I8-(((J7-I7)/(K7-I7))*(I8-K8))) ->  | K8: =HLOOKUP(K7,table5a,$K$4+1,TRUE) ->  | L8: =IF(M8="","",INDEX(table5a,$K$4+1,MATCH(M8,IF($K$4=1,$D13:$K13,IF($K$4=2,$D14:$K14,IF($K$4=3,$D15:$K15,IF($K$4=4,$D16:$K16,IF($K$4=5,$D17:$K17,""))))),-1))) ->  | M8: ='Tier 2 Report'!L196 -> 0 | N8: =IF(M8="","",IF(AND(M8<L8,L7=1000),L8,INDEX(table5a,$K$4+1,MATCH(M8,IF($K$4=1,$D13:$K13,IF($K$4=2,$D14:$K14,IF($K$4=3,$D15:$K15,IF($K$4=4,$D16:$K16,$D17:$K17)))),-1)+1))) -> 
B10: Table 5A -Volume source, operating more than 12 hrs/day
B11: Source Dimensions | F11: Downwind Distance (meters)
B12: Area (ft2) | C12: Height (ft) | D12: 25 | E12: 50 | F12: 75 | G12: 100 | H12: 200 | I12: 300 | J12: 500 | K12: 1000
B13: <3000 | C13: <=20 | D13: 60.49 | E13: 22.4 | F13: 11.68 | G13: 7.18 | H13: 2.12 | I13: 1.02 | J13: 0.41 | K13: 0.12 | L13: (ug/m^3)/(tons/yr)
B14: 3000 to <=10000 | C14: <=20 | D14: 55.8 | E14: 21.35 | F14: 11.3 | G14: 7.01 | H14: 2.09 | I14: 1.01 | J14: 0.4 | K14: 0.12 | L14: (ug/m^3)/(tons/yr)
B15: 3000 to <=10000 | C15: >20 | D15: 35.18 | E15: 15.5 | F15: 8.87 | G15: 5.78 | H15: 1.89 | I15: 0.94 | J15: 0.39 | K15: 0.12 | L15: (ug/m^3)/(tons/yr)
B16: >10000 to <=30000 | C16: >=20 | D16: 29.58 | E16: 14.43 | F16: 8.41 | G16: 5.55 | H16: 1.85 | I16: 0.93 | J16: 0.39 | K16: 0.12 | L16: (ug/m^3)/(tons/yr)
B17: >30000 | C17: >=20 | E17: 13.05 | F17: 7.81 | G17: 5.22 | H17: 1.79 | I17: 0.91 | J17: 0.38 | K17: 0.12 | L17: (ug/m^3)/(tons/yr)
B18: Table 5B | D18: Table 8c
B19: Station | C19: MET | D19: 4 hrs | E19: 6 or 7hr
B20: Anaheim | C20: 0.56 | D20: 0.95 | E20: 0.81
B21: Azusa | C21: 0.64 | D21: 0.86 | E21: 0.77
B22: Banning | C22: 0.65 | D22: 0.88 | E22: 0.75
B23: Burbank | C23: 0.66 | D23: 0.96 | E23: 0.88
B24: Canoga Park | C24: 0.73 | D24: 0.98 | E24: 0.83
B25: Compton | C25: 0.55 | D25: 0.94 | E25: 0.71
B26: Costa Mesa | C26: 0.63 | D26: 0.98 | E26: 0.98
B27: Downtown L.A. | C27: 0.63 | D27: 0.86 | E27: 0.88
B28: El Toro | C28: 0.66 | D28: 0.98 | E28: 0.89
B29: Fontana | C29: 1.22 | D29: 0.94 | E29: 0.84
B30: Indio | C30: 0.56 | D30: 0.74 | E30: 0.59
B31: King Harbor | C31: 0.46 | D31: 0.78 | E31: 0.7
B32: La Canada | C32: 1.34 | D32: 0.98 | E32: 0.94
B33: La Habra | C33: 0.79 | D33: 0.93 | E33: 0.89
B34: Lancaster | C34: 0.78 | D34: 0.96 | E34: 0.73
B35: Lennox | C35: 0.66 | D35: 0.94 | E35: 0.77
B36: Long Beach | C36: 0.99 | D36: 0.92 | E36: 0.87
B37: Los Alamitos | C37: 0.73 | D37: 0.87 | E37: 0.8
B38: Lynwood | C38: 0.69 | D38: 0.91 | E38: 0.85
B39: Malibu | C39: 0.86 | D39: 0.9 | E39: 0.76
B40: Newhall | C40: 0.93 | D40: 0.91 | E40: 0.82
B41: Norco | C41: 0.58 | D41: 0.86 | E41: 0.79
B42: Palm Springs | C42: 0.89 | D42: 0.79 | E42: 0.74
B43: Pasadena | C43: 0.91 | D43: 0.98 | E43: 0.91
B44: Pico Rivera | C44: 0.66 | D44: 0.96 | E44: 0.9
B45: Pomona | C45: 1.27 | D45: 0.96 | E45: 0.87
B46: Redlands | C46: 1.76 | D46: 0.98 | E46: 0.92
B47: Reseda | C47: 0.59 | D47: 0.96 | E47: 0.77
B48: Riverside | C48: 0.78 | D48: 0.89 | E48: 0.88
B49: Santa Ana Canyon | C49: 0.81 | D49: 0.88 | E49: 0.84
B50: Upland | C50: 0.76 | D50: 0.87 | E50: 0.8
B51: Vernon | C51: 0.91 | D51: 0.85 | E51: 0.67
B52: Walnut | C52: 0.74 | D52: 0.93 | E52: 0.72
B53: West L.A. | C53: 1 | D53: 0.95 | E53: 0.88
B54: Whittier | C54: 0.53 | D54: 0.98 | E54: 0.78

Sheet Table1B (hidden)
A1: Dry Cleaning Look-up Table - Residential Receptor
A2: (New Rule 1401 Risk Assessment Procedures)
B4: Usage (gallons per month)
A5: Location | B5: 25 m | C5: 50 m | D5: 100 m | E5: 150 m | F5: 200 m | G5: 300 m | H5: 400 m | I5: 500 m
A6: Anaheim | B6: 1.139345561 | C6: 3.182598543 | D6: 11.33013217 | E6: 24.82719315 | F6: 43.72885262 | G6: 97.9529416 | H6: 174.3427424 | I6: 273.0973623
A7: Azusa | B7: 1.244656692 | C7: 3.454703004 | D7: 12.28611094 | E7: 26.89940949 | F7: 47.32867895 | G7: 105.7703269 | H7: 187.8244308 | I7: 293.6046734
A8: Banning | B8: 2.031474661 | C8: 5.243333583 | D8: 18.13585949 | E8: 39.34223963 | F8: 68.79686074 | G8: 152.2695864 | H8: 267.1802528 | I8: 413.2097133
A9: Burbank | B9: 1.630470707 | C9: 4.643769624 | D9: 16.48561199 | E9: 36.08106047 | F9: 63.45800921 | G9: 141.6775534 | H9: 251.2831063 | I9: 392.2311795
A10: Canoga Park | B10: 1.380749246 | C10: 3.99456749 | D10: 14.37870228 | E10: 31.68040941 | F10: 56.01018533 | G10: 126.1730771 | H10: 225.6007764 | I10: 354.8275975
A11: Compton | B11: 1.654422379 | C11: 4.358795705 | D11: 15.04028694 | E11: 32.51219517 | F11: 56.69523939 | G11: 124.9438392 | H11: 219.2748 | I11: 339.1269846
A12: Costa Mesa | B12: 1.360236269 | C12: 3.820745937 | D12: 13.65191253 | E12: 29.95317633 | F12: 52.78648355 | G12: 118.2940487 | H12: 210.5738953 | I12: 329.9087327
A13: Downtown LA | B13: 2.078205095 | C13: 5.398285186 | D13: 18.67731253 | E13: 40.46482583 | F13: 70.69689348 | G13: 156.3028901 | H13: 275.0693959 | I13: 426.5405366
A14: El Toro | B14: 1.422818689 | C14: 4.122608624 | D14: 14.83762299 | E14: 32.64682467 | F14: 57.65097759 | G14: 129.6292332 | H14: 231.4362151 | I14: 363.5448966
A15: Fontana | B15: 1.261171592 | C15: 3.468706541 | D15: 12.2580054 | E15: 26.79300849 | F15: 47.09116951 | G15: 105.0569505 | H15: 186.2604396 | I15: 290.698575
A16: Indio | B16: 1.392652834 | C16: 3.857134906 | D16: 13.62961733 | E16: 29.7426918 | F16: 52.21126139 | G16: 116.2636178 | H16: 205.8091174 | I16: 320.6964775
A17: King Harbor | B17: 1.6916879 | C17: 4.493182837 | D17: 15.71751275 | E17: 34.19968035 | F17: 59.91428234 | G17: 132.9806318 | H17: 234.7690774 | I17: 365.0626853
A18: La Canada | B18: 1.284005592 | C18: 3.632997902 | D18: 12.9989683 | E18: 28.51274412 | F18: 50.24152681 | G18: 112.5924217 | H18: 200.4478295 | I18: 314.047477
A19: La Habra | B19: 1.208489161 | C19: 3.412360611 | D19: 12.16967996 | E19: 26.67560366 | F19: 46.99568373 | G19: 105.3244173 | H19: 187.5497533 | I19: 293.9411445
A20: Lancaster | B20: 2.031714962 | C20: 5.675537277 | D20: 19.89953316 | E20: 43.32164892 | F20: 75.91396461 | G20: 168.5458291 | H20: 297.5787486 | I20: 462.6497884
A21: Lennox | B21: 1.533915968 | C21: 4.120101006 | D21: 14.32719258 | E21: 31.03990028 | F21: 54.18943422 | G21: 119.5808927 | H21: 210.0565429 | I21: 325.1137097
A22: Long Beach | B22: 1.575025715 | C22: 4.537954297 | D22: 16.24635008 | E22: 35.66035444 | F22: 62.86388746 | G22: 140.9560594 | H22: 251.0371682 | I22: 393.4344657
A23: Los Alamitos | B23: 1.583582991 | C23: 4.383407473 | D23: 15.55376814 | E23: 34.05226924 | F23: 59.91894783 | G23: 133.9202771 | H23: 237.8165187 | I23: 371.7649667
A24: Lynwood | B24: 1.616568412 | C24: 4.559109033 | D24: 16.26028849 | E24: 35.67358034 | F24: 62.8556713 | G24: 140.7652437 | H24: 250.3836809 | I24: 392.0313471
A25: Malibu | B25: 1.107046659 | C25: 3.126515062 | D25: 11.19613673 | E25: 24.60459324 | F25: 43.41991942 | G25: 97.53081627 | H25: 173.9800868 | I25: 273.0973623
A26: Newhall | B26: 1.941682656 | C26: 5.307865429 | D26: 18.7221199 | E26: 40.93017628 | F26: 71.85618363 | G26: 159.9682192 | H26: 283.125737 | I26: 441.2150964
A27: Norco | B27: 1.322278581 | C27: 3.658917483 | D27: 12.87245184 | E27: 28.08625499 | F27: 49.2996712 | G27: 109.7437287 | H27: 194.1756152 | I27: 302.3968907
A28: Palm Springs | B28: 1.625019277 | C28: 4.697978795 | D28: 16.98524436 | E28: 37.47195629 | F28: 66.29326005 | G28: 149.4540512 | H28: 267.3659236 | I28: 420.7102942
A29: Pasadena | B29: 1.230412215 | C29: 3.567748386 | D29: 12.8021204 | E29: 28.12793818 | F29: 49.62332508 | G29: 111.4121461 | H29: 198.6367722 | I29: 311.605705
A30: Pico Rivera | B30: 1.434723312 | C30: 3.868665563 | D30: 13.61668958 | E30: 29.67066893 | F30: 52.02909706 | G30: 115.6728794 | H30: 204.5181608 | I30: 318.4402947
A31: Pomona | B31: 1.087765365 | C31: 3.081049323 | D31: 10.98891693 | E31: 24.11767135 | F31: 42.51829679 | G31: 95.33639707 | H31: 169.765505 | I31: 265.9796502
A32: Redlands | B32: 1.076925991 | C32: 3.055302386 | D32: 10.90933632 | E32: 23.94982471 | F32: 42.22988212 | G32: 94.71911274 | H32: 168.7306219 | I32: 264.4803492
A33: Reseda | B33: 1.322750915 | C33: 3.827930613 | D33: 13.85505238 | E33: 30.60824866 | F33: 54.2238019 | G33: 122.5558449 | H33: 219.7632741 | I33: 346.6122198
A34: Riverside | B34: 1.270800535 | C34: 3.349922151 | D34: 11.67147181 | E34: 25.34048819 | F34: 44.33198488 | G34: 98.21298923 | H34: 173.1345352 | I34: 268.8418447
A35: Santa Ana Canyon | B35: 1.055736334 | C35: 2.970326533 | D35: 10.6077697 | E35: 23.27396355 | F35: 41.020947 | G35: 91.95496272 | H35: 163.7398664 | I35: 256.595681
A36: Upland | B36: 1.607680824 | C36: 4.448931176 | D36: 15.76827342 | E36: 34.51724465 | F36: 60.73141135 | G36: 135.7106046 | H36: 240.8988567 | I36: 376.2734122
A37: Vernon | B37: 2.014401273 | C37: 5.166064635 | D37: 17.66537786 | E37: 38.02601 | F37: 66.11213404 | G37: 145.0260334 | H37: 253.568552 | I37: 390.8763223
A38: Walnut | B38: 1.568334414 | C38: 4.42457224 | D38: 15.74169274 | E38: 34.51043315 | F38: 60.79186639 | G38: 136.1379866 | H38: 242.1878157 | I38: 379.2031973
A39: West LA | B39: 0.9603692212 | C39: 2.665944855 | D39: 9.499554676 | E39: 20.80685544 | F39: 36.62651499 | G39: 81.95189555 | H39: 145.7126057 | I39: 228.0613895
A40: Whittier | B40: 1.417609729 | C40: 4.116133907 | D40: 14.81619578 | E40: 32.63768548 | F40: 57.68555296 | G40: 129.861128 | H40: 232.0224123 | I40: 364.6820512
A43: Dry Cleaning Look-up Table - Worker Receptor
A44: (New Rule 1401 Risk Assessment Procedures)
B46: Usage (gallons per month)
A47: Location | B47: 25 m | C47: 50 m | D47: 100 m | E47: 150 m | F47: 200 m | G47: 300 m | H47: 400 m | I47: 500 m
A48: Anaheim | B48: 1.374569988 | C48: 3.83966427 | D48: 13.66930295 | E48: 29.9529096 | F48: 52.7569251 | G48: 118.1758883 | H48: 210.3368018 | I48: 329.4798794
A49: Azusa | B49: 1.501623206 | C49: 4.167946258 | D49: 14.82264902 | E49: 32.45294689 | F49: 57.09995622 | G49: 127.6072176 | H49: 226.601862 | I49: 354.2210425
A50: Banning | B50: 2.450884259 | C50: 6.325849881 | D50: 21.88011172 | E50: 47.4646707 | F50: 83.00036731 | G50: 183.7065161 | H50: 322.3411487 | I50: 498.519229
A51: Burbank | B51: 1.967090738 | C51: 5.602502503 | D51: 19.88916116 | E51: 43.53020239 | F51: 76.55927924 | G51: 170.9276971 | H51: 303.1619451 | I51: 473.2095567
A52: Canoga Park | B52: 1.665812849 | C52: 4.819268864 | D52: 17.34726785 | E52: 38.22101167 | F52: 67.5738094 | G52: 152.2222327 | H52: 272.1773508 | I52: 428.0837906
A53: Compton | B53: 1.99598737 | C53: 5.258694083 | D53: 18.14544046 | E53: 39.22452438 | F53: 68.4002968 | G53: 150.7392116 | H53: 264.5453403 | I53: 409.141696
A54: Costa Mesa | B54: 1.64106485 | C54: 4.609560854 | D54: 16.47042818 | E54: 36.13718142 | F54: 63.6845559 | G54: 142.7165337 | H54: 254.0480839 | I54: 398.0202831
A55: Downtown LA | B55: 2.507262459 | C55: 6.512792131 | D55: 22.53335085 | E55: 48.81902126 | F55: 85.29267271 | G55: 188.5725184 | H55: 331.8590506 | I55: 514.6022773
A56: El Toro | B56: 1.716567769 | C56: 4.973744825 | D56: 17.90093537 | E56: 39.3869489 | F56: 69.55335263 | G56: 156.391932 | H56: 279.2175494 | I56: 438.600826
A57: Fontana | B57: 1.521547702 | C57: 4.184840905 | D57: 14.78874094 | E57: 32.3245788 | F57: 56.8134116 | G57: 126.7465606 | H57: 224.7149759 | I57: 350.7149635
A58: Indio | B58: 1.680174001 | C58: 4.653462534 | D58: 16.44353002 | E58: 35.88324114 | F58: 62.99057582 | G58: 140.2669087 | H58: 248.2995903 | I58: 386.906105
A59: King Harbor | B59: 2.040946571 | C59: 5.420826209 | D59: 18.96248342 | E59: 41.26040055 | F59: 72.28392963 | G59: 160.4352461 | H59: 283.2385002 | I59: 440.4319709
A60: La Canada | B60: 1.549095913 | C60: 4.38305116 | D60: 15.68267987 | E60: 34.39936371 | F60: 60.61417824 | G60: 135.837773 | H60: 241.8314338 | I60: 378.8843802
A61: La Habra | B61: 1.457988681 | C61: 4.116862034 | D61: 14.6821802 | E61: 32.18293506 | F61: 56.69821224 | G61: 127.0692475 | H61: 226.2704758 | I61: 354.62698
A62: Lancaster | B62: 2.451174171 | C62: 6.847284506 | D62: 24.00790593 | E62: 52.26565186 | F62: 91.58683809 | G62: 203.3430824 | H62: 359.0155883 | I62: 558.1664913
A63: Lennox | B63: 1.850601719 | C63: 4.970719494 | D63: 17.28512367 | E63: 37.44826576 | F63: 65.37715378 | G63: 144.2690539 | H63: 253.4239212 | I63: 392.2353001
A64: Long Beach | B64: 1.900198809 | C64: 5.474840995 | D64: 19.60050225 | E64: 43.02263918 | F64: 75.84249765 | G64: 170.0572464 | H64: 302.8652317 | I64: 474.6612682
A65: Los Alamitos | B65: 1.910522784 | C65: 5.288387092 | D65: 18.7649328 | E65: 41.08255557 | F65: 72.28955834 | G65: 161.5688865 | H65: 286.9151033 | I65: 448.5179767
A66: Lynwood | B66: 1.950318235 | C66: 5.500363247 | D66: 19.61731833 | E66: 43.03859565 | F66: 75.83258522 | G66: 169.8270358 | H66: 302.0768281 | I66: 472.9684676
A67: Malibu | B67: 1.335602792 | C67: 3.772002033 | D67: 13.50764338 | E67: 29.68435266 | F67: 52.38421087 | G67: 117.6666128 | H67: 209.8992738 | I67: 329.4798794
A68: Newhall | B68: 2.342554179 | C68: 6.403704696 | D68: 22.58740896 | E68: 49.38044598 | F68: 86.69130496 | G68: 192.9945757 | H68: 341.5786696 | I68: 532.3064841
A69: Norco | B69: 1.595270579 | C69: 4.414321987 | D69: 15.53004337 | E69: 33.88482346 | F69: 59.47787114 | G69: 132.400951 | H69: 234.2642849 | I69: 364.8284635
A70: Palm Springs | B70: 1.960513829 | C70: 5.667903468 | D70: 20.49194549 | E70: 45.20825663 | F70: 79.97988389 | G70: 180.3096974 | H70: 322.5651523 | I70: 507.5683479
A71: Pasadena | B71: 1.484437875 | C71: 4.304330507 | D71: 15.4451916 | E71: 33.93511238 | F71: 59.86834522 | G71: 134.4138228 | H71: 239.6464733 | I71: 375.9384904
A72: Pico Rivera | B72: 1.73093017 | C72: 4.667373762 | D72: 16.42793326 | E72: 35.79634874 | F72: 62.77080262 | G72: 139.5542089 | H72: 246.7421083 | I72: 384.1841203
A73: Pomona | B73: 1.312340765 | C73: 3.717149631 | D73: 13.25764187 | E73: 29.09690296 | F73: 51.29644308 | G73: 115.0191432 | H73: 204.8145674 | I73: 320.8926748
A74: Redlands | B74: 1.299263539 | C74: 3.686087091 | D74: 13.16163139 | E74: 28.89440341 | F74: 50.94848354 | G74: 114.2744169 | H74: 203.5660267 | I74: 319.0838346
A75: Reseda | B75: 1.59584043 | C75: 4.618228848 | D75: 16.71550742 | E75: 36.92749719 | F75: 65.41861687 | G75: 147.8582022 | H75: 265.1346628 | I75: 418.172301
A76: Riverside | B76: 1.533164596 | C76: 4.041532796 | D76: 14.08111413 | E76: 30.57217734 | F76: 53.48457748 | G76: 118.4896243 | H76: 208.8791532 | I76: 324.3457859
A77: Santa Ana Canyon | B77: 1.273699157 | C77: 3.583567485 | D77: 12.79780461 | E77: 28.07900684 | F77: 49.48995683 | G77: 110.9395923 | H77: 197.5449011 | I77: 309.5713313
A78: Upland | B78: 1.939595752 | C78: 5.367438539 | D78: 19.02372392 | E78: 41.64352782 | F78: 73.26975961 | G78: 163.7288374 | H78: 290.6338076 | I78: 453.9572168
A79: Vernon | B79: 2.430285972 | C79: 6.232628314 | D79: 21.31249646 | E79: 45.87669791 | F79: 79.76136337 | G79: 174.96749 | H79: 305.9192343 | I79: 471.5749813
A80: Walnut | B80: 1.892126051 | C80: 5.338050561 | D80: 18.99165552 | E80: 41.63531005 | F80: 73.34269595 | G80: 164.2444549 | H80: 292.1888796 | I80: 457.4918728
A81: West LA | B81: 1.158642956 | C81: 3.216344463 | D81: 11.46079223 | E81: 25.10255011 | F81: 44.18826912 | G81: 98.87133451 | H81: 175.795809 | I81: 275.1459716
A82: Whittier | B82: 1.71028339 | C82: 4.965933365 | D82: 17.8750844 | E82: 39.37592288 | F82: 69.59506629 | G82: 156.6717029 | H82: 279.9247703 | I82: 439.9727527

Sheet updated 121708 (hidden)
A1: OEHHA Cancer Potency Values updated December 17, 2008 | I1: Synonym | J1: CP | K1: from current list (4/30/08)
A2: Chemical Name | B2: CAS | C2: Inhalation Slope Factor (mg/kg-day) | D2: Inhalation Unit Risk (μg/cubic meter) | E2: Oral Slope Factor (mg/kg-day) | F2: from updated list 12/17/08 | I2: 1128 | J2: 0.042 | K2: =VLOOKUP(I2,$B$3:$E$280,2,FALSE) ->  | L2: =IF(ISNA(K2),"",K2-J2) -> 
A3: Formaldehyde | B3: 50000 | C3: 0.021 | D3: 6e-06 | F3: =VLOOKUP(B3,$I$2:$J$262,2,FALSE) -> 0.021 | G3: =IF(ISNA(F3),"",F3-C3) -> 0 | I3: 1129 | K3: =VLOOKUP(I3,$B$3:$E$280,2,FALSE) ->  | L3: =IF(ISNA(K3),"",K3-J3) -> 
A4: Phenobarbital | B4: 50066 | C4: 0.46 | D4: 0.00013 | E4: 0.46 | F4: =VLOOKUP(B4,$I$2:$J$262,2,FALSE) ->  | G4: =IF(ISNA(F4),"",F4-C4) ->  | I4: 1135
A5: Mitomycin C | B5: 50077 | C5: 8200 | D5: 2.3 | E5: 8200 | I5: 1146 | J5: 0.91
A6: Cyclophosphamide (anhydrous) | B6: 50180 | C6: 0.61 | D6: 0.00017 | E6: 0.61 | I6: 9901 | J6: 1.1
A7: Estradiol 17B | B7: 50282 | C7: 39 | D7: 0.011 | E7: 39 | I7: 50000 | J7: 0.021 | K7: 0.021 | L7: 0
A8: Dichlorodiphenyltrichloroethane | B8: 50293 | C8: 0.34 | D8: 9.7e-05 | E8: 0.34 | I8: 50328 | J8: 3.9 | K8: 3.9 | L8: 0
A9: Benzo(a)pyrene | B9: 50328 | C9: 3.9 | D9: 0.0011 | E9: 12 | F9: 3.9 | G9: 0 | I9: 51796 | J9: 1 | K9: 1 | L9: 0
A10: Reserpine | B10: 50555 | C10: 11 | D10: 0.0031 | E10: 11 | I10: 53703 | J10: 4.1 | K10: 4.1 | L10: 0
A11: Actinomycin D | B11: 50760 | C11: 8700 | D11: 2.5 | E11: 8700 | I11: 55185 | J11: 36 | K11: 36 | L11: 0
A12: Propylthiouracil | B12: 51525 | C12: 1 | D12: 0.00029 | E12: 1 | I12: 56235 | J12: 0.15 | K12: 0.15 | L12: 0
A13: Urethane | B13: 51796 | C13: 1 | D13: 0.00029 | E13: 1 | F13: 1 | G13: 0 | I13: 56495 | J13: 22 | K13: 22 | L13: 0
A14: Tris-(1-aziridinyl)phosphine sulfide | B14: 52244 | C14: 12 | D14: 0.0034 | E14: 12 | I14: 56553 | J14: 0.39 | K14: 0.39 | L14: 0
A15: Dibenz(a,h)anthracene | B15: 53703 | C15: 4.1 | D15: 0.0012 | E15: 4.1 | F15: 4.1 | G15: 0 | I15: 57125
A16: 2-Acetylaminofluorene | B16: 53963 | C16: 3.8 | D16: 0.0013 | E16: 3.8 | I16: 57976 | J16: 250 | K16: 250 | L16: 0
A17: N-Nitrosodiethylamine | B17: 55185 | C17: 36 | D17: 0.01 | E17: 36 | F17: 36 | G17: 0 | I17: 58899 | J17: 1.1 | K17: 1.1 | L17: 0
A18: Methylthiouracil | B18: 56042 | C18: 0.4 | D18: 0.00011 | E18: 0.4 | I18: 59892 | J18: 6.7 | K18: 6.7 | L18: 0
A19: Carbon tetrachloride | B19: 56235 | C19: 0.15 | D19: 4.2e-05 | E19: 0.15 | F19: 0.15 | G19: 0 | I19: 60117 | J19: 4.6 | K19: 4.6 | L19: 0
A20: 3-Methylcholanthrene | B20: 56495 | C20: 22 | D20: 0.0063 | E20: 22 | F20: 22 | G20: 0 | I20: 60355 | J20: 0.07 | K20: 0.07 | L20: 0
A21: Diethylstilbestrol | B21: 56531 | C21: 350 | D21: 0.1 | E21: 350 | I21: 62533 | J21: 0.0057 | K21: 0.0057 | L21: 0
A22: Benz(a)anthracene | B22: 56553 | C22: 0.39 | D22: 0.00011 | E22: 1.2 | F22: 0.39 | G22: 0 | I22: 62555 | J22: 6.1 | K22: 6.1 | L22: 0
A23: beta-Propiolactone | B23: 57578 | C23: 14 | D23: 0.004 | E23: 14 | I23: 62759 | J23: 16 | K23: 16 | L23: 0
A24: Chlordane | B24: 57749 | C24: 1.2 | D24: 0.00034 | E24: 1.3 | I24: 67561
A25: 7,12-Dimethylbenz(a)anthracene | B25: 57976 | C25: 250 | D25: 0.071 | E25: 250 | F25: 250 | G25: 0 | I25: 67630
A26: Hexachlorocyclohexane, gamma isomer | B26: 58899 | C26: 1.1 | D26: 0.00031 | E26: 1.1 | F26: 1.1 | G26: 0 | I26: 67663 | J26: 0.019 | K26: 0.019 | L26: 0
A27: Nitrofurazone | B27: 59870 | C27: 1.3 | D27: 0.00037 | E27: 1.3 | I27: 67721 | K27: 0.039 | L27: 0.039
A28: N-Nitrosomorpholine | B28: 59892 | C28: 6.7 | D28: 0.0019 | E28: 6.7 | F28: 6.7 | G28: 0 | I28: 68122
A29: Phenoxybenzamine | B29: 59961 | C29: 3.1 | D29: 0.00089 | E29: 3.1 | I29: 71432 | J29: 0.1 | K29: 0.1 | L29: 0
A30: 4-Dimethylaminoazobenzene | B30: 60117 | C30: 4.6 | D30: 0.0013 | E30: 4.6 | F30: 4.6 | G30: 0 | I30: 71556
A31: Acetamide | B31: 60355 | C31: 0.07 | D31: 2e-05 | E31: 0.07 | F31: 0.07 | G31: 0 | I31: 74839
A32: Dieldrin | B32: 60571 | C32: 16 | D32: 0.0046 | E32: 16 | I32: 74851
A33: Amitrole | B33: 61825 | C33: 0.94 | D33: 0.00027 | E33: 0.94 | I33: 74908
A34: Phenacetin | B34: 62442 | C34: 0.0022 | D34: 6.3e-07 | E34: 0.0022 | I34: 75003
A35: Aniline | B35: 62533 | C35: 0.0057 | D35: 1.6e-06 | E35: 0.0057 | F35: 0.0057 | G35: 0 | I35: 75014 | J35: 0.27 | K35: 0.27 | L35: 0
A36: Thioacetamide | B36: 62555 | C36: 6.1 | D36: 0.0017 | E36: 6.1 | F36: 6.1 | G36: 0 | I36: 75070 | J36: 0.01 | K36: 0.01 | L36: 0
A37: Thiourea | B37: 62566 | C37: 0.072 | D37: 2.1e-05 | E37: 0.072 | I37: 75092 | J37: 0.0035 | K37: 0.0035 | L37: 0
A38: Dichlorvos | B38: 62737 | C38: 0.29 | D38: 8.3e-05 | E38: 0.41 | I38: 75150
A39: N-Nitrosodimethylamine | B39: 62759 | C39: 16 | D39: 0.0046 | E39: 16 | F39: 16 | G39: 0 | I39: 75218 | J39: 0.31 | K39: 0.31 | L39: 0
A40: Phenoxybenzamine hydrochloride | B40: 63923 | C40: 2.7 | D40: 0.00077 | E40: 2.7 | I40: 75343 | J40: 0.0057 | K40: 0.0057 | L40: 0
A41: Methyl methanesulfonate | B41: 66273 | C41: 0.099 | D41: 2.8e-05 | E41: 0.099 | I41: 75354
A42: Chloroform | B42: 67663 | C42: 0.019 | D42: 5.3e-06 | E42: 0.031 | F42: 0.019 | G42: 0 | I42: 75354
A43: Hexachloroethane | B43: 67721 | C43: 0.039 | D43: 1.1e-05 | E43: 0.039 | F43: 0 | G43: -0.039 | I43: 75445
A44: N-Methyl-N-nitro-N-nitrosoguanidine | B44: 70257 | C44: 8.3 | D44: 0.0024 | E44: 8.3 | I44: 75456
A45: Benzene | B45: 71432 | C45: 0.1 | D45: 2.9e-05 | E45: 0.1 | F45: 0.1 | G45: 0 | I45: 75569 | J45: 0.013 | K45: 0.013 | L45: 0
A46: Dichlorodiphenyldichloroethane | B46: 72548 | C46: 0.24 | D46: 6.9e-05 | E46: 0.24 | I46: 75694
A47: Dichlorodiphenyldichloroethylene | B47: 72559 | C47: 0.34 | D47: 9.7e-05 | E47: 0.34 | I47: 75718
A48: Vinyl chloride | B48: 75014 | C48: 0.27 | D48: 7.8e-05 | E48: 0.27 | F48: 0.27 | G48: 0 | I48: 76062
A49: Acetaldehyde | B49: 75070 | C49: 0.01 | D49: 2.7e-06 | F49: 0.01 | G49: 0 | I49: 77474
A50: Methylene chloride | B50: 75092 | C50: 0.0035 | D50: 1e-06 | E50: 0.014 | F50: 0.0035 | G50: 0 | I50: 78591
A51: Ethylene oxide | B51: 75218 | C51: 0.31 | D51: 8.8e-05 | E51: 0.31 | F51: 0.31 | G51: 0 | I51: 78933
A52: Bromoform | B52: 75252 | E52: 0.011 | I52: 79005 | J52: 0.057 | K52: 0.057 | L52: 0
A53: Bromodichloromethane | B53: 75274 | C53: 0.13 | D53: 3.7e-05 | E53: 0.13 | I53: 79016 | J53: 0.007 | K53: 0.007 | L53: 0
A54: 1,1-Dichloroethane | B54: 75343 | C54: 0.0057 | D54: 1.6e-06 | E54: 0.0057 | F54: 0.0057 | G54: 0 | I54: 79061 | J54: 4.5 | K54: 4.5 | L54: 0
A55: Propylene oxide | B55: 75569 | C55: 0.013 | D55: 3.7e-06 | E55: 0.24 | F55: 0.013 | G55: 0 | I55: 79107
A56: Heptachlor | B56: 76448 | C56: 4.1 | E56: 4.1 | I56: 79345 | J56: 0.2 | K56: 0.2 | L56: 0
A57: 1,2-Dichloropropane | B57: 78875 | C57: 0.036 | D57: 1e-05 | E57: 0.036 | I57: 79469
A58: 1,1,2-Trichloroethane | B58: 79005 | C58: 0.057 | D58: 1.6e-05 | E58: 0.072 | F58: 0.057 | G58: 0 | I58: 80626
A59: Trichloroethylene | B59: 79016 | C59: 0.007 | D59: 2e-06 | E59: 0.013 | F59: 0.007 | G59: 0 | I59: 85449
A60: Acrylamide | B60: 79061 | C60: 4.5 | D60: 0.0013 | E60: 4.5 | F60: 4.5 | G60: 0 | I60: 86306 | J60: 0.009 | K60: 0.009 | L60: 0
A61: 1,1,2,2-Tetrachloroethane | B61: 79345 | C61: 0.2 | D61: 5.8e-05 | E61: 0.27 | F61: 0.2 | G61: 0 | I61: 87683
A62: Dimethylcarbamyl chloride | B62: 79447 | C62: 13 | D62: 0.0037 | E62: 13 | I62: 87865 | J62: 0.018 | K62: 0.018 | L62: 0
A63: 1-Amino-2-methylanthraquinone | B63: 82280 | C63: 0.15 | D63: 4.3e-05 | E63: 0.15 | I63: 88062 | J63: 0.07 | K63: 0.07 | L63: 0
A64: N-Nitrosodiphenylamine | B64: 86306 | C64: 0.009 | D64: 2.6e-06 | E64: 0.009 | F64: 0.009 | G64: 0 | I64: 90948 | J64: 0.86 | K64: 0.86 | L64: 0
A65: Cinnamyl anthranilate | B65: 87296 | C65: 0.0046 | D65: 1.3e-06 | E65: 0.0046 | I65: 91087 | J65: 0.039
A66: Pentachlorophenol | B66: 87865 | C66: 0.018 | D66: 4.6e-06 | E66: 0.081 | F66: 0.018 | G66: 0 | I66: 91203 | J66: 0.12 | K66: 0.12 | L66: 0
A67: 2,4,6-Trichlorophenol | B67: 88062 | C67: 0.07 | D67: 2e-05 | E67: 0.07 | F67: 0.07 | G67: 0 | I67: 91941 | J67: 1.2 | K67: =VLOOKUP(I67,$B$3:$E$280,2,FALSE) -> 1.2 | L67: =IF(ISNA(K67),"",K67-J67) -> 0
A68: ortho-Anisidine | B68: 90040 | C68: 0.14 | D68: 4e-05 | E68: 0.14 | F68: =VLOOKUP(B68,$I$2:$J$262,2,FALSE) ->  | G68: =IF(ISNA(F68),"",F68-C68) ->  | I68: 92875 | J68: 500 | K68: 500 | L68: 0
A69: Michler's ketone | B69: 90948 | C69: 0.86 | D69: 0.00025 | E69: 0.86 | F69: 0.86 | G69: 0 | I69: 95476
A70: Naphthalene | B70: 91203 | C70: 0.12 | D70: 3.4e-05 | F70: 0.12 | G70: 0 | I70: 95487
A71: 2-Naphthylamine | B71: 91598 | C71: 1.8 | D71: 0 | E71: 1.8 | I71: 95578
A72: 3,3-Dichlorobenzidine | B72: 91941 | C72: 1.2 | D72: 0.00034 | E72: 1.2 | F72: 1.2 | G72: 0 | I72: 95692 | J72: 0.27 | K72: 0.27 | L72: 0
A73: 4-Aminobiphenyl (4-aminodiphenyl) | B73: 92671 | C73: 21 | D73: 0.006 | E73: 21 | I73: 95807 | J73: 4 | K73: 4 | L73: 0
A74: Benzidine | B74: 92875 | C74: 500 | D74: 0.14 | E74: 500 | F74: 500 | G74: 0 | I74: 95830 | J74: 0.016 | K74: 0.016 | L74: 0
A75: Dihydrosafrole | B75: 94586 | C75: 0.044 | D75: 1.3e-05 | E75: 0.044 | I75: 96000
A76: Safrole | B76: 94597 | C76: 0.22 | D76: 6.3e-05 | E76: 0.22 | I76: 96093 | K76: 0.16 | L76: 0.16
A77: Phenazopyridine | B77: 94780 | C77: 0.17 | D77: 4.9e-05 | E77: 0.17 | I77: 96128 | J77: 7 | K77: 7 | L77: 0
A78: Sulfallate | B78: 95067 | C78: 0.19 | D78: 5.4e-05 | E78: 0.19 | I78: 96457 | J78: 0.045 | K78: 0.045 | L78: 0
A79: ortho-Toluidine | B79: 95534 | C79: 0.18 | D79: 5.1e-05 | E79: 0.18 | I79: 98953
A80: p-Chloro-o-toluidine | B80: 95692 | C80: 0.27 | D80: 7.7e-05 | E80: 0.27 | F80: 0.27 | G80: 0 | I80: 100414 | K80: 0.0087
A81: 2,4-Diaminotoluene | B81: 95807 | C81: 4 | D81: 0.0011 | E81: 3.8 | F81: 4 | G81: 0 | I81: 100425
A82: 4-Chloro-ortho-phenylenediamine | B82: 95830 | C82: 0.016 | D82: 4.6e-06 | E82: 0.016 | F82: 0.016 | G82: 0 | I82: 100447 | J82: 0.17 | K82: 0.17 | L82: 0
A83: Styrene oxide | B83: 96093 | C83: 0.16 | D83: 4.6e-05 | E83: 0.16 | F83: 0 | G83: -0.16 | I83: 100754 | J83: 9.4 | K83: 9.4 | L83: 0
A84: 1,2-Dibromo-3-chloropropane | B84: 96128 | C84: 7 | D84: 0.0019 | E84: 7 | F84: 7 | G84: 0 | I84: 101144 | J84: 1.5 | K84: 1.5 | L84: 0
A85: Ethylene thiourea | B85: 96457 | C85: 0.045 | D85: 1.3e-05 | E85: 0.045 | F85: 0.045 | G85: 0 | I85: 101688
A86: ortho-Aminoazotoluene | B86: 97563 | C86: 3.8 | D86: 0.0011 | E86: 3.8 | I86: 101779 | J86: 1.6 | K86: 1.6 | L86: 0
A87: 5-Nitro-o-anisidine | B87: 99592 | C87: 0.049 | D87: 1.4e-05 | E87: 0.049 | I87: 106423
A88: Ethyl Benzene | B88: 100414 | C88: 0.0087 | D88: 2.5e-06 | E88: 0.011 | I88: 106445
A89: Ethylbenzene | B89: 100414 | C89: 0.0087 | D89: 2.5e-06 | E89: 0.011 | I89: 106467 | J89: 0.04 | K89: 0.04 | L89: 0
A90: Benzyl chloride | B90: 100447 | C90: 0.17 | D90: 4.9e-05 | E90: 0.17 | F90: 0.17 | G90: 0 | I90: 106887
A91: N-Nitrosopiperidine | B91: 100754 | C91: 9.4 | D91: 0.0027 | E91: 9.4 | F91: 9.4 | G91: 0 | I91: 106898 | J91: 0.08 | K91: 0.08 | L91: 0
A92: 4,4-Methylene bis(2-chloroaniline) | B92: 101144 | C92: 1.5 | D92: 0.00043 | E92: 1.5 | F92: 1.5 | G92: 0 | I92: 106934 | J92: 0.25 | K92: 0.25 | L92: 0
A93: 4,4-Methylene bis(N,N'-dimethyl)aniline | B93: 101611 | C93: 0.046 | D93: 1.3e-05 | E93: 0.046 | I93: 106990 | J93: 0.6 | K93: 0.6 | L93: 0
A94: 4,4-Methylenedianiline | B94: 101779 | C94: 1.6 | D94: 0.00046 | E94: 1.6 | F94: 1.6 | G94: 0 | I94: 107028
A95: 4,4-Diaminodiphenyl ether | B95: 101804 | C95: 0.14 | D95: 4e-05 | E95: 0.14 | I95: 107051 | J95: 0.021 | K95: 0.021 | L95: 0
A96: Diglycidyl resorcinol ether (DGRE) | B96: 101906 | C96: 1.7 | D96: 0.00049 | E96: 1.7 | I96: 107062 | J96: 0.072 | K96: 0.072 | L96: 0
A97: Azobenzene | B97: 103333 | C97: 0.11 | D97: 3.1e-05 | E97: 0.11 | I97: 107131 | J97: 1 | K97: 1 | L97: 0
A98: 1,4-Dichlorobenzene | B98: 106467 | C98: 0.04 | D98: 1.1e-05 | E98: 0.0054 | F98: 0.04 | G98: 0 | I98: 107211
A99: Epichlorohydrin | B99: 106898 | C99: 0.08 | D99: 2.3e-05 | E99: 0.08 | F99: 0.08 | G99: 0 | I99: 107982
A100: 1,2-Dibromoethane | B100: 106934 | C100: 0.25 | D100: 7.1e-05 | E100: 3.6 | F100: 0.25 | G100: 0 | I100: 108054
A101: 1,3-Butadiene | B101: 106990 | C101: 0.6 | D101: 0.00017 | E101: 3.4 | F101: 0.6 | G101: 0 | I101: 108316
A102: Allyl chloride | B102: 107051 | C102: 0.021 | D102: 6e-06 | E102: 0.021 | F102: 0.021 | G102: 0 | I102: 108383
A103: 1,2-Dichloroethane | B103: 107062 | C103: 0.072 | D103: 2.1e-05 | E103: 0.047 | F103: 0.072 | G103: 0 | I103: 108394
A104: Acrylonitrile | B104: 107131 | C104: 1 | D104: 0.00029 | E104: 1 | F104: 1 | G104: 0 | I104: 108883
A105: Chloromethyl methyl ether (technical grade) | B105: 107302 | C105: 2.4 | D105: 0.00069 | E105: 2.4 | I105: 108907
A106: Bis(2-chloroethyl) ether | B106: 111444 | C106: 2.5 | D106: 0.00071 | E106: 2.5 | F106: 2.5 | G106: 0 | I106: 108952
A107: Azaserine | B107: 115026 | C107: 11 | D107: 0.0031 | E107: 11 | I107: 109864
A108: Chlorendic acid | B108: 115286 | C108: 0.091 | D108: 2.6e-05 | E108: 0.091 | I108: 110496
A109: Dantron | B109: 117102 | C109: 0.076 | D109: 2.2e-05 | E109: 0.076 | I109: 110543
A110: 2-Aminoanthraquinone | B110: 117793 | C110: 0.033 | D110: 9.4e-06 | E110: 0.033 | F110: 0.033 | G110: 0 | I110: 110805
A111: Di(2-ethylhexyl)phthalate | B111: 117817 | C111: 0.0084 | D111: 2.4e-06 | E111: 0.003 | F111: 0.0084 | G111: 0 | I111: 111159
A112: Hexachlorobenzene | B112: 118741 | C112: 1.8 | D112: 0.00051 | E112: 1.8 | F112: 1.8 | G112: 0 | I112: 111308
A113: para-Cresidine | B113: 120718 | C113: 0.15 | D113: 4.3e-05 | E113: 0.15 | F113: 0.15 | G113: 0 | I113: 111422
A114: 1,2,4-Trichlorobenzene | B114: 120821 | E114: 0.0036 | I114: 111444 | J114: 2.5 | K114: 2.5 | L114: 0
A115: 2,4-Dinitrotoluene | B115: 121142 | C115: 0.31 | D115: 8.9e-05 | E115: 0.31 | F115: 0.31 | G115: 0 | I115: 111466
A116: Hydrazobenzene | B116: 122667 | C116: 0.87 | D116: 0.00025 | E116: 0.87 | F116: 0.875 | G116: 0.005 | I116: 111762
A117: 1,4-Dioxane | B117: 123911 | C117: 0.027 | D117: 7.7e-06 | E117: 0.027 | F117: 0.027 | G117: 0 | I117: 115071
A118: Chlorodibromomethane | B118: 124481 | C118: 0.094 | D118: 2.7e-05 | E118: 0.094 | I118: 117793 | J118: 0.033 | K118: 0.033 | L118: 0
A119: Tris(2,3-dibromopropyl)phosphate | B119: 126727 | C119: 2.3 | D119: 0.00066 | E119: 2.3 | I119: 117817 | J119: 0.0084 | K119: 0.0084 | L119: 0
A120: Tetrachloroethylene | B120: 127184 | C120: 0.021 | D120: 5.9e-06 | E120: 0.54 | F120: 0.021 | G120: 0 | I120: 118741 | J120: 1.8 | K120: 1.8 | L120: 0
A121: 2-Methyl-1-nitroanthraquinone (of uncertain purity) | B121: 129157 | C121: 4.3 | D121: 0.0012 | E121: 4.3 | I121: 120718 | J121: 0.15 | K121: 0.15 | L121: 0
A122: O-Phenylphenate, sodium | B122: 132274 | C122: 0.003 | D122: 8.6e-07 | E122: 0.003 | I122: 121142 | J122: 0.31 | K122: 0.31 | L122: 0
A123: Captan | B123: 133062 | C123: 0.0023 | D123: 6.6e-07 | E123: 0.0023 | I123: 121448
A124: ortho-Anisidine hydrochloride | B124: 134292 | C124: 0.11 | D124: 3.1e-05 | E124: 0.11 | I124: 122667 | J124: 0.875 | K124: 0.87 | L124: -0.005
A125: Cupferron | B125: 135206 | C125: 0.22 | D125: 6.3e-05 | E125: 0.22 | F125: 0.22 | G125: 0 | I125: 123911 | J125: 0.027 | K125: 0.027 | L125: 0
A126: Phenazopyridine hydrochloride | B126: 136403 | C126: 0.15 | D126: 4.3e-05 | E126: 0.15 | I126: 126998
A127: Nitrilotriacetic acid | B127: 139139 | C127: 0.0053 | D127: 1.5e-06 | E127: 0.0053 | I127: 127184 | J127: 0.021 | K127: 0.021 | L127: 0
A128: 4,4-Thiodianiline | B128: 139651 | C128: 15 | D128: 0.0043 | E128: 15 | I128: 135206 | J128: 0.22 | K128: 0.22 | L128: 0
A129: Aramite | B129: 140578 | C129: 0.03 | D129: 8.6e-06 | E129: 0.03 | I129: 140885
A130: Chlordecone (Kepone) | B130: 143500 | C130: 16 | D130: 0.0046 | E130: 16 | I130: 156105 | J130: 0.022 | K130: 0.022 | L130: 0
A131: Ethyleneimine | B131: 151564 | C131: 65 | D131: 0.019 | E131: 65 | I131: 189559 | J131: 39 | K131: =VLOOKUP(I131,$B$3:$E$280,2,FALSE) -> 39 | L131: =IF(ISNA(K131),"",K131-J131) -> 0
A132: p-Nitrosodiphenylamine | B132: 156105 | C132: 0.022 | D132: 6.3e-06 | E132: 0.022 | F132: =VLOOKUP(B132,$I$2:$J$262,2,FALSE) -> 0.022 | G132: =IF(ISNA(F132),"",F132-C132) -> 0 | I132: 189640 | J132: 39 | K132: 39 | L132: 0
A133: Dibenzo(a,i)pyrene | B133: 189559 | C133: 39 | D133: 0.011 | E133: 120 | F133: 39 | G133: 0 | I133: 191300 | J133: 39 | K133: 39 | L133: 0
A134: Dibenzo(a,h)pyrene | B134: 189640 | C134: 39 | D134: 0.011 | E134: 120 | F134: 39 | G134: 0 | I134: 192654 | J134: 3.9 | K134: 3.9 | L134: 0
A135: Dibenzo(a,l)pyrene | B135: 191300 | C135: 39 | D135: 0.011 | E135: 120 | F135: 39 | G135: 0 | I135: 193395 | J135: 0.39 | K135: 0.39 | L135: 0
A136: Dibenzo(a,e)pyrene | B136: 192654 | C136: 3.9 | D136: 0.0011 | E136: 12 | F136: 3.9 | G136: 0 | I136: 194592 | J136: 3.9 | K136: 3.9 | L136: 0
A137: Indeno(1,2,3-c,d)pyrene | B137: 193395 | C137: 0.39 | D137: 0.00011 | E137: 1.2 | F137: 0.39 | G137: 0 | I137: 205823 | J137: 0.39 | K137: 0.39 | L137: 0
A138: 7H-dibenzo(c,g)carbazole | B138: 194592 | C138: 3.9 | D138: 0.0011 | E138: 12 | F138: 3.9 | G138: 0 | I138: 205992 | J138: 0.39 | K138: 0.39 | L138: 0
A139: Benzo(j)fluoranthene | B139: 205823 | C139: 0.39 | D139: 0.00011 | E139: 1.2 | F139: 0.39 | G139: 0 | I139: 207089 | J139: 0.39 | K139: 0.39 | L139: 0
A140: Benzo(b)fluoranthene | B140: 205992 | C140: 0.39 | D140: 0.00011 | E140: 1.2 | F140: 0.39 | G140: 0 | I140: 218019 | J140: 0.039 | K140: 0.039 | L140: 0
A141: Benzo(k)fluoranthene | B141: 207089 | C141: 0.39 | D141: 0.00011 | E141: 1.2 | F141: 0.39 | G141: 0 | I141: 224420 | J141: 0.39 | K141: 0.39 | L141: 0
A142: Chrysene | B142: 218019 | C142: 0.039 | D142: 1.1e-05 | E142: 0.12 | F142: 0.039 | G142: 0 | I142: 226368 | J142: 0.39 | K142: 0.39 | L142: 0
A143: Dibenz(a,j)acridine | B143: 224420 | C143: 0.39 | D143: 0.00011 | E143: 1.2 | F143: 0.39 | G143: 0 | I143: 301042 | J143: 0.042 | K143: 0.28 | L143: 0.238
A144: Dibenz(a,h)acridine | B144: 226368 | C144: 0.39 | D144: 0.00011 | E144: 1.2 | F144: 0.39 | G144: 0 | I144: 302012 | J144: 17 | K144: 17 | L144: 0
A145: Lead acetate | B145: 301042 | C145: 0.28 | D145: 8e-05 | E145: 0.28 | F145: 0.042 | G145: -0.238 | I145: 373024 | J145: 0.91
A146: Hydrazine | B146: 302012 | C146: 17 | D146: 0.0049 | E146: 3 | F146: 17 | G146: 0 | I146: 532274
A147: Lasiocarpine | B147: 303344 | C147: 7.8 | D147: 0.0022 | E147: 7.8 | I147: 542881 | J147: 46 | K147: 46 | L147: 0
A148: Chlorambucil | B148: 305033 | C148: 440 | D148: 0.13 | E148: 0.0023 | I148: 584849 | J148: 0.039
A149: Aldrin | B149: 309002 | C149: 17 | D149: 0.0049 | E149: 17 | I149: 593602
A150: Monocrotaline | B150: 315220 | C150: 10 | D150: 0.0029 | E150: 10 | I150: 593748
A151: Hexachlorocyclohexane, alpha isomer | B151: 319846 | C151: 2.7 | D151: 0.00077 | E151: 2.7 | I151: 602879 | J151: 0.13 | K151: 0.13 | L151: 0
A152: Hexachlorocyclohexane, beta isomer | B152: 319857 | C152: 1.5 | D152: 0.00043 | E152: 1.5 | I152: 607578 | J152: 0.039 | K152: 0.039 | L152: 0
A153: Procarbazine hydrochloride | B153: 366701 | C153: 12 | D153: 0.0034 | E153: 12 | I153: 608731 | J153: 4 | K153: 4 | L153: 0
A154: Azathioprine | B154: 446866 | C154: 1.8 | D154: 0.00051 | E154: 1.8 | I154: 615054 | J154: 0.023 | K154: 0.023 | L154: 0
A155: Auramine | B155: 492808 | C155: 0.88 | D155: 0.00025 | E155: 0.88 | I155: 621647 | J155: 7 | K155: 7 | L155: 0
A156: Ethyl-4,4'-dichlorobenzilate | B156: 510156 | C156: 0.11 | D156: 3.1e-05 | E156: 0.11 | I156: 624839
A157: Dimethylvinylchloride | B157: 513371 | C157: 0.045 | D157: 1.3e-05 | E157: 0.045 | I157: 684935 | J157: 119 | K157: 120 | L157: 1
A158: N-[4-(5-Nitro-2-furyl)-2-thiazolyl]-acetamide | B158: 531828 | C158: 1.5 | D158: 0.00043 | E158: 1.5 | I158: 759739 | J158: 27 | K158: 27 | L158: 0
A159: 1,2-Dimethylhydrazine | B159: 540738 | C159: 550 | D159: 0.16 | E159: 550 | I159: 822060
A160: 1,3-Dichloropropene | B160: 542756 | C160: 0.055 | D160: 1.6e-05 | E160: 0.091 | I160: 924163 | J160: 11 | K160: 11 | L160: 0
A161: Bis(2-chloromethyl) ether | B161: 542881 | C161: 46 | D161: 0.013 | E161: 46 | F161: 46 | G161: 0 | I161: 930552 | J161: 2.1 | K161: 2.1 | L161: 0
A162: 1-[(5-Nitrofurfurylidene)-amino]-2-imidazolidinone | B162: 555840 | C162: 1.8 | D162: 0.00051 | E162: 1.8 | I162: 1120714 | J162: 2.4 | K162: 2.4 | L162: 0
A163: 3-Chloro-2-methylpropene | B163: 563473 | C163: 0.14 | D163: 4e-05 | E163: 0.14 | I163: 1271289 | J163: 0.91
A164: C.I. Basic Red 9 monohydrochloride | B164: 569619 | C164: 0.25 | D164: 7.1e-05 | E164: 240 | I164: 1309644
A165: 5-Nitroacenaphthene | B165: 602879 | C165: 0.13 | D165: 3.7e-05 | E165: 0.13 | F165: 0.13 | G165: 0 | I165: 1310732
A166: 2-Nitrofluorene | B166: 607578 | C166: 0.039 | D166: 1.1e-05 | E166: 0.12 | F166: 0.039 | G166: 0 | I166: 1313991 | J166: 0.91
A167: Hexachlorocyclohexane (technical grade) | B167: 608731 | C167: 4 | D167: 0.0011 | E167: 4 | F167: 4 | G167: 0 | I167: 1314132
A168: 2,4-Diaminoanisole | B168: 615054 | C168: 0.023 | D168: 6.6e-06 | E168: 0.023 | F168: 0.023 | G168: 0 | I168: 1314621
A169: N-Nitroso-N-methylurethane | B169: 615532 | C169: 110 | D169: 0.031 | E169: 110 | I169: 1319773
A170: N-Nitrosodi-n-propylamine | B170: 621647 | C170: 7 | D170: 0.002 | E170: 7 | F170: 7 | G170: 0 | I170: 1330207
A171: ortho-Toluidine hydrochloride | B171: 636215 | C171: 0.13 | D171: 3.7e-05 | E171: 0.13 | I171: 1332214 | J171: 220 | K171: 220 | L171: 0
A172: Procarbazine | B172: 671169 | C172: 14 | D172: 0.004 | E172: 14 | I172: 1333820 | J172: 510
A173: N-Nitroso-N-methylurea | B173: 684935 | C173: 120 | D173: 0.034 | E173: 120 | F173: 119 | G173: -1 | I173: 1335326 | J173: 0.042 | K173: 0.038 | L173: -0.004
A174: 2-Amino-5-(5-nitro-2-furyl)-1,3,4-thiadiazol | B174: 712685 | C174: 16 | D174: 0.0046 | E174: 16 | I174: 1336363 | J174: 2 | K174: 2 | L174: 0
A175: N-Nitroso-N-ethylurea | B175: 759739 | C175: 27 | D175: 0.0077 | E175: 27 | F175: 27 | G175: 0 | I175: 1634044 | J175: 0.0018 | K175: 0.00091 | L175: -0.00089
A176: 4,4-Methylene bis(2-methylaniline) | B176: 838880 | C176: 0.92 | D176: 0.00026 | E176: 0.92 | I176: 1746016 | J176: 130000 | K176: 130000 | L176: 0
A177: N-Nitrosodi-n-butylamine | B177: 924163 | C177: 11 | D177: 0.0031 | E177: 11 | F177: 11 | G177: 0 | I177: 3268879 | J177: 13 | K177: 13 | L177: 0
A178: N-Nitrosopyrrolidine | B178: 930552 | C178: 2.1 | D178: 0.0006 | E178: 2.1 | F178: 2.1 | G178: 0 | I178: 3333673 | J178: 0.91
A179: Heptachlor epoxide | B179: 1024573 | C179: 5.5 | E179: 5.5 | I179: 3697243 | J179: 3.9 | K179: 3.9 | L179: 0
A180: N-Nitrosodiethanolamine | B180: 1116547 | C180: 2.8 | D180: 0.0008 | E180: 2.8 | I180: 5522430 | J180: 0.39 | K180: 0.39 | L180: 0
A181: 1,3-Propane sultone | B181: 1120714 | C181: 2.4 | D181: 0.00069 | E181: 2.4 | F181: 2.4 | G181: 0 | I181: 7439921 | J181: 0.042 | K181: 0.042 | L181: 0
A182: Beryllium oxide | B182: 1304569 | C182: 8.4 | D182: 0.0024 | I182: 7439965
A183: Asbestos [1/(100 PCM fibers/m^3)]^-1 | B183: 1332214 | C183: 220 | D183: 0.063 | F183: 220 | G183: 0 | I183: 7439976
A184: Lead subacetate | B184: 1335326 | C184: 0.038 | D184: 1.1e-05 | E184: 0.038 | F184: 0.042 | G184: 0.004 | I184: 7440020 | J184: 0.91 | K184: 0.91 | L184: 0
A185: Polychlorinated biphenyls | B185: 1336363 | C185: 2 | D185: 0.00057 | E185: 5 | F185: 2 | G185: 0 | I185: 7440224
A186: Daminozide | B186: 1596845 | C186: 0.018 | D186: 5.1e-06 | E186: 0.018 | I186: 7440382 | J186: 12 | K186: 12 | L186: 0
A187: Methyl tertiary butyl ether (MTBE) | B187: 1634044 | C187: 0.00091 | D187: 2.6e-07 | E187: 0.0018 | F187: 0.0018 | G187: 0.00089 | I187: 7440417 | J187: 8.4 | K187: 8.4 | L187: 0
A188: Benzyl violet 4B | B188: 1694093 | C188: 0.02 | D188: 5.7e-06 | E188: 0.02 | I188: 7440439 | J188: 15 | K188: 15 | L188: 0
A189: 2,3,7,8-Tetrachlorodibenzo-p-dioxin and related compounds (TCDD) | B189: 1746016 | C189: 130000 | D189: 38 | E189: 130000 | F189: 130000 | G189: 0 | I189: 7440484
A190: Nitrofen (technical grade) | B190: 1836755 | C190: 0.082 | D190: 2.3e-05 | E190: 0.082 | I190: 7440508
A191: Chlorothalonil | B191: 1897456 | C191: 0.0031 | D191: 8.9e-07 | E191: 0.0031 | I191: 7440622
A192: Atrazine | B192: 1912249 | E192: 0.23 | I192: 7440666
A193: Direct Black 38 (technical grade) | B193: 1937377 | C193: 7.4 | D193: 0.0021 | E193: 7.4 | I193: 7446119
A194: Mirex | B194: 2385855 | C194: 18 | D194: 0.0051 | E194: 18 | I194: 7446277 | J194: 0.042
A195: Captafol | B195: 2425061 | C195: 0.15 | D195: 4.3e-05 | E195: 0.15 | I195: 7487947 | K195: =VLOOKUP(I195,$B$3:$E$280,2,FALSE) ->  | L195: =IF(ISNA(K195),"",K195-J195) -> 
A196: Disperse Blue 1 (technical grade) | B196: 2475458 | C196: 0.0045 | D196: 1.3e-06 | E196: 0.0045 | F196: =VLOOKUP(B196,$I$2:$J$262,2,FALSE) ->  | G196: =IF(ISNA(F196),"",F196-C196) ->  | I196: 7496028 | J196: 39 | K196: 39 | L196: 0
A197: Direct Blue 6 (technical grade) | B197: 2602462 | C197: 7.4 | D197: 0.0021 | E197: 7.4 | I197: 7631869
A198: HC Blue 1 | B198: 2784943 | C198: 0.051 | D198: 1.5e-05 | E198: 0.051 | I198: 7647010
A199: beta-Butyrolactone | B199: 3068880 | C199: 1 | D199: 0.00029 | E199: 1 | I199: 7664382
A200: Melphalan | B200: 3223072 | C200: 130 | D200: 0.037 | E200: 130 | I200: 7664393
... 80 more rows

Sheet Table2 Boiler < 12 (hidden)
B2: Look up for Boiler < 12 hrs/day Data and X/Q
H3: Interpolation
F4: MMBTU | G4: =Emissions!SourceCapacity -> n/a | I4: row: | J4: =IF(Q14<Q15,Q14,Q15) -> 7 | P4: MMBTU | Q4: ROW
B5: Station | C5: =Emissions!$E$25 -> Long Beach | G5: Residential | J5: Industrial | M5: X/Q for one-in-a-million | P5: 2 | Q5: 1
B6: MET | C6: =VLOOKUP($C$5,table2b,MATCH("Met",head2b,0),FALSE) -> 0.59 | F6: near | G6: actual | H6: far | I6: near | J6: actual | K6: far | L6: near | M6: actual | N6: far | P6: 5 | Q6: 2
B7: X/Q (residential) | C7: =$G$8 -> 0.03457261545 | E7: distance | F7: =IF(G7<25,25,HLOOKUP(G7,table2a,1,TRUE)) -> 200 | G7: =Emissions!E23 -> 250 | H7: =IF(G7<25,25,IF(G7>=1000,1000,IF(G7=HLOOKUP(G7,table2a,1,TRUE),G7,INDEX(table2a,1,MATCH(G7,head2a,1)+1)))) -> 300 | I7: =IF(J7<25,25,HLOOKUP(J7,table2a,1,TRUE)) -> 50 | J7: =Emissions!E24 -> 65 | K7: =IF(J7<25,25,IF(J7>=1000,1000,IF(J7=HLOOKUP(J7,table2a,1,TRUE),J7,INDEX(table2a,1,MATCH(J7,head2a,1)+1)))) -> 75 | L7: =IF(L8="","",INDEX(table2a,1,MATCH(L8,IF($J$4=1,$C14:$J14,IF($J$4=2,$C15:$J15,IF($J$4=3,$C16:$J16,""))),-1))) ->  | M7: =IF(L7="","",IF(N7=L7,"no data",L7-(L8-M8)/(L8-N8)*(L7-N7))) ->  | N7: =IF(N8="","",INDEX(table2a,1,MATCH(N8,IF($J$4=1,$C14:$J14,IF($J$4=2,$C15:$J15,IF($J$4=3,$C16:$J16,""))),-1))) ->  | P7: 10 | Q7: 3
B8: X/Q (industrial) | C8: =$J$8 -> 0.154551169 | E8: X/Q | F8: =HLOOKUP(F7,table2a,$J$4+1,TRUE) -> 0.0412966639 | G8: =IF(F8=H8,F8,F8-(((G7-F7)/(H7-F7))*(F8-H8))) -> 0.03457261545 | H8: =HLOOKUP(H7,table2a,$J$4+1,TRUE) -> 0.027848567 | I8: =HLOOKUP(I7,table2a,$J$4+1,TRUE) -> 0.1918916838 | J8: =IF(I8=K8,I8,I8-(((J7-I7)/(K7-I7))*(I8-K8))) -> 0.154551169 | K8: =HLOOKUP(K7,table2a,$J$4+1,TRUE) -> 0.1296574924 | L8: =IF(M8>0,INDEX(table2a,$J$4+1,MATCH(M8,IF($J$4=1,$C14:$J14,IF($J$4=2,$C15:$J15,IF($J$4=3,$C16:$J16,""))),-1)),"") ->  | M8: ='Tier 2 Report'!L196*0.02879 -> 0 | N8: =IF(M8="","",IF(AND(M8<L8,L7=1000),L8,INDEX(table2a,$J$4+1,MATCH(M8,IF($J$4=1,$C14:$J14,IF($J$4=2,$C15:$J15,IF($J$4=3,$C16:$J16,""))),-1)+1))) ->  | P8: 20 | Q8: 4
E9: distance | F9: =F7 -> 200 | G9: 250 | H9: 300 | I9: 50 | J9: 65 | K9: 75 | L9: =IF(L10="","",INDEX(table2a,1,MATCH(L10,IF($J$4=4,$C17:$J17,IF($J$4=5,$C18:$J18,IF($J$4=6,$C19:$J19,IF($J$4=7,$C20:$J20,"")))),-1))) -> 1000 | M9: =IF(L9="","",IF(N9=L9,"no data",L9-(L10-M10)/(L10-N10)*(L9-N9))) -> no data | N9: =IF(N10="","",INDEX(table2a,1,MATCH(N10,IF($J$4=4,$C17:$J17,IF($J$4=5,$C18:$J18,IF($J$4=6,$C19:$J19,IF($J$4=7,$C20:$J20,"")))),-1))) -> 1000 | P9: 40 | Q9: 5
E10: X/Q | F10: 0.0412966639 | G10: 0.03457261545 | H10: 0.027848567 | I10: 0.1918916838 | J10: 0.154551169 | K10: 0.1296574924 | L10: =IF(M10="","",INDEX(table2a,$J$4+1,MATCH(M10,IF($J$4=4,$C17:$J17,IF($J$4=5,$C18:$J18,IF($J$4=6,$C19:$J19,IF($J$4=7,$C20:$J20,"")))),-1))) -> 0.0137351332 | M10: =M8 -> 0 | N10: =IF(M10="","",IF(AND(M10<L10,L9=1000),L10,INDEX(table2a,$J$4+1,MATCH(M10,IF($J$4=4,$C17:$J17,IF($J$4=5,$C18:$J18,IF($J$4=6,$C19:$J19,IF($J$4=7,$C20:$J20,"")))),-1)+1))) -> 0.0137351332 | P10: 50 | Q10: 6
B11: Table 2A - Point Source, operating 12 hrs/day or less | P11: 75 | Q11: 7
B12: MMBTU | E12: Downwind Distance (meters)
C13: 25 | D13: 50 | E13: 75 | F13: 100 | G13: 200 | H13: 300 | I13: 500 | J13: 1000
B14: 2 | C14: =VLOOKUP($C$5,BoilerLessThan12,2,FALSE)*0.02879 -> 6.168898078 | D14: =VLOOKUP($C$5,BoilerLessThan12,3,FALSE)*0.02879 -> 3.261663437 | E14: =VLOOKUP($C$5,BoilerLessThan12,4,FALSE)*0.02879 -> 1.918566176 | F14: =VLOOKUP($C$5,BoilerLessThan12,5,FALSE)*0.02879 -> 1.224738404 | G14: =VLOOKUP($C$5,BoilerLessThan12,6,FALSE)*0.02879 -> 0.4015122496 | H14: =VLOOKUP($C$5,BoilerLessThan12,7,FALSE)*0.02879 -> 0.2107684231 | I14: =VLOOKUP($C$5,BoilerLessThan12,8,FALSE)*0.02879 -> 0.0891663727 | J14: =VLOOKUP($C$5,BoilerLessThan12,9,FALSE)*0.02879 -> 0.0267191353 | K14: (ug/m^3)/(tons/yr) | P14: Row: | Q14: =IF(G4<=P5,Q5,IF(G4<=P6,Q6,IF(G4<=P7,Q7,IF(G4<=P8,Q8,IF(G4<=P9,Q9))))) -> FALSE
B15: 5 | C15: =VLOOKUP($C$5,BoilerLessThan12,11,FALSE)*0.02879 -> 4.745550131 | D15: =VLOOKUP($C$5,BoilerLessThan12,12,FALSE)*0.02879 -> 2.143683247 | E15: =VLOOKUP($C$5,BoilerLessThan12,13,FALSE)*0.02879 -> 1.455593898 | F15: =VLOOKUP($C$5,BoilerLessThan12,14,FALSE)*0.02879 -> 1.003641568 | G15: =VLOOKUP($C$5,BoilerLessThan12,15,FALSE)*0.02879 -> 0.353359823 | H15: =VLOOKUP($C$5,BoilerLessThan12,16,FALSE)*0.02879 -> 0.1917641441 | I15: =VLOOKUP($C$5,BoilerLessThan12,17,FALSE)*0.02879 -> 0.0845778225 | J15: =VLOOKUP($C$5,BoilerLessThan12,18,FALSE)*0.02879 -> 0.0261387289 | K15: (ug/m^3)/(tons/yr) | P15: Row: | Q15: =IF(G4<P10,Q10,Q11) -> 7
B16: 10 | C16: =VLOOKUP($C$5,BoilerLessThan12,20,FALSE)*0.02879 -> 3.291881996 | D16: =VLOOKUP($C$5,BoilerLessThan12,21,FALSE)*0.02879 -> 1.479208607 | E16: =VLOOKUP($C$5,BoilerLessThan12,22,FALSE)*0.02879 -> 0.8582840252 | F16: =VLOOKUP($C$5,BoilerLessThan12,23,FALSE)*0.02879 -> 0.6699882124 | G16: =VLOOKUP($C$5,BoilerLessThan12,24,FALSE)*0.02879 -> 0.2827978362 | H16: =VLOOKUP($C$5,BoilerLessThan12,25,FALSE)*0.02879 -> 0.1622857752 | I16: =VLOOKUP($C$5,BoilerLessThan12,26,FALSE)*0.02879 -> 0.0764124027 | J16: =VLOOKUP($C$5,BoilerLessThan12,27,FALSE)*0.02879 -> 0.024986841 | K16: (ug/m^3)/(tons/yr)
B17: 20 | C17: =VLOOKUP($C$5,BoilerLessThan12,29,FALSE)*0.02879 -> 2.493390195 | D17: =VLOOKUP($C$5,BoilerLessThan12,30,FALSE)*0.02879 -> 1.133499151 | E17: =VLOOKUP($C$5,BoilerLessThan12,31,FALSE)*0.02879 -> 0.6520572246 | F17: =VLOOKUP($C$5,BoilerLessThan12,32,FALSE)*0.02879 -> 0.4519232517 | G17: =VLOOKUP($C$5,BoilerLessThan12,33,FALSE)*0.02879 -> 0.230746092 | H17: =VLOOKUP($C$5,BoilerLessThan12,34,FALSE)*0.02879 -> 0.1395724805 | I17: =VLOOKUP($C$5,BoilerLessThan12,35,FALSE)*0.02879 -> 0.0693778541 | J17: =VLOOKUP($C$5,BoilerLessThan12,36,FALSE)*0.02879 -> 0.0238838961 | K17: (ug/m^3)/(tons/yr)
B18: 40 | C18: =VLOOKUP($C$5,BoilerLessThan12,38,FALSE)*0.02879 -> 0.7321933259 | D18: =VLOOKUP($C$5,BoilerLessThan12,39,FALSE)*0.02879 -> 0.3960599994 | E18: =VLOOKUP($C$5,BoilerLessThan12,40,FALSE)*0.02879 -> 0.2472286549 | F18: =VLOOKUP($C$5,BoilerLessThan12,41,FALSE)*0.02879 -> 0.1721475018 | G18: =VLOOKUP($C$5,BoilerLessThan12,42,FALSE)*0.02879 -> 0.0729089476 | H18: =VLOOKUP($C$5,BoilerLessThan12,43,FALSE)*0.02879 -> 0.0546883324 | I18: =VLOOKUP($C$5,BoilerLessThan12,44,FALSE)*0.02879 -> 0.0387121856 | J18: =VLOOKUP($C$5,BoilerLessThan12,45,FALSE)*0.02879 -> 0.0182399045 | K18: (ug/m^3)/(tons/yr)
B19: 50 | C19: =VLOOKUP($C$5,BoilerLessThan12,47,FALSE)*0.02879 -> 0.5090958732 | D19: =VLOOKUP($C$5,BoilerLessThan12,48,FALSE)*0.02879 -> 0.2931271124 | E19: =VLOOKUP($C$5,BoilerLessThan12,49,FALSE)*0.02879 -> 0.1885336182 | F19: =VLOOKUP($C$5,BoilerLessThan12,50,FALSE)*0.02879 -> 0.1337191856 | G19: =VLOOKUP($C$5,BoilerLessThan12,51,FALSE)*0.02879 -> 0.0576522629 | H19: =VLOOKUP($C$5,BoilerLessThan12,52,FALSE)*0.02879 -> 0.0394209954 | I19: =VLOOKUP($C$5,BoilerLessThan12,53,FALSE)*0.02879 -> 0.031591267 | J19: =VLOOKUP($C$5,BoilerLessThan12,54,FALSE)*0.02879 -> 0.0165594322 | K19: (ug/m^3)/(tons/yr)
B20: 75 | C20: =VLOOKUP($C$5,BoilerLessThan12,56,FALSE)*0.02879 -> 0.2974018516 | D20: =VLOOKUP($C$5,BoilerLessThan12,57,FALSE)*0.02879 -> 0.1918916838 | E20: =VLOOKUP($C$5,BoilerLessThan12,58,FALSE)*0.02879 -> 0.1296574924 | F20: =VLOOKUP($C$5,BoilerLessThan12,59,FALSE)*0.02879 -> 0.0944778398 | G20: =VLOOKUP($C$5,BoilerLessThan12,60,FALSE)*0.02879 -> 0.0412966639 | H20: =VLOOKUP($C$5,BoilerLessThan12,61,FALSE)*0.02879 -> 0.027848567 | I20: =VLOOKUP($C$5,BoilerLessThan12,62,FALSE)*0.02879 -> 0.0223991958 | J20: =VLOOKUP($C$5,BoilerLessThan12,63,FALSE)*0.02879 -> 0.0137351332 | K20: (ug/m^3)/(tons/yr)
B21: Table 2B
B22: Station | C22: MET
B23: Anaheim | C23: 0.84
B24: Azusa | C24: 0.77
B25: Banning | C25: 0.52
B26: Burbank | C26: 0.57
B27: Canoga Park | C27: 0.65
B28: Compton | C28: 0.63
B29: Costa Mesa | C29: 0.69
B30: Downtown L.A. | C30: 0.51
B31: El Toro | C31: 0.65
B32: Fontana | C32: 0.77
B33: Indio | C33: 0.69
B34: King Harbor | C34: 0.6
B35: La Canada | C35: 0.73
B36: La Habra | C36: 0.78
B37: Lancaster | C37: 0.47
B38: Lennox | C38: 0.67
B39: Long Beach | C39: 0.59
B40: Los Alamitos | C40: 0.6
B41: Lynwood | C41: 0.58
B42: Malibu | C42: 0.84
B43: Newhall | C43: 0.5
B44: Norco | C44: 0.73
B45: Palm Springs | C45: 0.55
B46: Pasadena | C46: 0.74
B47: Pico Rivera | C47: 0.7
B48: Pomona | C48: 0.86
B49: Redlands | C49: 0.86
B50: Reseda | C50: 0.68
B51: Riverside | C51: 0.82
B52: Santa Ana Canyon | C52: 0.89
B53: Upland | C53: 0.6
B54: Vernon | C54: 0.54
B55: Walnut | C55: 0.6
B56: West L.A. | C56: 1
B57: Whittier | C57: 0.63

Sheet Table2 Engine < 12 (hidden)
B3: Look up for Engine < 12 hrs/day Data and X/Q | H3: Interpolation
F4: HP | G4: =Emissions!SourceCapacity -> n/a | I4: row: | J4: =Q14 -> 4 | P4: HP | Q4: ROW
B5: Station | C5: =Emissions!$E$25 -> Long Beach | G5: Residential | J5: Industrial | M5: X/Q for one-in-a-million | P5: 50 | Q5: 1
B6: MET | C6: =VLOOKUP($C$5,table2b,MATCH("Met",head2b,0),FALSE) -> 0.59 | F6: near | G6: actual | H6: far | I6: near | J6: actual | K6: far | L6: near | M6: actual | N6: far | P6: 200 | Q6: 2
B7: X/Q (residential) | C7: =$G$8 -> 0.2142392015 | E7: distance | F7: =IF(G7<25,25,HLOOKUP(G7,table2a,1,TRUE)) -> 200 | G7: =Emissions!E23 -> 250 | H7: =IF(G7<25,25,IF(G7>=1000,1000,IF(G7=HLOOKUP(G7,table2a,1,TRUE),G7,INDEX(table2a,1,MATCH(G7,head2a,1)+1)))) -> 300 | I7: =IF(J7<25,25,HLOOKUP(J7,table2a,1,TRUE)) -> 50 | J7: =Emissions!E24 -> 65 | K7: =IF(J7<25,25,IF(J7>=1000,1000,IF(J7=HLOOKUP(J7,table2a,1,TRUE),J7,INDEX(table2a,1,MATCH(J7,head2a,1)+1)))) -> 75 | L7: =IF(L8="","",INDEX(table2a,1,MATCH(L8,IF($J$4=1,$C13:$J13,IF($J$4=2,$C14:$J14,IF($J$4=3,$C15:$J15,IF($J$4=4,$C16:$J16,"")))),-1))) -> 1000 | M7: =IF(L7="","",IF(N7=L7,"no data",L7-(L8-M8)/(L8-N8)*(L7-N7))) -> no data | N7: =IF(N8="","",INDEX(table2a,1,MATCH(N8,IF($J$4=1,$C13:$J13,IF($J$4=2,$C14:$J14,IF($J$4=3,$C15:$J15,IF($J$4=4,$C16:$J16,"")))),-1))) -> 1000 | P7: 350 | Q7: 3
B8: X/Q (industrial) | C8: =$J$8 -> 1.037553482 | E8: X/Q | F8: =HLOOKUP(F7,table2a,$J$4+1,TRUE) -> 0.2710184077 | G8: =IF(F8=H8,F8,F8-(((G7-F7)/(H7-F7))*(F8-H8))) -> 0.2142392015 | H8: =HLOOKUP(H7,table2a,$J$4+1,TRUE) -> 0.1574599954 | I8: =HLOOKUP(I7,table2a,$J$4+1,TRUE) -> 1.395557823 | J8: =IF(I8=K8,I8,I8-(((J7-I7)/(K7-I7))*(I8-K8))) -> 1.037553482 | K8: =HLOOKUP(K7,table2a,$J$4+1,TRUE) -> 0.7988839214 | L8: =IF(M8="","",INDEX(table2a,$J$4+1,MATCH(M8,IF($J$4=1,$C13:$J13,IF($J$4=2,$C14:$J14,IF($J$4=3,$C15:$J15,IF($J$4=4,$C16:$J16,"")))),-1))) -> 0.0247999939 | M8: ='Tier 2 Report'!L196*0.02879 -> 0 | N8: =IF(M8="","",IF(AND(M8<L8,L7=1000),L8,INDEX(table2a,$J$4+1,MATCH(M8,IF($J$4=1,$C13:$J13,IF($J$4=2,$C14:$J14,IF($J$4=3,$C15:$J15,IF($J$4=4,$C16:$J16,"")))),-1)+1))) -> 0.0247999939 | P8: 550 | Q8: 4
B10: Table 2A - Point Source, operating 12 hrs/day or less
B11: HP | E11: Downwind Distance (meters)
C12: 25 | D12: 50 | E12: 75 | F12: 100 | G12: 200 | H12: 300 | I12: 500 | J12: 1000
B13: 50 | C13: =VLOOKUP($C$5,EngineLessThan12,2,FALSE)*0.02879 -> 9.562201198 | D13: =VLOOKUP($C$5,EngineLessThan12,3,FALSE)*0.02879 -> 4.529631465 | E13: =VLOOKUP($C$5,EngineLessThan12,4,FALSE)*0.02879 -> 2.367615322 | F13: =VLOOKUP($C$5,EngineLessThan12,5,FALSE)*0.02879 -> 1.449729663 | G13: =VLOOKUP($C$5,EngineLessThan12,6,FALSE)*0.02879 -> 0.4607779041 | H13: =VLOOKUP($C$5,EngineLessThan12,7,FALSE)*0.02879 -> 0.2314557655 | I13: =VLOOKUP($C$5,EngineLessThan12,8,FALSE)*0.02879 -> 0.0936737351 | J13: =VLOOKUP($C$5,EngineLessThan12,9,FALSE)*0.02879 -> 0.0272603873 | K13: (ug/m^3)/(tons/yr)
B14: 200 | C14: =VLOOKUP($C$5,EngineLessThan12,11,FALSE)*0.02879 -> 5.22337517 | D14: =VLOOKUP($C$5,EngineLessThan12,12,FALSE)*0.02879 -> 2.578521073 | E14: =VLOOKUP($C$5,EngineLessThan12,13,FALSE)*0.02879 -> 1.650126488 | F14: =VLOOKUP($C$5,EngineLessThan12,14,FALSE)*0.02879 -> 1.098520453 | G14: =VLOOKUP($C$5,EngineLessThan12,15,FALSE)*0.02879 -> 0.3718781268 | H14: =VLOOKUP($C$5,EngineLessThan12,16,FALSE)*0.02879 -> 0.1991277624 | I14: =VLOOKUP($C$5,EngineLessThan12,17,FALSE)*0.02879 -> 0.0864008053 | J14: =VLOOKUP($C$5,EngineLessThan12,18,FALSE)*0.02879 -> 0.0263725037 | K14: (ug/m^3)/(tons/yr) | P14: Row: | Q14: =IF(G4<=P5,Q5,IF(G4<=P6,Q6,IF(G4<=P7,Q7,Q8))) -> 4
B15: 350 | C15: =VLOOKUP($C$5,EngineLessThan12,20,FALSE)*0.02879 -> 3.73598099 | D15: =VLOOKUP($C$5,EngineLessThan12,21,FALSE)*0.02879 -> 1.686867135 | E15: =VLOOKUP($C$5,EngineLessThan12,22,FALSE)*0.02879 -> 1.112820446 | F15: =VLOOKUP($C$5,EngineLessThan12,23,FALSE)*0.02879 -> 0.814077556 | G15: =VLOOKUP($C$5,EngineLessThan12,24,FALSE)*0.02879 -> 0.3151658574 | H15: =VLOOKUP($C$5,EngineLessThan12,25,FALSE)*0.02879 -> 0.1758942324 | I15: =VLOOKUP($C$5,EngineLessThan12,26,FALSE)*0.02879 -> 0.0801694977 | J15: =VLOOKUP($C$5,EngineLessThan12,27,FALSE)*0.02879 -> 0.025516577 | K15: (ug/m^3)/(tons/yr)
B16: 550 | C16: =VLOOKUP($C$5,EngineLessThan12,29,FALSE)*0.02879 -> 3.103224869 | D16: =VLOOKUP($C$5,EngineLessThan12,30,FALSE)*0.02879 -> 1.395557823 | E16: =VLOOKUP($C$5,EngineLessThan12,31,FALSE)*0.02879 -> 0.7988839214 | F16: =VLOOKUP($C$5,EngineLessThan12,32,FALSE)*0.02879 -> 0.6143817669 | G16: =VLOOKUP($C$5,EngineLessThan12,33,FALSE)*0.02879 -> 0.2710184077 | H16: =VLOOKUP($C$5,EngineLessThan12,34,FALSE)*0.02879 -> 0.1574599954 | I16: =VLOOKUP($C$5,EngineLessThan12,35,FALSE)*0.02879 -> 0.07508432 | J16: =VLOOKUP($C$5,EngineLessThan12,36,FALSE)*0.02879 -> 0.0247999939 | K16: (ug/m^3)/(tons/yr)
B17: Table 2B
B18: Station | C18: Met
B19: Anaheim | C19: 0.84
B20: Azusa | C20: 0.77
B21: Banning | C21: 0.52
B22: Burbank | C22: 0.57
B23: Canoga Park | C23: 0.65
B24: Compton | C24: 0.63
B25: Costa Mesa | C25: 0.69
B26: Downtown L.A. | C26: 0.51
B27: El Toro | C27: 0.65
B28: Fontana | C28: 0.77
B29: Indio | C29: 0.69
B30: King Harbor | C30: 0.6
B31: La Canada | C31: 0.73
B32: La Habra | C32: 0.78
B33: Lancaster | C33: 0.47
B34: Lennox | C34: 0.67
B35: Long Beach | C35: 0.59
B36: Los Alamitos | C36: 0.6
B37: Lynwood | C37: 0.58
B38: Malibu | C38: 0.84
B39: Newhall | C39: 0.5
B40: Norco | C40: 0.73
B41: Palm Springs | C41: 0.55
B42: Pasadena | C42: 0.74
B43: Pico Rivera | C43: 0.7
B44: Pomona | C44: 0.86
B45: Redlands | C45: 0.86
B46: Reseda | C46: 0.68
B47: Riverside | C47: 0.82
B48: Santa Ana Canyon | C48: 0.89
B49: Upland | C49: 0.6
B50: Vernon | C50: 0.54
B51: Walnut | C51: 0.6
B52: West L.A. | C52: 1
B53: Whittier | C53: 0.63

Sheet Table2C (hidden)
A1: Hours of Operation Per Day | B1: Days of Operation Per Week
B2: 1 | C2: 2 | D2: 3 | E2: 4 | F2: 5 | G2: 6 | H2: 7
A3: 1 | B3: 4.2 | C3: 4.2 | D3: 4.2 | E3: 4.2 | F3: 4.2 | G3: 3.5 | H3: 3
A4: 2 | B4: 4.2 | C4: 4.2 | D4: 4.2 | E4: 4.2 | F4: 4.2 | G4: 3.5 | H4: 3
A5: 3 | B5: 4.2 | C5: 4.2 | D5: 4.2 | E5: 4.2 | F5: 4.2 | G5: 3.5 | H5: 3
A6: 4 | B6: 4.2 | C6: 4.2 | D6: 4.2 | E6: 4.2 | F6: 4.2 | G6: 3.5 | H6: 3
A7: 5 | B7: 4.2 | C7: 4.2 | D7: 4.2 | E7: 4.2 | F7: 4.2 | G7: 3.5 | H7: 3
A8: 6 | B8: 4.2 | C8: 4.2 | D8: 4.2 | E8: 4.2 | F8: 4.2 | G8: 3.5 | H8: 3
A9: 7 | B9: 4.2 | C9: 4.2 | D9: 4.2 | E9: 4.2 | F9: 4.2 | G9: 3.5 | H9: 3
A10: 8 | B10: 4.2 | C10: 4.2 | D10: 4.2 | E10: 4.2 | F10: 4.2 | G10: 3.5 | H10: 3
A11: 9 | B11: 3.733333333 | C11: 3.733333333 | D11: 3.733333333 | E11: 3.733333333 | F11: 3.733333333 | G11: 3.111111111 | H11: 2.666666667
A12: 10 | B12: 3.36 | C12: 3.36 | D12: 3.36 | E12: 3.36 | F12: 3.36 | G12: 2.8 | H12: 2.4
A13: 11 | B13: 3.054545455 | C13: 3.054545455 | D13: 3.054545455 | E13: 3.054545455 | F13: 3.054545455 | G13: 2.545454545 | H13: 2.181818182
A14: 12 | B14: 2.8 | C14: 2.8 | D14: 2.8 | E14: 2.8 | F14: 2.8 | G14: 2.333333333 | H14: 2
A16: Note: The AFann value for residential/sensitive receptors is 1.0, which assumes exposure
A17: of 24 hours per day, 7 days per week

Sheet Table3 Boiler > 12 (hidden)
B2: Look up for Boiler >12 hrs/day Data and X/Q
H3: Interpolation
F4: MMBTU | G4: =Emissions!SourceCapacity -> n/a | I4: row: | J4: =IF(Q14<Q15,Q14,Q15) -> 7 | P4: MMBTU | Q4: ROW
B5: Station | C5: =Emissions!$E$25 -> Long Beach | G5: Residential | J5: Industrial | M5: X/Q for one-in-a-million | P5: 2 | Q5: 1
B6: MET | C6: =VLOOKUP($C$5,table2b,MATCH("Met",head2b,0),FALSE) -> 0.59 | F6: near | G6: actual | H6: far | I6: near | J6: actual | K6: far | L6: near | M6: actual | N6: far | P6: 5 | Q6: 2
B7: X/Q (residential) | C7: =$G$8 -> 0.04737207365 | E7: distance | F7: =IF(G7<25,25,HLOOKUP(G7,table2a,1,TRUE)) -> 200 | G7: =Emissions!E23 -> 250 | H7: =IF(G7<25,25,IF(G7>=1000,1000,IF(G7=HLOOKUP(G7,table2a,1,TRUE),G7,INDEX(table2a,1,MATCH(G7,head2a,1)+1)))) -> 300 | I7: =IF(J7<25,25,HLOOKUP(J7,table2a,1,TRUE)) -> 50 | J7: =Emissions!E24 -> 65 | K7: =IF(J7<25,25,IF(J7>=1000,1000,IF(J7=HLOOKUP(J7,table2a,1,TRUE),J7,INDEX(table2a,1,MATCH(J7,head2a,1)+1)))) -> 75 | L7: =IF(L8="","",INDEX(table2a,1,MATCH(L8,IF($J$4=1,$C14:$J14,IF($J$4=2,$C15:$J15,IF($J$4=3,$C20:$J20,""))),-1))) ->  | M7: =IF(L7="","",IF(N7=L7,"no data",L7-(L8-M8)/(L8-N8)*(L7-N7))) ->  | N7: =IF(N8="","",INDEX(table2a,1,MATCH(N8,IF($J$4=1,$C14:$J14,IF($J$4=2,$C15:$J15,IF($J$4=3,$C16:$J16,""))),-1))) ->  | P7: 10 | Q7: 3
B8: X/Q (industrial) | C8: =$J$8 -> 0.1581556194 | E8: X/Q | F8: =HLOOKUP(F7,table2a,$J$4+1,TRUE) -> 0.0502612941 | G8: =IF(F8=H8,F8,F8-(((G7-F7)/(H7-F7))*(F8-H8))) -> 0.04737207365 | H8: =HLOOKUP(H7,table2a,$J$4+1,TRUE) -> 0.0444828532 | I8: =HLOOKUP(I7,table2a,$J$4+1,TRUE) -> 0.1944781774 | J8: =IF(I8=K8,I8,I8-(((J7-I7)/(K7-I7))*(I8-K8))) -> 0.1581556194 | K8: =HLOOKUP(K7,table2a,$J$4+1,TRUE) -> 0.1339405807 | L8: =IF(M8>0,INDEX(table2a,$J$4+1,MATCH(M8,IF($J$4=1,$C14:$J14,IF($J$4=2,$C15:$J15,IF($J$4=3,$C16:$J16,""))),-1)),"") ->  | M8: ='Tier 2 Report'!L196*0.02879 -> 0 | N8: =IF(M8="","",IF(AND(M8<L8,L7=1000),L8,INDEX(table2a,$J$4+1,MATCH(M8,IF($J$4=1,$C14:$J14,IF($J$4=2,$C15:$J15,IF($J$4=3,$C16:$J16,""))),-1)+1))) ->  | P8: 20 | Q8: 4
E9: distance | F9: =F7 -> 200 | G9: 250 | H9: 300 | I9: 50 | J9: 65 | K9: 75 | L9: =IF(L10="","",INDEX(table2a,1,MATCH(L10,IF($J$4=4,$C17:$J17,IF($J$4=5,$C18:$J18,IF($J$4=6,$C19:$J19,IF($J$4=7,$C20:$J20,"")))),-1))) -> 100 | M9: =IF(L9="","",IF(N9=L9,"no data",L9-(L10-M10)/(L10-N10)*(L9-N9))) ->  | N9: =IF(N10="","",INDEX(table2a,1,MATCH(N10,IF($J$4=4,$C17:$J17,IF($J$4=5,$C18:$J18,IF($J$4=6,$C19:$J19,IF($J$4=7,$C20:$J20,"")))),-1))) ->  | P9: 40 | Q9: 5
E10: X/Q | F10: 0.0502612941 | G10: 0.04737207365 | H10: 0.0444828532 | I10: 0.1944781774 | J10: 0.1581556194 | K10: 0.1339405807 | L10: =IF(M10="","",INDEX(table2a,$J$4+1,MATCH(M10,IF($J$4=4,$C17:$J17,IF($J$4=5,$C18:$J18,IF($J$4=6,$C19:$J19,IF($J$4=7,$C20:$J20,"")))),-1))) -> 0.0505477546 | M10: =M8 -> 0 | N10: =IF(M10="","",IF(AND(M10<L10,L9=1000),L10,INDEX(table2a,$J$4+1,MATCH(M10,IF($J$4=4,$C17:$J17,IF($J$4=5,$C18:$J18,IF($J$4=6,$C19:$J19,IF($J$4=7,$C20:$J20,"")))),-1)+1))) ->  | P10: 50 | Q10: 6
B11: Table 2A - Point Source, operating 12 hrs/day or more | P11: 75 | Q11: 7
B12: MMBTU | E12: Downwind Distance (meters)
C13: 25 | D13: 50 | E13: 75 | F13: 100 | G13: 200 | H13: 300 | I13: 500 | J13: 1000
B14: 2 | C14: =VLOOKUP($C$5,BoilerMoreThan12,2,FALSE)*0.02879 -> 6.839824556 | D14: =VLOOKUP($C$5,BoilerMoreThan12,3,FALSE)*0.02879 -> 4.013781458 | E14: =VLOOKUP($C$5,BoilerMoreThan12,4,FALSE)*0.02879 -> 2.608648945 | F14: =VLOOKUP($C$5,BoilerMoreThan12,5,FALSE)*0.02879 -> 1.834778063 | G14: =VLOOKUP($C$5,BoilerMoreThan12,6,FALSE)*0.02879 -> 1.095592798 | H14: =VLOOKUP($C$5,BoilerMoreThan12,7,FALSE)*0.02879 -> 0.7452861542 | I14: =VLOOKUP($C$5,BoilerMoreThan12,8,FALSE)*0.02879 -> 0.3734348021 | J14: =VLOOKUP($C$5,BoilerMoreThan12,9,FALSE)*0.02879 -> 0.1259153682 | K14: (ug/m^3)/(tons/yr) | P14: Row: | Q14: =IF(G4<=P5,Q5,IF(G4<=P6,Q6,IF(G4<=P7,Q7,IF(G4<=P8,Q8,IF(G4<=P9,Q9))))) -> FALSE
B15: 5 | C15: =VLOOKUP($C$5,BoilerMoreThan12,11,FALSE)*0.02879 -> 5.012795034 | D15: =VLOOKUP($C$5,BoilerMoreThan12,12,FALSE)*0.02879 -> 2.394649708 | E15: =VLOOKUP($C$5,BoilerMoreThan12,13,FALSE)*0.02879 -> 1.751087836 | F15: =VLOOKUP($C$5,BoilerMoreThan12,14,FALSE)*0.02879 -> 1.298953266 | G15: =VLOOKUP($C$5,BoilerMoreThan12,15,FALSE)*0.02879 -> 0.7862687192 | H15: =VLOOKUP($C$5,BoilerMoreThan12,16,FALSE)*0.02879 -> 0.605024729 | I15: =VLOOKUP($C$5,BoilerMoreThan12,17,FALSE)*0.02879 -> 0.3376450894 | J15: =VLOOKUP($C$5,BoilerMoreThan12,18,FALSE)*0.02879 -> 0.121228932 | K15: (ug/m^3)/(tons/yr) | P15: Row: | Q15: =IF(G4<P10,Q10,Q11) -> 7
B16: 10 | C16: =VLOOKUP($C$5,BoilerMoreThan12,20,FALSE)*0.02879 -> 3.379484784 | D16: =VLOOKUP($C$5,BoilerMoreThan12,21,FALSE)*0.02879 -> 1.569798358 | E16: =VLOOKUP($C$5,BoilerMoreThan12,22,FALSE)*0.02879 -> 0.9541046306 | F16: =VLOOKUP($C$5,BoilerMoreThan12,23,FALSE)*0.02879 -> 0.7893970406 | G16: =VLOOKUP($C$5,BoilerMoreThan12,24,FALSE)*0.02879 -> 0.5080349617 | H16: =VLOOKUP($C$5,BoilerMoreThan12,25,FALSE)*0.02879 -> 0.4251364599 | I16: =VLOOKUP($C$5,BoilerMoreThan12,26,FALSE)*0.02879 -> 0.274935863 | J16: =VLOOKUP($C$5,BoilerMoreThan12,27,FALSE)*0.02879 -> 0.1112678799 | K16: (ug/m^3)/(tons/yr)
B17: 20 | C17: =VLOOKUP($C$5,BoilerMoreThan12,29,FALSE)*0.02879 -> 2.53748208 | D17: =VLOOKUP($C$5,BoilerMoreThan12,30,FALSE)*0.02879 -> 1.179926481 | E17: =VLOOKUP($C$5,BoilerMoreThan12,31,FALSE)*0.02879 -> 0.7001529349 | F17: =VLOOKUP($C$5,BoilerMoreThan12,32,FALSE)*0.02879 -> 0.5082062622 | G17: =VLOOKUP($C$5,BoilerMoreThan12,33,FALSE)*0.02879 -> 0.3652411681 | H17: =VLOOKUP($C$5,BoilerMoreThan12,34,FALSE)*0.02879 -> 0.3235169727 | I17: =VLOOKUP($C$5,BoilerMoreThan12,35,FALSE)*0.02879 -> 0.2329620583 | J17: =VLOOKUP($C$5,BoilerMoreThan12,36,FALSE)*0.02879 -> 0.1036552281 | K17: (ug/m^3)/(tons/yr)
B18: 40 | C18: =VLOOKUP($C$5,BoilerMoreThan12,38,FALSE)*0.02879 -> 0.7376686081 | D18: =VLOOKUP($C$5,BoilerMoreThan12,39,FALSE)*0.02879 -> 0.4027130805 | E18: =VLOOKUP($C$5,BoilerMoreThan12,40,FALSE)*0.02879 -> 0.2560009679 | F18: =VLOOKUP($C$5,BoilerMoreThan12,41,FALSE)*0.02879 -> 0.1818324578 | G18: =VLOOKUP($C$5,BoilerMoreThan12,42,FALSE)*0.02879 -> 0.0921219541 | H18: =VLOOKUP($C$5,BoilerMoreThan12,43,FALSE)*0.02879 -> 0.0930426583 | I18: =VLOOKUP($C$5,BoilerMoreThan12,44,FALSE)*0.02879 -> 0.1013076915 | J18: =VLOOKUP($C$5,BoilerMoreThan12,45,FALSE)*0.02879 -> 0.0704805111 | K18: (ug/m^3)/(tons/yr)
B19: 50 | C19: =VLOOKUP($C$5,BoilerMoreThan12,47,FALSE)*0.02879 -> 0.512637619 | D19: =VLOOKUP($C$5,BoilerMoreThan12,48,FALSE)*0.02879 -> 0.2975633635 | E19: =VLOOKUP($C$5,BoilerMoreThan12,49,FALSE)*0.02879 -> 0.1949365142 | F19: =VLOOKUP($C$5,BoilerMoreThan12,50,FALSE)*0.02879 -> 0.1408645757 | G19: =VLOOKUP($C$5,BoilerMoreThan12,51,FALSE)*0.02879 -> 0.0709849119 | H19: =VLOOKUP($C$5,BoilerMoreThan12,52,FALSE)*0.02879 -> 0.0656855366 | I19: =VLOOKUP($C$5,BoilerMoreThan12,53,FALSE)*0.02879 -> 0.0794981149 | J19: =VLOOKUP($C$5,BoilerMoreThan12,54,FALSE)*0.02879 -> 0.0622837102 | K19: (ug/m^3)/(tons/yr)
B20: 75 | C20: =VLOOKUP($C$5,BoilerMoreThan12,56,FALSE)*0.02879 -> 0.2993284784 | D20: =VLOOKUP($C$5,BoilerMoreThan12,57,FALSE)*0.02879 -> 0.1944781774 | E20: =VLOOKUP($C$5,BoilerMoreThan12,58,FALSE)*0.02879 -> 0.1339405807 | F20: =VLOOKUP($C$5,BoilerMoreThan12,59,FALSE)*0.02879 -> 0.0993050591 | G20: =VLOOKUP($C$5,BoilerMoreThan12,60,FALSE)*0.02879 -> 0.0502612941 | H20: =VLOOKUP($C$5,BoilerMoreThan12,61,FALSE)*0.02879 -> 0.0444828532 | I20: =VLOOKUP($C$5,BoilerMoreThan12,62,FALSE)*0.02879 -> 0.0548501322 | J20: =VLOOKUP($C$5,BoilerMoreThan12,63,FALSE)*0.02879 -> 0.0505477546 | K20: (ug/m^3)/(tons/yr)
B21: Table 2B
B22: Station | C22: Met
B23: Anaheim | C23: 0.84
B24: Azusa | C24: 0.77
B25: Banning | C25: 0.52
B26: Burbank | C26: 0.57
B27: Canoga Park | C27: 0.65
B28: Compton | C28: 0.63
B29: Costa Mesa | C29: 0.69
B30: Downtown L.A. | C30: 0.51
B31: El Toro | C31: 0.65
B32: Fontana | C32: 0.77
B33: Indio | C33: 0.69
B34: King Harbor | C34: 0.6
B35: La Canada | C35: 0.73
B36: La Habra | C36: 0.78
B37: Lancaster | C37: 0.47
B38: Lennox | C38: 0.67
B39: Long Beach | C39: 0.59
B40: Los Alamitos | C40: 0.6
B41: Lynwood | C41: 0.58
B42: Malibu | C42: 0.84
B43: Newhall | C43: 0.5
B44: Norco | C44: 0.73
B45: Palm Springs | C45: 0.55
B46: Pasadena | C46: 0.74
B47: Pico Rivera | C47: 0.7
B48: Pomona | C48: 0.86
B49: Redlands | C49: 0.86
B50: Reseda | C50: 0.68
B51: Riverside | C51: 0.82
B52: Santa Ana Canyon | C52: 0.89
B53: Upland | C53: 0.6
B54: Vernon | C54: 0.54
B55: Walnut | C55: 0.6
B56: West L.A. | C56: 1
B57: Whittier | C57: 0.63

Sheet Table3 Engine > 12 (hidden)
B3: Look up for Engine > 12 hrs/day Data and X/Q | H3: Interpolation
F4: HP | G4: =Emissions!SourceCapacity -> n/a | I4: row: | J4: =Q14 -> 4 | P4: HP | Q4: ROW
B5: Station | C5: =Emissions!$E$25 -> Long Beach | G5: Residential | J5: Industrial | M5: X/Q for one-in-a-million | P5: 50 | Q5: 1
B6: MET | C6: =VLOOKUP($C$5,table2b,MATCH("Met",head2b,0),FALSE) -> 0.59 | F6: near | G6: actual | H6: far | I6: near | J6: actual | K6: far | L6: near | M6: actual | N6: far | P6: 200 | Q6: 2
B7: X/Q (residential) | C7: =$G$8 -> 0.4378207581 | E7: distance | F7: =IF(G7<25,25,HLOOKUP(G7,table2a,1,TRUE)) -> 200 | G7: =Emissions!E23 -> 250 | H7: =IF(G7<25,25,IF(G7>=1000,1000,IF(G7=HLOOKUP(G7,table2a,1,TRUE),G7,INDEX(table2a,1,MATCH(G7,head2a,1)+1)))) -> 300 | I7: =IF(J7<25,25,HLOOKUP(J7,table2a,1,TRUE)) -> 50 | J7: =Emissions!E24 -> 65 | K7: =IF(J7<25,25,IF(J7>=1000,1000,IF(J7=HLOOKUP(J7,table2a,1,TRUE),J7,INDEX(table2a,1,MATCH(J7,head2a,1)+1)))) -> 75 | L7: =IF(L8="","",INDEX(table2a,1,MATCH(L8,IF($J$4=1,$C13:$J13,IF($J$4=2,$C14:$J14,IF($J$4=3,$C15:$J15,IF($J$4=4,$C16:$J16,"")))),-1))) -> 1000 | M7: =IF(L7="","",IF(N7=L7,"no data",L7-(L8-M8)/(L8-N8)*(L7-N7))) -> no data | N7: =IF(N8="","",INDEX(table2a,1,MATCH(N8,IF($J$4=1,$C13:$J13,IF($J$4=2,$C14:$J14,IF($J$4=3,$C15:$J15,IF($J$4=4,$C16:$J16,"")))),-1))) -> 1000 | P7: 350 | Q7: 3
B8: X/Q (industrial) | C8: =$J$8 -> 1.115437514 | E8: X/Q | F8: =HLOOKUP(F7,table2a,$J$4+1,TRUE) -> 0.4726825691 | G8: =IF(F8=H8,F8,F8-(((G7-F7)/(H7-F7))*(F8-H8))) -> 0.4378207581 | H8: =HLOOKUP(H7,table2a,$J$4+1,TRUE) -> 0.4029589471 | I8: =HLOOKUP(I7,table2a,$J$4+1,TRUE) -> 1.471602002 | J8: =IF(I8=K8,I8,I8-(((J7-I7)/(K7-I7))*(I8-K8))) -> 1.115437514 | K8: =HLOOKUP(K7,table2a,$J$4+1,TRUE) -> 0.8779945229 | L8: =IF(M8="","",INDEX(table2a,$J$4+1,MATCH(M8,IF($J$4=1,$C13:$J13,IF($J$4=2,$C14:$J14,IF($J$4=3,$C15:$J15,IF($J$4=4,$C16:$J16,"")))),-1))) -> 0.1099282812 | M8: ='Tier 2 Report'!L196*0.02879 -> 0 | N8: =IF(M8="","",IF(AND(M8<L8,L7=1000),L8,INDEX(table2a,$J$4+1,MATCH(M8,IF($J$4=1,$C13:$J13,IF($J$4=2,$C14:$J14,IF($J$4=3,$C15:$J15,IF($J$4=4,$C16:$J16,"")))),-1)+1))) -> 0.1099282812 | P8: 550 | Q8: 4
B10: Table 2A - Point Source, operating 12 hrs/day or more
B11: HP | E11: Downwind Distance (meters)
C12: 25 | D12: 50 | E12: 75 | F12: 100 | G12: 200 | H12: 300 | I12: 500 | J12: 1000
B13: 50 | C13: =VLOOKUP($C$5,EngineMoreThan12,2,FALSE)*0.02879 -> 11.41462264 | D13: =VLOOKUP($C$5,EngineMoreThan12,3,FALSE)*0.02879 -> 6.580941709 | E13: =VLOOKUP($C$5,EngineMoreThan12,4,FALSE)*0.02879 -> 3.878119235 | F13: =VLOOKUP($C$5,EngineMoreThan12,5,FALSE)*0.02879 -> 2.875880028 | G13: =VLOOKUP($C$5,EngineMoreThan12,6,FALSE)*0.02879 -> 1.558929557 | H13: =VLOOKUP($C$5,EngineMoreThan12,7,FALSE)*0.02879 -> 0.9125373407 | I13: =VLOOKUP($C$5,EngineMoreThan12,8,FALSE)*0.02879 -> 0.410496457 | J13: =VLOOKUP($C$5,EngineMoreThan12,9,FALSE)*0.02879 -> 0.130435974 | K13: (ug/m^3)/(tons/yr)
B14: 200 | C14: =VLOOKUP($C$5,EngineMoreThan12,11,FALSE)*0.02879 -> 5.49119069 | D14: =VLOOKUP($C$5,EngineMoreThan12,12,FALSE)*0.02879 -> 2.938214696 | E14: =VLOOKUP($C$5,EngineMoreThan12,13,FALSE)*0.02879 -> 2.063411833 | F14: =VLOOKUP($C$5,EngineMoreThan12,14,FALSE)*0.02879 -> 1.491103484 | G14: =VLOOKUP($C$5,EngineMoreThan12,15,FALSE)*0.02879 -> 0.8994044943 | H14: =VLOOKUP($C$5,EngineMoreThan12,16,FALSE)*0.02879 -> 0.6603570937 | I14: =VLOOKUP($C$5,EngineMoreThan12,17,FALSE)*0.02879 -> 0.3524621508 | J14: =VLOOKUP($C$5,EngineMoreThan12,18,FALSE)*0.02879 -> 0.1232168815 | K14: (ug/m^3)/(tons/yr) | P14: Row: | Q14: =IF(G4<=P5,Q5,IF(G4<=P6,Q6,IF(G4<=P7,Q7,Q8))) -> 4
B15: 350 | C15: =VLOOKUP($C$5,EngineMoreThan12,20,FALSE)*0.02879 -> 3.855565437 | D15: =VLOOKUP($C$5,EngineMoreThan12,21,FALSE)*0.02879 -> 1.813401488 | E15: =VLOOKUP($C$5,EngineMoreThan12,22,FALSE)*0.02879 -> 1.277355584 | F15: =VLOOKUP($C$5,EngineMoreThan12,23,FALSE)*0.02879 -> 1.009010327 | G15: =VLOOKUP($C$5,EngineMoreThan12,24,FALSE)*0.02879 -> 0.6311620184 | H15: =VLOOKUP($C$5,EngineMoreThan12,25,FALSE)*0.02879 -> 0.4998257811 | I15: =VLOOKUP($C$5,EngineMoreThan12,26,FALSE)*0.02879 -> 0.3007826613 | J15: =VLOOKUP($C$5,EngineMoreThan12,27,FALSE)*0.02879 -> 0.1154317776 | K15: (ug/m^3)/(tons/yr)
B16: 550 | C16: =VLOOKUP($C$5,EngineMoreThan12,29,FALSE)*0.02879 -> 3.176246961 | D16: =VLOOKUP($C$5,EngineMoreThan12,30,FALSE)*0.02879 -> 1.471602002 | E16: =VLOOKUP($C$5,EngineMoreThan12,31,FALSE)*0.02879 -> 0.8779945229 | F16: =VLOOKUP($C$5,EngineMoreThan12,32,FALSE)*0.02879 -> 0.7133099649 | G16: =VLOOKUP($C$5,EngineMoreThan12,33,FALSE)*0.02879 -> 0.4726825691 | H16: =VLOOKUP($C$5,EngineMoreThan12,34,FALSE)*0.02879 -> 0.4029589471 | I16: =VLOOKUP($C$5,EngineMoreThan12,35,FALSE)*0.02879 -> 0.2668953918 | J16: =VLOOKUP($C$5,EngineMoreThan12,36,FALSE)*0.02879 -> 0.1099282812 | K16: (ug/m^3)/(tons/yr)
B17: Table 2B
B18: Station | C18: Met
B19: Anaheim | C19: 0.84
B20: Azusa | C20: 0.77
B21: Banning | C21: 0.52
B22: Burbank | C22: 0.57
B23: Canoga Park | C23: 0.65
B24: Compton | C24: 0.63
B25: Costa Mesa | C25: 0.69
B26: Downtown L.A. | C26: 0.51
B27: El Toro | C27: 0.65
B28: Fontana | C28: 0.77
B29: Indio | C29: 0.69
B30: King Harbor | C30: 0.6
B31: La Canada | C31: 0.73
B32: La Habra | C32: 0.78
B33: Lancaster | C33: 0.47
B34: Lennox | C34: 0.67
B35: Long Beach | C35: 0.59
B36: Los Alamitos | C36: 0.6
B37: Lynwood | C37: 0.58
B38: Malibu | C38: 0.84
B39: Newhall | C39: 0.5
B40: Norco | C40: 0.73
B41: Palm Springs | C41: 0.55
B42: Pasadena | C42: 0.74
B43: Pico Rivera | C43: 0.7
B44: Pomona | C44: 0.86
B45: Redlands | C45: 0.86
B46: Reseda | C46: 0.68
B47: Riverside | C47: 0.82
B48: Santa Ana Canyon | C48: 0.89
B49: Upland | C49: 0.6
B50: Vernon | C50: 0.54
B51: Walnut | C51: 0.6
B52: West L.A. | C52: 1
B53: Whittier | C53: 0.63

Sheet Table3C (hidden)
A1: Hours of Operation Per Day | B1: Days of Operation Per Week
B2: 1 | C2: 2 | D2: 3 | E2: 4 | F2: 5 | G2: 6 | H2: 7
A3: 13 | B3: 2.584615385 | C3: 2.584615385 | D3: 2.584615385 | E3: 2.584615385 | F3: 2.584615385 | G3: 2.153846154 | H3: 1.846153846
A4: 14 | B4: 2.4 | C4: 2.4 | D4: 2.4 | E4: 2.4 | F4: 2.4 | G4: 2 | H4: 1.714285714
A5: 15 | B5: 2.24 | C5: 2.24 | D5: 2.24 | E5: 2.24 | F5: 2.24 | G5: 1.866666667 | H5: 1.6
A6: 16 | B6: 2.1 | C6: 2.1 | D6: 2.1 | E6: 2.1 | F6: 2.1 | G6: 1.75 | H6: 1.5
A7: 17 | B7: 1.976470588 | C7: 1.976470588 | D7: 1.976470588 | E7: 1.976470588 | F7: 1.976470588 | G7: 1.647058824 | H7: 1.411764706
A8: 18 | B8: 1.866666667 | C8: 1.866666667 | D8: 1.866666667 | E8: 1.866666667 | F8: 1.866666667 | G8: 1.555555556 | H8: 1.333333333
A9: 19 | B9: 1.768421053 | C9: 1.768421053 | D9: 1.768421053 | E9: 1.768421053 | F9: 1.768421053 | G9: 1.473684211 | H9: 1.263157895
A10: 20 | B10: 1.68 | C10: 1.68 | D10: 1.68 | E10: 1.68 | F10: 1.68 | G10: 1.4 | H10: 1.2
A11: 21 | B11: 1.6 | C11: 1.6 | D11: 1.6 | E11: 1.6 | F11: 1.6 | G11: 1.333333333 | H11: 1.142857143
A12: 22 | B12: 1.527272727 | C12: 1.527272727 | D12: 1.527272727 | E12: 1.527272727 | F12: 1.527272727 | G12: 1.272727273 | H12: 1.090909091
A13: 23 | B13: 1.460869565 | C13: 1.460869565 | D13: 1.460869565 | E13: 1.460869565 | F13: 1.460869565 | G13: 1.217391304 | H13: 1.043478261
A14: 24 | B14: 1.4 | C14: 1.4 | D14: 1.4 | E14: 1.4 | F14: 1.4 | G14: 1.166666667 | H14: 1
A16: Note: The AFann value for residential/sensitive receptors is 1.0, which assumes exposure
A17: of 24 hours per day, 7 days per week

Sheet Table6 (hidden)
B3: Look up for X/Q | H3: Interpolation
F4: Stc Ht: | G4: =Emissions!E21 -> 25 | I4: row: | J4: =IF(G4<=24,2,IF(G4<50,3,4))-1 -> 2
B5: X/Qmax (res.) | C5: =$G$8 -> 83.35 | D5: (ug/m^3)/(lbs/hr) | G5: Residential | J5: Industrial
B6: X/Qmax (ind.) | C6: =$J$8 -> 462.84 | D6: (ug/m^3)/(lbs/hr) | F6: near | G6: actual | H6: far | I6: near | J6: actual | K6: far
E7: distance | F7: =IF(G7<25,25,HLOOKUP(G7,Table6,1,TRUE)) -> 200 | G7: =Emissions!E23 -> 250 | H7: =IF(G7<25,25,IF(G7>=1000,1000,IF(G7=HLOOKUP(G7,Table6,1,TRUE),G7,INDEX(Table6,1,MATCH(G7,head6,1)+1)))) -> 300 | I7: =IF(J7<25,25,HLOOKUP(J7,Table6,1,TRUE)) -> 50 | J7: =Emissions!E24 -> 65 | K7: =IF(J7<25,25,IF(J7>=1000,1000,IF(J7=HLOOKUP(J7,Table6,1,TRUE),J7,INDEX(Table6,1,MATCH(J7,head6,1)+1)))) -> 75
E8: X/Qmax | F8: =HLOOKUP(F7,Table6,$J$4+1,TRUE) -> 109.6 | G8: =IF(F8=H8,F8,F8-(((G7-F7)/(H7-F7))*(F8-H8))) -> 83.35 | H8: =HLOOKUP(H7,Table6,$J$4+1,TRUE) -> 57.1 | I8: =HLOOKUP(I7,Table6,$J$4+1,TRUE) -> 548.1 | J8: =IF(I8=K8,I8,I8-(((J7-I7)/(K7-I7))*(I8-K8))) -> 462.84 | K8: =HLOOKUP(K7,Table6,$J$4+1,TRUE) -> 406
B11: Table 6 - Dispersion Factors for Acute Hazard Index - Point Source
B12: Stack ht. | E12: Downwind Distance (meters)
B13: (ft) | C13: 25 | D13: 50 | E13: 75 | F13: 100 | G13: 200 | H13: 300 | I13: 500 | J13: 1000
B14: <14 -24 | C14: 2000 | D14: 1000.6 | E14: 577.9 | F14: 373.5 | G14: 119.2 | H14: 59.8 | I14: 25.4 | J14: 8.4 | K14: (ug/m^3)/(lbs/hr)
B15: 25 - 49 | C15: 548.1 | D15: 548.1 | E15: 406 | F15: 295.2 | G15: 109.6 | H15: 57.1 | I15: 24.8 | J15: 8.3 | K15: (ug/m^3)/(lbs/hr)
B16: >=50 | C16: 110.1 | D16: 110.1 | E16: 103.8 | F16: 92.4 | G16: 67.3 | H16: 42.9 | I16: 20.6 | J16: 7.2 | K16: (ug/m^3)/(lbs/hr)

Sheet Table6 Boiler < 12 (hidden)
B3: Look up for Boiler < 12 hrs/day Data and X/Q | H3: Interpolation
F4: MMBTU | G4: =Emissions!SourceCapacity -> n/a | I4: row: | J4: =IF(Q14<Q15,Q14,Q15) -> 7 | P4: MMBTU | Q4: ROW
B5: Station | C5: =Emissions!$E$25 -> Long Beach | G5: Residential | J5: Industrial | P5: 2 | Q5: 1
B6: MET | C6: =VLOOKUP($C$5,table2b,MATCH("Met",head2b,0),FALSE) -> 0.59 | F6: near | G6: actual | H6: far | I6: near | J6: actual | K6: far | P6: 5 | Q6: 2
B7: X/Qmax (res.) | C7: =$G$8 -> 0.8165150614 | E7: distance | F7: =IF(G7<25,25,HLOOKUP(G7,table2a,1,TRUE)) -> 200 | G7: =Emissions!E23 -> 250 | H7: =IF(G7<25,25,IF(G7>=1000,1000,IF(G7=HLOOKUP(G7,table2a,1,TRUE),G7,INDEX(table2a,1,MATCH(G7,head2a,1)+1)))) -> 300 | I7: =IF(J7<25,25,HLOOKUP(J7,table2a,1,TRUE)) -> 50 | J7: =Emissions!E24 -> 65 | K7: =IF(J7<25,25,IF(J7>=1000,1000,IF(J7=HLOOKUP(J7,table2a,1,TRUE),J7,INDEX(table2a,1,MATCH(J7,head2a,1)+1)))) -> 75 | P7: 10 | Q7: 3
B8: X/Qmax (ind.) | C8: =$J$8 -> 6.550678525 | E8: X/Q | F8: =HLOOKUP(F7,table2a,$J$4+1,TRUE) -> 1.069935438 | G8: =IF(F8=H8,F8,F8-(((G7-F7)/(H7-F7))*(F8-H8))) -> 0.8165150614 | H8: =HLOOKUP(H7,table2a,$J$4+1,TRUE) -> 0.5630946851 | I8: =HLOOKUP(I7,table2a,$J$4+1,TRUE) -> 8.951947629 | J8: =IF(I8=K8,I8,I8-(((J7-I7)/(K7-I7))*(I8-K8))) -> 6.550678525 | K8: =HLOOKUP(K7,table2a,$J$4+1,TRUE) -> 4.949832455 | P8: 20 | Q8: 4
P9: 40 | Q9: 5
P10: 50 | Q10: 6
B11: Table 2A - Point Source, operating 12 hrs/day or less | P11: 75 | Q11: 7
B12: MMBTU | E12: Downwind Distance (meters)
C13: 25 | D13: 50 | E13: 75 | F13: 100 | G13: 200 | H13: 300 | I13: 500 | J13: 1000
B14: 2 | C14: =VLOOKUP($C$5,BoilerLessThan12A,2,FALSE)*0.02879 -> 79.41538741 | D14: =VLOOKUP($C$5,BoilerLessThan12A,3,FALSE)*0.02879 -> 44.51719132 | E14: =VLOOKUP($C$5,BoilerLessThan12A,4,FALSE)*0.02879 -> 31.76421918 | F14: =VLOOKUP($C$5,BoilerLessThan12A,5,FALSE)*0.02879 -> 25.07501095 | G14: =VLOOKUP($C$5,BoilerLessThan12A,6,FALSE)*0.02879 -> 9.555908568 | H14: =VLOOKUP($C$5,BoilerLessThan12A,7,FALSE)*0.02879 -> 8.069659942 | I14: =VLOOKUP($C$5,BoilerLessThan12A,8,FALSE)*0.02879 -> 4.64520345 | J14: =VLOOKUP($C$5,BoilerLessThan12A,9,FALSE)*0.02879 -> 1.774091046 | K14: (ug/m^3)/(tons/yr) | P14: Row: | Q14: =IF(G4<=P5,Q5,IF(G4<=P6,Q6,IF(G4<=P7,Q7,IF(G4<=P8,Q8,IF(G4<=P9,Q9))))) -> FALSE
B15: 5 | C15: =VLOOKUP($C$5,BoilerLessThan12A,11,FALSE)*0.02879 -> 64.07236985 | D15: =VLOOKUP($C$5,BoilerLessThan12A,12,FALSE)*0.02879 -> 29.91831004 | E15: =VLOOKUP($C$5,BoilerLessThan12A,13,FALSE)*0.02879 -> 20.21722214 | F15: =VLOOKUP($C$5,BoilerLessThan12A,14,FALSE)*0.02879 -> 15.47903045 | G15: =VLOOKUP($C$5,BoilerLessThan12A,15,FALSE)*0.02879 -> 7.959415834 | H15: =VLOOKUP($C$5,BoilerLessThan12A,16,FALSE)*0.02879 -> 6.011025233 | I15: =VLOOKUP($C$5,BoilerLessThan12A,17,FALSE)*0.02879 -> 4.087252098 | J15: =VLOOKUP($C$5,BoilerLessThan12A,18,FALSE)*0.02879 -> 1.694838798 | K15: (ug/m^3)/(tons/yr) | P15: Row: | Q15: =IF(G4<P10,Q10,Q11) -> 7
B16: 10 | C16: =VLOOKUP($C$5,BoilerLessThan12A,20,FALSE)*0.02879 -> 51.36540154 | D16: =VLOOKUP($C$5,BoilerLessThan12A,21,FALSE)*0.02879 -> 21.89601973 | E16: =VLOOKUP($C$5,BoilerLessThan12A,22,FALSE)*0.02879 -> 12.66144096 | F16: =VLOOKUP($C$5,BoilerLessThan12A,23,FALSE)*0.02879 -> 9.543840088 | G16: =VLOOKUP($C$5,BoilerLessThan12A,24,FALSE)*0.02879 -> 4.990792852 | H16: =VLOOKUP($C$5,BoilerLessThan12A,25,FALSE)*0.02879 -> 3.517747032 | I16: =VLOOKUP($C$5,BoilerLessThan12A,26,FALSE)*0.02879 -> 3.024934783 | J16: =VLOOKUP($C$5,BoilerLessThan12A,27,FALSE)*0.02879 -> 1.504719426 | K16: (ug/m^3)/(tons/yr)
B17: 20 | C17: =VLOOKUP($C$5,BoilerLessThan12A,29,FALSE)*0.02879 -> 45.12191836 | D17: =VLOOKUP($C$5,BoilerLessThan12A,30,FALSE)*0.02879 -> 18.64376198 | E17: =VLOOKUP($C$5,BoilerLessThan12A,31,FALSE)*0.02879 -> 10.30808532 | F17: =VLOOKUP($C$5,BoilerLessThan12A,32,FALSE)*0.02879 -> 7.043192222 | G17: =VLOOKUP($C$5,BoilerLessThan12A,33,FALSE)*0.02879 -> 3.614405138 | H17: =VLOOKUP($C$5,BoilerLessThan12A,34,FALSE)*0.02879 -> 2.390372089 | I17: =VLOOKUP($C$5,BoilerLessThan12A,35,FALSE)*0.02879 -> 2.479725309 | J17: =VLOOKUP($C$5,BoilerLessThan12A,36,FALSE)*0.02879 -> 1.389215674 | K17: (ug/m^3)/(tons/yr)
B18: 40 | C18: =VLOOKUP($C$5,BoilerLessThan12A,38,FALSE)*0.02879 -> 26.66981601 | D18: =VLOOKUP($C$5,BoilerLessThan12A,39,FALSE)*0.02879 -> 11.45479131 | E18: =VLOOKUP($C$5,BoilerLessThan12A,40,FALSE)*0.02879 -> 6.2139075 | F18: =VLOOKUP($C$5,BoilerLessThan12A,41,FALSE)*0.02879 -> 4.013443175 | G18: =VLOOKUP($C$5,BoilerLessThan12A,42,FALSE)*0.02879 -> 1.338712832 | H18: =VLOOKUP($C$5,BoilerLessThan12A,43,FALSE)*0.02879 -> 0.8036688194 | I18: =VLOOKUP($C$5,BoilerLessThan12A,44,FALSE)*0.02879 -> 0.9322985088 | J18: =VLOOKUP($C$5,BoilerLessThan12A,45,FALSE)*0.02879 -> 0.8967952566 | K18: (ug/m^3)/(tons/yr)
B19: 50 | C19: =VLOOKUP($C$5,BoilerLessThan12A,47,FALSE)*0.02879 -> 23.56695044 | D19: =VLOOKUP($C$5,BoilerLessThan12A,48,FALSE)*0.02879 -> 10.40627074 | E19: =VLOOKUP($C$5,BoilerLessThan12A,49,FALSE)*0.02879 -> 5.69019955 | F19: =VLOOKUP($C$5,BoilerLessThan12A,50,FALSE)*0.02879 -> 3.612668526 | G19: =VLOOKUP($C$5,BoilerLessThan12A,51,FALSE)*0.02879 -> 1.223092767 | H19: =VLOOKUP($C$5,BoilerLessThan12A,52,FALSE)*0.02879 -> 0.6536418262 | I19: =VLOOKUP($C$5,BoilerLessThan12A,53,FALSE)*0.02879 -> 0.7146700045 | J19: =VLOOKUP($C$5,BoilerLessThan12A,54,FALSE)*0.02879 -> 0.7845767309 | K19: (ug/m^3)/(tons/yr)
B20: 75 | C20: =VLOOKUP($C$5,BoilerLessThan12A,56,FALSE)*0.02879 -> 18.94177274 | D20: =VLOOKUP($C$5,BoilerLessThan12A,57,FALSE)*0.02879 -> 8.951947629 | E20: =VLOOKUP($C$5,BoilerLessThan12A,58,FALSE)*0.02879 -> 4.949832455 | F20: =VLOOKUP($C$5,BoilerLessThan12A,59,FALSE)*0.02879 -> 3.158726519 | G20: =VLOOKUP($C$5,BoilerLessThan12A,60,FALSE)*0.02879 -> 1.069935438 | H20: =VLOOKUP($C$5,BoilerLessThan12A,61,FALSE)*0.02879 -> 0.5630946851 | I20: =VLOOKUP($C$5,BoilerLessThan12A,62,FALSE)*0.02879 -> 0.4832899567 | J20: =VLOOKUP($C$5,BoilerLessThan12A,63,FALSE)*0.02879 -> 0.6326855852 | K20: (ug/m^3)/(tons/yr)
B21: Table 2B
B22: Station | C22: Met
B23: Anaheim | C23: 0.84
B24: Azusa | C24: 0.77
B25: Banning | C25: 0.52
B26: Burbank | C26: 0.57
B27: Canoga Park | C27: 0.65
B28: Compton | C28: 0.63
B29: Costa Mesa | C29: 0.69
B30: Downtown L.A. | C30: 0.51
B31: El Toro | C31: 0.65
B32: Fontana | C32: 0.77
B33: Indio | C33: 0.69
B34: King Harbor | C34: 0.6
B35: La Canada | C35: 0.73
B36: La Habra | C36: 0.78
B37: Lancaster | C37: 0.47
B38: Lennox | C38: 0.67
B39: Long Beach | C39: 0.59
B40: Los Alamitos | C40: 0.6
B41: Lynwood | C41: 0.58
B42: Malibu | C42: 0.84
B43: Newhall | C43: 0.5
B44: Norco | C44: 0.73
B45: Palm Springs | C45: 0.55
B46: Pasadena | C46: 0.74
B47: Pico Rivera | C47: 0.7
B48: Pomona | C48: 0.86
B49: Redlands | C49: 0.86
B50: Reseda | C50: 0.68
B51: Riverside | C51: 0.82
B52: Santa Ana Canyon | C52: 0.89
B53: Upland | C53: 0.6
B54: Vernon | C54: 0.54
B55: Walnut | C55: 0.6
B56: West L.A. | C56: 1
B57: Whittier | C57: 0.63

Sheet Table6 Engine < 12 (hidden)
B3: Look up for Engine < 12 hrs/day Data and X/Q | H3: Interpolation
F4: HP | G4: =Emissions!SourceCapacity -> n/a | I4: row: | J4: =Q14 -> 4 | P4: HP | Q4: ROW
B5: Station | C5: =Emissions!$E$25 -> Long Beach | G5: Residential | J5: Industrial | P5: 50 | Q5: 1
B6: MET | C6: =VLOOKUP($C$5,table2b,MATCH("Met",head2b,0),FALSE) -> 0.59 | F6: near | G6: actual | H6: far | I6: near | J6: actual | K6: far | P6: 200 | Q6: 2
B7: X/Qmax (res.) | C7: =$G$8 -> 3.913956451 | E7: distance | F7: =IF(G7<25,25,HLOOKUP(G7,table2a,1,TRUE)) -> 200 | G7: =Emissions!E23 -> 250 | H7: =IF(G7<25,25,IF(G7>=1000,1000,IF(G7=HLOOKUP(G7,table2a,1,TRUE),G7,INDEX(table2a,1,MATCH(G7,head2a,1)+1)))) -> 300 | I7: =IF(J7<25,25,HLOOKUP(J7,table2a,1,TRUE)) -> 50 | J7: =Emissions!E24 -> 65 | K7: =IF(J7<25,25,IF(J7>=1000,1000,IF(J7=HLOOKUP(J7,table2a,1,TRUE),J7,INDEX(table2a,1,MATCH(J7,head2a,1)+1)))) -> 75 | P7: 350 | Q7: 3
B8: X/Qmax (ind.) | C8: =$J$8 -> 15.02412202 | E8: X/Q | F8: =HLOOKUP(F7,table2a,$J$4+1,TRUE) -> 4.520913853 | G8: =IF(F8=H8,F8,F8-(((G7-F7)/(H7-F7))*(F8-H8))) -> 3.913956451 | H8: =HLOOKUP(H7,table2a,$J$4+1,TRUE) -> 3.30699905 | I8: =HLOOKUP(I7,table2a,$J$4+1,TRUE) -> 20.44160651 | J8: =IF(I8=K8,I8,I8-(((J7-I7)/(K7-I7))*(I8-K8))) -> 15.02412202 | K8: =HLOOKUP(K7,table2a,$J$4+1,TRUE) -> 11.41246569 | P8: 550 | Q8: 4
B10: Table 2A - Point Source, operating 12 hrs/day or less
B11: HP | E11: Downwind Distance (meters)
C12: 25 | D12: 50 | E12: 75 | F12: 100 | G12: 200 | H12: 300 | I12: 500 | J12: 1000
B13: 50 | C13: =VLOOKUP($C$5,EngineLessThan12A,2,FALSE)*0.02879 -> 148.9880672 | D13: =VLOOKUP($C$5,EngineLessThan12A,3,FALSE)*0.02879 -> 96.2463476 | E13: =VLOOKUP($C$5,EngineLessThan12A,4,FALSE)*0.02879 -> 58.37610396 | F13: =VLOOKUP($C$5,EngineLessThan12A,5,FALSE)*0.02879 -> 36.8279135 | G13: =VLOOKUP($C$5,EngineLessThan12A,6,FALSE)*0.02879 -> 16.18475079 | H13: =VLOOKUP($C$5,EngineLessThan12A,7,FALSE)*0.02879 -> 10.70727508 | I13: =VLOOKUP($C$5,EngineLessThan12A,8,FALSE)*0.02879 -> 5.251794931 | J13: =VLOOKUP($C$5,EngineLessThan12A,9,FALSE)*0.02879 -> 1.853476304 | K13: (ug/m^3)/(tons/yr)
B14: 200 | C14: =VLOOKUP($C$5,EngineLessThan12A,11,FALSE)*0.02879 -> 69.79311012 | D14: =VLOOKUP($C$5,EngineLessThan12A,12,FALSE)*0.02879 -> 33.2674565 | E14: =VLOOKUP($C$5,EngineLessThan12A,13,FALSE)*0.02879 -> 24.17232756 | F14: =VLOOKUP($C$5,EngineLessThan12A,14,FALSE)*0.02879 -> 18.82931382 | G14: =VLOOKUP($C$5,EngineLessThan12A,15,FALSE)*0.02879 -> 8.712677394 | H14: =VLOOKUP($C$5,EngineLessThan12A,16,FALSE)*0.02879 -> 6.938025806 | I14: =VLOOKUP($C$5,EngineLessThan12A,17,FALSE)*0.02879 -> 4.349431112 | J14: =VLOOKUP($C$5,EngineLessThan12A,18,FALSE)*0.02879 -> 1.732555425 | K14: (ug/m^3)/(tons/yr) | P14: Row: | Q14: =IF(G4<=P5,Q5,IF(G4<=P6,Q6,IF(G4<=P7,Q7,Q8))) -> 4
B15: 350 | C15: =VLOOKUP($C$5,EngineLessThan12A,20,FALSE)*0.02879 -> 57.76213763 | D15: =VLOOKUP($C$5,EngineLessThan12A,21,FALSE)*0.02879 -> 23.9471912 | E15: =VLOOKUP($C$5,EngineLessThan12A,22,FALSE)*0.02879 -> 15.70299275 | F15: =VLOOKUP($C$5,EngineLessThan12A,23,FALSE)*0.02879 -> 12.08641944 | G15: =VLOOKUP($C$5,EngineLessThan12A,24,FALSE)*0.02879 -> 6.008816465 | H15: =VLOOKUP($C$5,EngineLessThan12A,25,FALSE)*0.02879 -> 4.449910228 | I15: =VLOOKUP($C$5,EngineLessThan12A,26,FALSE)*0.02879 -> 3.446625655 | J15: =VLOOKUP($C$5,EngineLessThan12A,27,FALSE)*0.02879 -> 1.583109414 | K15: (ug/m^3)/(tons/yr)
B16: 550 | C16: =VLOOKUP($C$5,EngineLessThan12A,29,FALSE)*0.02879 -> 49.42647997 | D16: =VLOOKUP($C$5,EngineLessThan12A,30,FALSE)*0.02879 -> 20.44160651 | E16: =VLOOKUP($C$5,EngineLessThan12A,31,FALSE)*0.02879 -> 11.41246569 | F16: =VLOOKUP($C$5,EngineLessThan12A,32,FALSE)*0.02879 -> 8.586400423 | G16: =VLOOKUP($C$5,EngineLessThan12A,33,FALSE)*0.02879 -> 4.520913853 | H16: =VLOOKUP($C$5,EngineLessThan12A,34,FALSE)*0.02879 -> 3.30699905 | I16: =VLOOKUP($C$5,EngineLessThan12A,35,FALSE)*0.02879 -> 2.936163985 | J16: =VLOOKUP($C$5,EngineLessThan12A,36,FALSE)*0.02879 -> 1.486765983 | K16: (ug/m^3)/(tons/yr)
B17: Table 2B
B18: Station | C18: Met
B19: Anaheim | C19: 0.84
B20: Azusa | C20: 0.77
B21: Banning | C21: 0.52
B22: Burbank | C22: 0.57
B23: Canoga Park | C23: 0.65
B24: Compton | C24: 0.63
B25: Costa Mesa | C25: 0.69
B26: Downtown L.A. | C26: 0.51
B27: El Toro | C27: 0.65
B28: Fontana | C28: 0.77
B29: Indio | C29: 0.69
B30: King Harbor | C30: 0.6
B31: La Canada | C31: 0.73
B32: La Habra | C32: 0.78
B33: Lancaster | C33: 0.47
B34: Lennox | C34: 0.67
B35: Long Beach | C35: 0.59
B36: Los Alamitos | C36: 0.6
B37: Lynwood | C37: 0.58
B38: Malibu | C38: 0.84
B39: Newhall | C39: 0.5
B40: Norco | C40: 0.73
B41: Palm Springs | C41: 0.55
B42: Pasadena | C42: 0.74
B43: Pico Rivera | C43: 0.7
B44: Pomona | C44: 0.86
B45: Redlands | C45: 0.86
B46: Reseda | C46: 0.68
B47: Riverside | C47: 0.82
B48: Santa Ana Canyon | C48: 0.89
B49: Upland | C49: 0.6
B50: Vernon | C50: 0.54
B51: Walnut | C51: 0.6
B52: West L.A. | C52: 1
B53: Whittier | C53: 0.63

Sheet Table6 Boiler > 12 (hidden)
B3: Look up for Boiler >12 hrs/day Data and X/Q | H3: Interpolation
F4: MMBTU | G4: =Emissions!SourceCapacity -> n/a | I4: row: | J4: =IF(Q14<Q15,Q14,Q15) -> 7 | P4: MMBTU | Q4: ROW
B5: Station | C5: =Emissions!$E$25 -> Long Beach | G5: Residential | J5: Industrial | P5: 2 | Q5: 1
B6: MET | C6: =VLOOKUP($C$5,table2b,MATCH("Met",head2b,0),FALSE) -> 0.59 | F6: near | G6: actual | H6: far | I6: near | J6: actual | K6: far | P6: 5 | Q6: 2
B7: X/Qmax (res.) | C7: =$G$8 -> 0.8165150614 | E7: distance | F7: =IF(G7<25,25,HLOOKUP(G7,table2a,1,TRUE)) -> 200 | G7: =Emissions!E23 -> 250 | H7: =IF(G7<25,25,IF(G7>=1000,1000,IF(G7=HLOOKUP(G7,table2a,1,TRUE),G7,INDEX(table2a,1,MATCH(G7,head2a,1)+1)))) -> 300 | I7: =IF(J7<25,25,HLOOKUP(J7,table2a,1,TRUE)) -> 50 | J7: =Emissions!E24 -> 65 | K7: =IF(J7<25,25,IF(J7>=1000,1000,IF(J7=HLOOKUP(J7,table2a,1,TRUE),J7,INDEX(table2a,1,MATCH(J7,head2a,1)+1)))) -> 75 | P7: 10 | Q7: 3
B8: X/Qmax (ind.) | C8: =$J$8 -> 6.550678525 | E8: X/Q | F8: =HLOOKUP(F7,table2a,$J$4+1,TRUE) -> 1.069935438 | G8: =IF(F8=H8,F8,F8-(((G7-F7)/(H7-F7))*(F8-H8))) -> 0.8165150614 | H8: =HLOOKUP(H7,table2a,$J$4+1,TRUE) -> 0.5630946851 | I8: =HLOOKUP(I7,table2a,$J$4+1,TRUE) -> 8.951947629 | J8: =IF(I8=K8,I8,I8-(((J7-I7)/(K7-I7))*(I8-K8))) -> 6.550678525 | K8: =HLOOKUP(K7,table2a,$J$4+1,TRUE) -> 4.949832455 | P8: 20 | Q8: 4
P9: 40 | Q9: 5
P10: 50 | Q10: 6
B11: Table 2A - Point Source, operating 12 hrs/day or more | P11: 75 | Q11: 7
B12: MMBTU | E12: Downwind Distance (meters)
C13: 25 | D13: 50 | E13: 75 | F13: 100 | G13: 200 | H13: 300 | I13: 500 | J13: 1000
B14: 2 | C14: =VLOOKUP($C$5,BoilerMoreThan12A,2,FALSE)*0.02879 -> 79.41538741 | D14: =VLOOKUP($C$5,BoilerMoreThan12A,3,FALSE)*0.02879 -> 44.51719132 | E14: =VLOOKUP($C$5,BoilerMoreThan12A,4,FALSE)*0.02879 -> 31.76421918 | F14: =VLOOKUP($C$5,BoilerMoreThan12A,5,FALSE)*0.02879 -> 25.07501095 | G14: =VLOOKUP($C$5,BoilerMoreThan12A,6,FALSE)*0.02879 -> 9.555908568 | H14: =VLOOKUP($C$5,BoilerMoreThan12A,7,FALSE)*0.02879 -> 8.096505753 | I14: =VLOOKUP($C$5,BoilerMoreThan12A,8,FALSE)*0.02879 -> 4.652071304 | J14: =VLOOKUP($C$5,BoilerMoreThan12A,9,FALSE)*0.02879 -> 1.775111364 | K14: (ug/m^3)/(tons/yr) | P14: Row: | Q14: =IF(G4<=P5,Q5,IF(G4<=P6,Q6,IF(G4<=P7,Q7,IF(G4<=P8,Q8,IF(G4<=P9,Q9))))) -> FALSE
B15: 5 | C15: =VLOOKUP($C$5,BoilerMoreThan12A,11,FALSE)*0.02879 -> 64.07236985 | D15: =VLOOKUP($C$5,BoilerMoreThan12A,12,FALSE)*0.02879 -> 32.46410926 | E15: =VLOOKUP($C$5,BoilerMoreThan12A,13,FALSE)*0.02879 -> 20.71596369 | F15: =VLOOKUP($C$5,BoilerMoreThan12A,14,FALSE)*0.02879 -> 15.47903045 | G15: =VLOOKUP($C$5,BoilerMoreThan12A,15,FALSE)*0.02879 -> 7.959415834 | H15: =VLOOKUP($C$5,BoilerMoreThan12A,16,FALSE)*0.02879 -> 6.058014544 | I15: =VLOOKUP($C$5,BoilerMoreThan12A,17,FALSE)*0.02879 -> 4.10124519 | J15: =VLOOKUP($C$5,BoilerMoreThan12A,18,FALSE)*0.02879 -> 1.696988547 | K15: (ug/m^3)/(tons/yr) | P15: Row: | Q15: =IF(G4<P10,Q10,Q11) -> 7
B16: 10 | C16: =VLOOKUP($C$5,BoilerMoreThan12A,20,FALSE)*0.02879 -> 51.36540154 | D16: =VLOOKUP($C$5,BoilerMoreThan12A,21,FALSE)*0.02879 -> 21.89601973 | E16: =VLOOKUP($C$5,BoilerMoreThan12A,22,FALSE)*0.02879 -> 12.85977037 | F16: =VLOOKUP($C$5,BoilerMoreThan12A,23,FALSE)*0.02879 -> 9.543840088 | G16: =VLOOKUP($C$5,BoilerMoreThan12A,24,FALSE)*0.02879 -> 4.990792852 | H16: =VLOOKUP($C$5,BoilerMoreThan12A,25,FALSE)*0.02879 -> 3.563776484 | I16: =VLOOKUP($C$5,BoilerMoreThan12A,26,FALSE)*0.02879 -> 3.046217214 | J16: =VLOOKUP($C$5,BoilerMoreThan12A,27,FALSE)*0.02879 -> 1.508957602 | K16: (ug/m^3)/(tons/yr)
B17: 20 | C17: =VLOOKUP($C$5,BoilerMoreThan12A,29,FALSE)*0.02879 -> 45.12191836 | D17: =VLOOKUP($C$5,BoilerMoreThan12A,30,FALSE)*0.02879 -> 18.64376198 | E17: =VLOOKUP($C$5,BoilerMoreThan12A,31,FALSE)*0.02879 -> 10.30808532 | F17: =VLOOKUP($C$5,BoilerMoreThan12A,32,FALSE)*0.02879 -> 7.043192222 | G17: =VLOOKUP($C$5,BoilerMoreThan12A,33,FALSE)*0.02879 -> 3.614405138 | H17: =VLOOKUP($C$5,BoilerMoreThan12A,34,FALSE)*0.02879 -> 2.450837135 | I17: =VLOOKUP($C$5,BoilerMoreThan12A,35,FALSE)*0.02879 -> 2.51460641 | J17: =VLOOKUP($C$5,BoilerMoreThan12A,36,FALSE)*0.02879 -> 1.397224476 | K17: (ug/m^3)/(tons/yr)
B18: 40 | C18: =VLOOKUP($C$5,BoilerMoreThan12A,38,FALSE)*0.02879 -> 26.66981601 | D18: =VLOOKUP($C$5,BoilerMoreThan12A,39,FALSE)*0.02879 -> 11.45479131 | E18: =VLOOKUP($C$5,BoilerMoreThan12A,40,FALSE)*0.02879 -> 6.2139075 | F18: =VLOOKUP($C$5,BoilerMoreThan12A,41,FALSE)*0.02879 -> 4.013443175 | G18: =VLOOKUP($C$5,BoilerMoreThan12A,42,FALSE)*0.02879 -> 1.338712832 | H18: =VLOOKUP($C$5,BoilerMoreThan12A,43,FALSE)*0.02879 -> 0.8036688194 | I18: =VLOOKUP($C$5,BoilerMoreThan12A,44,FALSE)*0.02879 -> 0.9341384777 | J18: =VLOOKUP($C$5,BoilerMoreThan12A,45,FALSE)*0.02879 -> 0.8976972473 | K18: (ug/m^3)/(tons/yr)
B19: 50 | C19: =VLOOKUP($C$5,BoilerMoreThan12A,47,FALSE)*0.02879 -> 23.56695044 | D19: =VLOOKUP($C$5,BoilerMoreThan12A,48,FALSE)*0.02879 -> 10.40627074 | E19: =VLOOKUP($C$5,BoilerMoreThan12A,49,FALSE)*0.02879 -> 5.69019955 | F19: =VLOOKUP($C$5,BoilerMoreThan12A,50,FALSE)*0.02879 -> 3.612668526 | G19: =VLOOKUP($C$5,BoilerMoreThan12A,51,FALSE)*0.02879 -> 1.223092767 | H19: =VLOOKUP($C$5,BoilerMoreThan12A,52,FALSE)*0.02879 -> 0.6536418262 | I19: =VLOOKUP($C$5,BoilerMoreThan12A,53,FALSE)*0.02879 -> 0.7147054162 | J19: =VLOOKUP($C$5,BoilerMoreThan12A,54,FALSE)*0.02879 -> 0.7847296058 | K19: (ug/m^3)/(tons/yr)
B20: 75 | C20: =VLOOKUP($C$5,BoilerMoreThan12A,56,FALSE)*0.02879 -> 18.94177274 | D20: =VLOOKUP($C$5,BoilerMoreThan12A,57,FALSE)*0.02879 -> 8.951947629 | E20: =VLOOKUP($C$5,BoilerMoreThan12A,58,FALSE)*0.02879 -> 4.949832455 | F20: =VLOOKUP($C$5,BoilerMoreThan12A,59,FALSE)*0.02879 -> 3.158726519 | G20: =VLOOKUP($C$5,BoilerMoreThan12A,60,FALSE)*0.02879 -> 1.069935438 | H20: =VLOOKUP($C$5,BoilerMoreThan12A,61,FALSE)*0.02879 -> 0.5630946851 | I20: =VLOOKUP($C$5,BoilerMoreThan12A,62,FALSE)*0.02879 -> 0.4849062273 | J20: =VLOOKUP($C$5,BoilerMoreThan12A,63,FALSE)*0.02879 -> 0.6328021847 | K20: (ug/m^3)/(tons/yr)
B21: Table 2B
B22: Station | C22: Met
B23: Anaheim | C23: 0.84
B24: Azusa | C24: 0.77
B25: Banning | C25: 0.52
B26: Burbank | C26: 0.57
B27: Canoga Park | C27: 0.65
B28: Compton | C28: 0.63
B29: Costa Mesa | C29: 0.69
B30: Downtown L.A. | C30: 0.51
B31: El Toro | C31: 0.65
B32: Fontana | C32: 0.77
B33: Indio | C33: 0.69
B34: King Harbor | C34: 0.6
B35: La Canada | C35: 0.73
B36: La Habra | C36: 0.78
B37: Lancaster | C37: 0.47
B38: Lennox | C38: 0.67
B39: Long Beach | C39: 0.59
B40: Los Alamitos | C40: 0.6
B41: Lynwood | C41: 0.58
B42: Malibu | C42: 0.84
B43: Newhall | C43: 0.5
B44: Norco | C44: 0.73
B45: Palm Springs | C45: 0.55
B46: Pasadena | C46: 0.74
B47: Pico Rivera | C47: 0.7
B48: Pomona | C48: 0.86
B49: Redlands | C49: 0.86
B50: Reseda | C50: 0.68
B51: Riverside | C51: 0.82
B52: Santa Ana Canyon | C52: 0.89
B53: Upland | C53: 0.6
B54: Vernon | C54: 0.54
B55: Walnut | C55: 0.6
B56: West L.A. | C56: 1
B57: Whittier | C57: 0.63

Sheet Table6 Engine > 12 (hidden)
B3: Look up for Engine > 12 hrs/day Data and X/Q | H3: Interpolation
F4: HP | G4: =Emissions!SourceCapacity -> n/a | I4: row: | J4: =Q14 -> 4 | P4: HP | Q4: ROW
B5: Station | C5: =Emissions!$E$25 -> Long Beach | G5: Residential | J5: Industrial | M5: X/Q for one-in-a-million | P5: 50 | Q5: 1
B6: MET | C6: =VLOOKUP($C$5,table2b,MATCH("Met",head2b,0),FALSE) -> 0.59 | F6: near | G6: actual | H6: far | I6: near | J6: actual | K6: far | L6: near | M6: actual | N6: far | P6: 200 | Q6: 2
B7: X/Qmax (res.) | C7: =$G$8 -> 3.931000851 | E7: distance | F7: =IF(G7<25,25,HLOOKUP(G7,table2a,1,TRUE)) -> 200 | G7: =Emissions!E23 -> 250 | H7: =IF(G7<25,25,IF(G7>=1000,1000,IF(G7=HLOOKUP(G7,table2a,1,TRUE),G7,INDEX(table2a,1,MATCH(G7,head2a,1)+1)))) -> 300 | I7: =IF(J7<25,25,HLOOKUP(J7,table2a,1,TRUE)) -> 50 | J7: =Emissions!E24 -> 65 | K7: =IF(J7<25,25,IF(J7>=1000,1000,IF(J7=HLOOKUP(J7,table2a,1,TRUE),J7,INDEX(table2a,1,MATCH(J7,head2a,1)+1)))) -> 75 | L7: =IF(L8="","",INDEX(table2a,1,MATCH(L8,IF($J$4=1,$C13:$J13,IF($J$4=2,$C14:$J14,IF($J$4=3,$C15:$J15,IF($J$4=4,$C16:$J16,"")))),-1))) -> 1000 | M7: =IF(L7="","",IF(N7=L7,"no data",L7-(L8-M8)/(L8-N8)*(L7-N7))) -> no data | N7: =IF(N8="","",INDEX(table2a,1,MATCH(N8,IF($J$4=1,$C13:$J13,IF($J$4=2,$C14:$J14,IF($J$4=3,$C15:$J15,IF($J$4=4,$C16:$J16,"")))),-1))) -> 1000 | P7: 350 | Q7: 3
B8: X/Qmax (ind.) | C8: =$J$8 -> 15.02412202 | E8: X/Q | F8: =HLOOKUP(F7,table2a,$J$4+1,TRUE) -> 4.520913853 | G8: =IF(F8=H8,F8,F8-(((G7-F7)/(H7-F7))*(F8-H8))) -> 3.931000851 | H8: =HLOOKUP(H7,table2a,$J$4+1,TRUE) -> 3.341087849 | I8: =HLOOKUP(I7,table2a,$J$4+1,TRUE) -> 20.44160651 | J8: =IF(I8=K8,I8,I8-(((J7-I7)/(K7-I7))*(I8-K8))) -> 15.02412202 | K8: =HLOOKUP(K7,table2a,$J$4+1,TRUE) -> 11.41246569 | L8: =IF(M8="","",INDEX(table2a,$J$4+1,MATCH(M8,IF($J$4=1,$C13:$J13,IF($J$4=2,$C14:$J14,IF($J$4=3,$C15:$J15,IF($J$4=4,$C16:$J16,"")))),-1))) -> 1.486882006 | M8: ='Tier 2 Report'!L196*0.02879 -> 0 | N8: =IF(M8="","",IF(AND(M8<L8,L7=1000),L8,INDEX(table2a,$J$4+1,MATCH(M8,IF($J$4=1,$C13:$J13,IF($J$4=2,$C14:$J14,IF($J$4=3,$C15:$J15,IF($J$4=4,$C16:$J16,"")))),-1)+1))) -> 1.486882006 | P8: 550 | Q8: 4
B10: Table 2A - Point Source, operating 12 hrs/day or more
B11: HP | E11: Downwind Distance (meters)
C12: 25 | D12: 50 | E12: 75 | F12: 100 | G12: 200 | H12: 300 | I12: 500 | J12: 1000
B13: 50 | C13: =VLOOKUP($C$5,EngineMoreThan12A,2,FALSE)*0.02879 -> 148.9880672 | D13: =VLOOKUP($C$5,EngineMoreThan12A,3,FALSE)*0.02879 -> 96.24636171 | E13: =VLOOKUP($C$5,EngineMoreThan12A,4,FALSE)*0.02879 -> 58.37611087 | F13: =VLOOKUP($C$5,EngineMoreThan12A,5,FALSE)*0.02879 -> 36.83369827 | G13: =VLOOKUP($C$5,EngineMoreThan12A,6,FALSE)*0.02879 -> 16.18812642 | H13: =VLOOKUP($C$5,EngineMoreThan12A,7,FALSE)*0.02879 -> 10.70869903 | I13: =VLOOKUP($C$5,EngineMoreThan12A,8,FALSE)*0.02879 -> 5.252300483 | J13: =VLOOKUP($C$5,EngineMoreThan12A,9,FALSE)*0.02879 -> 1.853757295 | K13: (ug/m^3)/(tons/yr)
B14: 200 | C14: =VLOOKUP($C$5,EngineMoreThan12A,11,FALSE)*0.02879 -> 69.79311012 | D14: =VLOOKUP($C$5,EngineMoreThan12A,12,FALSE)*0.02879 -> 33.2674565 | E14: =VLOOKUP($C$5,EngineMoreThan12A,13,FALSE)*0.02879 -> 24.17232756 | F14: =VLOOKUP($C$5,EngineMoreThan12A,14,FALSE)*0.02879 -> 18.82931382 | G14: =VLOOKUP($C$5,EngineMoreThan12A,15,FALSE)*0.02879 -> 8.712677394 | H14: =VLOOKUP($C$5,EngineMoreThan12A,16,FALSE)*0.02879 -> 6.94022709 | I14: =VLOOKUP($C$5,EngineMoreThan12A,17,FALSE)*0.02879 -> 4.349650492 | J14: =VLOOKUP($C$5,EngineMoreThan12A,18,FALSE)*0.02879 -> 1.732962804 | K14: (ug/m^3)/(tons/yr) | P14: Row: | Q14: =IF(G4<=P5,Q5,IF(G4<=P6,Q6,IF(G4<=P7,Q7,Q8))) -> 4
B15: 350 | C15: =VLOOKUP($C$5,EngineMoreThan12A,20,FALSE)*0.02879 -> 57.76213763 | D15: =VLOOKUP($C$5,EngineMoreThan12A,21,FALSE)*0.02879 -> 23.9471912 | E15: =VLOOKUP($C$5,EngineMoreThan12A,22,FALSE)*0.02879 -> 15.70299275 | F15: =VLOOKUP($C$5,EngineMoreThan12A,23,FALSE)*0.02879 -> 12.08641944 | G15: =VLOOKUP($C$5,EngineMoreThan12A,24,FALSE)*0.02879 -> 6.008816465 | H15: =VLOOKUP($C$5,EngineMoreThan12A,25,FALSE)*0.02879 -> 4.487218325 | I15: =VLOOKUP($C$5,EngineMoreThan12A,26,FALSE)*0.02879 -> 3.447178999 | J15: =VLOOKUP($C$5,EngineMoreThan12A,27,FALSE)*0.02879 -> 1.58334175 | K15: (ug/m^3)/(tons/yr)
B16: 550 | C16: =VLOOKUP($C$5,EngineMoreThan12A,29,FALSE)*0.02879 -> 49.42647997 | D16: =VLOOKUP($C$5,EngineMoreThan12A,30,FALSE)*0.02879 -> 20.44160651 | E16: =VLOOKUP($C$5,EngineMoreThan12A,31,FALSE)*0.02879 -> 11.41246569 | F16: =VLOOKUP($C$5,EngineMoreThan12A,32,FALSE)*0.02879 -> 8.586400423 | G16: =VLOOKUP($C$5,EngineMoreThan12A,33,FALSE)*0.02879 -> 4.520913853 | H16: =VLOOKUP($C$5,EngineMoreThan12A,34,FALSE)*0.02879 -> 3.341087849 | I16: =VLOOKUP($C$5,EngineMoreThan12A,35,FALSE)*0.02879 -> 2.936890068 | J16: =VLOOKUP($C$5,EngineMoreThan12A,36,FALSE)*0.02879 -> 1.486882006 | K16: (ug/m^3)/(tons/yr)
B17: Table 2B
B18: Station | C18: Met
B19: Anaheim | C19: 0.84
B20: Azusa | C20: 0.77
B21: Banning | C21: 0.52
B22: Burbank | C22: 0.57
B23: Canoga Park | C23: 0.65
B24: Compton | C24: 0.63
B25: Costa Mesa | C25: 0.69
B26: Downtown L.A. | C26: 0.51
B27: El Toro | C27: 0.65
B28: Fontana | C28: 0.77
B29: Indio | C29: 0.69
B30: King Harbor | C30: 0.6
B31: La Canada | C31: 0.73
B32: La Habra | C32: 0.78
B33: Lancaster | C33: 0.47
B34: Lennox | C34: 0.67
B35: Long Beach | C35: 0.59
B36: Los Alamitos | C36: 0.6
B37: Lynwood | C37: 0.58
B38: Malibu | C38: 0.84
B39: Newhall | C39: 0.5
B40: Norco | C40: 0.73
B41: Palm Springs | C41: 0.55
B42: Pasadena | C42: 0.74
B43: Pico Rivera | C43: 0.7
B44: Pomona | C44: 0.86
B45: Redlands | C45: 0.86
B46: Reseda | C46: 0.68
B47: Riverside | C47: 0.82
B48: Santa Ana Canyon | C48: 0.89
B49: Upland | C49: 0.6
B50: Vernon | C50: 0.54
B51: Walnut | C51: 0.6
B52: West L.A. | C52: 1
B53: Whittier | C53: 0.63

Sheet Table7 (hidden)
B3: Look up for Met Data and X/Q | H3: Interpolation
F4: Stk ht: | G4: =Emissions!E21 -> 25 | H4: Area: | I4: =Emissions!E22 -> 900 | J4: row: | K4: =IF(AND(G4<=20,I4<3000),1,IF(AND(G4<=20,I4>=3000,I4<=10000),2,IF(AND(G4>20,I4>=3000,I4<=10000),3,IF(AND(G4>=20,I4>10000,I4<=30000),4,IF(AND(G4>=20,I4>30000),5,"no data"))))) -> no data
B5: X/Qmax (res.) | C5: =$G$8 ->  | G5: Residential | J5: Industrial
B6: X/Qmax (ind.) | C6: =$J$8 ->  | F6: near | G6: actual | H6: far | I6: near | J6: actual | K6: far
E7: distance | F7: =IF(AND($K$4=5,G7<50),50,IF(G7<25,25,HLOOKUP(G7,table7,1,TRUE))) -> 200 | G7: =Emissions!E23 -> 250 | H7: =IF(AND($K$4=5,G7<50),50,IF(G7<25,25,IF(G7>=1000,1000,IF(G7=HLOOKUP(G7,table7,1,TRUE),G7,INDEX(table7,1,MATCH(G7,head7,1)+1))))) -> 300 | I7: =IF(AND($K$4=5,J7<50),50,IF(J7<25,25,HLOOKUP(J7,table7,1,TRUE))) -> 50 | J7: =Emissions!E24 -> 65 | K7: =IF(AND($K$4=5,J7<50),50,IF(J7<25,25,IF(J7>=1000,1000,IF(J7=HLOOKUP(J7,table7,1,TRUE),J7,INDEX(table7,1,MATCH(J7,head7,1)+1))))) -> 75
E8: X/Qmax | F8: =HLOOKUP(F7,table7,$K$4+1,TRUE) ->  | G8: =IF(F8=H8,F8,F8-(((G7-F7)/(H7-F7))*(F8-H8))) ->  | H8: =HLOOKUP(H7,table7,$K$4+1,TRUE) ->  | I8: =HLOOKUP(I7,table7,$K$4+1,TRUE) ->  | J8: =IF(I8=K8,I8,I8-(((J7-I7)/(K7-I7))*(I8-K8))) ->  | K8: =HLOOKUP(K7,table7,$K$4+1,TRUE) -> 
B10: Table 7 - Dispersion Factors for Acute Hazard Index - Volume Source
B11: Source Dimensions | F11: Downwind Distance (meters)
B12: Area (ft2) | C12: Height (ft) | D12: 25 | E12: 50 | F12: 75 | G12: 100 | H12: 200 | I12: 300 | J12: 500 | K12: 1000
B13: <3000 | C13: <=20 | D13: 1532.1 | E13: 773.2 | F13: 463.1 | G13: 309 | H13: 106.3 | I13: 55.2 | J13: 24.1 | K13: 8.2 | L13: (ug/m^3)/(lbs/hr)
B14: 3000 to <=10000 | C14: <=20 | D14: 1103.1 | E14: 613.9 | F14: 387.7 | G14: 267.5 | H14: 98 | I14: 52.2 | J14: 23.3 | K14: 2 | L14: (ug/m^3)/(lbs/hr)
B15: 3000 to <=10000 | C15: >20 | D15: 646.2 | E15: 416.9 | F15: 288.5 | G15: 211.2 | H15: 86.4 | I15: 48 | J15: 22.2 | K15: 7.9 | L15: (ug/m^3)/(lbs/hr)
B16: >10000 to <=30000 | C16: >=20 | D16: 439 | E16: 309.4 | F16: 226.4 | G16: 172.2 | H16: 76.3 | I16: 44 | J16: 21.1 | K16: 7.7 | L16: (ug/m^3)/(lbs/hr)
B17: >30000 | C17: >=20 | E17: 213.8 | F17: 164.9 | G17: 130.5 | H17: 63.5 | I17: 38.3 | J17: 19.3 | K17: 7.3 | L17: (ug/m^3)/(lbs/hr)

Sheet Table9A (hidden)
A1: Type of Receptor | B1: DBR Value (liters/kilogram-day)
A2: Sensitive | B2: 302
A3: Residential | B3: 302
A4: Off-site Worker | B4: 149

Sheet Table9B (hidden)
A1: Type of Receptor | B1: EVF Value (unitless)
A2: Sensitive | B2: 0.96
A3: Residential | B3: 0.96
A4: Off-site Worker | B4: 0.38

Sheet Table8A
B1: Code | C1: Toxic Air Contaminant | D1: Synonym | E1: CP | F1: MPR (MICR) | G1: MPW (MICR) | H1: REL (Chronic) | I1: MPR (Chronic) | J1: MPW (Chronic) | K1: REL (Acute) | L1: Melting P oF | M1: MW | N1: T.O. code Chronic | O1: T.O. code Acute | P1: Avg Time (hours) | Q1: <- DO NOT CHANGE THIS ROW
B2: Code list | C2: Toxic Air Contaminant | D2: CAS NO | E2: CP | F2: MPR (MICR) | G2: MPW (MICR) | H2: REL (Chronic) | I2: MPR (Chronic) | J2: MPW (Chronic) | K2: REL (Acute) | L2: Avg Hrs (Acute) | M2: MW | N2: T.O. code Chronic | O2: T.O. code Acute | P2: Avg Time (hours)
B3: A1 | C3: Acetaldehyde | D3: 75-07-0 | E3: 0.01 | F3: 1 | G3: 1 | H3: 140 | I3: 1 | J3: 1 | K3: 470 | L3: 1 | M3: 44.06 | N3: A1 | O3: A1 | P3: 1
B4: A2 | C4: Acetamide | D4: 60-35-5 | E4: 0.07 | F4: 1 | G4: 1 | M4: 59.07 | P4: 1
B5: A3 | C5: Acrolein | D5: 107-02-8 | H5: 0.35 | I5: 1 | J5: 1 | K5: 2.5 | L5: 1 | M5: 56.06 | N5: A3 | O5: A3 | P5: 1
B6: A4 | C6: Acrylamide (or propenamide) | D6: 79-06-1 | E6: 4.5 | F6: 1 | G6: 1 | M6: 71.08 | P6: 1
B7: A5 | C7: Acrylic acid | D7: 79-10-7 | K7: 6000 | L7: 1 | M7: 72.06 | O7: A5 | P7: 1
B8: A6 | C8: Acrylonitrile (or vinyl cyanide) | D8: 107-13-1 | E8: 1 | F8: 1 | G8: 1 | H8: 5 | I8: 1 | J8: 1 | M8: 53.06 | N8: A6 | P8: 1
B9: A7 | C9: Allyl chloride* | D9: 107-05-1 | E9: 0.021 | F9: 1 | G9: 1 | M9: 76.53 | P9: 1
B10: A8 | C10: Aminoanthraquinone, 2- | D10: 117-79-3 | E10: 0.033 | F10: 1 | G10: 1 | M10: 223.2306 | P10: 1
B11: A9 | C11: Ammonia | D11: 7664-41-7 | H11: 200 | I11: 1 | J11: 1 | K11: 3200 | L11: 1 | M11: 17.03 | N11: A9 | O11: A9 | P11: 1
A12: hide | B12: A10 | C12: Ammonium sulfate* | D12: 7783-20-2 | M12: 132.14 | P12: 1
B13: A11 | C13: Aniline | D13: 62-53-3 | E13: 0.0057 | F13: 1 | G13: 1 | M13: 93.12 | P13: 1
A14: hide | B14: A12 | C14: Antimony trioxide* | D14: 1309-64-4 | M14: 291.52 | P14: 1
B15: A13 | C15: Arsenic and arsenic compounds (inorganic) | D15: 7440-38-2 | E15: 12 | F15: 4.78313253 | G15: 4.572289157 | H15: 0.015 | I15: 40.06 | J15: 37.85 | K15: 0.2 | L15: 1 | M15: 74.92 | N15: A13 | O15: A13 | P15: 1
A16: hide | B16: A14 | C16: Arsenic compounds (other than inorganic)* | M16: 395.68 | P16: 1
B17: A15 | C17: Arsine | D17: 7784-42-1 | H17: 0.015 | I17: 1 | J17: 1 | K17: 0.2 | L17: 1 | M17: 77.95 | N17: A15 | O17: A15 | P17: 1
B18: A16 | C18: Asbestos | D18: 1332-21-4 | E18: 220 | F18: 1 | G18: 1 | M18: 0 | P18: 1
B19: B1 | C19: Benzene (including benzene from gasoline) | D19: 71-43-2 | E19: 0.1 | F19: 1 | G19: 1 | H19: 60 | I19: 1 | J19: 1 | K19: 1300 | L19: 1 | M19: 78.11 | N19: B1 | O19: B1 | P19: 1
B20: B2 | C20: Benzidine (and its salts) | D20: 92-87-5 | E20: 500 | F20: 1 | G20: 1 | M20: 184.23 | P20: 1
B21: B3 | C21: Benzyl chloride | D21: 100-44-7 | E21: 0.17 | F21: 1 | G21: 1 | K21: 240 | L21: 1 | M21: 126.58 | O21: B3 | P21: 1
B22: B4 | C22: Beryllium (and beryllium compounds) | D22: 7440-41-7 | E22: 8.4 | F22: 1 | G22: 1 | H22: 0.007 | I22: 1 | J22: 1 | M22: 9.012 | N22: B4 | P22: 1
B23: B5 | C23: Bis(2-chloroethyl)ether (DCEE) | D23: 111-44-4 | E23: 2.5 | F23: 1 | G23: 1 | M23: 143.0126 | P23: 1
